Workbook

Sheet Mode d'emploi
B2: Lors d'une nouvelle sortie
C3: Prendre une feuille non remplie | H3: Lignes 2 à 38 uniquement
C4: Renseigner le golf / la date / Slope / SSS
C5: Saisir les noms/prénoms des participants, leur index
C6: Saisir les cartes de score
C9: Les classements en NET / BRUT / STROKE sont automatiquement générés sur l'onglet de la sortie | J9: Lignes 45 à 77
C11: Les statistiques personnelles sont automatiquement générées dans l'onglet de la sortie | J11: Lignes 87 à 776
C14: Le classement général en NET/BRUT/STROKE est généré automatiquement dans l'onglet "Général" en cliquant sur le bouton correspondant

Sheet Général
C2: Classement | E2: =W4 -> Bourges | F2: =W34 -> Cheverny | G2: =W64 -> B | H2: =W94 -> C | I2: =W124 -> D | J2: =W154 -> E | K2: =W184 -> F | L2: =W214 -> G | M2: =W244 -> H | N2: =W274 -> I | AB2: Points
C3: STROKE | D3: TOTAL | E3: =X4 -> 2022-03-05 | F3: =X34 -> 2022-03-26 | G3: =X64 -> 00:00:00 | H3: =X94 -> 00:00:00 | I3: =X125 -> 00:00:00 | J3: =X155 -> 00:00:00 | K3: =X185 -> 00:00:00 | L3: =X215 -> 00:00:00 | M3: =X245 -> 00:00:00 | N3: =X275 -> 00:00:00 | W3: Lieu | X3: Date | Y3: Nom | Z3: Prénom | AA3: Concat | AB3: NET | AC3: BRUT | AD3: STROKE
B4: 1 | C4: MORALES José | D4: =SUM(E4:N4) -> 50 | E4: =SUMIFS(IF($C$3="NET",$AB$4:$AB$303,IF($C$3="BRUT",$AC$4:$AC$303,$AD$4:$AD$303)),$W$4:$W$303,E$2,$X$4:$X$303,E$3,$AA$4:$AA$303,$C4) -> 25 | F4: 25 | G4: 0 | H4: 0 | I4: 0 | J4: 0 | K4: 0 | L4: 0 | M4: 0 | N4: 0 | W4: ='Bourges 05-03'!$D$2 -> Bourges | X4: ='Bourges 05-03'!$D$3 -> 2022-03-05 | Y4: ='Bourges 05-03'!C9 -> BINVAULT | Z4: ='Bourges 05-03'!D9 -> Dominique | AA4: =CONCATENATE(Y4," ",Z4) -> BINVAULT Dominique | AB4: ='Bourges 05-03'!AF9 -> 6 | AC4: ='Bourges 05-03'!AK9 -> 2 | AD4: ='Bourges 05-03'!AP9 -> 1
B5: 2 | C5: HERRAULT Sébastien | D5: 45 | E5: 15 | F5: 30 | G5: 0 | H5: 0 | I5: 0 | J5: 0 | K5: 0 | L5: 0 | M5: 0 | N5: 0 | W5: ='Bourges 05-03'!$D$2 -> Bourges | X5: ='Bourges 05-03'!$D$3 -> 2022-03-05 | Y5: ='Bourges 05-03'!C10 -> CHRETIEN | Z5: ='Bourges 05-03'!D10 -> Fabrice | AA5: CHRETIEN Fabrice | AB5: ='Bourges 05-03'!AF10 -> 1 | AC5: ='Bourges 05-03'!AK10 -> 5 | AD5: ='Bourges 05-03'!AP10 -> 7
B6: 3 | C6: DIOT Alexandre | D6: 31 | E6: 20 | F6: 11 | G6: 0 | H6: 0 | I6: 0 | J6: 0 | K6: 0 | L6: 0 | M6: 0 | N6: 0 | W6: ='Bourges 05-03'!$D$2 -> Bourges | X6: ='Bourges 05-03'!$D$3 -> 2022-03-05 | Y6: ='Bourges 05-03'!C11 -> DELOUCHE | Z6: ='Bourges 05-03'!D11 -> Yannick | AA6: DELOUCHE Yannick | AB6: ='Bourges 05-03'!AF11 -> 15 | AC6: ='Bourges 05-03'!AK11 -> 1 | AD6: ='Bourges 05-03'!AP11 -> 1
B7: 4 | C7: RONDEL François | D7: 30 | E7: 30 | F7: 0 | G7: 0 | H7: 0 | I7: 0 | J7: 0 | K7: 0 | L7: 0 | M7: 0 | N7: 0 | W7: ='Bourges 05-03'!$D$2 -> Bourges | X7: ='Bourges 05-03'!$D$3 -> 2022-03-05 | Y7: ='Bourges 05-03'!C12 -> DIOT | Z7: ='Bourges 05-03'!D12 -> Alexandre | AA7: DIOT Alexandre | AB7: ='Bourges 05-03'!AF12 -> 1 | AC7: ='Bourges 05-03'!AK12 -> 20 | AD7: ='Bourges 05-03'!AP12 -> 20
B8: 5 | C8: JACQUEMIN Franck | D8: 29 | E8: 9 | F8: 20 | G8: 0 | H8: 0 | I8: 0 | J8: 0 | K8: 0 | L8: 0 | M8: 0 | N8: 0 | W8: ='Bourges 05-03'!$D$2 -> Bourges | X8: ='Bourges 05-03'!$D$3 -> 2022-03-05 | Y8: ='Bourges 05-03'!C13 -> GAUTHIER | Z8: ='Bourges 05-03'!D13 -> Patrice | AA8: GAUTHIER Patrice | AB8: ='Bourges 05-03'!AF13 -> 8 | AC8: ='Bourges 05-03'!AK13 -> 7 | AD8: ='Bourges 05-03'!AP13 -> 8
B9: 6 | C9: ZIAR Yacine | D9: 21 | E9: 10 | F9: 11 | G9: 0 | H9: 0 | I9: 0 | J9: 0 | K9: 0 | L9: 0 | M9: 0 | N9: 0 | W9: ='Bourges 05-03'!$D$2 -> Bourges | X9: ='Bourges 05-03'!$D$3 -> 2022-03-05 | Y9: ='Bourges 05-03'!C14 -> HERRAULT | Z9: ='Bourges 05-03'!D14 -> Sébastien | AA9: HERRAULT Sébastien | AB9: ='Bourges 05-03'!AF14 -> 2 | AC9: ='Bourges 05-03'!AK14 -> 12 | AD9: ='Bourges 05-03'!AP14 -> 15
B10: 7 | C10: VERRIER Alexandre | D10: 17 | E10: 6 | F10: 11 | G10: 0 | H10: 0 | I10: 0 | J10: 0 | K10: 0 | L10: 0 | M10: 0 | N10: 0 | W10: ='Bourges 05-03'!$D$2 -> Bourges | X10: ='Bourges 05-03'!$D$3 -> 2022-03-05 | Y10: ='Bourges 05-03'!C15 -> HODEAU | Z10: ='Bourges 05-03'!D15 -> Cédric | AA10: HODEAU Cédric | AB10: ='Bourges 05-03'!AF15 -> 27 | AC10: ='Bourges 05-03'!AK15 -> 4 | AD10: ='Bourges 05-03'!AP15 -> 4
B11: 8 | C11: CHRETIEN Fabrice | D11: 13 | E11: 7 | F11: 6 | G11: 0 | H11: 0 | I11: 0 | J11: 0 | K11: 0 | L11: 0 | M11: 0 | N11: 0 | W11: ='Bourges 05-03'!$D$2 -> Bourges | X11: ='Bourges 05-03'!$D$3 -> 2022-03-05 | Y11: ='Bourges 05-03'!C16 -> JACQUEMIN | Z11: ='Bourges 05-03'!D16 -> Franck | AA11: JACQUEMIN Franck | AB11: ='Bourges 05-03'!AF16 -> 5 | AC11: ='Bourges 05-03'!AK16 -> 9 | AD11: ='Bourges 05-03'!AP16 -> 9
B12: 9 | C12: GAUTHIER Patrice | D12: 8 | E12: 8 | F12: 0 | G12: 0 | H12: 0 | I12: 0 | J12: 0 | K12: 0 | L12: 0 | M12: 0 | N12: 0 | W12: ='Bourges 05-03'!$D$2 -> Bourges | X12: ='Bourges 05-03'!$D$3 -> 2022-03-05 | Y12: ='Bourges 05-03'!C17 -> LEFEU | Z12: ='Bourges 05-03'!D17 -> Jean-Marie | AA12: LEFEU Jean-Marie | AB12: ='Bourges 05-03'!AF17 -> 1 | AC12: ='Bourges 05-03'!AK17 -> 1 | AD12: ='Bourges 05-03'!AP17 -> 1
B13: 10 | C13: HODEAU Cédric | D13: 8 | E13: 4 | F13: 4 | G13: 0 | H13: 0 | I13: 0 | J13: 0 | K13: 0 | L13: 0 | M13: 0 | N13: 0 | W13: ='Bourges 05-03'!$D$2 -> Bourges | X13: ='Bourges 05-03'!$D$3 -> 2022-03-05 | Y13: ='Bourges 05-03'!C18 -> LEVEQUE | Z13: ='Bourges 05-03'!D18 -> Claude | AA13: LEVEQUE Claude | AB13: ='Bourges 05-03'!AF18 -> 1 | AC13: ='Bourges 05-03'!AK18 -> 1 | AD13: ='Bourges 05-03'!AP18 -> 1
B14: 11 | C14: VIALLETON Loïc | D14: 8 | E14: =SUMIFS(IF($C$3="NET",$AB$4:$AB$303,IF($C$3="BRUT",$AC$4:$AC$303,$AD$4:$AD$303)),$W$4:$W$303,E$2,$X$4:$X$303,E$3,$AA$4:$AA$303,$C14) -> 0 | F14: 8 | G14: 0 | H14: 0 | I14: 0 | J14: 0 | K14: 0 | L14: 0 | M14: 0 | N14: 0 | W14: ='Bourges 05-03'!$D$2 -> Bourges | X14: ='Bourges 05-03'!$D$3 -> 2022-03-05 | Y14: ='Bourges 05-03'!C19 -> MICHEL | Z14: ='Bourges 05-03'!D19 -> Eric | AA14: MICHEL Eric | AB14: ='Bourges 05-03'!AF19 -> 20 | AC14: ='Bourges 05-03'!AK19 -> 1 | AD14: ='Bourges 05-03'!AP19 -> 1
B15: 12 | C15: MAITRE Benoît | D15: 7 | E15: 0 | F15: 7 | G15: 0 | H15: 0 | I15: 0 | J15: 0 | K15: 0 | L15: 0 | M15: 0 | N15: 0 | W15: ='Bourges 05-03'!$D$2 -> Bourges | X15: ='Bourges 05-03'!$D$3 -> 2022-03-05 | Y15: ='Bourges 05-03'!C20 -> MORALES | Z15: ='Bourges 05-03'!D20 -> José | AA15: MORALES José | AB15: ='Bourges 05-03'!AF20 -> 9 | AC15: ='Bourges 05-03'!AK20 -> 25 | AD15: ='Bourges 05-03'!AP20 -> 25
B16: 13 | C16: ROBERT Jean-Christophe | D16: 6 | E16: 5 | F16: 1 | G16: 0 | H16: 0 | I16: 0 | J16: 0 | K16: 0 | L16: 0 | M16: 0 | N16: 0 | W16: ='Bourges 05-03'!$D$2 -> Bourges | X16: ='Bourges 05-03'!$D$3 -> 2022-03-05 | Y16: ='Bourges 05-03'!C21 -> NOTTIN | Z16: ='Bourges 05-03'!D21 -> Eric | AA16: NOTTIN Eric | AB16: ='Bourges 05-03'!AF21 -> 9 | AC16: ='Bourges 05-03'!AK21 -> 2 | AD16: ='Bourges 05-03'!AP21 -> 3
B17: 14 | C17: FARE Loïc | D17: 5 | E17: 0 | F17: 5 | G17: 0 | H17: 0 | I17: 0 | J17: 0 | K17: 0 | L17: 0 | M17: 0 | N17: 0 | W17: ='Bourges 05-03'!$D$2 -> Bourges | X17: ='Bourges 05-03'!$D$3 -> 2022-03-05 | Y17: ='Bourges 05-03'!C22 -> ROBERT | Z17: ='Bourges 05-03'!D22 -> Jean-Christophe | AA17: ROBERT Jean-Christophe | AB17: ='Bourges 05-03'!AF22 -> 4 | AC17: ='Bourges 05-03'!AK22 -> 5 | AD17: ='Bourges 05-03'!AP22 -> 5
B18: 15 | C18: NOTTIN Eric | D18: 3 | E18: 3 | F18: 0 | G18: 0 | H18: 0 | I18: 0 | J18: 0 | K18: 0 | L18: 0 | M18: 0 | N18: 0 | W18: ='Bourges 05-03'!$D$2 -> Bourges | X18: ='Bourges 05-03'!$D$3 -> 2022-03-05 | Y18: ='Bourges 05-03'!C23 -> RONDEL | Z18: ='Bourges 05-03'!D23 -> François | AA18: RONDEL François | AB18: ='Bourges 05-03'!AF23 -> 3 | AC18: ='Bourges 05-03'!AK23 -> 30 | AD18: ='Bourges 05-03'!AP23 -> 30
B19: 16 | C19: DAVID Paul | D19: 3 | E19: 0 | F19: 3 | G19: 0 | H19: 0 | I19: 0 | J19: 0 | K19: 0 | L19: 0 | M19: 0 | N19: 0 | W19: ='Bourges 05-03'!$D$2 -> Bourges | X19: ='Bourges 05-03'!$D$3 -> 2022-03-05 | Y19: ='Bourges 05-03'!C24 -> VERRIER | Z19: ='Bourges 05-03'!D24 -> Alexandre | AA19: VERRIER Alexandre | AB19: ='Bourges 05-03'!AF24 -> 1 | AC19: ='Bourges 05-03'!AK24 -> 8 | AD19: ='Bourges 05-03'!AP24 -> 6
B20: 17 | C20: BINVAULT Dominique | D20: 2 | E20: 1 | F20: 1 | G20: 0 | H20: 0 | I20: 0 | J20: 0 | K20: 0 | L20: 0 | M20: 0 | N20: 0 | W20: ='Bourges 05-03'!$D$2 -> Bourges | X20: ='Bourges 05-03'!$D$3 -> 2022-03-05 | Y20: ='Bourges 05-03'!C25 -> VICENTE | Z20: ='Bourges 05-03'!D25 -> Paulo | AA20: VICENTE Paulo | AB20: ='Bourges 05-03'!AF25 -> 27 | AC20: ='Bourges 05-03'!AK25 -> 1 | AD20: ='Bourges 05-03'!AP25 -> 1
B21: 18 | C21: DELOUCHE Yannick | D21: 2 | E21: 1 | F21: 1 | G21: 0 | H21: 0 | I21: 0 | J21: 0 | K21: 0 | L21: 0 | M21: 0 | N21: 0 | W21: ='Bourges 05-03'!$D$2 -> Bourges | X21: ='Bourges 05-03'!$D$3 -> 2022-03-05 | Y21: ='Bourges 05-03'!C26 -> ZIAR | Z21: ='Bourges 05-03'!D26 -> Yacine | AA21: ZIAR Yacine | AB21: ='Bourges 05-03'!AF26 -> 6 | AC21: ='Bourges 05-03'!AK26 -> 12 | AD21: ='Bourges 05-03'!AP26 -> 10
B22: 19 | C22: LEFEU Jean-Marie | D22: 2 | E22: 1 | F22: 1 | G22: 0 | H22: 0 | I22: 0 | J22: 0 | K22: 0 | L22: 0 | M22: 0 | N22: 0 | W22: ='Bourges 05-03'!$D$2 -> Bourges | X22: ='Bourges 05-03'!$D$3 -> 2022-03-05 | Y22: ='Bourges 05-03'!C27 -> 0 | Z22: ='Bourges 05-03'!D27 -> 0 | AA22: 0 0 | AB22: ='Bourges 05-03'!AF27 -> 0 | AC22: ='Bourges 05-03'!AK27 -> 0 | AD22: ='Bourges 05-03'!AP27 -> 0
B23: 20 | C23: LEVEQUE Claude | D23: 2 | E23: 1 | F23: 1 | G23: 0 | H23: 0 | I23: 0 | J23: 0 | K23: 0 | L23: 0 | M23: 0 | N23: 0 | W23: ='Bourges 05-03'!$D$2 -> Bourges | X23: ='Bourges 05-03'!$D$3 -> 2022-03-05 | Y23: ='Bourges 05-03'!C28 -> 0 | Z23: ='Bourges 05-03'!D28 -> 0 | AA23: 0 0 | AB23: ='Bourges 05-03'!AF28 -> 0 | AC23: ='Bourges 05-03'!AK28 -> 0 | AD23: ='Bourges 05-03'!AP28 -> 0
B24: 21 | C24: MICHEL Eric | D24: 2 | E24: =SUMIFS(IF($C$3="NET",$AB$4:$AB$303,IF($C$3="BRUT",$AC$4:$AC$303,$AD$4:$AD$303)),$W$4:$W$303,E$2,$X$4:$X$303,E$3,$AA$4:$AA$303,$C24) -> 1 | F24: 1 | G24: 0 | H24: 0 | I24: 0 | J24: 0 | K24: 0 | L24: 0 | M24: 0 | N24: 0 | W24: ='Bourges 05-03'!$D$2 -> Bourges | X24: ='Bourges 05-03'!$D$3 -> 2022-03-05 | Y24: ='Bourges 05-03'!C29 -> 0 | Z24: ='Bourges 05-03'!D29 -> 0 | AA24: 0 0 | AB24: ='Bourges 05-03'!AF29 -> 0 | AC24: ='Bourges 05-03'!AK29 -> 0 | AD24: ='Bourges 05-03'!AP29 -> 0
B25: 22 | C25: VICENTE Paulo | D25: 2 | E25: 1 | F25: 1 | G25: 0 | H25: 0 | I25: 0 | J25: 0 | K25: 0 | L25: 0 | M25: 0 | N25: 0 | W25: ='Bourges 05-03'!$D$2 -> Bourges | X25: ='Bourges 05-03'!$D$3 -> 2022-03-05 | Y25: ='Bourges 05-03'!C30 -> 0 | Z25: ='Bourges 05-03'!D30 -> 0 | AA25: 0 0 | AB25: ='Bourges 05-03'!AF30 -> 0 | AC25: ='Bourges 05-03'!AK30 -> 0 | AD25: ='Bourges 05-03'!AP30 -> 0
B26: 23 | C26: LANDIER Marc | D26: 1 | E26: 0 | F26: 1 | G26: 0 | H26: 0 | I26: 0 | J26: 0 | K26: 0 | L26: 0 | M26: 0 | N26: 0 | W26: ='Bourges 05-03'!$D$2 -> Bourges | X26: ='Bourges 05-03'!$D$3 -> 2022-03-05 | Y26: ='Bourges 05-03'!C31 -> 0 | Z26: ='Bourges 05-03'!D31 -> 0 | AA26: 0 0 | AB26: ='Bourges 05-03'!AF31 -> 0 | AC26: ='Bourges 05-03'!AK31 -> 0 | AD26: ='Bourges 05-03'!AP31 -> 0
B27: 24 | C27: VILLATTE Joël | D27: 1 | E27: 0 | F27: 1 | G27: 0 | H27: 0 | I27: 0 | J27: 0 | K27: 0 | L27: 0 | M27: 0 | N27: 0 | W27: ='Bourges 05-03'!$D$2 -> Bourges | X27: ='Bourges 05-03'!$D$3 -> 2022-03-05 | Y27: ='Bourges 05-03'!C32 -> 0 | Z27: ='Bourges 05-03'!D32 -> 0 | AA27: 0 0 | AB27: ='Bourges 05-03'!AF32 -> 0 | AC27: ='Bourges 05-03'!AK32 -> 0 | AD27: ='Bourges 05-03'!AP32 -> 0
B28: 25 | C28: PORTRON Inès | D28: 1 | E28: 0 | F28: 1 | G28: 0 | H28: 0 | I28: 0 | J28: 0 | K28: 0 | L28: 0 | M28: 0 | N28: 0 | W28: ='Bourges 05-03'!$D$2 -> Bourges | X28: ='Bourges 05-03'!$D$3 -> 2022-03-05 | Y28: ='Bourges 05-03'!C33 -> 0 | Z28: ='Bourges 05-03'!D33 -> 0 | AA28: 0 0 | AB28: ='Bourges 05-03'!AF33 -> 0 | AC28: ='Bourges 05-03'!AK33 -> 0 | AD28: ='Bourges 05-03'!AP33 -> 0
B29: 26 | C29: LAHOREAU Patrice | D29: 1 | E29: 0 | F29: 1 | G29: 0 | H29: 0 | I29: 0 | J29: 0 | K29: 0 | L29: 0 | M29: 0 | N29: 0 | W29: ='Bourges 05-03'!$D$2 -> Bourges | X29: ='Bourges 05-03'!$D$3 -> 2022-03-05 | Y29: ='Bourges 05-03'!C34 -> 0 | Z29: ='Bourges 05-03'!D34 -> 0 | AA29: 0 0 | AB29: ='Bourges 05-03'!AF34 -> 0 | AC29: ='Bourges 05-03'!AK34 -> 0 | AD29: ='Bourges 05-03'!AP34 -> 0
B30: 27 | C30: 0 0 | D30: 0 | E30: 0 | F30: 0 | G30: 0 | H30: 0 | I30: 0 | J30: 0 | K30: 0 | L30: 0 | M30: 0 | N30: 0 | W30: ='Bourges 05-03'!$D$2 -> Bourges | X30: ='Bourges 05-03'!$D$3 -> 2022-03-05 | Y30: ='Bourges 05-03'!C35 -> 0 | Z30: ='Bourges 05-03'!D35 -> 0 | AA30: 0 0 | AB30: ='Bourges 05-03'!AF35 -> 0 | AC30: ='Bourges 05-03'!AK35 -> 0 | AD30: ='Bourges 05-03'!AP35 -> 0
B31: 28 | D31: 0 | E31: 0 | F31: 0 | G31: 0 | H31: 0 | I31: 0 | J31: 0 | K31: 0 | L31: 0 | M31: 0 | N31: 0 | W31: ='Bourges 05-03'!$D$2 -> Bourges | X31: ='Bourges 05-03'!$D$3 -> 2022-03-05 | Y31: ='Bourges 05-03'!C36 -> 0 | Z31: ='Bourges 05-03'!D36 -> 0 | AA31: 0 0 | AB31: ='Bourges 05-03'!AF36 -> 0 | AC31: ='Bourges 05-03'!AK36 -> 0 | AD31: ='Bourges 05-03'!AP36 -> 0
B32: 29 | D32: 0 | E32: 0 | F32: 0 | G32: 0 | H32: 0 | I32: 0 | J32: 0 | K32: 0 | L32: 0 | M32: 0 | N32: 0 | W32: ='Bourges 05-03'!$D$2 -> Bourges | X32: ='Bourges 05-03'!$D$3 -> 2022-03-05 | Y32: ='Bourges 05-03'!C37 -> 0 | Z32: ='Bourges 05-03'!D37 -> 0 | AA32: 0 0 | AB32: ='Bourges 05-03'!AF37 -> 0 | AC32: ='Bourges 05-03'!AK37 -> 0 | AD32: ='Bourges 05-03'!AP37 -> 0
B33: 30 | D33: 0 | E33: 0 | F33: 0 | G33: 0 | H33: 0 | I33: 0 | J33: 0 | K33: 0 | L33: 0 | M33: 0 | N33: 0 | W33: ='Bourges 05-03'!$D$2 -> Bourges | X33: ='Bourges 05-03'!$D$3 -> 2022-03-05 | Y33: ='Bourges 05-03'!C38 -> 0 | Z33: ='Bourges 05-03'!D38 -> 0 | AA33: 0 0 | AB33: ='Bourges 05-03'!AF38 -> 0 | AC33: ='Bourges 05-03'!AK38 -> 0 | AD33: ='Bourges 05-03'!AP38 -> 0
B34: 31 | D34: 0 | E34: =SUMIFS(IF($C$3="NET",$AB$4:$AB$303,IF($C$3="BRUT",$AC$4:$AC$303,$AD$4:$AD$303)),$W$4:$W$303,E$2,$X$4:$X$303,E$3,$AA$4:$AA$303,$C34) -> 0 | F34: 0 | G34: 0 | H34: 0 | I34: 0 | J34: 0 | K34: 0 | L34: 0 | M34: 0 | N34: 0 | W34: ='Cheverny 26-03'!$D$2 -> Cheverny | X34: ='Cheverny 26-03'!$D$3 -> 2022-03-26 | Y34: ='Cheverny 26-03'!C9 -> CHRETIEN | Z34: ='Cheverny 26-03'!D9 -> Fabrice | AA34: CHRETIEN Fabrice | AB34: ='Cheverny 26-03'!AF9 -> 1 | AC34: ='Cheverny 26-03'!AK9 -> 6 | AD34: ='Cheverny 26-03'!AP9 -> 6
B35: 32 | D35: 0 | E35: 0 | F35: 0 | G35: 0 | H35: 0 | I35: 0 | J35: 0 | K35: 0 | L35: 0 | M35: 0 | N35: 0 | W35: ='Cheverny 26-03'!$D$2 -> Cheverny | X35: ='Cheverny 26-03'!$D$3 -> 2022-03-26 | Y35: ='Cheverny 26-03'!C10 -> DELOUCHE | Z35: ='Cheverny 26-03'!D10 -> Yannick | AA35: DELOUCHE Yannick | AB35: ='Cheverny 26-03'!AF10 -> 15 | AC35: ='Cheverny 26-03'!AK10 -> 1 | AD35: ='Cheverny 26-03'!AP10 -> 1
B36: 33 | D36: =SUM(E36:N36) -> 0 | E36: 0 | F36: 0 | G36: 0 | H36: 0 | I36: 0 | J36: 0 | K36: 0 | L36: 0 | M36: 0 | N36: 0 | W36: ='Cheverny 26-03'!$D$2 -> Cheverny | X36: ='Cheverny 26-03'!$D$3 -> 2022-03-26 | Y36: ='Cheverny 26-03'!C11 -> LANDIER | Z36: ='Cheverny 26-03'!D11 -> Marc | AA36: =CONCATENATE(Y36," ",Z36) -> LANDIER Marc | AB36: ='Cheverny 26-03'!AF11 -> 1 | AC36: ='Cheverny 26-03'!AK11 -> 1 | AD36: ='Cheverny 26-03'!AP11 -> 1
B37: 34 | D37: 0 | E37: 0 | F37: 0 | G37: 0 | H37: 0 | I37: 0 | J37: 0 | K37: 0 | L37: 0 | M37: 0 | N37: 0 | W37: ='Cheverny 26-03'!$D$2 -> Cheverny | X37: ='Cheverny 26-03'!$D$3 -> 2022-03-26 | Y37: ='Cheverny 26-03'!C12 -> HODEAU | Z37: ='Cheverny 26-03'!D12 -> Cédric | AA37: HODEAU Cédric | AB37: ='Cheverny 26-03'!AF12 -> 25 | AC37: ='Cheverny 26-03'!AK12 -> 5 | AD37: ='Cheverny 26-03'!AP12 -> 4
B38: 35 | D38: 0 | E38: 0 | F38: 0 | G38: 0 | H38: 0 | I38: 0 | J38: 0 | K38: 0 | L38: 0 | M38: 0 | N38: 0 | W38: ='Cheverny 26-03'!$D$2 -> Cheverny | X38: ='Cheverny 26-03'!$D$3 -> 2022-03-26 | Y38: ='Cheverny 26-03'!C13 -> FARE | Z38: ='Cheverny 26-03'!D13 -> Loïc | AA38: FARE Loïc | AB38: ='Cheverny 26-03'!AF13 -> 6 | AC38: ='Cheverny 26-03'!AK13 -> 4 | AD38: ='Cheverny 26-03'!AP13 -> 5
B39: 36 | D39: 0 | E39: 0 | F39: 0 | G39: 0 | H39: 0 | I39: 0 | J39: 0 | K39: 0 | L39: 0 | M39: 0 | N39: 0 | W39: ='Cheverny 26-03'!$D$2 -> Cheverny | X39: ='Cheverny 26-03'!$D$3 -> 2022-03-26 | Y39: ='Cheverny 26-03'!C14 -> MORALES | Z39: ='Cheverny 26-03'!D14 -> José | AA39: MORALES José | AB39: ='Cheverny 26-03'!AF14 -> 6 | AC39: ='Cheverny 26-03'!AK14 -> 25 | AD39: ='Cheverny 26-03'!AP14 -> 25
B40: 37 | D40: 0 | E40: 0 | F40: 0 | G40: 0 | H40: 0 | I40: 0 | J40: 0 | K40: 0 | L40: 0 | M40: 0 | N40: 0 | W40: ='Cheverny 26-03'!$D$2 -> Cheverny | X40: ='Cheverny 26-03'!$D$3 -> 2022-03-26 | Y40: ='Cheverny 26-03'!C15 -> ROBERT | Z40: ='Cheverny 26-03'!D15 -> Jean-Christophe | AA40: ROBERT Jean-Christophe | AB40: ='Cheverny 26-03'!AF15 -> 1 | AC40: ='Cheverny 26-03'!AK15 -> 2 | AD40: ='Cheverny 26-03'!AP15 -> 1
B41: 38 | D41: 0 | E41: 0 | F41: 0 | G41: 0 | H41: 0 | I41: 0 | J41: 0 | K41: 0 | L41: 0 | M41: 0 | N41: 0 | W41: ='Cheverny 26-03'!$D$2 -> Cheverny | X41: ='Cheverny 26-03'!$D$3 -> 2022-03-26 | Y41: ='Cheverny 26-03'!C16 -> BINVAULT | Z41: ='Cheverny 26-03'!D16 -> Dominique | AA41: BINVAULT Dominique | AB41: ='Cheverny 26-03'!AF16 -> 1 | AC41: ='Cheverny 26-03'!AK16 -> 1 | AD41: ='Cheverny 26-03'!AP16 -> 1
B42: 39 | D42: 0 | E42: 0 | F42: 0 | G42: 0 | H42: 0 | I42: 0 | J42: 0 | K42: 0 | L42: 0 | M42: 0 | N42: 0 | W42: ='Cheverny 26-03'!$D$2 -> Cheverny | X42: ='Cheverny 26-03'!$D$3 -> 2022-03-26 | Y42: ='Cheverny 26-03'!C17 -> DIOT | Z42: ='Cheverny 26-03'!D17 -> Alexandre | AA42: DIOT Alexandre | AB42: ='Cheverny 26-03'!AF17 -> 1 | AC42: ='Cheverny 26-03'!AK17 -> 12 | AD42: ='Cheverny 26-03'!AP17 -> 11
B43: 40 | D43: 0 | E43: 0 | F43: 0 | G43: 0 | H43: 0 | I43: 0 | J43: 0 | K43: 0 | L43: 0 | M43: 0 | N43: 0 | W43: ='Cheverny 26-03'!$D$2 -> Cheverny | X43: ='Cheverny 26-03'!$D$3 -> 2022-03-26 | Y43: ='Cheverny 26-03'!C18 -> VILLATTE | Z43: ='Cheverny 26-03'!D18 -> Joël | AA43: VILLATTE Joël | AB43: ='Cheverny 26-03'!AF18 -> 1 | AC43: ='Cheverny 26-03'!AK18 -> 1 | AD43: ='Cheverny 26-03'!AP18 -> 1
B44: 41 | D44: 0 | E44: =SUMIFS(IF($C$3="NET",$AB$4:$AB$303,IF($C$3="BRUT",$AC$4:$AC$303,$AD$4:$AD$303)),$W$4:$W$303,E$2,$X$4:$X$303,E$3,$AA$4:$AA$303,$C44) -> 0 | F44: 0 | G44: 0 | H44: 0 | I44: 0 | J44: 0 | K44: 0 | L44: 0 | M44: 0 | N44: 0 | W44: ='Cheverny 26-03'!$D$2 -> Cheverny | X44: ='Cheverny 26-03'!$D$3 -> 2022-03-26 | Y44: ='Cheverny 26-03'!C19 -> VICENTE | Z44: ='Cheverny 26-03'!D19 -> Paulo | AA44: VICENTE Paulo | AB44: ='Cheverny 26-03'!AF19 -> 30 | AC44: ='Cheverny 26-03'!AK19 -> 1 | AD44: ='Cheverny 26-03'!AP19 -> 1
B45: 42 | D45: 0 | E45: 0 | F45: 0 | G45: 0 | H45: 0 | I45: 0 | J45: 0 | K45: 0 | L45: 0 | M45: 0 | N45: 0 | W45: ='Cheverny 26-03'!$D$2 -> Cheverny | X45: ='Cheverny 26-03'!$D$3 -> 2022-03-26 | Y45: ='Cheverny 26-03'!C20 -> HERRAULT | Z45: ='Cheverny 26-03'!D20 -> Sébastien | AA45: HERRAULT Sébastien | AB45: ='Cheverny 26-03'!AF20 -> 6 | AC45: ='Cheverny 26-03'!AK20 -> 30 | AD45: ='Cheverny 26-03'!AP20 -> 30
B46: 43 | D46: 0 | E46: 0 | F46: 0 | G46: 0 | H46: 0 | I46: 0 | J46: 0 | K46: 0 | L46: 0 | M46: 0 | N46: 0 | W46: ='Cheverny 26-03'!$D$2 -> Cheverny | X46: ='Cheverny 26-03'!$D$3 -> 2022-03-26 | Y46: ='Cheverny 26-03'!C21 -> MAITRE | Z46: ='Cheverny 26-03'!D21 -> Benoît | AA46: MAITRE Benoît | AB46: ='Cheverny 26-03'!AF21 -> 9 | AC46: ='Cheverny 26-03'!AK21 -> 7 | AD46: ='Cheverny 26-03'!AP21 -> 7
B47: 44 | D47: 0 | E47: 0 | F47: 0 | G47: 0 | H47: 0 | I47: 0 | J47: 0 | K47: 0 | L47: 0 | M47: 0 | N47: 0 | W47: ='Cheverny 26-03'!$D$2 -> Cheverny | X47: ='Cheverny 26-03'!$D$3 -> 2022-03-26 | Y47: ='Cheverny 26-03'!C22 -> LEVEQUE | Z47: ='Cheverny 26-03'!D22 -> Claude | AA47: LEVEQUE Claude | AB47: ='Cheverny 26-03'!AF22 -> 1 | AC47: ='Cheverny 26-03'!AK22 -> 1 | AD47: ='Cheverny 26-03'!AP22 -> 1
B48: 45 | D48: 0 | E48: 0 | F48: 0 | G48: 0 | H48: 0 | I48: 0 | J48: 0 | K48: 0 | L48: 0 | M48: 0 | N48: 0 | W48: ='Cheverny 26-03'!$D$2 -> Cheverny | X48: ='Cheverny 26-03'!$D$3 -> 2022-03-26 | Y48: ='Cheverny 26-03'!C23 -> VERRIER | Z48: ='Cheverny 26-03'!D23 -> Alexandre | AA48: VERRIER Alexandre | AB48: ='Cheverny 26-03'!AF23 -> 3 | AC48: ='Cheverny 26-03'!AK23 -> 9 | AD48: ='Cheverny 26-03'!AP23 -> 11
B49: 46 | D49: 0 | E49: 0 | F49: 0 | G49: 0 | H49: 0 | I49: 0 | J49: 0 | K49: 0 | L49: 0 | M49: 0 | N49: 0 | W49: ='Cheverny 26-03'!$D$2 -> Cheverny | X49: ='Cheverny 26-03'!$D$3 -> 2022-03-26 | Y49: ='Cheverny 26-03'!C24 -> MICHEL | Z49: ='Cheverny 26-03'!D24 -> Eric | AA49: MICHEL Eric | AB49: ='Cheverny 26-03'!AF24 -> 9 | AC49: ='Cheverny 26-03'!AK24 -> 1 | AD49: ='Cheverny 26-03'!AP24 -> 1
B50: 47 | D50: 0 | E50: 0 | F50: 0 | G50: 0 | H50: 0 | I50: 0 | J50: 0 | K50: 0 | L50: 0 | M50: 0 | N50: 0 | W50: ='Cheverny 26-03'!$D$2 -> Cheverny | X50: ='Cheverny 26-03'!$D$3 -> 2022-03-26 | Y50: ='Cheverny 26-03'!C25 -> PORTRON | Z50: ='Cheverny 26-03'!D25 -> Inès | AA50: PORTRON Inès | AB50: ='Cheverny 26-03'!AF25 -> 3 | AC50: ='Cheverny 26-03'!AK25 -> 1 | AD50: ='Cheverny 26-03'!AP25 -> 1
B51: 48 | D51: 0 | E51: 0 | F51: 0 | G51: 0 | H51: 0 | I51: 0 | J51: 0 | K51: 0 | L51: 0 | M51: 0 | N51: 0 | W51: ='Cheverny 26-03'!$D$2 -> Cheverny | X51: ='Cheverny 26-03'!$D$3 -> 2022-03-26 | Y51: ='Cheverny 26-03'!C26 -> VIALLETON | Z51: ='Cheverny 26-03'!D26 -> Loïc | AA51: VIALLETON Loïc | AB51: ='Cheverny 26-03'!AF26 -> 2 | AC51: ='Cheverny 26-03'!AK26 -> 8 | AD51: ='Cheverny 26-03'!AP26 -> 8
B52: 49 | D52: 0 | E52: 0 | F52: 0 | G52: 0 | H52: 0 | I52: 0 | J52: 0 | K52: 0 | L52: 0 | M52: 0 | N52: 0 | W52: ='Cheverny 26-03'!$D$2 -> Cheverny | X52: ='Cheverny 26-03'!$D$3 -> 2022-03-26 | Y52: ='Cheverny 26-03'!C27 -> DAVID | Z52: ='Cheverny 26-03'!D27 -> Paul | AA52: DAVID Paul | AB52: ='Cheverny 26-03'!AF27 -> 1 | AC52: ='Cheverny 26-03'!AK27 -> 3 | AD52: ='Cheverny 26-03'!AP27 -> 3
B53: 50 | D53: 0 | E53: 0 | F53: 0 | G53: 0 | H53: 0 | I53: 0 | J53: 0 | K53: 0 | L53: 0 | M53: 0 | N53: 0 | W53: ='Cheverny 26-03'!$D$2 -> Cheverny | X53: ='Cheverny 26-03'!$D$3 -> 2022-03-26 | Y53: ='Cheverny 26-03'!C28 -> LEFEU | Z53: ='Cheverny 26-03'!D28 -> Jean-Marie | AA53: LEFEU Jean-Marie | AB53: ='Cheverny 26-03'!AF28 -> 1 | AC53: ='Cheverny 26-03'!AK28 -> 1 | AD53: ='Cheverny 26-03'!AP28 -> 1
B54: 51 | D54: 0 | E54: =SUMIFS(IF($C$3="NET",$AB$4:$AB$303,IF($C$3="BRUT",$AC$4:$AC$303,$AD$4:$AD$303)),$W$4:$W$303,E$2,$X$4:$X$303,E$3,$AA$4:$AA$303,$C54) -> 0 | F54: 0 | G54: 0 | H54: 0 | I54: 0 | J54: 0 | K54: 0 | L54: 0 | M54: 0 | N54: 0 | W54: ='Cheverny 26-03'!$D$2 -> Cheverny | X54: ='Cheverny 26-03'!$D$3 -> 2022-03-26 | Y54: ='Cheverny 26-03'!C29 -> ZIAR | Z54: ='Cheverny 26-03'!D29 -> Yacine | AA54: ZIAR Yacine | AB54: ='Cheverny 26-03'!AF29 -> 6 | AC54: ='Cheverny 26-03'!AK29 -> 12 | AD54: ='Cheverny 26-03'!AP29 -> 11
B55: 52 | D55: 0 | E55: 0 | F55: 0 | G55: 0 | H55: 0 | I55: 0 | J55: 0 | K55: 0 | L55: 0 | M55: 0 | N55: 0 | W55: ='Cheverny 26-03'!$D$2 -> Cheverny | X55: ='Cheverny 26-03'!$D$3 -> 2022-03-26 | Y55: ='Cheverny 26-03'!C30 -> JACQUEMIN | Z55: ='Cheverny 26-03'!D30 -> Franck | AA55: JACQUEMIN Franck | AB55: ='Cheverny 26-03'!AF30 -> 20 | AC55: ='Cheverny 26-03'!AK30 -> 20 | AD55: ='Cheverny 26-03'!AP30 -> 20
B56: 53 | D56: 0 | E56: 0 | F56: 0 | G56: 0 | H56: 0 | I56: 0 | J56: 0 | K56: 0 | L56: 0 | M56: 0 | N56: 0 | W56: ='Cheverny 26-03'!$D$2 -> Cheverny | X56: ='Cheverny 26-03'!$D$3 -> 2022-03-26 | Y56: ='Cheverny 26-03'!C31 -> LAHOREAU | Z56: ='Cheverny 26-03'!D31 -> Patrice | AA56: LAHOREAU Patrice | AB56: ='Cheverny 26-03'!AF31 -> 1 | AC56: ='Cheverny 26-03'!AK31 -> 1 | AD56: ='Cheverny 26-03'!AP31 -> 1
B57: 54 | D57: 0 | E57: 0 | F57: 0 | G57: 0 | H57: 0 | I57: 0 | J57: 0 | K57: 0 | L57: 0 | M57: 0 | N57: 0 | W57: ='Cheverny 26-03'!$D$2 -> Cheverny | X57: ='Cheverny 26-03'!$D$3 -> 2022-03-26 | Y57: ='Cheverny 26-03'!C32 -> 0 | Z57: ='Cheverny 26-03'!D32 -> 0 | AA57: 0 0 | AB57: ='Cheverny 26-03'!AF32 -> 0 | AC57: ='Cheverny 26-03'!AK32 -> 0 | AD57: ='Cheverny 26-03'!AP32 -> 0
B58: 55 | D58: 0 | E58: 0 | F58: 0 | G58: 0 | H58: 0 | I58: 0 | J58: 0 | K58: 0 | L58: 0 | M58: 0 | N58: 0 | W58: ='Cheverny 26-03'!$D$2 -> Cheverny | X58: ='Cheverny 26-03'!$D$3 -> 2022-03-26 | Y58: ='Cheverny 26-03'!C33 -> 0 | Z58: ='Cheverny 26-03'!D33 -> 0 | AA58: 0 0 | AB58: ='Cheverny 26-03'!AF33 -> 0 | AC58: ='Cheverny 26-03'!AK33 -> 0 | AD58: ='Cheverny 26-03'!AP33 -> 0
B59: 56 | D59: 0 | E59: 0 | F59: 0 | G59: 0 | H59: 0 | I59: 0 | J59: 0 | K59: 0 | L59: 0 | M59: 0 | N59: 0 | W59: ='Cheverny 26-03'!$D$2 -> Cheverny | X59: ='Cheverny 26-03'!$D$3 -> 2022-03-26 | Y59: ='Cheverny 26-03'!C34 -> 0 | Z59: ='Cheverny 26-03'!D34 -> 0 | AA59: 0 0 | AB59: ='Cheverny 26-03'!AF34 -> 0 | AC59: ='Cheverny 26-03'!AK34 -> 0 | AD59: ='Cheverny 26-03'!AP34 -> 0
B60: 57 | D60: 0 | E60: 0 | F60: 0 | G60: 0 | H60: 0 | I60: 0 | J60: 0 | K60: 0 | L60: 0 | M60: 0 | N60: 0 | W60: ='Cheverny 26-03'!$D$2 -> Cheverny | X60: ='Cheverny 26-03'!$D$3 -> 2022-03-26 | Y60: ='Cheverny 26-03'!C35 -> 0 | Z60: ='Cheverny 26-03'!D35 -> 0 | AA60: 0 0 | AB60: ='Cheverny 26-03'!AF35 -> 0 | AC60: ='Cheverny 26-03'!AK35 -> 0 | AD60: ='Cheverny 26-03'!AP35 -> 0
B61: 58 | D61: 0 | E61: 0 | F61: 0 | G61: 0 | H61: 0 | I61: 0 | J61: 0 | K61: 0 | L61: 0 | M61: 0 | N61: 0 | W61: ='Cheverny 26-03'!$D$2 -> Cheverny | X61: ='Cheverny 26-03'!$D$3 -> 2022-03-26 | Y61: ='Cheverny 26-03'!C36 -> 0 | Z61: ='Cheverny 26-03'!D36 -> 0 | AA61: 0 0 | AB61: ='Cheverny 26-03'!AF36 -> 0 | AC61: ='Cheverny 26-03'!AK36 -> 0 | AD61: ='Cheverny 26-03'!AP36 -> 0
B62: 59 | D62: 0 | E62: 0 | F62: 0 | G62: 0 | H62: 0 | I62: 0 | J62: 0 | K62: 0 | L62: 0 | M62: 0 | N62: 0 | W62: ='Cheverny 26-03'!$D$2 -> Cheverny | X62: ='Cheverny 26-03'!$D$3 -> 2022-03-26 | Y62: ='Cheverny 26-03'!C37 -> 0 | Z62: ='Cheverny 26-03'!D37 -> 0 | AA62: 0 0 | AB62: ='Cheverny 26-03'!AF37 -> 0 | AC62: ='Cheverny 26-03'!AK37 -> 0 | AD62: ='Cheverny 26-03'!AP37 -> 0
B63: 60 | D63: 0 | E63: 0 | F63: 0 | G63: 0 | H63: 0 | I63: 0 | J63: 0 | K63: 0 | L63: 0 | M63: 0 | N63: 0 | W63: ='Cheverny 26-03'!$D$2 -> Cheverny | X63: ='Cheverny 26-03'!$D$3 -> 2022-03-26 | Y63: ='Cheverny 26-03'!C38 -> 0 | Z63: ='Cheverny 26-03'!D38 -> 0 | AA63: 0 0 | AB63: ='Cheverny 26-03'!AF38 -> 0 | AC63: ='Cheverny 26-03'!AK38 -> 0 | AD63: ='Cheverny 26-03'!AP38 -> 0
B64: 61 | D64: 0 | E64: 0 | F64: 0 | G64: 0 | H64: 0 | I64: 0 | J64: 0 | K64: 0 | L64: 0 | M64: 0 | N64: 0 | W64: ='sortie (3)'!$D$2 -> B | X64: ='sortie (3)'!$D$3 -> 00:00:00 | Y64: ='sortie (3)'!C9 -> 0 | Z64: ='sortie (3)'!D9 -> 0 | AA64: 0 0 | AB64: ='sortie (3)'!AF9 -> 0 | AC64: ='sortie (3)'!AK9 -> 0 | AD64: ='sortie (3)'!AP9 -> 0
B65: 62 | D65: 0 | E65: 0 | F65: 0 | G65: 0 | H65: 0 | I65: 0 | J65: 0 | K65: 0 | L65: 0 | M65: 0 | N65: 0 | W65: ='sortie (3)'!$D$2 -> B | X65: ='sortie (3)'!$D$3 -> 00:00:00 | Y65: ='sortie (3)'!C10 -> 0 | Z65: ='sortie (3)'!D10 -> 0 | AA65: 0 0 | AB65: ='sortie (3)'!AF10 -> 0 | AC65: ='sortie (3)'!AK10 -> 0 | AD65: ='sortie (3)'!AP10 -> 0
W66: ='sortie (3)'!$D$2 -> B | X66: ='sortie (3)'!$D$3 -> 00:00:00 | Y66: ='sortie (3)'!C11 -> 0 | Z66: ='sortie (3)'!D11 -> 0 | AA66: =CONCATENATE(Y66," ",Z66) -> 0 0 | AB66: ='sortie (3)'!AF11 -> 0 | AC66: ='sortie (3)'!AK11 -> 0 | AD66: ='sortie (3)'!AP11 -> 0
W67: ='sortie (3)'!$D$2 -> B | X67: ='sortie (3)'!$D$3 -> 00:00:00 | Y67: ='sortie (3)'!C12 -> 0 | Z67: ='sortie (3)'!D12 -> 0 | AA67: 0 0 | AB67: ='sortie (3)'!AF12 -> 0 | AC67: ='sortie (3)'!AK12 -> 0 | AD67: ='sortie (3)'!AP12 -> 0
W68: ='sortie (3)'!$D$2 -> B | X68: ='sortie (3)'!$D$3 -> 00:00:00 | Y68: ='sortie (3)'!C13 -> 0 | Z68: ='sortie (3)'!D13 -> 0 | AA68: 0 0 | AB68: ='sortie (3)'!AF13 -> 0 | AC68: ='sortie (3)'!AK13 -> 0 | AD68: ='sortie (3)'!AP13 -> 0
W69: ='sortie (3)'!$D$2 -> B | X69: ='sortie (3)'!$D$3 -> 00:00:00 | Y69: ='sortie (3)'!C14 -> 0 | Z69: ='sortie (3)'!D14 -> 0 | AA69: =CONCATENATE(Y69," ",Z69) -> 0 0 | AB69: ='sortie (3)'!AF14 -> 0 | AC69: ='sortie (3)'!AK14 -> 0 | AD69: ='sortie (3)'!AP14 -> 0
W70: ='sortie (3)'!$D$2 -> B | X70: ='sortie (3)'!$D$3 -> 00:00:00 | Y70: ='sortie (3)'!C15 -> 0 | Z70: ='sortie (3)'!D15 -> 0 | AA70: 0 0 | AB70: ='sortie (3)'!AF15 -> 0 | AC70: ='sortie (3)'!AK15 -> 0 | AD70: ='sortie (3)'!AP15 -> 0
W71: ='sortie (3)'!$D$2 -> B | X71: ='sortie (3)'!$D$3 -> 00:00:00 | Y71: ='sortie (3)'!C16 -> 0 | Z71: ='sortie (3)'!D16 -> 0 | AA71: 0 0 | AB71: ='sortie (3)'!AF16 -> 0 | AC71: ='sortie (3)'!AK16 -> 0 | AD71: ='sortie (3)'!AP16 -> 0
W72: ='sortie (3)'!$D$2 -> B | X72: ='sortie (3)'!$D$3 -> 00:00:00 | Y72: ='sortie (3)'!C17 -> 0 | Z72: ='sortie (3)'!D17 -> 0 | AA72: 0 0 | AB72: ='sortie (3)'!AF17 -> 0 | AC72: ='sortie (3)'!AK17 -> 0 | AD72: ='sortie (3)'!AP17 -> 0
W73: ='sortie (3)'!$D$2 -> B | X73: ='sortie (3)'!$D$3 -> 00:00:00 | Y73: ='sortie (3)'!C18 -> 0 | Z73: ='sortie (3)'!D18 -> 0 | AA73: 0 0 | AB73: ='sortie (3)'!AF18 -> 0 | AC73: ='sortie (3)'!AK18 -> 0 | AD73: ='sortie (3)'!AP18 -> 0
W74: ='sortie (3)'!$D$2 -> B | X74: ='sortie (3)'!$D$3 -> 00:00:00 | Y74: ='sortie (3)'!C19 -> 0 | Z74: ='sortie (3)'!D19 -> 0 | AA74: 0 0 | AB74: ='sortie (3)'!AF19 -> 0 | AC74: ='sortie (3)'!AK19 -> 0 | AD74: ='sortie (3)'!AP19 -> 0
W75: ='sortie (3)'!$D$2 -> B | X75: ='sortie (3)'!$D$3 -> 00:00:00 | Y75: ='sortie (3)'!C20 -> 0 | Z75: ='sortie (3)'!D20 -> 0 | AA75: 0 0 | AB75: ='sortie (3)'!AF20 -> 0 | AC75: ='sortie (3)'!AK20 -> 0 | AD75: ='sortie (3)'!AP20 -> 0
W76: ='sortie (3)'!$D$2 -> B | X76: ='sortie (3)'!$D$3 -> 00:00:00 | Y76: ='sortie (3)'!C21 -> 0 | Z76: ='sortie (3)'!D21 -> 0 | AA76: 0 0 | AB76: ='sortie (3)'!AF21 -> 0 | AC76: ='sortie (3)'!AK21 -> 0 | AD76: ='sortie (3)'!AP21 -> 0
W77: ='sortie (3)'!$D$2 -> B | X77: ='sortie (3)'!$D$3 -> 00:00:00 | Y77: ='sortie (3)'!C22 -> 0 | Z77: ='sortie (3)'!D22 -> 0 | AA77: 0 0 | AB77: ='sortie (3)'!AF22 -> 0 | AC77: ='sortie (3)'!AK22 -> 0 | AD77: ='sortie (3)'!AP22 -> 0
W78: ='sortie (3)'!$D$2 -> B | X78: ='sortie (3)'!$D$3 -> 00:00:00 | Y78: ='sortie (3)'!C23 -> 0 | Z78: ='sortie (3)'!D23 -> 0 | AA78: 0 0 | AB78: ='sortie (3)'!AF23 -> 0 | AC78: ='sortie (3)'!AK23 -> 0 | AD78: ='sortie (3)'!AP23 -> 0
W79: ='sortie (3)'!$D$2 -> B | X79: ='sortie (3)'!$D$3 -> 00:00:00 | Y79: ='sortie (3)'!C24 -> 0 | Z79: ='sortie (3)'!D24 -> 0 | AA79: 0 0 | AB79: ='sortie (3)'!AF24 -> 0 | AC79: ='sortie (3)'!AK24 -> 0 | AD79: ='sortie (3)'!AP24 -> 0
W80: ='sortie (3)'!$D$2 -> B | X80: ='sortie (3)'!$D$3 -> 00:00:00 | Y80: ='sortie (3)'!C25 -> 0 | Z80: ='sortie (3)'!D25 -> 0 | AA80: 0 0 | AB80: ='sortie (3)'!AF25 -> 0 | AC80: ='sortie (3)'!AK25 -> 0 | AD80: ='sortie (3)'!AP25 -> 0
W81: ='sortie (3)'!$D$2 -> B | X81: ='sortie (3)'!$D$3 -> 00:00:00 | Y81: ='sortie (3)'!C26 -> 0 | Z81: ='sortie (3)'!D26 -> 0 | AA81: 0 0 | AB81: ='sortie (3)'!AF26 -> 0 | AC81: ='sortie (3)'!AK26 -> 0 | AD81: ='sortie (3)'!AP26 -> 0
W82: ='sortie (3)'!$D$2 -> B | X82: ='sortie (3)'!$D$3 -> 00:00:00 | Y82: ='sortie (3)'!C27 -> 0 | Z82: ='sortie (3)'!D27 -> 0 | AA82: 0 0 | AB82: ='sortie (3)'!AF27 -> 0 | AC82: ='sortie (3)'!AK27 -> 0 | AD82: ='sortie (3)'!AP27 -> 0
W83: ='sortie (3)'!$D$2 -> B | X83: ='sortie (3)'!$D$3 -> 00:00:00 | Y83: ='sortie (3)'!C28 -> 0 | Z83: ='sortie (3)'!D28 -> 0 | AA83: 0 0 | AB83: ='sortie (3)'!AF28 -> 0 | AC83: ='sortie (3)'!AK28 -> 0 | AD83: ='sortie (3)'!AP28 -> 0
W84: ='sortie (3)'!$D$2 -> B | X84: ='sortie (3)'!$D$3 -> 00:00:00 | Y84: ='sortie (3)'!C29 -> 0 | Z84: ='sortie (3)'!D29 -> 0 | AA84: 0 0 | AB84: ='sortie (3)'!AF29 -> 0 | AC84: ='sortie (3)'!AK29 -> 0 | AD84: ='sortie (3)'!AP29 -> 0
W85: ='sortie (3)'!$D$2 -> B | X85: ='sortie (3)'!$D$3 -> 00:00:00 | Y85: ='sortie (3)'!C30 -> 0 | Z85: ='sortie (3)'!D30 -> 0 | AA85: 0 0 | AB85: ='sortie (3)'!AF30 -> 0 | AC85: ='sortie (3)'!AK30 -> 0 | AD85: ='sortie (3)'!AP30 -> 0
W86: ='sortie (3)'!$D$2 -> B | X86: ='sortie (3)'!$D$3 -> 00:00:00 | Y86: ='sortie (3)'!C31 -> 0 | Z86: ='sortie (3)'!D31 -> 0 | AA86: 0 0 | AB86: ='sortie (3)'!AF31 -> 0 | AC86: ='sortie (3)'!AK31 -> 0 | AD86: ='sortie (3)'!AP31 -> 0
W87: ='sortie (3)'!$D$2 -> B | X87: ='sortie (3)'!$D$3 -> 00:00:00 | Y87: ='sortie (3)'!C32 -> 0 | Z87: ='sortie (3)'!D32 -> 0 | AA87: 0 0 | AB87: ='sortie (3)'!AF32 -> 0 | AC87: ='sortie (3)'!AK32 -> 0 | AD87: ='sortie (3)'!AP32 -> 0
W88: ='sortie (3)'!$D$2 -> B | X88: ='sortie (3)'!$D$3 -> 00:00:00 | Y88: ='sortie (3)'!C33 -> 0 | Z88: ='sortie (3)'!D33 -> 0 | AA88: 0 0 | AB88: ='sortie (3)'!AF33 -> 0 | AC88: ='sortie (3)'!AK33 -> 0 | AD88: ='sortie (3)'!AP33 -> 0
W89: ='sortie (3)'!$D$2 -> B | X89: ='sortie (3)'!$D$3 -> 00:00:00 | Y89: ='sortie (3)'!C34 -> 0 | Z89: ='sortie (3)'!D34 -> 0 | AA89: 0 0 | AB89: ='sortie (3)'!AF34 -> 0 | AC89: ='sortie (3)'!AK34 -> 0 | AD89: ='sortie (3)'!AP34 -> 0
W90: ='sortie (3)'!$D$2 -> B | X90: ='sortie (3)'!$D$3 -> 00:00:00 | Y90: ='sortie (3)'!C35 -> 0 | Z90: ='sortie (3)'!D35 -> 0 | AA90: 0 0 | AB90: ='sortie (3)'!AF35 -> 0 | AC90: ='sortie (3)'!AK35 -> 0 | AD90: ='sortie (3)'!AP35 -> 0
W91: ='sortie (3)'!$D$2 -> B | X91: ='sortie (3)'!$D$3 -> 00:00:00 | Y91: ='sortie (3)'!C36 -> 0 | Z91: ='sortie (3)'!D36 -> 0 | AA91: 0 0 | AB91: ='sortie (3)'!AF36 -> 0 | AC91: ='sortie (3)'!AK36 -> 0 | AD91: ='sortie (3)'!AP36 -> 0
W92: ='sortie (3)'!$D$2 -> B | X92: ='sortie (3)'!$D$3 -> 00:00:00 | Y92: ='sortie (3)'!C37 -> 0 | Z92: ='sortie (3)'!D37 -> 0 | AA92: 0 0 | AB92: ='sortie (3)'!AF37 -> 0 | AC92: ='sortie (3)'!AK37 -> 0 | AD92: ='sortie (3)'!AP37 -> 0
W93: ='sortie (3)'!$D$2 -> B | X93: ='sortie (3)'!$D$3 -> 00:00:00 | Y93: ='sortie (3)'!C38 -> 0 | Z93: ='sortie (3)'!D38 -> 0 | AA93: 0 0 | AB93: ='sortie (3)'!AF38 -> 0 | AC93: ='sortie (3)'!AK38 -> 0 | AD93: ='sortie (3)'!AP38 -> 0
W94: ='sortie (4)'!$D$2 -> C | X94: ='sortie (4)'!$D$3 -> 00:00:00 | Y94: ='sortie (4)'!C9 -> 0 | Z94: ='sortie (4)'!D9 -> 0 | AA94: 0 0 | AB94: ='sortie (4)'!AF9 -> 0 | AC94: ='sortie (4)'!AK9 -> 0 | AD94: ='sortie (4)'!AP9 -> 0
W95: ='sortie (4)'!$D$2 -> C | X95: ='sortie (4)'!$D$3 -> 00:00:00 | Y95: ='sortie (4)'!C10 -> 0 | Z95: ='sortie (4)'!D10 -> 0 | AA95: 0 0 | AB95: ='sortie (4)'!AF10 -> 0 | AC95: ='sortie (4)'!AK10 -> 0 | AD95: ='sortie (4)'!AP10 -> 0
W96: ='sortie (4)'!$D$2 -> C | X96: ='sortie (4)'!$D$3 -> 00:00:00 | Y96: ='sortie (4)'!C11 -> 0 | Z96: ='sortie (4)'!D11 -> 0 | AA96: 0 0 | AB96: ='sortie (4)'!AF11 -> 0 | AC96: ='sortie (4)'!AK11 -> 0 | AD96: ='sortie (4)'!AP11 -> 0
W97: ='sortie (4)'!$D$2 -> C | X97: ='sortie (4)'!$D$3 -> 00:00:00 | Y97: ='sortie (4)'!C12 -> 0 | Z97: ='sortie (4)'!D12 -> 0 | AA97: 0 0 | AB97: ='sortie (4)'!AF12 -> 0 | AC97: ='sortie (4)'!AK12 -> 0 | AD97: ='sortie (4)'!AP12 -> 0
W98: ='sortie (4)'!$D$2 -> C | X98: ='sortie (4)'!$D$3 -> 00:00:00 | Y98: ='sortie (4)'!C13 -> 0 | Z98: ='sortie (4)'!D13 -> 0 | AA98: 0 0 | AB98: ='sortie (4)'!AF13 -> 0 | AC98: ='sortie (4)'!AK13 -> 0 | AD98: ='sortie (4)'!AP13 -> 0
W99: ='sortie (4)'!$D$2 -> C | X99: ='sortie (4)'!$D$3 -> 00:00:00 | Y99: ='sortie (4)'!C14 -> 0 | Z99: ='sortie (4)'!D14 -> 0 | AA99: 0 0 | AB99: ='sortie (4)'!AF14 -> 0 | AC99: ='sortie (4)'!AK14 -> 0 | AD99: ='sortie (4)'!AP14 -> 0
W100: ='sortie (4)'!$D$2 -> C | X100: ='sortie (4)'!$D$3 -> 00:00:00 | Y100: ='sortie (4)'!C15 -> 0 | Z100: ='sortie (4)'!D15 -> 0 | AA100: 0 0 | AB100: ='sortie (4)'!AF15 -> 0 | AC100: ='sortie (4)'!AK15 -> 0 | AD100: ='sortie (4)'!AP15 -> 0
W101: ='sortie (4)'!$D$2 -> C | X101: ='sortie (4)'!$D$3 -> 00:00:00 | Y101: ='sortie (4)'!C16 -> 0 | Z101: ='sortie (4)'!D16 -> 0 | AA101: 0 0 | AB101: ='sortie (4)'!AF16 -> 0 | AC101: ='sortie (4)'!AK16 -> 0 | AD101: ='sortie (4)'!AP16 -> 0
W102: ='sortie (4)'!$D$2 -> C | X102: ='sortie (4)'!$D$3 -> 00:00:00 | Y102: ='sortie (4)'!C17 -> 0 | Z102: ='sortie (4)'!D17 -> 0 | AA102: 0 0 | AB102: ='sortie (4)'!AF17 -> 0 | AC102: ='sortie (4)'!AK17 -> 0 | AD102: ='sortie (4)'!AP17 -> 0
W103: ='sortie (4)'!$D$2 -> C | X103: ='sortie (4)'!$D$3 -> 00:00:00 | Y103: ='sortie (4)'!C18 -> 0 | Z103: ='sortie (4)'!D18 -> 0 | AA103: 0 0 | AB103: ='sortie (4)'!AF18 -> 0 | AC103: ='sortie (4)'!AK18 -> 0 | AD103: ='sortie (4)'!AP18 -> 0
W104: ='sortie (4)'!$D$2 -> C | X104: ='sortie (4)'!$D$3 -> 00:00:00 | Y104: ='sortie (4)'!C19 -> 0 | Z104: ='sortie (4)'!D19 -> 0 | AA104: 0 0 | AB104: ='sortie (4)'!AF19 -> 0 | AC104: ='sortie (4)'!AK19 -> 0 | AD104: ='sortie (4)'!AP19 -> 0
W105: ='sortie (4)'!$D$2 -> C | X105: ='sortie (4)'!$D$3 -> 00:00:00 | Y105: ='sortie (4)'!C20 -> 0 | Z105: ='sortie (4)'!D20 -> 0 | AA105: 0 0 | AB105: ='sortie (4)'!AF20 -> 0 | AC105: ='sortie (4)'!AK20 -> 0 | AD105: ='sortie (4)'!AP20 -> 0
W106: ='sortie (4)'!$D$2 -> C | X106: ='sortie (4)'!$D$3 -> 00:00:00 | Y106: ='sortie (4)'!C21 -> 0 | Z106: ='sortie (4)'!D21 -> 0 | AA106: 0 0 | AB106: ='sortie (4)'!AF21 -> 0 | AC106: ='sortie (4)'!AK21 -> 0 | AD106: ='sortie (4)'!AP21 -> 0
W107: ='sortie (4)'!$D$2 -> C | X107: ='sortie (4)'!$D$3 -> 00:00:00 | Y107: ='sortie (4)'!C22 -> 0 | Z107: ='sortie (4)'!D22 -> 0 | AA107: 0 0 | AB107: ='sortie (4)'!AF22 -> 0 | AC107: ='sortie (4)'!AK22 -> 0 | AD107: ='sortie (4)'!AP22 -> 0
W108: ='sortie (4)'!$D$2 -> C | X108: ='sortie (4)'!$D$3 -> 00:00:00 | Y108: ='sortie (4)'!C23 -> 0 | Z108: ='sortie (4)'!D23 -> 0 | AA108: 0 0 | AB108: ='sortie (4)'!AF23 -> 0 | AC108: ='sortie (4)'!AK23 -> 0 | AD108: ='sortie (4)'!AP23 -> 0
W109: ='sortie (4)'!$D$2 -> C | X109: ='sortie (4)'!$D$3 -> 00:00:00 | Y109: ='sortie (4)'!C24 -> 0 | Z109: ='sortie (4)'!D24 -> 0 | AA109: 0 0 | AB109: ='sortie (4)'!AF24 -> 0 | AC109: ='sortie (4)'!AK24 -> 0 | AD109: ='sortie (4)'!AP24 -> 0
W110: ='sortie (4)'!$D$2 -> C | X110: ='sortie (4)'!$D$3 -> 00:00:00 | Y110: ='sortie (4)'!C25 -> 0 | Z110: ='sortie (4)'!D25 -> 0 | AA110: 0 0 | AB110: ='sortie (4)'!AF25 -> 0 | AC110: ='sortie (4)'!AK25 -> 0 | AD110: ='sortie (4)'!AP25 -> 0
W111: ='sortie (4)'!$D$2 -> C | X111: ='sortie (4)'!$D$3 -> 00:00:00 | Y111: ='sortie (4)'!C26 -> 0 | Z111: ='sortie (4)'!D26 -> 0 | AA111: 0 0 | AB111: ='sortie (4)'!AF26 -> 0 | AC111: ='sortie (4)'!AK26 -> 0 | AD111: ='sortie (4)'!AP26 -> 0
W112: ='sortie (4)'!$D$2 -> C | X112: ='sortie (4)'!$D$3 -> 00:00:00 | Y112: ='sortie (4)'!C27 -> 0 | Z112: ='sortie (4)'!D27 -> 0 | AA112: 0 0 | AB112: ='sortie (4)'!AF27 -> 0 | AC112: ='sortie (4)'!AK27 -> 0 | AD112: ='sortie (4)'!AP27 -> 0
W113: ='sortie (4)'!$D$2 -> C | X113: ='sortie (4)'!$D$3 -> 00:00:00 | Y113: ='sortie (4)'!C28 -> 0 | Z113: ='sortie (4)'!D28 -> 0 | AA113: 0 0 | AB113: ='sortie (4)'!AF28 -> 0 | AC113: ='sortie (4)'!AK28 -> 0 | AD113: ='sortie (4)'!AP28 -> 0
W114: ='sortie (4)'!$D$2 -> C | X114: ='sortie (4)'!$D$3 -> 00:00:00 | Y114: ='sortie (4)'!C29 -> 0 | Z114: ='sortie (4)'!D29 -> 0 | AA114: 0 0 | AB114: ='sortie (4)'!AF29 -> 0 | AC114: ='sortie (4)'!AK29 -> 0 | AD114: ='sortie (4)'!AP29 -> 0
W115: ='sortie (4)'!$D$2 -> C | X115: ='sortie (4)'!$D$3 -> 00:00:00 | Y115: ='sortie (4)'!C30 -> 0 | Z115: ='sortie (4)'!D30 -> 0 | AA115: 0 0 | AB115: ='sortie (4)'!AF30 -> 0 | AC115: ='sortie (4)'!AK30 -> 0 | AD115: ='sortie (4)'!AP30 -> 0
W116: ='sortie (4)'!$D$2 -> C | X116: ='sortie (4)'!$D$3 -> 00:00:00 | Y116: ='sortie (4)'!C31 -> 0 | Z116: ='sortie (4)'!D31 -> 0 | AA116: 0 0 | AB116: ='sortie (4)'!AF31 -> 0 | AC116: ='sortie (4)'!AK31 -> 0 | AD116: ='sortie (4)'!AP31 -> 0
W117: ='sortie (4)'!$D$2 -> C | X117: ='sortie (4)'!$D$3 -> 00:00:00 | Y117: ='sortie (4)'!C32 -> 0 | Z117: ='sortie (4)'!D32 -> 0 | AA117: 0 0 | AB117: ='sortie (4)'!AF32 -> 0 | AC117: ='sortie (4)'!AK32 -> 0 | AD117: ='sortie (4)'!AP32 -> 0
W118: ='sortie (4)'!$D$2 -> C | X118: ='sortie (4)'!$D$3 -> 00:00:00 | Y118: ='sortie (4)'!C33 -> 0 | Z118: ='sortie (4)'!D33 -> 0 | AA118: 0 0 | AB118: ='sortie (4)'!AF33 -> 0 | AC118: ='sortie (4)'!AK33 -> 0 | AD118: ='sortie (4)'!AP33 -> 0
W119: ='sortie (4)'!$D$2 -> C | X119: ='sortie (4)'!$D$3 -> 00:00:00 | Y119: ='sortie (4)'!C34 -> 0 | Z119: ='sortie (4)'!D34 -> 0 | AA119: 0 0 | AB119: ='sortie (4)'!AF34 -> 0 | AC119: ='sortie (4)'!AK34 -> 0 | AD119: ='sortie (4)'!AP34 -> 0
W120: ='sortie (4)'!$D$2 -> C | X120: ='sortie (4)'!$D$3 -> 00:00:00 | Y120: ='sortie (4)'!C35 -> 0 | Z120: ='sortie (4)'!D35 -> 0 | AA120: 0 0 | AB120: ='sortie (4)'!AF35 -> 0 | AC120: ='sortie (4)'!AK35 -> 0 | AD120: ='sortie (4)'!AP35 -> 0
W121: ='sortie (4)'!$D$2 -> C | X121: ='sortie (4)'!$D$3 -> 00:00:00 | Y121: ='sortie (4)'!C36 -> 0 | Z121: ='sortie (4)'!D36 -> 0 | AA121: 0 0 | AB121: ='sortie (4)'!AF36 -> 0 | AC121: ='sortie (4)'!AK36 -> 0 | AD121: ='sortie (4)'!AP36 -> 0
W122: ='sortie (4)'!$D$2 -> C | X122: ='sortie (4)'!$D$3 -> 00:00:00 | Y122: ='sortie (4)'!C37 -> 0 | Z122: ='sortie (4)'!D37 -> 0 | AA122: 0 0 | AB122: ='sortie (4)'!AF37 -> 0 | AC122: ='sortie (4)'!AK37 -> 0 | AD122: ='sortie (4)'!AP37 -> 0
W123: ='sortie (4)'!$D$2 -> C | X123: ='sortie (4)'!$D$3 -> 00:00:00 | Y123: ='sortie (4)'!C38 -> 0 | Z123: ='sortie (4)'!D38 -> 0 | AA123: 0 0 | AB123: ='sortie (4)'!AF38 -> 0 | AC123: ='sortie (4)'!AK38 -> 0 | AD123: ='sortie (4)'!AP38 -> 0
W124: ='sortie (5)'!$D$2 -> D | X124: ='sortie (5)'!$D$3 -> 00:00:00 | Y124: ='sortie (5)'!C9 -> 0 | Z124: ='sortie (5)'!D9 -> 0 | AA124: 0 0 | AB124: ='sortie (5)'!AF9 -> 0 | AC124: ='sortie (5)'!AK9 -> 0 | AD124: ='sortie (5)'!AP9 -> 0
W125: ='sortie (5)'!$D$2 -> D | X125: ='sortie (5)'!$D$3 -> 00:00:00 | Y125: ='sortie (5)'!C10 -> 0 | Z125: ='sortie (5)'!D10 -> 0 | AA125: 0 0 | AB125: ='sortie (5)'!AF10 -> 0 | AC125: ='sortie (5)'!AK10 -> 0 | AD125: ='sortie (5)'!AP10 -> 0
W126: ='sortie (5)'!$D$2 -> D | X126: ='sortie (5)'!$D$3 -> 00:00:00 | Y126: ='sortie (5)'!C11 -> 0 | Z126: ='sortie (5)'!D11 -> 0 | AA126: 0 0 | AB126: ='sortie (5)'!AF11 -> 0 | AC126: ='sortie (5)'!AK11 -> 0 | AD126: ='sortie (5)'!AP11 -> 0
W127: ='sortie (5)'!$D$2 -> D | X127: ='sortie (5)'!$D$3 -> 00:00:00 | Y127: ='sortie (5)'!C12 -> 0 | Z127: ='sortie (5)'!D12 -> 0 | AA127: 0 0 | AB127: ='sortie (5)'!AF12 -> 0 | AC127: ='sortie (5)'!AK12 -> 0 | AD127: ='sortie (5)'!AP12 -> 0
W128: ='sortie (5)'!$D$2 -> D | X128: ='sortie (5)'!$D$3 -> 00:00:00 | Y128: ='sortie (5)'!C13 -> 0 | Z128: ='sortie (5)'!D13 -> 0 | AA128: 0 0 | AB128: ='sortie (5)'!AF13 -> 0 | AC128: ='sortie (5)'!AK13 -> 0 | AD128: ='sortie (5)'!AP13 -> 0
W129: ='sortie (5)'!$D$2 -> D | X129: ='sortie (5)'!$D$3 -> 00:00:00 | Y129: ='sortie (5)'!C14 -> 0 | Z129: ='sortie (5)'!D14 -> 0 | AA129: 0 0 | AB129: ='sortie (5)'!AF14 -> 0 | AC129: ='sortie (5)'!AK14 -> 0 | AD129: ='sortie (5)'!AP14 -> 0
W130: ='sortie (5)'!$D$2 -> D | X130: ='sortie (5)'!$D$3 -> 00:00:00 | Y130: ='sortie (5)'!C15 -> 0 | Z130: ='sortie (5)'!D15 -> 0 | AA130: 0 0 | AB130: ='sortie (5)'!AF15 -> 0 | AC130: ='sortie (5)'!AK15 -> 0 | AD130: ='sortie (5)'!AP15 -> 0
W131: ='sortie (5)'!$D$2 -> D | X131: ='sortie (5)'!$D$3 -> 00:00:00 | Y131: ='sortie (5)'!C16 -> 0 | Z131: ='sortie (5)'!D16 -> 0 | AA131: 0 0 | AB131: ='sortie (5)'!AF16 -> 0 | AC131: ='sortie (5)'!AK16 -> 0 | AD131: ='sortie (5)'!AP16 -> 0
W132: ='sortie (5)'!$D$2 -> D | X132: ='sortie (5)'!$D$3 -> 00:00:00 | Y132: ='sortie (5)'!C17 -> 0 | Z132: ='sortie (5)'!D17 -> 0 | AA132: 0 0 | AB132: ='sortie (5)'!AF17 -> 0 | AC132: ='sortie (5)'!AK17 -> 0 | AD132: ='sortie (5)'!AP17 -> 0
W133: ='sortie (5)'!$D$2 -> D | X133: ='sortie (5)'!$D$3 -> 00:00:00 | Y133: ='sortie (5)'!C18 -> 0 | Z133: ='sortie (5)'!D18 -> 0 | AA133: =CONCATENATE(Y133," ",Z133) -> 0 0 | AB133: ='sortie (5)'!AF18 -> 0 | AC133: ='sortie (5)'!AK18 -> 0 | AD133: ='sortie (5)'!AP18 -> 0
W134: ='sortie (5)'!$D$2 -> D | X134: ='sortie (5)'!$D$3 -> 00:00:00 | Y134: ='sortie (5)'!C19 -> 0 | Z134: ='sortie (5)'!D19 -> 0 | AA134: 0 0 | AB134: ='sortie (5)'!AF19 -> 0 | AC134: ='sortie (5)'!AK19 -> 0 | AD134: ='sortie (5)'!AP19 -> 0
W135: ='sortie (5)'!$D$2 -> D | X135: ='sortie (5)'!$D$3 -> 00:00:00 | Y135: ='sortie (5)'!C20 -> 0 | Z135: ='sortie (5)'!D20 -> 0 | AA135: 0 0 | AB135: ='sortie (5)'!AF20 -> 0 | AC135: ='sortie (5)'!AK20 -> 0 | AD135: ='sortie (5)'!AP20 -> 0
W136: ='sortie (5)'!$D$2 -> D | X136: ='sortie (5)'!$D$3 -> 00:00:00 | Y136: ='sortie (5)'!C21 -> 0 | Z136: ='sortie (5)'!D21 -> 0 | AA136: 0 0 | AB136: ='sortie (5)'!AF21 -> 0 | AC136: ='sortie (5)'!AK21 -> 0 | AD136: ='sortie (5)'!AP21 -> 0
W137: ='sortie (5)'!$D$2 -> D | X137: ='sortie (5)'!$D$3 -> 00:00:00 | Y137: ='sortie (5)'!C22 -> 0 | Z137: ='sortie (5)'!D22 -> 0 | AA137: 0 0 | AB137: ='sortie (5)'!AF22 -> 0 | AC137: ='sortie (5)'!AK22 -> 0 | AD137: ='sortie (5)'!AP22 -> 0
W138: ='sortie (5)'!$D$2 -> D | X138: ='sortie (5)'!$D$3 -> 00:00:00 | Y138: ='sortie (5)'!C23 -> 0 | Z138: ='sortie (5)'!D23 -> 0 | AA138: 0 0 | AB138: ='sortie (5)'!AF23 -> 0 | AC138: ='sortie (5)'!AK23 -> 0 | AD138: ='sortie (5)'!AP23 -> 0
W139: ='sortie (5)'!$D$2 -> D | X139: ='sortie (5)'!$D$3 -> 00:00:00 | Y139: ='sortie (5)'!C24 -> 0 | Z139: ='sortie (5)'!D24 -> 0 | AA139: 0 0 | AB139: ='sortie (5)'!AF24 -> 0 | AC139: ='sortie (5)'!AK24 -> 0 | AD139: ='sortie (5)'!AP24 -> 0
W140: ='sortie (5)'!$D$2 -> D | X140: ='sortie (5)'!$D$3 -> 00:00:00 | Y140: ='sortie (5)'!C25 -> 0 | Z140: ='sortie (5)'!D25 -> 0 | AA140: 0 0 | AB140: ='sortie (5)'!AF25 -> 0 | AC140: ='sortie (5)'!AK25 -> 0 | AD140: ='sortie (5)'!AP25 -> 0
W141: ='sortie (5)'!$D$2 -> D | X141: ='sortie (5)'!$D$3 -> 00:00:00 | Y141: ='sortie (5)'!C26 -> 0 | Z141: ='sortie (5)'!D26 -> 0 | AA141: 0 0 | AB141: ='sortie (5)'!AF26 -> 0 | AC141: ='sortie (5)'!AK26 -> 0 | AD141: ='sortie (5)'!AP26 -> 0
W142: ='sortie (5)'!$D$2 -> D | X142: ='sortie (5)'!$D$3 -> 00:00:00 | Y142: ='sortie (5)'!C27 -> 0 | Z142: ='sortie (5)'!D27 -> 0 | AA142: 0 0 | AB142: ='sortie (5)'!AF27 -> 0 | AC142: ='sortie (5)'!AK27 -> 0 | AD142: ='sortie (5)'!AP27 -> 0
W143: ='sortie (5)'!$D$2 -> D | X143: ='sortie (5)'!$D$3 -> 00:00:00 | Y143: ='sortie (5)'!C28 -> 0 | Z143: ='sortie (5)'!D28 -> 0 | AA143: 0 0 | AB143: ='sortie (5)'!AF28 -> 0 | AC143: ='sortie (5)'!AK28 -> 0 | AD143: ='sortie (5)'!AP28 -> 0
W144: ='sortie (5)'!$D$2 -> D | X144: ='sortie (5)'!$D$3 -> 00:00:00 | Y144: ='sortie (5)'!C29 -> 0 | Z144: ='sortie (5)'!D29 -> 0 | AA144: 0 0 | AB144: ='sortie (5)'!AF29 -> 0 | AC144: ='sortie (5)'!AK29 -> 0 | AD144: ='sortie (5)'!AP29 -> 0
W145: ='sortie (5)'!$D$2 -> D | X145: ='sortie (5)'!$D$3 -> 00:00:00 | Y145: ='sortie (5)'!C30 -> 0 | Z145: ='sortie (5)'!D30 -> 0 | AA145: 0 0 | AB145: ='sortie (5)'!AF30 -> 0 | AC145: ='sortie (5)'!AK30 -> 0 | AD145: ='sortie (5)'!AP30 -> 0
W146: ='sortie (5)'!$D$2 -> D | X146: ='sortie (5)'!$D$3 -> 00:00:00 | Y146: ='sortie (5)'!C31 -> 0 | Z146: ='sortie (5)'!D31 -> 0 | AA146: 0 0 | AB146: ='sortie (5)'!AF31 -> 0 | AC146: ='sortie (5)'!AK31 -> 0 | AD146: ='sortie (5)'!AP31 -> 0
W147: ='sortie (5)'!$D$2 -> D | X147: ='sortie (5)'!$D$3 -> 00:00:00 | Y147: ='sortie (5)'!C32 -> 0 | Z147: ='sortie (5)'!D32 -> 0 | AA147: 0 0 | AB147: ='sortie (5)'!AF32 -> 0 | AC147: ='sortie (5)'!AK32 -> 0 | AD147: ='sortie (5)'!AP32 -> 0
W148: ='sortie (5)'!$D$2 -> D | X148: ='sortie (5)'!$D$3 -> 00:00:00 | Y148: ='sortie (5)'!C33 -> 0 | Z148: ='sortie (5)'!D33 -> 0 | AA148: 0 0 | AB148: ='sortie (5)'!AF33 -> 0 | AC148: ='sortie (5)'!AK33 -> 0 | AD148: ='sortie (5)'!AP33 -> 0
W149: ='sortie (5)'!$D$2 -> D | X149: ='sortie (5)'!$D$3 -> 00:00:00 | Y149: ='sortie (5)'!C34 -> 0 | Z149: ='sortie (5)'!D34 -> 0 | AA149: 0 0 | AB149: ='sortie (5)'!AF34 -> 0 | AC149: ='sortie (5)'!AK34 -> 0 | AD149: ='sortie (5)'!AP34 -> 0
W150: ='sortie (5)'!$D$2 -> D | X150: ='sortie (5)'!$D$3 -> 00:00:00 | Y150: ='sortie (5)'!C35 -> 0 | Z150: ='sortie (5)'!D35 -> 0 | AA150: 0 0 | AB150: ='sortie (5)'!AF35 -> 0 | AC150: ='sortie (5)'!AK35 -> 0 | AD150: ='sortie (5)'!AP35 -> 0
W151: ='sortie (5)'!$D$2 -> D | X151: ='sortie (5)'!$D$3 -> 00:00:00 | Y151: ='sortie (5)'!C36 -> 0 | Z151: ='sortie (5)'!D36 -> 0 | AA151: 0 0 | AB151: ='sortie (5)'!AF36 -> 0 | AC151: ='sortie (5)'!AK36 -> 0 | AD151: ='sortie (5)'!AP36 -> 0
W152: ='sortie (5)'!$D$2 -> D | X152: ='sortie (5)'!$D$3 -> 00:00:00 | Y152: ='sortie (5)'!C37 -> 0 | Z152: ='sortie (5)'!D37 -> 0 | AA152: 0 0 | AB152: ='sortie (5)'!AF37 -> 0 | AC152: ='sortie (5)'!AK37 -> 0 | AD152: ='sortie (5)'!AP37 -> 0
W153: ='sortie (5)'!$D$2 -> D | X153: ='sortie (5)'!$D$3 -> 00:00:00 | Y153: ='sortie (5)'!C38 -> 0 | Z153: ='sortie (5)'!D38 -> 0 | AA153: 0 0 | AB153: ='sortie (5)'!AF38 -> 0 | AC153: ='sortie (5)'!AK38 -> 0 | AD153: ='sortie (5)'!AP38 -> 0
W154: ='sortie (6)'!$D$2 -> E | X154: ='sortie (6)'!$D$3 -> 00:00:00 | Y154: ='sortie (6)'!C9 -> 0 | Z154: ='sortie (6)'!D9 -> 0 | AA154: 0 0 | AB154: ='sortie (6)'!AF9 -> 0 | AC154: ='sortie (6)'!AK9 -> 0 | AD154: ='sortie (6)'!AP9 -> 0
W155: ='sortie (6)'!$D$2 -> E | X155: ='sortie (6)'!$D$3 -> 00:00:00 | Y155: ='sortie (6)'!C10 -> 0 | Z155: ='sortie (6)'!D10 -> 0 | AA155: 0 0 | AB155: ='sortie (6)'!AF10 -> 0 | AC155: ='sortie (6)'!AK10 -> 0 | AD155: ='sortie (6)'!AP10 -> 0
W156: ='sortie (6)'!$D$2 -> E | X156: ='sortie (6)'!$D$3 -> 00:00:00 | Y156: ='sortie (6)'!C11 -> 0 | Z156: ='sortie (6)'!D11 -> 0 | AA156: 0 0 | AB156: ='sortie (6)'!AF11 -> 0 | AC156: ='sortie (6)'!AK11 -> 0 | AD156: ='sortie (6)'!AP11 -> 0
W157: ='sortie (6)'!$D$2 -> E | X157: ='sortie (6)'!$D$3 -> 00:00:00 | Y157: ='sortie (6)'!C12 -> 0 | Z157: ='sortie (6)'!D12 -> 0 | AA157: 0 0 | AB157: ='sortie (6)'!AF12 -> 0 | AC157: ='sortie (6)'!AK12 -> 0 | AD157: ='sortie (6)'!AP12 -> 0
W158: ='sortie (6)'!$D$2 -> E | X158: ='sortie (6)'!$D$3 -> 00:00:00 | Y158: ='sortie (6)'!C13 -> 0 | Z158: ='sortie (6)'!D13 -> 0 | AA158: 0 0 | AB158: ='sortie (6)'!AF13 -> 0 | AC158: ='sortie (6)'!AK13 -> 0 | AD158: ='sortie (6)'!AP13 -> 0
W159: ='sortie (6)'!$D$2 -> E | X159: ='sortie (6)'!$D$3 -> 00:00:00 | Y159: ='sortie (6)'!C14 -> 0 | Z159: ='sortie (6)'!D14 -> 0 | AA159: 0 0 | AB159: ='sortie (6)'!AF14 -> 0 | AC159: ='sortie (6)'!AK14 -> 0 | AD159: ='sortie (6)'!AP14 -> 0
W160: ='sortie (6)'!$D$2 -> E | X160: ='sortie (6)'!$D$3 -> 00:00:00 | Y160: ='sortie (6)'!C15 -> 0 | Z160: ='sortie (6)'!D15 -> 0 | AA160: 0 0 | AB160: ='sortie (6)'!AF15 -> 0 | AC160: ='sortie (6)'!AK15 -> 0 | AD160: ='sortie (6)'!AP15 -> 0
W161: ='sortie (6)'!$D$2 -> E | X161: ='sortie (6)'!$D$3 -> 00:00:00 | Y161: ='sortie (6)'!C16 -> 0 | Z161: ='sortie (6)'!D16 -> 0 | AA161: 0 0 | AB161: ='sortie (6)'!AF16 -> 0 | AC161: ='sortie (6)'!AK16 -> 0 | AD161: ='sortie (6)'!AP16 -> 0
W162: ='sortie (6)'!$D$2 -> E | X162: ='sortie (6)'!$D$3 -> 00:00:00 | Y162: ='sortie (6)'!C17 -> 0 | Z162: ='sortie (6)'!D17 -> 0 | AA162: 0 0 | AB162: ='sortie (6)'!AF17 -> 0 | AC162: ='sortie (6)'!AK17 -> 0 | AD162: ='sortie (6)'!AP17 -> 0
W163: ='sortie (6)'!$D$2 -> E | X163: ='sortie (6)'!$D$3 -> 00:00:00 | Y163: ='sortie (6)'!C18 -> 0 | Z163: ='sortie (6)'!D18 -> 0 | AA163: 0 0 | AB163: ='sortie (6)'!AF18 -> 0 | AC163: ='sortie (6)'!AK18 -> 0 | AD163: ='sortie (6)'!AP18 -> 0
W164: ='sortie (6)'!$D$2 -> E | X164: ='sortie (6)'!$D$3 -> 00:00:00 | Y164: ='sortie (6)'!C19 -> 0 | Z164: ='sortie (6)'!D19 -> 0 | AA164: 0 0 | AB164: ='sortie (6)'!AF19 -> 0 | AC164: ='sortie (6)'!AK19 -> 0 | AD164: ='sortie (6)'!AP19 -> 0
W165: ='sortie (6)'!$D$2 -> E | X165: ='sortie (6)'!$D$3 -> 00:00:00 | Y165: ='sortie (6)'!C20 -> 0 | Z165: ='sortie (6)'!D20 -> 0 | AA165: 0 0 | AB165: ='sortie (6)'!AF20 -> 0 | AC165: ='sortie (6)'!AK20 -> 0 | AD165: ='sortie (6)'!AP20 -> 0
W166: ='sortie (6)'!$D$2 -> E | X166: ='sortie (6)'!$D$3 -> 00:00:00 | Y166: ='sortie (6)'!C21 -> 0 | Z166: ='sortie (6)'!D21 -> 0 | AA166: 0 0 | AB166: ='sortie (6)'!AF21 -> 0 | AC166: ='sortie (6)'!AK21 -> 0 | AD166: ='sortie (6)'!AP21 -> 0
W167: ='sortie (6)'!$D$2 -> E | X167: ='sortie (6)'!$D$3 -> 00:00:00 | Y167: ='sortie (6)'!C22 -> 0 | Z167: ='sortie (6)'!D22 -> 0 | AA167: 0 0 | AB167: ='sortie (6)'!AF22 -> 0 | AC167: ='sortie (6)'!AK22 -> 0 | AD167: ='sortie (6)'!AP22 -> 0
W168: ='sortie (6)'!$D$2 -> E | X168: ='sortie (6)'!$D$3 -> 00:00:00 | Y168: ='sortie (6)'!C23 -> 0 | Z168: ='sortie (6)'!D23 -> 0 | AA168: 0 0 | AB168: ='sortie (6)'!AF23 -> 0 | AC168: ='sortie (6)'!AK23 -> 0 | AD168: ='sortie (6)'!AP23 -> 0
W169: ='sortie (6)'!$D$2 -> E | X169: ='sortie (6)'!$D$3 -> 00:00:00 | Y169: ='sortie (6)'!C24 -> 0 | Z169: ='sortie (6)'!D24 -> 0 | AA169: 0 0 | AB169: ='sortie (6)'!AF24 -> 0 | AC169: ='sortie (6)'!AK24 -> 0 | AD169: ='sortie (6)'!AP24 -> 0
W170: ='sortie (6)'!$D$2 -> E | X170: ='sortie (6)'!$D$3 -> 00:00:00 | Y170: ='sortie (6)'!C25 -> 0 | Z170: ='sortie (6)'!D25 -> 0 | AA170: 0 0 | AB170: ='sortie (6)'!AF25 -> 0 | AC170: ='sortie (6)'!AK25 -> 0 | AD170: ='sortie (6)'!AP25 -> 0
W171: ='sortie (6)'!$D$2 -> E | X171: ='sortie (6)'!$D$3 -> 00:00:00 | Y171: ='sortie (6)'!C26 -> 0 | Z171: ='sortie (6)'!D26 -> 0 | AA171: 0 0 | AB171: ='sortie (6)'!AF26 -> 0 | AC171: ='sortie (6)'!AK26 -> 0 | AD171: ='sortie (6)'!AP26 -> 0
W172: ='sortie (6)'!$D$2 -> E | X172: ='sortie (6)'!$D$3 -> 00:00:00 | Y172: ='sortie (6)'!C27 -> 0 | Z172: ='sortie (6)'!D27 -> 0 | AA172: 0 0 | AB172: ='sortie (6)'!AF27 -> 0 | AC172: ='sortie (6)'!AK27 -> 0 | AD172: ='sortie (6)'!AP27 -> 0
W173: ='sortie (6)'!$D$2 -> E | X173: ='sortie (6)'!$D$3 -> 00:00:00 | Y173: ='sortie (6)'!C28 -> 0 | Z173: ='sortie (6)'!D28 -> 0 | AA173: 0 0 | AB173: ='sortie (6)'!AF28 -> 0 | AC173: ='sortie (6)'!AK28 -> 0 | AD173: ='sortie (6)'!AP28 -> 0
W174: ='sortie (6)'!$D$2 -> E | X174: ='sortie (6)'!$D$3 -> 00:00:00 | Y174: ='sortie (6)'!C29 -> 0 | Z174: ='sortie (6)'!D29 -> 0 | AA174: 0 0 | AB174: ='sortie (6)'!AF29 -> 0 | AC174: ='sortie (6)'!AK29 -> 0 | AD174: ='sortie (6)'!AP29 -> 0
W175: ='sortie (6)'!$D$2 -> E | X175: ='sortie (6)'!$D$3 -> 00:00:00 | Y175: ='sortie (6)'!C30 -> 0 | Z175: ='sortie (6)'!D30 -> 0 | AA175: 0 0 | AB175: ='sortie (6)'!AF30 -> 0 | AC175: ='sortie (6)'!AK30 -> 0 | AD175: ='sortie (6)'!AP30 -> 0
W176: ='sortie (6)'!$D$2 -> E | X176: ='sortie (6)'!$D$3 -> 00:00:00 | Y176: ='sortie (6)'!C31 -> 0 | Z176: ='sortie (6)'!D31 -> 0 | AA176: 0 0 | AB176: ='sortie (6)'!AF31 -> 0 | AC176: ='sortie (6)'!AK31 -> 0 | AD176: ='sortie (6)'!AP31 -> 0
W177: ='sortie (6)'!$D$2 -> E | X177: ='sortie (6)'!$D$3 -> 00:00:00 | Y177: ='sortie (6)'!C32 -> 0 | Z177: ='sortie (6)'!D32 -> 0 | AA177: 0 0 | AB177: ='sortie (6)'!AF32 -> 0 | AC177: ='sortie (6)'!AK32 -> 0 | AD177: ='sortie (6)'!AP32 -> 0
W178: ='sortie (6)'!$D$2 -> E | X178: ='sortie (6)'!$D$3 -> 00:00:00 | Y178: ='sortie (6)'!C33 -> 0 | Z178: ='sortie (6)'!D33 -> 0 | AA178: 0 0 | AB178: ='sortie (6)'!AF33 -> 0 | AC178: ='sortie (6)'!AK33 -> 0 | AD178: ='sortie (6)'!AP33 -> 0
W179: ='sortie (6)'!$D$2 -> E | X179: ='sortie (6)'!$D$3 -> 00:00:00 | Y179: ='sortie (6)'!C34 -> 0 | Z179: ='sortie (6)'!D34 -> 0 | AA179: 0 0 | AB179: ='sortie (6)'!AF34 -> 0 | AC179: ='sortie (6)'!AK34 -> 0 | AD179: ='sortie (6)'!AP34 -> 0
W180: ='sortie (6)'!$D$2 -> E | X180: ='sortie (6)'!$D$3 -> 00:00:00 | Y180: ='sortie (6)'!C35 -> 0 | Z180: ='sortie (6)'!D35 -> 0 | AA180: 0 0 | AB180: ='sortie (6)'!AF35 -> 0 | AC180: ='sortie (6)'!AK35 -> 0 | AD180: ='sortie (6)'!AP35 -> 0
W181: ='sortie (6)'!$D$2 -> E | X181: ='sortie (6)'!$D$3 -> 00:00:00 | Y181: ='sortie (6)'!C36 -> 0 | Z181: ='sortie (6)'!D36 -> 0 | AA181: 0 0 | AB181: ='sortie (6)'!AF36 -> 0 | AC181: ='sortie (6)'!AK36 -> 0 | AD181: ='sortie (6)'!AP36 -> 0
W182: ='sortie (6)'!$D$2 -> E | X182: ='sortie (6)'!$D$3 -> 00:00:00 | Y182: ='sortie (6)'!C37 -> 0 | Z182: ='sortie (6)'!D37 -> 0 | AA182: 0 0 | AB182: ='sortie (6)'!AF37 -> 0 | AC182: ='sortie (6)'!AK37 -> 0 | AD182: ='sortie (6)'!AP37 -> 0
W183: ='sortie (6)'!$D$2 -> E | X183: ='sortie (6)'!$D$3 -> 00:00:00 | Y183: ='sortie (6)'!C38 -> 0 | Z183: ='sortie (6)'!D38 -> 0 | AA183: 0 0 | AB183: ='sortie (6)'!AF38 -> 0 | AC183: ='sortie (6)'!AK38 -> 0 | AD183: ='sortie (6)'!AP38 -> 0
W184: ='sortie (7)'!$D$2 -> F | X184: ='sortie (7)'!$D$3 -> 00:00:00 | Y184: ='sortie (7)'!C9 -> 0 | Z184: ='sortie (7)'!D9 -> 0 | AA184: 0 0 | AB184: ='sortie (7)'!AF9 -> 0 | AC184: ='sortie (7)'!AK9 -> 0 | AD184: ='sortie (7)'!AP9 -> 0
W185: ='sortie (7)'!$D$2 -> F | X185: ='sortie (7)'!$D$3 -> 00:00:00 | Y185: ='sortie (7)'!C10 -> 0 | Z185: ='sortie (7)'!D10 -> 0 | AA185: 0 0 | AB185: ='sortie (7)'!AF10 -> 0 | AC185: ='sortie (7)'!AK10 -> 0 | AD185: ='sortie (7)'!AP10 -> 0
W186: ='sortie (7)'!$D$2 -> F | X186: ='sortie (7)'!$D$3 -> 00:00:00 | Y186: ='sortie (7)'!C11 -> 0 | Z186: ='sortie (7)'!D11 -> 0 | AA186: 0 0 | AB186: ='sortie (7)'!AF11 -> 0 | AC186: ='sortie (7)'!AK11 -> 0 | AD186: ='sortie (7)'!AP11 -> 0
W187: ='sortie (7)'!$D$2 -> F | X187: ='sortie (7)'!$D$3 -> 00:00:00 | Y187: ='sortie (7)'!C12 -> 0 | Z187: ='sortie (7)'!D12 -> 0 | AA187: 0 0 | AB187: ='sortie (7)'!AF12 -> 0 | AC187: ='sortie (7)'!AK12 -> 0 | AD187: ='sortie (7)'!AP12 -> 0
W188: ='sortie (7)'!$D$2 -> F | X188: ='sortie (7)'!$D$3 -> 00:00:00 | Y188: ='sortie (7)'!C13 -> 0 | Z188: ='sortie (7)'!D13 -> 0 | AA188: 0 0 | AB188: ='sortie (7)'!AF13 -> 0 | AC188: ='sortie (7)'!AK13 -> 0 | AD188: ='sortie (7)'!AP13 -> 0
W189: ='sortie (7)'!$D$2 -> F | X189: ='sortie (7)'!$D$3 -> 00:00:00 | Y189: ='sortie (7)'!C14 -> 0 | Z189: ='sortie (7)'!D14 -> 0 | AA189: 0 0 | AB189: ='sortie (7)'!AF14 -> 0 | AC189: ='sortie (7)'!AK14 -> 0 | AD189: ='sortie (7)'!AP14 -> 0
W190: ='sortie (7)'!$D$2 -> F | X190: ='sortie (7)'!$D$3 -> 00:00:00 | Y190: ='sortie (7)'!C15 -> 0 | Z190: ='sortie (7)'!D15 -> 0 | AA190: 0 0 | AB190: ='sortie (7)'!AF15 -> 0 | AC190: ='sortie (7)'!AK15 -> 0 | AD190: ='sortie (7)'!AP15 -> 0
W191: ='sortie (7)'!$D$2 -> F | X191: ='sortie (7)'!$D$3 -> 00:00:00 | Y191: ='sortie (7)'!C16 -> 0 | Z191: ='sortie (7)'!D16 -> 0 | AA191: 0 0 | AB191: ='sortie (7)'!AF16 -> 0 | AC191: ='sortie (7)'!AK16 -> 0 | AD191: ='sortie (7)'!AP16 -> 0
W192: ='sortie (7)'!$D$2 -> F | X192: ='sortie (7)'!$D$3 -> 00:00:00 | Y192: ='sortie (7)'!C17 -> 0 | Z192: ='sortie (7)'!D17 -> 0 | AA192: 0 0 | AB192: ='sortie (7)'!AF17 -> 0 | AC192: ='sortie (7)'!AK17 -> 0 | AD192: ='sortie (7)'!AP17 -> 0
W193: ='sortie (7)'!$D$2 -> F | X193: ='sortie (7)'!$D$3 -> 00:00:00 | Y193: ='sortie (7)'!C18 -> 0 | Z193: ='sortie (7)'!D18 -> 0 | AA193: 0 0 | AB193: ='sortie (7)'!AF18 -> 0 | AC193: ='sortie (7)'!AK18 -> 0 | AD193: ='sortie (7)'!AP18 -> 0
W194: ='sortie (7)'!$D$2 -> F | X194: ='sortie (7)'!$D$3 -> 00:00:00 | Y194: ='sortie (7)'!C19 -> 0 | Z194: ='sortie (7)'!D19 -> 0 | AA194: 0 0 | AB194: ='sortie (7)'!AF19 -> 0 | AC194: ='sortie (7)'!AK19 -> 0 | AD194: ='sortie (7)'!AP19 -> 0
W195: ='sortie (7)'!$D$2 -> F | X195: ='sortie (7)'!$D$3 -> 00:00:00 | Y195: ='sortie (7)'!C20 -> 0 | Z195: ='sortie (7)'!D20 -> 0 | AA195: 0 0 | AB195: ='sortie (7)'!AF20 -> 0 | AC195: ='sortie (7)'!AK20 -> 0 | AD195: ='sortie (7)'!AP20 -> 0
W196: ='sortie (7)'!$D$2 -> F | X196: ='sortie (7)'!$D$3 -> 00:00:00 | Y196: ='sortie (7)'!C21 -> 0 | Z196: ='sortie (7)'!D21 -> 0 | AA196: 0 0 | AB196: ='sortie (7)'!AF21 -> 0 | AC196: ='sortie (7)'!AK21 -> 0 | AD196: ='sortie (7)'!AP21 -> 0
W197: ='sortie (7)'!$D$2 -> F | X197: ='sortie (7)'!$D$3 -> 00:00:00 | Y197: ='sortie (7)'!C22 -> 0 | Z197: ='sortie (7)'!D22 -> 0 | AA197: =CONCATENATE(Y197," ",Z197) -> 0 0 | AB197: ='sortie (7)'!AF22 -> 0 | AC197: ='sortie (7)'!AK22 -> 0 | AD197: ='sortie (7)'!AP22 -> 0
W198: ='sortie (7)'!$D$2 -> F | X198: ='sortie (7)'!$D$3 -> 00:00:00 | Y198: ='sortie (7)'!C23 -> 0 | Z198: ='sortie (7)'!D23 -> 0 | AA198: 0 0 | AB198: ='sortie (7)'!AF23 -> 0 | AC198: ='sortie (7)'!AK23 -> 0 | AD198: ='sortie (7)'!AP23 -> 0
W199: ='sortie (7)'!$D$2 -> F | X199: ='sortie (7)'!$D$3 -> 00:00:00 | Y199: ='sortie (7)'!C24 -> 0 | Z199: ='sortie (7)'!D24 -> 0 | AA199: 0 0 | AB199: ='sortie (7)'!AF24 -> 0 | AC199: ='sortie (7)'!AK24 -> 0 | AD199: ='sortie (7)'!AP24 -> 0
W200: ='sortie (7)'!$D$2 -> F | X200: ='sortie (7)'!$D$3 -> 00:00:00 | Y200: ='sortie (7)'!C25 -> 0 | Z200: ='sortie (7)'!D25 -> 0 | AA200: 0 0 | AB200: ='sortie (7)'!AF25 -> 0 | AC200: ='sortie (7)'!AK25 -> 0 | AD200: ='sortie (7)'!AP25 -> 0
W201: ='sortie (7)'!$D$2 -> F | X201: ='sortie (7)'!$D$3 -> 00:00:00 | Y201: ='sortie (7)'!C26 -> 0 | Z201: ='sortie (7)'!D26 -> 0 | AA201: 0 0 | AB201: ='sortie (7)'!AF26 -> 0 | AC201: ='sortie (7)'!AK26 -> 0 | AD201: ='sortie (7)'!AP26 -> 0
... 102 more rows

Sheet Bourges 05-03
C2: Golf | D2: Bourges | F2: Slope | G2: SSS | N2: CARTE DE SCORE
C3: Date | D3: 2022-03-05 | F3: 133 | G3: 68.6
C5: Individuel Stableford BRUT/NET
E6: Index | F6: HCP trous | G6: 1 | H6: 2 | I6: 3 | J6: 4 | K6: 5 | L6: 6 | M6: 7 | N6: 8 | O6: 9 | P6: Aller | Q6: 10 | R6: 11 | S6: 12 | T6: 13 | U6: 14 | V6: 15 | W6: 16 | X6: 17 | Y6: 18 | Z6: Retour | AA6: Total
F7: PAR | G7: 4 | H7: 4 | I7: 5 | J7: 4 | K7: 3 | L7: 5 | M7: 3 | N7: 5 | O7: 3 | P7: =SUM(G7:O7) -> 36 | Q7: 4 | R7: 4 | S7: 3 | T7: 5 | U7: 3 | V7: 4 | W7: 4 | X7: 5 | Y7: 4 | Z7: =SUM(Q7:Y7) -> 36 | AA7: =SUM(P7+Z7) -> 72
C8: Noms | D8: Prénoms | F8: Trou | G8: 4 | H8: 8 | I8: 12 | J8: 14 | K8: 2 | L8: 10 | M8: 18 | N8: 16 | O8: 6 | Q8: 1 | R8: 9 | S8: 11 | T8: 5 | U8: 17 | V8: 15 | W8: 3 | X8: 13 | Y8: 7 | AC8: NET | AD8: Classt | AE8: Rang | AF8: Points | AH8: BRUT | AI8: Classt | AJ8: Rang | AK8: Points | AM8: STROKE | AN8: Classt | AO8: Rang | AP8: Points
B9: 1 | C9: BINVAULT | D9: Dominique | E9: 34.7 | G9: 5 | H9: 8 | I9: 7 | J9: 7 | K9: 4 | L9: 6 | M9: 6 | N9: 6 | O9: 4 | P9: =SUM(G9:O9) -> 53 | Q9: 5 | R9: 7 | S9: 7 | T9: 6 | U9: 5 | V9: 5 | W9: 8 | X9: 6 | Y9: 6 | Z9: =SUM(Q9:Y9) -> 55 | AA9: =SUM(P9+Z9) -> 108 | AC9: =$AA$95 -> 37 | AD9: =RANK(AC9,AC$9:AC$38,0)+COUNTIF(AC9:$AC$9,AC9)-1 -> 8 | AE9: =RANK(AC9,AC$9:AC$38,0) -> 8 | AF9: =IF(ISBLANK($C9),0,1)*INDEX('Allocation Points'!$B$3:$AG$32,AE9,COUNTIF(AE$9:AE$38,AE9)+2) -> 6 | AH9: =AA96 -> 9 | AI9: =RANK(AH9,AH$9:AH$38,0)+COUNTIF(AH9:$AH$9,AH9)-1 -> 12 | AJ9: =RANK(AH9,AH$9:AH$38,0) -> 12 | AK9: =IF(ISBLANK($C9),0,1)*INDEX('Allocation Points'!$B$3:$AG$32,AJ9,COUNTIF(AJ$9:AJ$38,AJ9)+2) -> 2 | AM9: =AA94 -> 108 | AN9: =RANK(AM9,AM$9:AM$38,1)+COUNTIF(AM9:$AM$9,AM9)-1 -> 13 | AO9: =RANK(AM9,AM$9:AM$38,1) -> 13 | AP9: =IF(ISBLANK($C9),0,1)*INDEX('Allocation Points'!$B$3:$AG$32,AO9,COUNTIF(AO$9:AO$38,AO9)+2) -> 1
B10: 2 | C10: CHRETIEN | D10: Fabrice | E10: 20.1 | G10: 6 | H10: 6 | I10: 7 | J10: 4 | K10: 4 | L10: 6 | M10: 5 | N10: 5 | O10: 3 | P10: 46 | Q10: 6 | R10: 6 | S10: 4 | T10: 6 | U10: 3 | V10: 7 | W10: 5 | X10: 8 | Y10: 6 | Z10: 51 | AA10: 97 | AC10: =$AA$118 -> 31 | AD10: =RANK(AC10,AC$9:AC$38,0)+COUNTIF(AC$9:$AC10,AC10)-1 -> 14 | AE10: =RANK(AC10,AC$9:AC$38,0) -> 14 | AF10: =IF(ISBLANK($C10),0,1)*INDEX('Allocation Points'!$B$3:$AG$32,AE10,COUNTIF(AE$9:AE$38,AE10)+2) -> 1 | AH10: =AA119 -> 13 | AI10: =RANK(AH10,AH$9:AH$38,0)+COUNTIF(AH$9:$AH10,AH10)-1 -> 9 | AJ10: =RANK(AH10,AH$9:AH$38,0) -> 9 | AK10: =IF(ISBLANK($C10),0,1)*INDEX('Allocation Points'!$B$3:$AG$32,AJ10,COUNTIF(AJ$9:AJ$38,AJ10)+2) -> 5 | AM10: =AA117 -> 97 | AN10: =RANK(AM10,AM$9:AM$38,1)+COUNTIF(AM$9:$AM10,AM10)-1 -> 8 | AO10: =RANK(AM10,AM$9:AM$38,1) -> 8 | AP10: =IF(ISBLANK($C10),0,1)*INDEX('Allocation Points'!$B$3:$AG$32,AO10,COUNTIF(AO$9:AO$38,AO10)+2) -> 7
B11: 3 | C11: DELOUCHE | D11: Yannick | E11: 48.2 | G11: 7 | H11: 6 | I11: 10 | J11: 8 | K11: 6 | L11: 7 | M11: 6 | N11: 8 | O11: 7 | P11: 65 | Q11: 5 | R11: 8 | S11: 6 | T11: 9 | U11: 3 | V11: 5 | W11: 5 | X11: 7 | Y11: 8 | Z11: 56 | AA11: 121 | AC11: =$AA$141 -> 40 | AD11: =RANK(AC11,AC$9:AC$38,0)+COUNTIF(AC$9:$AC11,AC11)-1 -> 4 | AE11: 4 | AF11: =IF(ISBLANK($C11),0,1)*INDEX('Allocation Points'!$B$3:$AG$32,AE11,COUNTIF(AE$9:AE$38,AE11)+2) -> 15 | AH11: =AA142 -> 5 | AI11: =RANK(AH11,AH$9:AH$38,0)+COUNTIF(AH$9:$AH11,AH11)-1 -> 17 | AJ11: 17 | AK11: =IF(ISBLANK($C11),0,1)*INDEX('Allocation Points'!$B$3:$AG$32,AJ11,COUNTIF(AJ$9:AJ$38,AJ11)+2) -> 1 | AM11: =AA140 -> 121 | AN11: =RANK(AM11,AM$9:AM$38,1)+COUNTIF(AM$9:$AM11,AM11)-1 -> 18 | AO11: 18 | AP11: =IF(ISBLANK($C11),0,1)*INDEX('Allocation Points'!$B$3:$AG$32,AO11,COUNTIF(AO$9:AO$38,AO11)+2) -> 1
B12: 4 | C12: DIOT | D12: Alexandre | E12: 8.2 | G12: 5 | H12: 4 | I12: 5 | J12: 6 | K12: 4 | L12: 4 | M12: 3 | N12: 6 | O12: 4 | P12: 41 | Q12: 4 | R12: 6 | S12: 4 | T12: 6 | U12: 6 | V12: 5 | W12: 4 | X12: 4 | Y12: 4 | Z12: 43 | AA12: 84 | AC12: =$AA$164 -> 31 | AD12: =RANK(AC12,AC$9:AC$38,0)+COUNTIF(AC$9:$AC12,AC12)-1 -> 15 | AE12: 14 | AF12: =IF(ISBLANK($C12),0,1)*INDEX('Allocation Points'!$B$3:$AG$32,AE12,COUNTIF(AE$9:AE$38,AE12)+2) -> 1 | AH12: =AA165 -> 25 | AI12: =RANK(AH12,AH$9:AH$38,0)+COUNTIF(AH$9:$AH12,AH12)-1 -> 3 | AJ12: 3 | AK12: =IF(ISBLANK($C12),0,1)*INDEX('Allocation Points'!$B$3:$AG$32,AJ12,COUNTIF(AJ$9:AJ$38,AJ12)+2) -> 20 | AM12: =AA163 -> 84 | AN12: =RANK(AM12,AM$9:AM$38,1)+COUNTIF(AM$9:$AM12,AM12)-1 -> 3 | AO12: 3 | AP12: =IF(ISBLANK($C12),0,1)*INDEX('Allocation Points'!$B$3:$AG$32,AO12,COUNTIF(AO$9:AO$38,AO12)+2) -> 20
B13: 5 | C13: GAUTHIER | D13: Patrice | E13: 24.5 | G13: 6 | H13: 7 | I13: 6 | J13: 6 | K13: 5 | L13: 7 | M13: 4 | N13: 5 | O13: 4 | P13: 50 | Q13: 6 | R13: 6 | S13: 4 | T13: 5 | U13: 3 | V13: 5 | W13: 6 | X13: 6 | Y13: 4 | Z13: 45 | AA13: 95 | AC13: =$AA$187 -> 38 | AD13: =RANK(AC13,AC$9:AC$38,0)+COUNTIF(AC$9:$AC13,AC13)-1 -> 7 | AE13: 7 | AF13: =IF(ISBLANK($C13),0,1)*INDEX('Allocation Points'!$B$3:$AG$32,AE13,COUNTIF(AE$9:AE$38,AE13)+2) -> 8 | AH13: =AA188 -> 14 | AI13: =RANK(AH13,AH$9:AH$38,0)+COUNTIF(AH$9:$AH13,AH13)-1 -> 8 | AJ13: 8 | AK13: =IF(ISBLANK($C13),0,1)*INDEX('Allocation Points'!$B$3:$AG$32,AJ13,COUNTIF(AJ$9:AJ$38,AJ13)+2) -> 7 | AM13: =AA186 -> 95 | AN13: =RANK(AM13,AM$9:AM$38,1)+COUNTIF(AM$9:$AM13,AM13)-1 -> 7 | AO13: 7 | AP13: =IF(ISBLANK($C13),0,1)*INDEX('Allocation Points'!$B$3:$AG$32,AO13,COUNTIF(AO$9:AO$38,AO13)+2) -> 8
B14: 6 | C14: HERRAULT | D14: Sébastien | E14: 11.3 | G14: 5 | H14: 6 | I14: 6 | J14: 5 | K14: 3 | L14: 5 | M14: 3 | N14: 6 | O14: 3 | P14: 42 | Q14: 6 | R14: 5 | S14: 5 | T14: 4 | U14: 4 | V14: 5 | W14: 4 | X14: 6 | Y14: 5 | Z14: 44 | AA14: 86 | AC14: =$AA$210 -> 32 | AD14: =RANK(AC14,AC$9:AC$38,0)+COUNTIF(AC$9:$AC14,AC14)-1 -> 13 | AE14: 13 | AF14: =IF(ISBLANK($C14),0,1)*INDEX('Allocation Points'!$B$3:$AG$32,AE14,COUNTIF(AE$9:AE$38,AE14)+2) -> 2 | AH14: =AA211 -> 22 | AI14: =RANK(AH14,AH$9:AH$38,0)+COUNTIF(AH$9:$AH14,AH14)-1 -> 4 | AJ14: 4 | AK14: =IF(ISBLANK($C14),0,1)*INDEX('Allocation Points'!$B$3:$AG$32,AJ14,COUNTIF(AJ$9:AJ$38,AJ14)+2) -> 12 | AM14: =AA209 -> 86 | AN14: =RANK(AM14,AM$9:AM$38,1)+COUNTIF(AM$9:$AM14,AM14)-1 -> 4 | AO14: 4 | AP14: =IF(ISBLANK($C14),0,1)*INDEX('Allocation Points'!$B$3:$AG$32,AO14,COUNTIF(AO$9:AO$38,AO14)+2) -> 15
B15: 7 | C15: HODEAU | D15: Cédric | E15: 34.7 | G15: 5 | H15: 5 | I15: 7 | J15: 4 | K15: 3 | L15: 5 | M15: 5 | N15: 6 | O15: 6 | P15: 46 | Q15: 6 | R15: 5 | S15: 5 | T15: 7 | U15: 5 | V15: 7 | W15: 8 | X15: 5 | Y15: 7 | Z15: 55 | AA15: 101 | AC15: =$AA$233 -> 44 | AD15: =RANK(AC15,AC$9:AC$38,0)+COUNTIF(AC$9:$AC15,AC15)-1 -> 1 | AE15: 1 | AF15: =IF(ISBLANK($C15),0,1)*INDEX('Allocation Points'!$B$3:$AG$32,AE15,COUNTIF(AE$9:AE$38,AE15)+2) -> 27 | AH15: =AA234 -> 12 | AI15: =RANK(AH15,AH$9:AH$38,0)+COUNTIF(AH$9:$AH15,AH15)-1 -> 11 | AJ15: 11 | AK15: =IF(ISBLANK($C15),0,1)*INDEX('Allocation Points'!$B$3:$AG$32,AJ15,COUNTIF(AJ$9:AJ$38,AJ15)+2) -> 4 | AM15: =AA232 -> 101 | AN15: =RANK(AM15,AM$9:AM$38,1)+COUNTIF(AM$9:$AM15,AM15)-1 -> 11 | AO15: 11 | AP15: =IF(ISBLANK($C15),0,1)*INDEX('Allocation Points'!$B$3:$AG$32,AO15,COUNTIF(AO$9:AO$38,AO15)+2) -> 4
B16: 8 | C16: JACQUEMIN | D16: Franck | E16: 17.2 | G16: 5 | H16: 5 | I16: 5 | J16: 5 | K16: 5 | L16: 6 | M16: 2 | N16: 5 | O16: 3 | P16: 41 | Q16: 6 | R16: 5 | S16: 5 | T16: 6 | U16: 3 | V16: 5 | W16: 4 | X16: 7 | Y16: 8 | Z16: 49 | AA16: 90 | AC16: =$AA$256 -> 36 | AD16: =RANK(AC16,AC$9:AC$38,0)+COUNTIF(AC$9:$AC16,AC16)-1 -> 10 | AE16: 10 | AF16: =IF(ISBLANK($C16),0,1)*INDEX('Allocation Points'!$B$3:$AG$32,AE16,COUNTIF(AE$9:AE$38,AE16)+2) -> 5 | AH16: =AA257 -> 20 | AI16: =RANK(AH16,AH$9:AH$38,0)+COUNTIF(AH$9:$AH16,AH16)-1 -> 6 | AJ16: 6 | AK16: =IF(ISBLANK($C16),0,1)*INDEX('Allocation Points'!$B$3:$AG$32,AJ16,COUNTIF(AJ$9:AJ$38,AJ16)+2) -> 9 | AM16: =AA255 -> 90 | AN16: =RANK(AM16,AM$9:AM$38,1)+COUNTIF(AM$9:$AM16,AM16)-1 -> 6 | AO16: 6 | AP16: =IF(ISBLANK($C16),0,1)*INDEX('Allocation Points'!$B$3:$AG$32,AO16,COUNTIF(AO$9:AO$38,AO16)+2) -> 9
B17: 9 | C17: LEFEU | D17: Jean-Marie | E17: 30.6 | G17: 6 | H17: 7 | I17: 8 | J17: 6 | K17: 4 | L17: 5 | M17: 4 | N17: 7 | O17: 6 | P17: 53 | Q17: 6 | R17: 7 | S17: 3 | T17: 8 | U17: 7 | V17: 8 | W17: 6 | X17: 9 | Y17: 7 | Z17: 61 | AA17: 114 | AC17: =$AA$279 -> 28 | AD17: =RANK(AC17,AC$9:AC$38,0)+COUNTIF(AC$9:$AC17,AC17)-1 -> 17 | AE17: 17 | AF17: =IF(ISBLANK($C17),0,1)*INDEX('Allocation Points'!$B$3:$AG$32,AE17,COUNTIF(AE$9:AE$38,AE17)+2) -> 1 | AH17: =AA280 -> 6 | AI17: =RANK(AH17,AH$9:AH$38,0)+COUNTIF(AH$9:$AH17,AH17)-1 -> 16 | AJ17: 16 | AK17: =IF(ISBLANK($C17),0,1)*INDEX('Allocation Points'!$B$3:$AG$32,AJ17,COUNTIF(AJ$9:AJ$38,AJ17)+2) -> 1 | AM17: =AA278 -> 114 | AN17: =RANK(AM17,AM$9:AM$38,1)+COUNTIF(AM$9:$AM17,AM17)-1 -> 16 | AO17: 16 | AP17: =IF(ISBLANK($C17),0,1)*INDEX('Allocation Points'!$B$3:$AG$32,AO17,COUNTIF(AO$9:AO$38,AO17)+2) -> 1
B18: 10 | C18: LEVEQUE | D18: Claude | E18: 22.4 | G18: 6 | H18: 7 | I18: 8 | J18: 6 | K18: 4 | L18: 7 | M18: 4 | N18: 7 | O18: 4 | P18: 53 | Q18: 6 | R18: 9 | S18: 7 | T18: 4 | U18: 6 | V18: 7 | W18: 7 | X18: 6 | Y18: 5 | Z18: 57 | AA18: 110 | AC18: =$AA$302 -> 24 | AD18: =RANK(AC18,AC$9:AC$38,0)+COUNTIF(AC$9:$AC18,AC18)-1 -> 18 | AE18: 18 | AF18: =IF(ISBLANK($C18),0,1)*INDEX('Allocation Points'!$B$3:$AG$32,AE18,COUNTIF(AE$9:AE$38,AE18)+2) -> 1 | AH18: =AA303 -> 8 | AI18: =RANK(AH18,AH$9:AH$38,0)+COUNTIF(AH$9:$AH18,AH18)-1 -> 14 | AJ18: 14 | AK18: =IF(ISBLANK($C18),0,1)*INDEX('Allocation Points'!$B$3:$AG$32,AJ18,COUNTIF(AJ$9:AJ$38,AJ18)+2) -> 1 | AM18: =AA301 -> 110 | AN18: =RANK(AM18,AM$9:AM$38,1)+COUNTIF(AM$9:$AM18,AM18)-1 -> 15 | AO18: 15 | AP18: =IF(ISBLANK($C18),0,1)*INDEX('Allocation Points'!$B$3:$AG$32,AO18,COUNTIF(AO$9:AO$38,AO18)+2) -> 1
B19: 11 | C19: MICHEL | D19: Eric | E19: 37 | G19: 5 | H19: 6 | I19: 10 | J19: 5 | K19: 4 | L19: 6 | M19: 5 | N19: 8 | O19: 6 | P19: 55 | Q19: 6 | R19: 6 | S19: 7 | T19: 5 | U19: 4 | V19: 6 | W19: 5 | X19: 7 | Y19: 7 | Z19: 53 | AA19: 108 | AC19: =$AA$325 -> 41 | AD19: =RANK(AC19,AC$9:AC$38,0)+COUNTIF(AC$9:$AC19,AC19)-1 -> 3 | AE19: 3 | AF19: =IF(ISBLANK($C19),0,1)*INDEX('Allocation Points'!$B$3:$AG$32,AE19,COUNTIF(AE$9:AE$38,AE19)+2) -> 20 | AH19: =AA326 -> 8 | AI19: =RANK(AH19,AH$9:AH$38,0)+COUNTIF(AH$9:$AH19,AH19)-1 -> 15 | AJ19: 14 | AK19: =IF(ISBLANK($C19),0,1)*INDEX('Allocation Points'!$B$3:$AG$32,AJ19,COUNTIF(AJ$9:AJ$38,AJ19)+2) -> 1 | AM19: =AA324 -> 108 | AN19: =RANK(AM19,AM$9:AM$38,1)+COUNTIF(AM$9:$AM19,AM19)-1 -> 14 | AO19: 13 | AP19: =IF(ISBLANK($C19),0,1)*INDEX('Allocation Points'!$B$3:$AG$32,AO19,COUNTIF(AO$9:AO$38,AO19)+2) -> 1
B20: 12 | C20: MORALES | D20: José | E20: 14 | G20: 4 | H20: 5 | I20: 6 | J20: 7 | K20: 3 | L20: 5 | M20: 4 | N20: 4 | O20: 3 | P20: 41 | Q20: 7 | R20: 5 | S20: 3 | T20: 4 | U20: 4 | V20: 5 | W20: 3 | X20: 6 | Y20: 5 | Z20: 42 | AA20: 83 | AC20: =$AA$348 -> 39 | AD20: =RANK(AC20,AC$9:AC$38,0)+COUNTIF(AC$9:$AC20,AC20)-1 -> 5 | AE20: 5 | AF20: =IF(ISBLANK($C20),0,1)*INDEX('Allocation Points'!$B$3:$AG$32,AE20,COUNTIF(AE$9:AE$38,AE20)+2) -> 9 | AH20: =AA349 -> 27 | AI20: =RANK(AH20,AH$9:AH$38,0)+COUNTIF(AH$9:$AH20,AH20)-1 -> 2 | AJ20: 2 | AK20: =IF(ISBLANK($C20),0,1)*INDEX('Allocation Points'!$B$3:$AG$32,AJ20,COUNTIF(AJ$9:AJ$38,AJ20)+2) -> 25 | AM20: =AA347 -> 83 | AN20: =RANK(AM20,AM$9:AM$38,1)+COUNTIF(AM$9:$AM20,AM20)-1 -> 2 | AO20: 2 | AP20: =IF(ISBLANK($C20),0,1)*INDEX('Allocation Points'!$B$3:$AG$32,AO20,COUNTIF(AO$9:AO$38,AO20)+2) -> 25
B21: 13 | C21: NOTTIN | D21: Eric | E21: 31.9 | G21: 6 | H21: 6 | I21: 6 | J21: 6 | K21: 4 | L21: 5 | M21: 3 | N21: 7 | O21: 5 | P21: 48 | Q21: 7 | R21: 7 | S21: 6 | T21: 8 | U21: 3 | V21: 6 | W21: 5 | X21: 7 | Y21: 6 | Z21: 55 | AA21: 103 | AC21: =$AA$371 -> 39 | AD21: =RANK(AC21,AC$9:AC$38,0)+COUNTIF(AC$9:$AC21,AC21)-1 -> 6 | AE21: 5 | AF21: =IF(ISBLANK($C21),0,1)*INDEX('Allocation Points'!$B$3:$AG$32,AE21,COUNTIF(AE$9:AE$38,AE21)+2) -> 9 | AH21: =AA372 -> 9 | AI21: =RANK(AH21,AH$9:AH$38,0)+COUNTIF(AH$9:$AH21,AH21)-1 -> 13 | AJ21: 12 | AK21: =IF(ISBLANK($C21),0,1)*INDEX('Allocation Points'!$B$3:$AG$32,AJ21,COUNTIF(AJ$9:AJ$38,AJ21)+2) -> 2 | AM21: =AA370 -> 103 | AN21: =RANK(AM21,AM$9:AM$38,1)+COUNTIF(AM$9:$AM21,AM21)-1 -> 12 | AO21: 12 | AP21: =IF(ISBLANK($C21),0,1)*INDEX('Allocation Points'!$B$3:$AG$32,AO21,COUNTIF(AO$9:AO$38,AO21)+2) -> 3
B22: 14 | C22: ROBERT | D22: Jean-Christophe | E22: 25 | G22: 6 | H22: 6 | I22: 6 | J22: 6 | K22: 4 | L22: 7 | M22: 3 | N22: 8 | O22: 3 | P22: 49 | Q22: 5 | R22: 6 | S22: 3 | T22: 5 | U22: 7 | V22: 7 | W22: 5 | X22: 8 | Y22: 5 | Z22: 51 | AA22: 100 | AC22: =$AA$394 -> 35 | AD22: =RANK(AC22,AC$9:AC$38,0)+COUNTIF(AC$9:$AC22,AC22)-1 -> 11 | AE22: 11 | AF22: =IF(ISBLANK($C22),0,1)*INDEX('Allocation Points'!$B$3:$AG$32,AE22,COUNTIF(AE$9:AE$38,AE22)+2) -> 4 | AH22: =AA395 -> 13 | AI22: =RANK(AH22,AH$9:AH$38,0)+COUNTIF(AH$9:$AH22,AH22)-1 -> 10 | AJ22: 9 | AK22: =IF(ISBLANK($C22),0,1)*INDEX('Allocation Points'!$B$3:$AG$32,AJ22,COUNTIF(AJ$9:AJ$38,AJ22)+2) -> 5 | AM22: =AA393 -> 100 | AN22: =RANK(AM22,AM$9:AM$38,1)+COUNTIF(AM$9:$AM22,AM22)-1 -> 10 | AO22: 10 | AP22: =IF(ISBLANK($C22),0,1)*INDEX('Allocation Points'!$B$3:$AG$32,AO22,COUNTIF(AO$9:AO$38,AO22)+2) -> 5
B23: 15 | C23: RONDEL | D23: François | E23: 7.2 | G23: 4 | H23: 4 | I23: 7 | J23: 4 | K23: 4 | L23: 5 | M23: 2 | N23: 5 | O23: 3 | P23: 38 | Q23: 5 | R23: 5 | S23: 6 | T23: 5 | U23: 3 | V23: 5 | W23: 4 | X23: 4 | Y23: 6 | Z23: 43 | AA23: 81 | AC23: =$AA$417 -> 33 | AD23: =RANK(AC23,AC$9:AC$38,0)+COUNTIF(AC$9:$AC23,AC23)-1 -> 12 | AE23: 12 | AF23: =IF(ISBLANK($C23),0,1)*INDEX('Allocation Points'!$B$3:$AG$32,AE23,COUNTIF(AE$9:AE$38,AE23)+2) -> 3 | AH23: =AA418 -> 28 | AI23: =RANK(AH23,AH$9:AH$38,0)+COUNTIF(AH$9:$AH23,AH23)-1 -> 1 | AJ23: 1 | AK23: =IF(ISBLANK($C23),0,1)*INDEX('Allocation Points'!$B$3:$AG$32,AJ23,COUNTIF(AJ$9:AJ$38,AJ23)+2) -> 30 | AM23: =AA416 -> 81 | AN23: =RANK(AM23,AM$9:AM$38,1)+COUNTIF(AM$9:$AM23,AM23)-1 -> 1 | AO23: 1 | AP23: =IF(ISBLANK($C23),0,1)*INDEX('Allocation Points'!$B$3:$AG$32,AO23,COUNTIF(AO$9:AO$38,AO23)+2) -> 30
B24: 16 | C24: VERRIER | D24: Alexandre | E24: 16.6 | G24: 5 | H24: 5 | I24: 7 | J24: 8 | K24: 4 | L24: 5 | M24: 3 | N24: 6 | O24: 4 | P24: 47 | Q24: 5 | R24: 5 | S24: 7 | T24: 6 | U24: 3 | V24: 5 | W24: 8 | X24: 6 | Y24: 6 | Z24: 51 | AA24: 98 | AC24: =$AA$440 -> 29 | AD24: =RANK(AC24,AC$9:AC$38,0)+COUNTIF(AC$9:$AC24,AC24)-1 -> 16 | AE24: 16 | AF24: =IF(ISBLANK($C24),0,1)*INDEX('Allocation Points'!$B$3:$AG$32,AE24,COUNTIF(AE$9:AE$38,AE24)+2) -> 1 | AH24: =AA441 -> 16 | AI24: =RANK(AH24,AH$9:AH$38,0)+COUNTIF(AH$9:$AH24,AH24)-1 -> 7 | AJ24: 7 | AK24: =IF(ISBLANK($C24),0,1)*INDEX('Allocation Points'!$B$3:$AG$32,AJ24,COUNTIF(AJ$9:AJ$38,AJ24)+2) -> 8 | AM24: =AA439 -> 98 | AN24: =RANK(AM24,AM$9:AM$38,1)+COUNTIF(AM$9:$AM24,AM24)-1 -> 9 | AO24: 9 | AP24: =IF(ISBLANK($C24),0,1)*INDEX('Allocation Points'!$B$3:$AG$32,AO24,COUNTIF(AO$9:AO$38,AO24)+2) -> 6
B25: 17 | C25: VICENTE | D25: Paulo | E25: 54 | G25: 6 | H25: 7 | I25: 8 | J25: 6 | K25: 3 | L25: 8 | M25: 5 | N25: 8 | O25: 6 | P25: 57 | Q25: 7 | R25: 6 | S25: 6 | T25: 7 | U25: 9 | V25: 6 | W25: 5 | X25: 10 | Y25: 6 | Z25: 62 | AA25: 119 | AC25: =$AA$463 -> 44 | AD25: =RANK(AC25,AC$9:AC$38,0)+COUNTIF(AC$9:$AC25,AC25)-1 -> 2 | AE25: 1 | AF25: =IF(ISBLANK($C25),0,1)*INDEX('Allocation Points'!$B$3:$AG$32,AE25,COUNTIF(AE$9:AE$38,AE25)+2) -> 27 | AH25: =AA464 -> 3 | AI25: =RANK(AH25,AH$9:AH$38,0)+COUNTIF(AH$9:$AH25,AH25)-1 -> 18 | AJ25: 18 | AK25: =IF(ISBLANK($C25),0,1)*INDEX('Allocation Points'!$B$3:$AG$32,AJ25,COUNTIF(AJ$9:AJ$38,AJ25)+2) -> 1 | AM25: =AA462 -> 119 | AN25: =RANK(AM25,AM$9:AM$38,1)+COUNTIF(AM$9:$AM25,AM25)-1 -> 17 | AO25: 17 | AP25: =IF(ISBLANK($C25),0,1)*INDEX('Allocation Points'!$B$3:$AG$32,AO25,COUNTIF(AO$9:AO$38,AO25)+2) -> 1
B26: 18 | C26: ZIAR | D26: Yacine | E26: 16.9 | G26: 4 | H26: 5 | I26: 7 | J26: 5 | K26: 4 | L26: 6 | M26: 3 | N26: 5 | O26: 3 | P26: 42 | Q26: 4 | R26: 5 | S26: 4 | T26: 5 | U26: 5 | V26: 5 | W26: 4 | X26: 6 | Y26: 7 | Z26: 45 | AA26: 87 | AC26: =$AA$486 -> 37 | AD26: =RANK(AC26,AC$9:AC$38,0)+COUNTIF(AC$9:$AC26,AC26)-1 -> 9 | AE26: 8 | AF26: =IF(ISBLANK($C26),0,1)*INDEX('Allocation Points'!$B$3:$AG$32,AE26,COUNTIF(AE$9:AE$38,AE26)+2) -> 6 | AH26: =AA487 -> 22 | AI26: =RANK(AH26,AH$9:AH$38,0)+COUNTIF(AH$9:$AH26,AH26)-1 -> 5 | AJ26: 4 | AK26: =IF(ISBLANK($C26),0,1)*INDEX('Allocation Points'!$B$3:$AG$32,AJ26,COUNTIF(AJ$9:AJ$38,AJ26)+2) -> 12 | AM26: =AA485 -> 87 | AN26: =RANK(AM26,AM$9:AM$38,1)+COUNTIF(AM$9:$AM26,AM26)-1 -> 5 | AO26: 5 | AP26: =IF(ISBLANK($C26),0,1)*INDEX('Allocation Points'!$B$3:$AG$32,AO26,COUNTIF(AO$9:AO$38,AO26)+2) -> 10
B27: 19 | E27: 54 | G27: 10 | H27: 10 | I27: 10 | J27: 10 | K27: 10 | L27: 10 | M27: 10 | N27: 10 | O27: 10 | P27: 90 | Q27: 10 | R27: 10 | S27: 10 | T27: 10 | U27: 10 | V27: 10 | W27: 10 | X27: 10 | Y27: 10 | Z27: 90 | AA27: 180 | AC27: =$AA$509 -> 0 | AD27: =RANK(AC27,AC$9:AC$38,0)+COUNTIF(AC$9:$AC27,AC27)-1 -> 19 | AE27: 19 | AF27: =IF(ISBLANK($C27),0,1)*INDEX('Allocation Points'!$B$3:$AG$32,AE27,COUNTIF(AE$9:AE$38,AE27)+2) -> 0 | AH27: =AA510 -> 0 | AI27: =RANK(AH27,AH$9:AH$38,0)+COUNTIF(AH$9:$AH27,AH27)-1 -> 19 | AJ27: 19 | AK27: =IF(ISBLANK($C27),0,1)*INDEX('Allocation Points'!$B$3:$AG$32,AJ27,COUNTIF(AJ$9:AJ$38,AJ27)+2) -> 0 | AM27: =AA508 -> 180 | AN27: =RANK(AM27,AM$9:AM$38,1)+COUNTIF(AM$9:$AM27,AM27)-1 -> 19 | AO27: 19 | AP27: =IF(ISBLANK($C27),0,1)*INDEX('Allocation Points'!$B$3:$AG$32,AO27,COUNTIF(AO$9:AO$38,AO27)+2) -> 0
B28: 20 | E28: 20 | G28: 10 | H28: 10 | I28: 10 | J28: 10 | K28: 10 | L28: 10 | M28: 10 | N28: 10 | O28: 10 | P28: 90 | Q28: 10 | R28: 10 | S28: 10 | T28: 10 | U28: 10 | V28: 10 | W28: 10 | X28: 10 | Y28: 10 | Z28: 90 | AA28: 180 | AC28: =$AA$532 -> 0 | AD28: =RANK(AC28,AC$9:AC$38,0)+COUNTIF(AC$9:$AC28,AC28)-1 -> 20 | AE28: 19 | AF28: =IF(ISBLANK($C28),0,1)*INDEX('Allocation Points'!$B$3:$AG$32,AE28,COUNTIF(AE$9:AE$38,AE28)+2) -> 0 | AH28: =AA533 -> 0 | AI28: =RANK(AH28,AH$9:AH$38,0)+COUNTIF(AH$9:$AH28,AH28)-1 -> 20 | AJ28: 19 | AK28: =IF(ISBLANK($C28),0,1)*INDEX('Allocation Points'!$B$3:$AG$32,AJ28,COUNTIF(AJ$9:AJ$38,AJ28)+2) -> 0 | AM28: =AA531 -> 180 | AN28: =RANK(AM28,AM$9:AM$38,1)+COUNTIF(AM$9:$AM28,AM28)-1 -> 20 | AO28: 19 | AP28: =IF(ISBLANK($C28),0,1)*INDEX('Allocation Points'!$B$3:$AG$32,AO28,COUNTIF(AO$9:AO$38,AO28)+2) -> 0
B29: 21 | E29: 20 | G29: 10 | H29: 10 | I29: 10 | J29: 10 | K29: 10 | L29: 10 | M29: 10 | N29: 10 | O29: 10 | P29: 90 | Q29: 10 | R29: 10 | S29: 10 | T29: 10 | U29: 10 | V29: 10 | W29: 10 | X29: 10 | Y29: 10 | Z29: 90 | AA29: 180 | AC29: =$AA$555 -> 0 | AD29: =RANK(AC29,AC$9:AC$38,0)+COUNTIF(AC$9:$AC29,AC29)-1 -> 21 | AE29: 19 | AF29: =IF(ISBLANK($C29),0,1)*INDEX('Allocation Points'!$B$3:$AG$32,AE29,COUNTIF(AE$9:AE$38,AE29)+2) -> 0 | AH29: =AA556 -> 0 | AI29: =RANK(AH29,AH$9:AH$38,0)+COUNTIF(AH$9:$AH29,AH29)-1 -> 21 | AJ29: 19 | AK29: =IF(ISBLANK($C29),0,1)*INDEX('Allocation Points'!$B$3:$AG$32,AJ29,COUNTIF(AJ$9:AJ$38,AJ29)+2) -> 0 | AM29: =AA554 -> 180 | AN29: =RANK(AM29,AM$9:AM$38,1)+COUNTIF(AM$9:$AM29,AM29)-1 -> 21 | AO29: 19 | AP29: =IF(ISBLANK($C29),0,1)*INDEX('Allocation Points'!$B$3:$AG$32,AO29,COUNTIF(AO$9:AO$38,AO29)+2) -> 0
B30: 22 | E30: 20 | G30: 10 | H30: 10 | I30: 10 | J30: 10 | K30: 10 | L30: 10 | M30: 10 | N30: 10 | O30: 10 | P30: 90 | Q30: 10 | R30: 10 | S30: 10 | T30: 10 | U30: 10 | V30: 10 | W30: 10 | X30: 10 | Y30: 10 | Z30: 90 | AA30: 180 | AC30: =$AA$578 -> 0 | AD30: =RANK(AC30,AC$9:AC$38,0)+COUNTIF(AC$9:$AC30,AC30)-1 -> 22 | AE30: 19 | AF30: =IF(ISBLANK($C30),0,1)*INDEX('Allocation Points'!$B$3:$AG$32,AE30,COUNTIF(AE$9:AE$38,AE30)+2) -> 0 | AH30: =AA579 -> 0 | AI30: =RANK(AH30,AH$9:AH$38,0)+COUNTIF(AH$9:$AH30,AH30)-1 -> 22 | AJ30: 19 | AK30: =IF(ISBLANK($C30),0,1)*INDEX('Allocation Points'!$B$3:$AG$32,AJ30,COUNTIF(AJ$9:AJ$38,AJ30)+2) -> 0 | AM30: =AA577 -> 180 | AN30: =RANK(AM30,AM$9:AM$38,1)+COUNTIF(AM$9:$AM30,AM30)-1 -> 22 | AO30: 19 | AP30: =IF(ISBLANK($C30),0,1)*INDEX('Allocation Points'!$B$3:$AG$32,AO30,COUNTIF(AO$9:AO$38,AO30)+2) -> 0
B31: 23 | E31: 20 | G31: 10 | H31: 10 | I31: 10 | J31: 10 | K31: 10 | L31: 10 | M31: 10 | N31: 10 | O31: 10 | P31: 90 | Q31: 10 | R31: 10 | S31: 10 | T31: 10 | U31: 10 | V31: 10 | W31: 10 | X31: 10 | Y31: 10 | Z31: 90 | AA31: 180 | AC31: =$AA$601 -> 0 | AD31: =RANK(AC31,AC$9:AC$38,0)+COUNTIF(AC$9:$AC31,AC31)-1 -> 23 | AE31: 19 | AF31: =IF(ISBLANK($C31),0,1)*INDEX('Allocation Points'!$B$3:$AG$32,AE31,COUNTIF(AE$9:AE$38,AE31)+2) -> 0 | AH31: =AA602 -> 0 | AI31: =RANK(AH31,AH$9:AH$38,0)+COUNTIF(AH$9:$AH31,AH31)-1 -> 23 | AJ31: 19 | AK31: =IF(ISBLANK($C31),0,1)*INDEX('Allocation Points'!$B$3:$AG$32,AJ31,COUNTIF(AJ$9:AJ$38,AJ31)+2) -> 0 | AM31: =AA600 -> 180 | AN31: =RANK(AM31,AM$9:AM$38,1)+COUNTIF(AM$9:$AM31,AM31)-1 -> 23 | AO31: 19 | AP31: =IF(ISBLANK($C31),0,1)*INDEX('Allocation Points'!$B$3:$AG$32,AO31,COUNTIF(AO$9:AO$38,AO31)+2) -> 0
B32: 24 | E32: 20 | G32: 10 | H32: 10 | I32: 10 | J32: 10 | K32: 10 | L32: 10 | M32: 10 | N32: 10 | O32: 10 | P32: 90 | Q32: 10 | R32: 10 | S32: 10 | T32: 10 | U32: 10 | V32: 10 | W32: 10 | X32: 10 | Y32: 10 | Z32: 90 | AA32: 180 | AC32: =$AA$624 -> 0 | AD32: =RANK(AC32,AC$9:AC$38,0)+COUNTIF(AC$9:$AC32,AC32)-1 -> 24 | AE32: 19 | AF32: =IF(ISBLANK($C32),0,1)*INDEX('Allocation Points'!$B$3:$AG$32,AE32,COUNTIF(AE$9:AE$38,AE32)+2) -> 0 | AH32: =AA625 -> 0 | AI32: =RANK(AH32,AH$9:AH$38,0)+COUNTIF(AH$9:$AH32,AH32)-1 -> 24 | AJ32: 19 | AK32: =IF(ISBLANK($C32),0,1)*INDEX('Allocation Points'!$B$3:$AG$32,AJ32,COUNTIF(AJ$9:AJ$38,AJ32)+2) -> 0 | AM32: =AA623 -> 180 | AN32: =RANK(AM32,AM$9:AM$38,1)+COUNTIF(AM$9:$AM32,AM32)-1 -> 24 | AO32: 19 | AP32: =IF(ISBLANK($C32),0,1)*INDEX('Allocation Points'!$B$3:$AG$32,AO32,COUNTIF(AO$9:AO$38,AO32)+2) -> 0
B33: 25 | E33: 20 | G33: 10 | H33: 10 | I33: 10 | J33: 10 | K33: 10 | L33: 10 | M33: 10 | N33: 10 | O33: 10 | P33: 90 | Q33: 10 | R33: 10 | S33: 10 | T33: 10 | U33: 10 | V33: 10 | W33: 10 | X33: 10 | Y33: 10 | Z33: 90 | AA33: 180 | AC33: =$AA$647 -> 0 | AD33: =RANK(AC33,AC$9:AC$38,0)+COUNTIF(AC$9:$AC33,AC33)-1 -> 25 | AE33: 19 | AF33: =IF(ISBLANK($C33),0,1)*INDEX('Allocation Points'!$B$3:$AG$32,AE33,COUNTIF(AE$9:AE$38,AE33)+2) -> 0 | AH33: =AA648 -> 0 | AI33: =RANK(AH33,AH$9:AH$38,0)+COUNTIF(AH$9:$AH33,AH33)-1 -> 25 | AJ33: 19 | AK33: =IF(ISBLANK($C33),0,1)*INDEX('Allocation Points'!$B$3:$AG$32,AJ33,COUNTIF(AJ$9:AJ$38,AJ33)+2) -> 0 | AM33: =AA646 -> 180 | AN33: =RANK(AM33,AM$9:AM$38,1)+COUNTIF(AM$9:$AM33,AM33)-1 -> 25 | AO33: 19 | AP33: =IF(ISBLANK($C33),0,1)*INDEX('Allocation Points'!$B$3:$AG$32,AO33,COUNTIF(AO$9:AO$38,AO33)+2) -> 0
B34: 26 | E34: 20 | G34: 10 | H34: 10 | I34: 10 | J34: 10 | K34: 10 | L34: 10 | M34: 10 | N34: 10 | O34: 10 | P34: 90 | Q34: 10 | R34: 10 | S34: 10 | T34: 10 | U34: 10 | V34: 10 | W34: 10 | X34: 10 | Y34: 10 | Z34: 90 | AA34: 180 | AC34: =$AA$670 -> 0 | AD34: =RANK(AC34,AC$9:AC$38,0)+COUNTIF(AC$9:$AC34,AC34)-1 -> 26 | AE34: 19 | AF34: =IF(ISBLANK($C34),0,1)*INDEX('Allocation Points'!$B$3:$AG$32,AE34,COUNTIF(AE$9:AE$38,AE34)+2) -> 0 | AH34: =AA671 -> 0 | AI34: =RANK(AH34,AH$9:AH$38,0)+COUNTIF(AH$9:$AH34,AH34)-1 -> 26 | AJ34: 19 | AK34: =IF(ISBLANK($C34),0,1)*INDEX('Allocation Points'!$B$3:$AG$32,AJ34,COUNTIF(AJ$9:AJ$38,AJ34)+2) -> 0 | AM34: =AA669 -> 180 | AN34: =RANK(AM34,AM$9:AM$38,1)+COUNTIF(AM$9:$AM34,AM34)-1 -> 26 | AO34: 19 | AP34: =IF(ISBLANK($C34),0,1)*INDEX('Allocation Points'!$B$3:$AG$32,AO34,COUNTIF(AO$9:AO$38,AO34)+2) -> 0
B35: 27 | E35: 20 | G35: 10 | H35: 10 | I35: 10 | J35: 10 | K35: 10 | L35: 10 | M35: 10 | N35: 10 | O35: 10 | P35: 90 | Q35: 10 | R35: 10 | S35: 10 | T35: 10 | U35: 10 | V35: 10 | W35: 10 | X35: 10 | Y35: 10 | Z35: 90 | AA35: 180 | AC35: =$AA$693 -> 0 | AD35: =RANK(AC35,AC$9:AC$38,0)+COUNTIF(AC$9:$AC35,AC35)-1 -> 27 | AE35: 19 | AF35: =IF(ISBLANK($C35),0,1)*INDEX('Allocation Points'!$B$3:$AG$32,AE35,COUNTIF(AE$9:AE$38,AE35)+2) -> 0 | AH35: =AA694 -> 0 | AI35: =RANK(AH35,AH$9:AH$38,0)+COUNTIF(AH$9:$AH35,AH35)-1 -> 27 | AJ35: 19 | AK35: =IF(ISBLANK($C35),0,1)*INDEX('Allocation Points'!$B$3:$AG$32,AJ35,COUNTIF(AJ$9:AJ$38,AJ35)+2) -> 0 | AM35: =AA692 -> 180 | AN35: =RANK(AM35,AM$9:AM$38,1)+COUNTIF(AM$9:$AM35,AM35)-1 -> 27 | AO35: 19 | AP35: =IF(ISBLANK($C35),0,1)*INDEX('Allocation Points'!$B$3:$AG$32,AO35,COUNTIF(AO$9:AO$38,AO35)+2) -> 0
B36: 28 | E36: 20 | G36: 10 | H36: 10 | I36: 10 | J36: 10 | K36: 10 | L36: 10 | M36: 10 | N36: 10 | O36: 10 | P36: 90 | Q36: 10 | R36: 10 | S36: 10 | T36: 10 | U36: 10 | V36: 10 | W36: 10 | X36: 10 | Y36: 10 | Z36: 90 | AA36: 180 | AC36: =$AA$716 -> 0 | AD36: =RANK(AC36,AC$9:AC$38,0)+COUNTIF(AC$9:$AC36,AC36)-1 -> 28 | AE36: 19 | AF36: =IF(ISBLANK($C36),0,1)*INDEX('Allocation Points'!$B$3:$AG$32,AE36,COUNTIF(AE$9:AE$38,AE36)+2) -> 0 | AH36: =AA717 -> 0 | AI36: =RANK(AH36,AH$9:AH$38,0)+COUNTIF(AH$9:$AH36,AH36)-1 -> 28 | AJ36: 19 | AK36: =IF(ISBLANK($C36),0,1)*INDEX('Allocation Points'!$B$3:$AG$32,AJ36,COUNTIF(AJ$9:AJ$38,AJ36)+2) -> 0 | AM36: =AA715 -> 180 | AN36: =RANK(AM36,AM$9:AM$38,1)+COUNTIF(AM$9:$AM36,AM36)-1 -> 28 | AO36: 19 | AP36: =IF(ISBLANK($C36),0,1)*INDEX('Allocation Points'!$B$3:$AG$32,AO36,COUNTIF(AO$9:AO$38,AO36)+2) -> 0
B37: 29 | E37: 20 | G37: 10 | H37: 10 | I37: 10 | J37: 10 | K37: 10 | L37: 10 | M37: 10 | N37: 10 | O37: 10 | P37: 90 | Q37: 10 | R37: 10 | S37: 10 | T37: 10 | U37: 10 | V37: 10 | W37: 10 | X37: 10 | Y37: 10 | Z37: 90 | AA37: 180 | AC37: =$AA$739 -> 0 | AD37: =RANK(AC37,AC$9:AC$38,0)+COUNTIF(AC$9:$AC37,AC37)-1 -> 29 | AE37: 19 | AF37: =IF(ISBLANK($C37),0,1)*INDEX('Allocation Points'!$B$3:$AG$32,AE37,COUNTIF(AE$9:AE$38,AE37)+2) -> 0 | AH37: =AA740 -> 0 | AI37: =RANK(AH37,AH$9:AH$38,0)+COUNTIF(AH$9:$AH37,AH37)-1 -> 29 | AJ37: 19 | AK37: =IF(ISBLANK($C37),0,1)*INDEX('Allocation Points'!$B$3:$AG$32,AJ37,COUNTIF(AJ$9:AJ$38,AJ37)+2) -> 0 | AM37: =AA738 -> 180 | AN37: =RANK(AM37,AM$9:AM$38,1)+COUNTIF(AM$9:$AM37,AM37)-1 -> 29 | AO37: 19 | AP37: =IF(ISBLANK($C37),0,1)*INDEX('Allocation Points'!$B$3:$AG$32,AO37,COUNTIF(AO$9:AO$38,AO37)+2) -> 0
B38: 30 | E38: 20 | G38: 10 | H38: 10 | I38: 10 | J38: 10 | K38: 10 | L38: 10 | M38: 10 | N38: 10 | O38: 10 | P38: 90 | Q38: 10 | R38: 10 | S38: 10 | T38: 10 | U38: 10 | V38: 10 | W38: 10 | X38: 10 | Y38: 10 | Z38: 90 | AA38: 180 | AC38: =$AA$762 -> 0 | AD38: =RANK(AC38,AC$9:AC$38,0)+COUNTIF(AC$9:$AC38,AC38)-1 -> 30 | AE38: 19 | AF38: =IF(ISBLANK($C38),0,1)*INDEX('Allocation Points'!$B$3:$AG$32,AE38,COUNTIF(AE$9:AE$38,AE38)+2) -> 0 | AH38: =AA763 -> 0 | AI38: =RANK(AH38,AH$9:AH$38,0)+COUNTIF(AH$9:$AH38,AH38)-1 -> 30 | AJ38: 19 | AK38: =IF(ISBLANK($C38),0,1)*INDEX('Allocation Points'!$B$3:$AG$32,AJ38,COUNTIF(AJ$9:AJ$38,AJ38)+2) -> 0 | AM38: =AA761 -> 180 | AN38: =RANK(AM38,AM$9:AM$38,1)+COUNTIF(AM$9:$AM38,AM38)-1 -> 30 | AO38: 19 | AP38: =IF(ISBLANK($C38),0,1)*INDEX('Allocation Points'!$B$3:$AG$32,AO38,COUNTIF(AO$9:AO$38,AO38)+2) -> 0
H41: CLASSEMENT
C45: NET | J45: BRUT | V45: STROKE
C47: Noms | D47: Prénoms | E47: NET | J47: Noms | N47: Prénoms | Q47: BRUT | V47: Noms | Z47: Prénoms | AB47: STROKE
B48: 1 | C48: =INDEX($C$9:$AN$38,MATCH(B48,$AD$9:$AD$38,0),1) -> HODEAU | D48: =INDEX($C$9:$AN$38,MATCH(B48,$AD$9:$AD$38,0),2) -> Cédric | E48: =INDEX($C$9:$AN$38,MATCH(B48,$AD$9:$AD$38,0),27) -> 44 | I48: 1 | J48: =INDEX($C$9:$AN$38,MATCH(I48,$AI$9:$AI$38,0),1) -> RONDEL | N48: =INDEX($C$9:$AN$38,MATCH(I48,$AI$9:$AI$38,0),2) -> François | Q48: =INDEX($C$9:$AN$38,MATCH(I48,$AI$9:$AI$38,0),32) -> 28 | U48: 1 | V48: =INDEX($C$9:$AN$38,MATCH(U48,$AN$9:$AN$38,0),1) -> RONDEL | Z48: =INDEX($C$9:$AN$38,MATCH(U48,$AN$9:$AN$38,0),2) -> François | AB48: =INDEX($C$9:$AN$38,MATCH(U48,$AN$9:$AN$38,0),37) -> 81
B49: 2 | C49: VICENTE | D49: Paulo | E49: 44 | I49: 2 | J49: MORALES | N49: José | Q49: =INDEX($C$9:$AN$38,MATCH(I49,$AI$9:$AI$38,0),32) -> 27 | U49: 2 | V49: MORALES | Z49: José | AB49: =INDEX($C$9:$AN$38,MATCH(U49,$AN$9:$AN$38,0),37) -> 83
B50: 3 | C50: MICHEL | D50: Eric | E50: 41 | I50: 3 | J50: DIOT | N50: Alexandre | Q50: 25 | U50: 3 | V50: DIOT | Z50: Alexandre | AB50: 84
B51: 4 | C51: DELOUCHE | D51: Yannick | E51: 40 | I51: 4 | J51: HERRAULT | N51: Sébastien | Q51: 22 | U51: 4 | V51: HERRAULT | Z51: Sébastien | AB51: 86
B52: 5 | C52: MORALES | D52: José | E52: 39 | I52: 5 | J52: ZIAR | N52: Yacine | Q52: 22 | U52: 5 | V52: ZIAR | Z52: Yacine | AB52: 87
B53: 6 | C53: NOTTIN | D53: Eric | E53: 39 | I53: 6 | J53: JACQUEMIN | N53: Franck | Q53: 20 | U53: 6 | V53: JACQUEMIN | Z53: Franck | AB53: 90
B54: 7 | C54: GAUTHIER | D54: Patrice | E54: 38 | I54: 7 | J54: VERRIER | N54: Alexandre | Q54: 16 | U54: 7 | V54: GAUTHIER | Z54: Patrice | AB54: 95
B55: 8 | C55: BINVAULT | D55: Dominique | E55: 37 | I55: 8 | J55: GAUTHIER | N55: Patrice | Q55: 14 | U55: 8 | V55: CHRETIEN | Z55: Fabrice | AB55: 97
B56: 9 | C56: ZIAR | D56: Yacine | E56: 37 | I56: 9 | J56: CHRETIEN | N56: Fabrice | Q56: 13 | U56: 9 | V56: VERRIER | Z56: Alexandre | AB56: 98
B57: 10 | C57: JACQUEMIN | D57: Franck | E57: 36 | I57: 10 | J57: ROBERT | N57: Jean-Christophe | Q57: 13 | U57: 10 | V57: ROBERT | Z57: Jean-Christophe | AB57: 100
B58: 11 | C58: ROBERT | D58: Jean-Christophe | E58: 35 | I58: 11 | J58: HODEAU | N58: Cédric | Q58: 12 | U58: 11 | V58: HODEAU | Z58: Cédric | AB58: 101
B59: 12 | C59: RONDEL | D59: François | E59: 33 | I59: 12 | J59: BINVAULT | N59: Dominique | Q59: 9 | U59: 12 | V59: NOTTIN | Z59: Eric | AB59: 103
B60: 13 | C60: HERRAULT | D60: Sébastien | E60: 32 | I60: 13 | J60: NOTTIN | N60: Eric | Q60: 9 | U60: 13 | V60: BINVAULT | Z60: Dominique | AB60: 108
B61: 14 | C61: CHRETIEN | D61: Fabrice | E61: 31 | I61: 14 | J61: LEVEQUE | N61: Claude | Q61: 8 | U61: 14 | V61: MICHEL | Z61: Eric | AB61: 108
B62: 15 | C62: DIOT | D62: Alexandre | E62: 31 | I62: 15 | J62: MICHEL | N62: Eric | Q62: 8 | U62: 15 | V62: LEVEQUE | Z62: Claude | AB62: 110
B63: 16 | C63: VERRIER | D63: Alexandre | E63: 29 | I63: 16 | J63: LEFEU | N63: Jean-Marie | Q63: 6 | U63: 16 | V63: LEFEU | Z63: Jean-Marie | AB63: 114
B64: 17 | C64: LEFEU | D64: Jean-Marie | E64: 28 | I64: 17 | J64: DELOUCHE | N64: Yannick | Q64: 5 | U64: 17 | V64: VICENTE | Z64: Paulo | AB64: 119
B65: 18 | C65: LEVEQUE | D65: Claude | E65: 24 | I65: 18 | J65: VICENTE | N65: Paulo | Q65: 3 | U65: 18 | V65: DELOUCHE | Z65: Yannick | AB65: 121
B66: 19 | C66: 0 | D66: 0 | E66: 0 | I66: 19 | J66: 0 | N66: 0 | Q66: 0 | U66: 19 | V66: 0 | Z66: 0 | AB66: 180
B67: 20 | C67: 0 | D67: 0 | E67: 0 | I67: 20 | J67: 0 | N67: 0 | Q67: 0 | U67: 20 | V67: 0 | Z67: 0 | AB67: 180
B68: 21 | C68: 0 | D68: 0 | E68: 0 | I68: 21 | J68: 0 | N68: 0 | Q68: 0 | U68: 21 | V68: 0 | Z68: 0 | AB68: 180
B69: 22 | C69: 0 | D69: 0 | E69: 0 | I69: 22 | J69: 0 | N69: 0 | Q69: 0 | U69: 22 | V69: 0 | Z69: 0 | AB69: 180
B70: 23 | C70: 0 | D70: 0 | E70: 0 | I70: 23 | J70: 0 | N70: 0 | Q70: 0 | U70: 23 | V70: 0 | Z70: 0 | AB70: 180
B71: 24 | C71: 0 | D71: 0 | E71: 0 | I71: 24 | J71: 0 | N71: 0 | Q71: 0 | U71: 24 | V71: 0 | Z71: 0 | AB71: 180
B72: 25 | C72: 0 | D72: 0 | E72: 0 | I72: 25 | J72: 0 | N72: 0 | Q72: 0 | U72: 25 | V72: 0 | Z72: 0 | AB72: 180
B73: 26 | C73: 0 | D73: 0 | E73: 0 | I73: 26 | J73: 0 | N73: 0 | Q73: 0 | U73: 26 | V73: 0 | Z73: 0 | AB73: 180
B74: 27 | C74: 0 | D74: 0 | E74: 0 | I74: 27 | J74: 0 | N74: 0 | Q74: 0 | U74: 27 | V74: 0 | Z74: 0 | AB74: 180
B75: 28 | C75: 0 | D75: 0 | E75: 0 | I75: 28 | J75: 0 | N75: 0 | Q75: 0 | U75: 28 | V75: 0 | Z75: 0 | AB75: 180
B76: 29 | C76: 0 | D76: 0 | E76: 0 | I76: 29 | J76: 0 | N76: 0 | Q76: 0 | U76: 29 | V76: 0 | Z76: 0 | AB76: 180
B77: 30 | C77: 0 | D77: 0 | E77: 0 | I77: 30 | J77: 0 | N77: 0 | Q77: 0 | U77: 30 | V77: 0 | Z77: 0 | AB77: 180
H81: STATISTIQUES INDIVIDUELLES
F87: Nom | G87: =C9 -> BINVAULT | L87: Slope | O87: SSS | Q87: Coups reçus | Z87: Date | AA87: =$D$3 -> 2022-03-05
F88: Index | G88: =E9 -> 34.7 | L88: =$F$3 -> 133 | O88: =$G$3 -> 68.6 | Q88: =ROUND((G88*(L88/113)+(O88-AA91)),0) -> 37
F90: Trou | G90: 1 | H90: 2 | I90: 3 | J90: 4 | K90: 5 | L90: 6 | M90: 7 | N90: 8 | O90: 9 | P90: Aller | Q90: 10 | R90: 11 | S90: 12 | T90: 13 | U90: 14 | V90: 15 | W90: 16 | X90: 17 | Y90: 18 | Z90: Retour | AA90: Total
F91: PAR | G91: =G$7 -> 4 | H91: =H$7 -> 4 | I91: 5 | J91: 4 | K91: 3 | L91: 5 | M91: 3 | N91: 5 | O91: 3 | P91: =SUM(G91:O91) -> 36 | Q91: =Q$7 -> 4 | R91: 4 | S91: 3 | T91: 5 | U91: 3 | V91: 4 | W91: 4 | X91: 5 | Y91: 4 | Z91: =SUM(Q91:Y91) -> 36 | AA91: =SUM(P91+Z91) -> 72
F92: HCP trous | G92: =G$8 -> 4 | H92: =H$8 -> 8 | I92: 12 | J92: 14 | K92: 2 | L92: 10 | M92: 18 | N92: 16 | O92: 6 | Q92: =Q$8 -> 1 | R92: 9 | S92: 11 | T92: 5 | U92: 17 | V92: 15 | W92: 3 | X92: 13 | Y92: 7
F93: Coups reçus | G93: =IF($Q88<=18,IF(G92<=$Q88,1,0),IF($Q88<=36,IF(G92<=($Q88-18),2,1),IF($Q88>36,IF(G92<=($Q88-36),3,2)))) -> 2 | H93: =IF($Q88<=18,IF(H92<=$Q88,1,0),IF($Q88<=36,IF(H92<=($Q88-18),2,1),IF($Q88>36,IF(H92<=($Q88-36),3,2)))) -> 2 | I93: 2 | J93: 2 | K93: 2 | L93: 2 | M93: 2 | N93: 2 | O93: 2 | P93: =SUM(G93:O93) -> 18 | Q93: =IF($Q88<=18,IF(Q92<=$Q88,1,0),IF($Q88<=36,IF(Q92<=($Q88-18),2,1),IF($Q88>36,IF(Q92<=($Q88-36),3,2)))) -> 3 | R93: 2 | S93: 2 | T93: 2 | U93: 2 | V93: 2 | W93: 2 | X93: 2 | Y93: 2 | Z93: =SUM(Q93:Y93) -> 19 | AA93: =P93+Z93 -> 37
F94: Stroke play | G94: =G9 -> 5 | H94: 8 | I94: 7 | J94: 7 | K94: 4 | L94: 6 | M94: 6 | N94: 6 | O94: 4 | P94: =SUM(G94:O94) -> 53 | Q94: =Q9 -> 5 | R94: 7 | S94: 7 | T94: 6 | U94: 5 | V94: 5 | W94: 8 | X94: 6 | Y94: 6 | Z94: =SUM(Q94:Y94) -> 55 | AA94: =P94+Z94 -> 108
F95: Net Stableford | G95: =IF(G94-G91=-1,3+G93)+IF(G94-G91=0,2+G93)+IF(G94-G91=1,1+G93)+IF(G94-G91=2,G93)+IF(G94-G91=3,IF(G93-1>0,G93-1,0))+IF(G94-G91=4,IF(G93-2>0,G93-2,0)) -> 3 | H95: =IF(H94-H91=-1,3+H93)+IF(H94-H91=0,2+H93)+IF(H94-H91=1,1+H93)+IF(H94-H91=2,H93)+IF(H94-H91=3,IF(H93-1>0,H93-1,0))+IF(H94-H91=4,IF(H93-2>0,H93-2,0)) -> 0 | I95: 2 | J95: 1 | K95: 3 | L95: 3 | M95: 1 | N95: 3 | O95: 3 | P95: =SUM(G95:O95) -> 19 | Q95: =IF(Q94-Q91=-1,3+Q93)+IF(Q94-Q91=0,2+Q93)+IF(Q94-Q91=1,1+Q93)+IF(Q94-Q91=2,Q93)+IF(Q94-Q91=3,IF(Q93-1>0,Q93-1,0))+IF(Q94-Q91=4,IF(Q93-2>0,Q93-2,0)) -> 4 | R95: 1 | S95: 0 | T95: 3 | U95: 2 | V95: 3 | W95: 0 | X95: 3 | Y95: 2 | Z95: =SUM(Q95:Y95) -> 18 | AA95: =P95+Z95 -> 37
F96: Score Brut | G96: =IF(G94-G91=-2,4)+IF(G94-G91=-1,3)+IF(G94-G91=0,2)+IF(G94-G91=1,1)+IF(G94-G91>2,0) -> 1 | H96: 0 | I96: 0 | J96: 0 | K96: 1 | L96: 1 | M96: 0 | N96: 1 | O96: 1 | P96: =SUM(G96:O96) -> 5 | Q96: =IF(Q94-Q91=-2,4)+IF(Q94-Q91=-1,3)+IF(Q94-Q91=0,2)+IF(Q94-Q91=1,1)+IF(Q94-Q91>2,0) -> 1 | R96: 0 | S96: 0 | T96: 1 | U96: 0 | V96: 1 | W96: 0 | X96: 1 | Y96: 0 | Z96: =SUM(Q96:Y96) -> 4 | AA96: =P96+Z96 -> 9
G97: =G94-G91 -> 1 | H97: =H94-H91 -> 4 | I97: 2 | J97: 3 | K97: 1 | L97: 1 | M97: 3 | N97: 1 | O97: 1 | Q97: =Q94-Q91 -> 1 | R97: 3 | S97: 4 | T97: 1 | U97: 2 | V97: 1 | W97: 4 | X97: 1 | Y97: 2
F100: Statistiques scores | H100: Eagle & moins | L100: =COUNTIF(G97:Y97,"<=-2") -> 0 | M100: Par | O100: =COUNTIF(G97:Y97,"=0") -> 0 | P100: Double bogey | U100: =COUNTIF(G97:Y97,"=2") -> 3
H101: Birdie | L101: =COUNTIF(G97:Y97,"=-1") -> 0 | M101: Bogey | O101: =COUNTIF(G97:Y97,"=1") -> 9 | P101: Triple bogey & plus | U101: =COUNTIF(G97:Y97,">=3") -> 6
H102: =M100 -> Par | L102: =O100 -> 0
H103: =M101 -> Bogey | L103: =O101 -> 9
H104: =P100 -> Double bogey | L104: =U100 -> 3
H105: =P101 -> Triple bogey & plus | L105: =U101 -> 6
F110: Nom | G110: =C10 -> CHRETIEN | L110: Slope | O110: SSS | Q110: Coups reçus | Z110: Date | AA110: =$D$3 -> 2022-03-05
F111: Index | G111: =E10 -> 20.1 | L111: =$F$3 -> 133 | O111: =$G$3 -> 68.6 | Q111: =ROUND((G111*(L111/113)+(O111-AA114)),0) -> 20
F113: Trou | G113: 1 | H113: 2 | I113: 3 | J113: 4 | K113: 5 | L113: 6 | M113: 7 | N113: 8 | O113: 9 | P113: Aller | Q113: 10 | R113: 11 | S113: 12 | T113: 13 | U113: 14 | V113: 15 | W113: 16 | X113: 17 | Y113: 18 | Z113: Retour | AA113: Total
F114: PAR | G114: =G$7 -> 4 | H114: =H$7 -> 4 | I114: 5 | J114: 4 | K114: 3 | L114: 5 | M114: 3 | N114: 5 | O114: 3 | P114: =SUM(G114:O114) -> 36 | Q114: =Q$7 -> 4 | R114: 4 | S114: 3 | T114: 5 | U114: 3 | V114: 4 | W114: 4 | X114: 5 | Y114: 4 | Z114: =SUM(Q114:Y114) -> 36 | AA114: =SUM(P114+Z114) -> 72
F115: HCP trous | G115: =G$8 -> 4 | H115: =H$8 -> 8 | I115: 12 | J115: 14 | K115: 2 | L115: 10 | M115: 18 | N115: 16 | O115: 6 | Q115: =Q$8 -> 1 | R115: 9 | S115: 11 | T115: 5 | U115: 17 | V115: 15 | W115: 3 | X115: 13 | Y115: 7
F116: Coups reçus | G116: =IF($Q111<=18,IF(G115<=$Q111,1,0),IF($Q111<=36,IF(G115<=($Q111-18),2,1),IF($Q111>36,IF(G115<=($Q111-36),3,2)))) -> 1 | H116: =IF($Q111<=18,IF(H115<=$Q111,1,0),IF($Q111<=36,IF(H115<=($Q111-18),2,1),IF($Q111>36,IF(H115<=($Q111-36),3,2)))) -> 1 | I116: =IF($Q111<=18,IF(I115<=$Q111,1,0),IF($Q111<=36,IF(I115<=($Q111-18),2,1),IF($Q111>36,IF(I115<=($Q111-36),3,2)))) -> 1 | J116: =IF($Q111<=18,IF(J115<=$Q111,1,0),IF($Q111<=36,IF(J115<=($Q111-18),2,1),IF($Q111>36,IF(J115<=($Q111-36),3,2)))) -> 1 | K116: =IF($Q111<=18,IF(K115<=$Q111,1,0),IF($Q111<=36,IF(K115<=($Q111-18),2,1),IF($Q111>36,IF(K115<=($Q111-36),3,2)))) -> 2 | L116: =IF($Q111<=18,IF(L115<=$Q111,1,0),IF($Q111<=36,IF(L115<=($Q111-18),2,1),IF($Q111>36,IF(L115<=($Q111-36),3,2)))) -> 1 | M116: =IF($Q111<=18,IF(M115<=$Q111,1,0),IF($Q111<=36,IF(M115<=($Q111-18),2,1),IF($Q111>36,IF(M115<=($Q111-36),3,2)))) -> 1 | N116: =IF($Q111<=18,IF(N115<=$Q111,1,0),IF($Q111<=36,IF(N115<=($Q111-18),2,1),IF($Q111>36,IF(N115<=($Q111-36),3,2)))) -> 1 | O116: =IF($Q111<=18,IF(O115<=$Q111,1,0),IF($Q111<=36,IF(O115<=($Q111-18),2,1),IF($Q111>36,IF(O115<=($Q111-36),3,2)))) -> 1 | P116: =SUM(G116:O116) -> 10 | Q116: =IF($Q111<=18,IF(Q115<=$Q111,1,0),IF($Q111<=36,IF(Q115<=($Q111-18),2,1),IF($Q111>36,IF(Q115<=($Q111-36),3,2)))) -> 2 | R116: =IF($Q111<=18,IF(R115<=$Q111,1,0),IF($Q111<=36,IF(R115<=($Q111-18),2,1),IF($Q111>36,IF(R115<=($Q111-36),3,2)))) -> 1 | S116: =IF($Q111<=18,IF(S115<=$Q111,1,0),IF($Q111<=36,IF(S115<=($Q111-18),2,1),IF($Q111>36,IF(S115<=($Q111-36),3,2)))) -> 1 | T116: =IF($Q111<=18,IF(T115<=$Q111,1,0),IF($Q111<=36,IF(T115<=($Q111-18),2,1),IF($Q111>36,IF(T115<=($Q111-36),3,2)))) -> 1 | U116: =IF($Q111<=18,IF(U115<=$Q111,1,0),IF($Q111<=36,IF(U115<=($Q111-18),2,1),IF($Q111>36,IF(U115<=($Q111-36),3,2)))) -> 1 | V116: =IF($Q111<=18,IF(V115<=$Q111,1,0),IF($Q111<=36,IF(V115<=($Q111-18),2,1),IF($Q111>36,IF(V115<=($Q111-36),3,2)))) -> 1 | W116: =IF($Q111<=18,IF(W115<=$Q111,1,0),IF($Q111<=36,IF(W115<=($Q111-18),2,1),IF($Q111>36,IF(W115<=($Q111-36),3,2)))) -> 1 | X116: =IF($Q111<=18,IF(X115<=$Q111,1,0),IF($Q111<=36,IF(X115<=($Q111-18),2,1),IF($Q111>36,IF(X115<=($Q111-36),3,2)))) -> 1 | Y116: =IF($Q111<=18,IF(Y115<=$Q111,1,0),IF($Q111<=36,IF(Y115<=($Q111-18),2,1),IF($Q111>36,IF(Y115<=($Q111-36),3,2)))) -> 1 | Z116: =SUM(Q116:Y116) -> 10 | AA116: =P116+Z116 -> 20
F117: Stroke play | G117: =G10 -> 6 | H117: 6 | I117: 7 | J117: 4 | K117: 4 | L117: 6 | M117: 5 | N117: 5 | O117: 3 | P117: =SUM(G117:O117) -> 46 | Q117: =Q10 -> 6 | R117: 6 | S117: 4 | T117: 6 | U117: 3 | V117: 7 | W117: 5 | X117: 8 | Y117: 6 | Z117: =SUM(Q117:Y117) -> 51 | AA117: =P117+Z117 -> 97
F118: Net Stableford | G118: =IF(G117-G114=-1,3+G116)+IF(G117-G114=0,2+G116)+IF(G117-G114=1,1+G116)+IF(G117-G114=2,G116)+IF(G117-G114=3,IF(G116-1>0,G116-1,0))+IF(G117-G114=4,IF(G116-2>0,G116-2,0)) -> 1 | H118: =IF(H117-H114=-1,3+H116)+IF(H117-H114=0,2+H116)+IF(H117-H114=1,1+H116)+IF(H117-H114=2,H116)+IF(H117-H114=3,IF(H116-1>0,H116-1,0))+IF(H117-H114=4,IF(H116-2>0,H116-2,0)) -> 1 | I118: 1 | J118: 3 | K118: 3 | L118: 2 | M118: 1 | N118: 3 | O118: 3 | P118: =SUM(G118:O118) -> 18 | Q118: =IF(Q117-Q114=-1,3+Q116)+IF(Q117-Q114=0,2+Q116)+IF(Q117-Q114=1,1+Q116)+IF(Q117-Q114=2,Q116)+IF(Q117-Q114=3,IF(Q116-1>0,Q116-1,0))+IF(Q117-Q114=4,IF(Q116-2>0,Q116-2,0)) -> 2 | R118: 1 | S118: 2 | T118: 2 | U118: 3 | V118: 0 | W118: 2 | X118: 0 | Y118: 1 | Z118: =SUM(Q118:Y118) -> 13 | AA118: =P118+Z118 -> 31
F119: Score Brut | G119: =IF(G117-G114=-2,4)+IF(G117-G114=-1,3)+IF(G117-G114=0,2)+IF(G117-G114=1,1)+IF(G117-G114>2,0) -> 0 | H119: 0 | I119: 0 | J119: 2 | K119: 1 | L119: 1 | M119: 0 | N119: 2 | O119: 2 | P119: =SUM(G119:O119) -> 8 | Q119: =IF(Q117-Q114=-2,4)+IF(Q117-Q114=-1,3)+IF(Q117-Q114=0,2)+IF(Q117-Q114=1,1)+IF(Q117-Q114>2,0) -> 0 | R119: 0 | S119: 1 | T119: 1 | U119: 2 | V119: 0 | W119: 1 | X119: 0 | Y119: 0 | Z119: =SUM(Q119:Y119) -> 5 | AA119: =P119+Z119 -> 13
G120: =G117-G114 -> 2 | H120: =H117-H114 -> 2 | I120: 2 | J120: 0 | K120: 1 | L120: 1 | M120: 2 | N120: 0 | O120: 0 | Q120: =Q117-Q114 -> 2 | R120: 2 | S120: 1 | T120: 1 | U120: 0 | V120: 3 | W120: 1 | X120: 3 | Y120: 2
F123: Statistiques scores | H123: Eagle & moins | L123: =COUNTIF(G120:Y120,"<=-2") -> 0 | M123: Par | O123: =COUNTIF(G120:Y120,"=0") -> 4 | P123: Double bogey | U123: =COUNTIF(G120:Y120,"=2") -> 7
H124: Birdie | L124: =COUNTIF(G120:Y120,"=-1") -> 0 | M124: Bogey | O124: =COUNTIF(G120:Y120,"=1") -> 5 | P124: Triple bogey & plus | U124: =COUNTIF(G120:Y120,">=3") -> 2
H125: =M123 -> Par | L125: =O123 -> 4
H126: =M124 -> Bogey | L126: =O124 -> 5
H127: =P123 -> Double bogey | L127: =U123 -> 7
H128: =P124 -> Triple bogey & plus | L128: =U124 -> 2
F133: Nom | G133: =C11 -> DELOUCHE | L133: Slope | O133: SSS | Q133: Coups reçus | Z133: Date | AA133: =$D$3 -> 2022-03-05
F134: Index | G134: =E11 -> 48.2 | L134: =$F$3 -> 133 | O134: =$G$3 -> 68.6 | Q134: =ROUND((G134*(L134/113)+(O134-AA137)),0) -> 53
F136: Trou | G136: 1 | H136: 2 | I136: 3 | J136: 4 | K136: 5 | L136: 6 | M136: 7 | N136: 8 | O136: 9 | P136: Aller | Q136: 10 | R136: 11 | S136: 12 | T136: 13 | U136: 14 | V136: 15 | W136: 16 | X136: 17 | Y136: 18 | Z136: Retour | AA136: Total
F137: PAR | G137: =G$7 -> 4 | H137: =H$7 -> 4 | I137: 5 | J137: 4 | K137: 3 | L137: 5 | M137: 3 | N137: 5 | O137: 3 | P137: =SUM(G137:O137) -> 36 | Q137: =Q$7 -> 4 | R137: 4 | S137: 3 | T137: 5 | U137: 3 | V137: 4 | W137: 4 | X137: 5 | Y137: 4 | Z137: =SUM(Q137:Y137) -> 36 | AA137: =SUM(P137+Z137) -> 72
F138: HCP trous | G138: =G$8 -> 4 | H138: =H$8 -> 8 | I138: 12 | J138: 14 | K138: 2 | L138: 10 | M138: 18 | N138: 16 | O138: 6 | Q138: =Q$8 -> 1 | R138: 9 | S138: 11 | T138: 5 | U138: 17 | V138: 15 | W138: 3 | X138: 13 | Y138: 7
F139: Coups reçus | G139: =IF($Q134<=18,IF(G138<=$Q134,1,0),IF($Q134<=36,IF(G138<=($Q134-18),2,1),IF($Q134>36,IF(G138<=($Q134-36),3,2)))) -> 3 | H139: =IF($Q134<=18,IF(H138<=$Q134,1,0),IF($Q134<=36,IF(H138<=($Q134-18),2,1),IF($Q134>36,IF(H138<=($Q134-36),3,2)))) -> 3 | I139: =IF($Q134<=18,IF(I138<=$Q134,1,0),IF($Q134<=36,IF(I138<=($Q134-18),2,1),IF($Q134>36,IF(I138<=($Q134-36),3,2)))) -> 3 | J139: =IF($Q134<=18,IF(J138<=$Q134,1,0),IF($Q134<=36,IF(J138<=($Q134-18),2,1),IF($Q134>36,IF(J138<=($Q134-36),3,2)))) -> 3 | K139: =IF($Q134<=18,IF(K138<=$Q134,1,0),IF($Q134<=36,IF(K138<=($Q134-18),2,1),IF($Q134>36,IF(K138<=($Q134-36),3,2)))) -> 3 | L139: =IF($Q134<=18,IF(L138<=$Q134,1,0),IF($Q134<=36,IF(L138<=($Q134-18),2,1),IF($Q134>36,IF(L138<=($Q134-36),3,2)))) -> 3 | M139: =IF($Q134<=18,IF(M138<=$Q134,1,0),IF($Q134<=36,IF(M138<=($Q134-18),2,1),IF($Q134>36,IF(M138<=($Q134-36),3,2)))) -> 2 | N139: =IF($Q134<=18,IF(N138<=$Q134,1,0),IF($Q134<=36,IF(N138<=($Q134-18),2,1),IF($Q134>36,IF(N138<=($Q134-36),3,2)))) -> 3 | O139: =IF($Q134<=18,IF(O138<=$Q134,1,0),IF($Q134<=36,IF(O138<=($Q134-18),2,1),IF($Q134>36,IF(O138<=($Q134-36),3,2)))) -> 3 | P139: =SUM(G139:O139) -> 26 | Q139: =IF($Q134<=18,IF(Q138<=$Q134,1,0),IF($Q134<=36,IF(Q138<=($Q134-18),2,1),IF($Q134>36,IF(Q138<=($Q134-36),3,2)))) -> 3 | R139: =IF($Q134<=18,IF(R138<=$Q134,1,0),IF($Q134<=36,IF(R138<=($Q134-18),2,1),IF($Q134>36,IF(R138<=($Q134-36),3,2)))) -> 3 | S139: =IF($Q134<=18,IF(S138<=$Q134,1,0),IF($Q134<=36,IF(S138<=($Q134-18),2,1),IF($Q134>36,IF(S138<=($Q134-36),3,2)))) -> 3 | T139: =IF($Q134<=18,IF(T138<=$Q134,1,0),IF($Q134<=36,IF(T138<=($Q134-18),2,1),IF($Q134>36,IF(T138<=($Q134-36),3,2)))) -> 3 | U139: =IF($Q134<=18,IF(U138<=$Q134,1,0),IF($Q134<=36,IF(U138<=($Q134-18),2,1),IF($Q134>36,IF(U138<=($Q134-36),3,2)))) -> 3 | V139: =IF($Q134<=18,IF(V138<=$Q134,1,0),IF($Q134<=36,IF(V138<=($Q134-18),2,1),IF($Q134>36,IF(V138<=($Q134-36),3,2)))) -> 3 | W139: =IF($Q134<=18,IF(W138<=$Q134,1,0),IF($Q134<=36,IF(W138<=($Q134-18),2,1),IF($Q134>36,IF(W138<=($Q134-36),3,2)))) -> 3 | X139: =IF($Q134<=18,IF(X138<=$Q134,1,0),IF($Q134<=36,IF(X138<=($Q134-18),2,1),IF($Q134>36,IF(X138<=($Q134-36),3,2)))) -> 3 | Y139: =IF($Q134<=18,IF(Y138<=$Q134,1,0),IF($Q134<=36,IF(Y138<=($Q134-18),2,1),IF($Q134>36,IF(Y138<=($Q134-36),3,2)))) -> 3 | Z139: =SUM(Q139:Y139) -> 27 | AA139: =P139+Z139 -> 53
F140: Stroke play | G140: =G11 -> 7 | H140: 6 | I140: 10 | J140: 8 | K140: 6 | L140: 7 | M140: 6 | N140: 8 | O140: 7 | P140: =SUM(G140:O140) -> 65 | Q140: =Q11 -> 5 | R140: 8 | S140: 6 | T140: 9 | U140: 3 | V140: 5 | W140: 5 | X140: 7 | Y140: 8 | Z140: =SUM(Q140:Y140) -> 56 | AA140: =P140+Z140 -> 121
F141: Net Stableford | G141: =IF(G140-G137=-1,3+G139)+IF(G140-G137=0,2+G139)+IF(G140-G137=1,1+G139)+IF(G140-G137=2,G139)+IF(G140-G137=3,IF(G139-1>0,G139-1,0))+IF(G140-G137=4,IF(G139-2>0,G139-2,0)) -> 2 | H141: =IF(H140-H137=-1,3+H139)+IF(H140-H137=0,2+H139)+IF(H140-H137=1,1+H139)+IF(H140-H137=2,H139)+IF(H140-H137=3,IF(H139-1>0,H139-1,0))+IF(H140-H137=4,IF(H139-2>0,H139-2,0)) -> 3 | I141: 0 | J141: 1 | K141: 2 | L141: 3 | M141: 1 | N141: 2 | O141: 1 | P141: =SUM(G141:O141) -> 15 | Q141: =IF(Q140-Q137=-1,3+Q139)+IF(Q140-Q137=0,2+Q139)+IF(Q140-Q137=1,1+Q139)+IF(Q140-Q137=2,Q139)+IF(Q140-Q137=3,IF(Q139-1>0,Q139-1,0))+IF(Q140-Q137=4,IF(Q139-2>0,Q139-2,0)) -> 4 | R141: 1 | S141: 2 | T141: 1 | U141: 5 | V141: 4 | W141: 4 | X141: 3 | Y141: 1 | Z141: =SUM(Q141:Y141) -> 25 | AA141: =P141+Z141 -> 40
F142: Score Brut | G142: =IF(G140-G137=-2,4)+IF(G140-G137=-1,3)+IF(G140-G137=0,2)+IF(G140-G137=1,1)+IF(G140-G137>2,0) -> 0 | H142: 0 | I142: 0 | J142: 0 | K142: 0 | L142: 0 | M142: 0 | N142: 0 | O142: 0 | P142: =SUM(G142:O142) -> 0 | Q142: =IF(Q140-Q137=-2,4)+IF(Q140-Q137=-1,3)+IF(Q140-Q137=0,2)+IF(Q140-Q137=1,1)+IF(Q140-Q137>2,0) -> 1 | R142: 0 | S142: 0 | T142: 0 | U142: 2 | V142: 1 | W142: 1 | X142: 0 | Y142: 0 | Z142: =SUM(Q142:Y142) -> 5 | AA142: =P142+Z142 -> 5
G143: =G140-G137 -> 3 | H143: =H140-H137 -> 2 | I143: 5 | J143: 4 | K143: 3 | L143: 2 | M143: 3 | N143: 3 | O143: 4 | Q143: =Q140-Q137 -> 1 | R143: 4 | S143: 3 | T143: 4 | U143: 0 | V143: 1 | W143: 1 | X143: 2 | Y143: 4
F146: Statistiques scores | H146: Eagle & moins | L146: =COUNTIF(G143:Y143,"<=-2") -> 0 | M146: Par | O146: =COUNTIF(G143:Y143,"=0") -> 1 | P146: Double bogey | U146: =COUNTIF(G143:Y143,"=2") -> 3
H147: Birdie | L147: =COUNTIF(G143:Y143,"=-1") -> 0 | M147: Bogey | O147: =COUNTIF(G143:Y143,"=1") -> 3 | P147: Triple bogey & plus | U147: =COUNTIF(G143:Y143,">=3") -> 11
H148: =M146 -> Par | L148: =O146 -> 1
H149: =M147 -> Bogey | L149: =O147 -> 3
H150: =P146 -> Double bogey | L150: =U146 -> 3
H151: =P147 -> Triple bogey & plus | L151: =U147 -> 11
F156: Nom | G156: =C12 -> DIOT | L156: Slope | O156: SSS | Q156: Coups reçus | Z156: Date | AA156: =$D$3 -> 2022-03-05
F157: Index | G157: =E12 -> 8.2 | L157: =$F$3 -> 133 | O157: =$G$3 -> 68.6 | Q157: =ROUND((G157*(L157/113)+(O157-AA160)),0) -> 6
F159: Trou | G159: 1 | H159: 2 | I159: 3 | J159: 4 | K159: 5 | L159: 6 | M159: 7 | N159: 8 | O159: 9 | P159: Aller | Q159: 10 | R159: 11 | S159: 12 | T159: 13 | U159: 14 | V159: 15 | W159: 16 | X159: 17 | Y159: 18 | Z159: Retour | AA159: Total
F160: PAR | G160: =G$7 -> 4 | H160: =H$7 -> 4 | I160: 5 | J160: 4 | K160: 3 | L160: 5 | M160: 3 | N160: 5 | O160: 3 | P160: =SUM(G160:O160) -> 36 | Q160: =Q$7 -> 4 | R160: 4 | S160: 3 | T160: 5 | U160: 3 | V160: 4 | W160: 4 | X160: 5 | Y160: 4 | Z160: =SUM(Q160:Y160) -> 36 | AA160: =SUM(P160+Z160) -> 72
F161: HCP trous | G161: =G$8 -> 4 | H161: =H$8 -> 8 | I161: 12 | J161: 14 | K161: 2 | L161: 10 | M161: 18 | N161: 16 | O161: 6 | Q161: =Q$8 -> 1 | R161: 9 | S161: 11 | T161: 5 | U161: 17 | V161: 15 | W161: 3 | X161: 13 | Y161: 7
F162: Coups reçus | G162: =IF($Q157<=18,IF(G161<=$Q157,1,0),IF($Q157<=36,IF(G161<=($Q157-18),2,1),IF($Q157>36,IF(G161<=($Q157-36),3,2)))) -> 1 | H162: =IF($Q157<=18,IF(H161<=$Q157,1,0),IF($Q157<=36,IF(H161<=($Q157-18),2,1),IF($Q157>36,IF(H161<=($Q157-36),3,2)))) -> 0 | I162: =IF($Q157<=18,IF(I161<=$Q157,1,0),IF($Q157<=36,IF(I161<=($Q157-18),2,1),IF($Q157>36,IF(I161<=($Q157-36),3,2)))) -> 0 | J162: =IF($Q157<=18,IF(J161<=$Q157,1,0),IF($Q157<=36,IF(J161<=($Q157-18),2,1),IF($Q157>36,IF(J161<=($Q157-36),3,2)))) -> 0 | K162: =IF($Q157<=18,IF(K161<=$Q157,1,0),IF($Q157<=36,IF(K161<=($Q157-18),2,1),IF($Q157>36,IF(K161<=($Q157-36),3,2)))) -> 1 | L162: =IF($Q157<=18,IF(L161<=$Q157,1,0),IF($Q157<=36,IF(L161<=($Q157-18),2,1),IF($Q157>36,IF(L161<=($Q157-36),3,2)))) -> 0 | M162: =IF($Q157<=18,IF(M161<=$Q157,1,0),IF($Q157<=36,IF(M161<=($Q157-18),2,1),IF($Q157>36,IF(M161<=($Q157-36),3,2)))) -> 0 | N162: =IF($Q157<=18,IF(N161<=$Q157,1,0),IF($Q157<=36,IF(N161<=($Q157-18),2,1),IF($Q157>36,IF(N161<=($Q157-36),3,2)))) -> 0 | O162: =IF($Q157<=18,IF(O161<=$Q157,1,0),IF($Q157<=36,IF(O161<=($Q157-18),2,1),IF($Q157>36,IF(O161<=($Q157-36),3,2)))) -> 1 | P162: =SUM(G162:O162) -> 3 | Q162: =IF($Q157<=18,IF(Q161<=$Q157,1,0),IF($Q157<=36,IF(Q161<=($Q157-18),2,1),IF($Q157>36,IF(Q161<=($Q157-36),3,2)))) -> 1 | R162: =IF($Q157<=18,IF(R161<=$Q157,1,0),IF($Q157<=36,IF(R161<=($Q157-18),2,1),IF($Q157>36,IF(R161<=($Q157-36),3,2)))) -> 0 | S162: =IF($Q157<=18,IF(S161<=$Q157,1,0),IF($Q157<=36,IF(S161<=($Q157-18),2,1),IF($Q157>36,IF(S161<=($Q157-36),3,2)))) -> 0 | T162: =IF($Q157<=18,IF(T161<=$Q157,1,0),IF($Q157<=36,IF(T161<=($Q157-18),2,1),IF($Q157>36,IF(T161<=($Q157-36),3,2)))) -> 1 | U162: =IF($Q157<=18,IF(U161<=$Q157,1,0),IF($Q157<=36,IF(U161<=($Q157-18),2,1),IF($Q157>36,IF(U161<=($Q157-36),3,2)))) -> 0 | V162: =IF($Q157<=18,IF(V161<=$Q157,1,0),IF($Q157<=36,IF(V161<=($Q157-18),2,1),IF($Q157>36,IF(V161<=($Q157-36),3,2)))) -> 0 | W162: =IF($Q157<=18,IF(W161<=$Q157,1,0),IF($Q157<=36,IF(W161<=($Q157-18),2,1),IF($Q157>36,IF(W161<=($Q157-36),3,2)))) -> 1 | X162: =IF($Q157<=18,IF(X161<=$Q157,1,0),IF($Q157<=36,IF(X161<=($Q157-18),2,1),IF($Q157>36,IF(X161<=($Q157-36),3,2)))) -> 0 | Y162: =IF($Q157<=18,IF(Y161<=$Q157,1,0),IF($Q157<=36,IF(Y161<=($Q157-18),2,1),IF($Q157>36,IF(Y161<=($Q157-36),3,2)))) -> 0 | Z162: =SUM(Q162:Y162) -> 3 | AA162: =P162+Z162 -> 6
F163: Stroke play | G163: =G12 -> 5 | H163: 4 | I163: 5 | J163: 6 | K163: 4 | L163: 4 | M163: 3 | N163: 6 | O163: 4 | P163: =SUM(G163:O163) -> 41 | Q163: =Q12 -> 4 | R163: 6 | S163: 4 | T163: 6 | U163: 6 | V163: 5 | W163: 4 | X163: 4 | Y163: 4 | Z163: =SUM(Q163:Y163) -> 43 | AA163: =P163+Z163 -> 84
F164: Net Stableford | G164: =IF(G163-G160=-1,3+G162)+IF(G163-G160=0,2+G162)+IF(G163-G160=1,1+G162)+IF(G163-G160=2,G162)+IF(G163-G160=3,IF(G162-1>0,G162-1,0))+IF(G163-G160=4,IF(G162-2>0,G162-2,0)) -> 2 | H164: =IF(H163-H160=-1,3+H162)+IF(H163-H160=0,2+H162)+IF(H163-H160=1,1+H162)+IF(H163-H160=2,H162)+IF(H163-H160=3,IF(H162-1>0,H162-1,0))+IF(H163-H160=4,IF(H162-2>0,H162-2,0)) -> 2 | I164: 2 | J164: 0 | K164: 2 | L164: 3 | M164: 2 | N164: 1 | O164: 2 | P164: =SUM(G164:O164) -> 16 | Q164: =IF(Q163-Q160=-1,3+Q162)+IF(Q163-Q160=0,2+Q162)+IF(Q163-Q160=1,1+Q162)+IF(Q163-Q160=2,Q162)+IF(Q163-Q160=3,IF(Q162-1>0,Q162-1,0))+IF(Q163-Q160=4,IF(Q162-2>0,Q162-2,0)) -> 3 | R164: 0 | S164: 1 | T164: 2 | U164: 0 | V164: 1 | W164: 3 | X164: 3 | Y164: 2 | Z164: =SUM(Q164:Y164) -> 15 | AA164: =P164+Z164 -> 31
F165: Score Brut | G165: =IF(G163-G160=-2,4)+IF(G163-G160=-1,3)+IF(G163-G160=0,2)+IF(G163-G160=1,1)+IF(G163-G160>2,0) -> 1 | H165: 2 | I165: 2 | J165: 0 | K165: 1 | L165: 3 | M165: 2 | N165: 1 | O165: 1 | P165: =SUM(G165:O165) -> 13 | Q165: =IF(Q163-Q160=-2,4)+IF(Q163-Q160=-1,3)+IF(Q163-Q160=0,2)+IF(Q163-Q160=1,1)+IF(Q163-Q160>2,0) -> 2 | R165: 0 | S165: 1 | T165: 1 | U165: 0 | V165: 1 | W165: 2 | X165: 3 | Y165: 2 | Z165: =SUM(Q165:Y165) -> 12 | AA165: =P165+Z165 -> 25
G166: =G163-G160 -> 1 | H166: =H163-H160 -> 0 | I166: 0 | J166: 2 | K166: 1 | L166: -1 | M166: 0 | N166: 1 | O166: 1 | Q166: =Q163-Q160 -> 0 | R166: 2 | S166: 1 | T166: 1 | U166: 3 | V166: 1 | W166: 0 | X166: -1 | Y166: 0
F169: Statistiques scores | H169: Eagle & moins | L169: =COUNTIF(G166:Y166,"<=-2") -> 0 | M169: Par | O169: =COUNTIF(G166:Y166,"=0") -> 6 | P169: Double bogey | U169: =COUNTIF(G166:Y166,"=2") -> 2
H170: Birdie | L170: =COUNTIF(G166:Y166,"=-1") -> 2 | M170: Bogey | O170: =COUNTIF(G166:Y166,"=1") -> 7 | P170: Triple bogey & plus | U170: =COUNTIF(G166:Y166,">=3") -> 1
H171: =M169 -> Par | L171: =O169 -> 6
H172: =M170 -> Bogey | L172: =O170 -> 7
H173: =P169 -> Double bogey | L173: =U169 -> 2
H174: =P170 -> Triple bogey & plus | L174: =U170 -> 1
F179: Nom | G179: =C13 -> GAUTHIER | L179: Slope | O179: SSS | Q179: Coups reçus | Z179: Date | AA179: =$D$3 -> 2022-03-05
F180: Index | G180: =E13 -> 24.5 | L180: =$F$3 -> 133 | O180: =$G$3 -> 68.6 | Q180: =ROUND((G180*(L180/113)+(O180-AA183)),0) -> 25
F182: Trou | G182: 1 | H182: 2 | I182: 3 | J182: 4 | K182: 5 | L182: 6 | M182: 7 | N182: 8 | O182: 9 | P182: Aller | Q182: 10 | R182: 11 | S182: 12 | T182: 13 | U182: 14 | V182: 15 | W182: 16 | X182: 17 | Y182: 18 | Z182: Retour | AA182: Total
F183: PAR | G183: =G$7 -> 4 | H183: =H$7 -> 4 | I183: 5 | J183: 4 | K183: 3 | L183: 5 | M183: 3 | N183: 5 | O183: 3 | P183: =SUM(G183:O183) -> 36 | Q183: =Q$7 -> 4 | R183: 4 | S183: 3 | T183: 5 | U183: 3 | V183: 4 | W183: 4 | X183: 5 | Y183: 4 | Z183: =SUM(Q183:Y183) -> 36 | AA183: =SUM(P183+Z183) -> 72
F184: HCP trous | G184: =G$8 -> 4 | H184: =H$8 -> 8 | I184: 12 | J184: 14 | K184: 2 | L184: 10 | M184: 18 | N184: 16 | O184: 6 | Q184: =Q$8 -> 1 | R184: 9 | S184: 11 | T184: 5 | U184: 17 | V184: 15 | W184: 3 | X184: 13 | Y184: 7
F185: Coups reçus | G185: =IF($Q180<=18,IF(G184<=$Q180,1,0),IF($Q180<=36,IF(G184<=($Q180-18),2,1),IF($Q180>36,IF(G184<=($Q180-36),3,2)))) -> 2 | H185: =IF($Q180<=18,IF(H184<=$Q180,1,0),IF($Q180<=36,IF(H184<=($Q180-18),2,1),IF($Q180>36,IF(H184<=($Q180-36),3,2)))) -> 1 | I185: =IF($Q180<=18,IF(I184<=$Q180,1,0),IF($Q180<=36,IF(I184<=($Q180-18),2,1),IF($Q180>36,IF(I184<=($Q180-36),3,2)))) -> 1 | J185: =IF($Q180<=18,IF(J184<=$Q180,1,0),IF($Q180<=36,IF(J184<=($Q180-18),2,1),IF($Q180>36,IF(J184<=($Q180-36),3,2)))) -> 1 | K185: =IF($Q180<=18,IF(K184<=$Q180,1,0),IF($Q180<=36,IF(K184<=($Q180-18),2,1),IF($Q180>36,IF(K184<=($Q180-36),3,2)))) -> 2 | L185: =IF($Q180<=18,IF(L184<=$Q180,1,0),IF($Q180<=36,IF(L184<=($Q180-18),2,1),IF($Q180>36,IF(L184<=($Q180-36),3,2)))) -> 1 | M185: =IF($Q180<=18,IF(M184<=$Q180,1,0),IF($Q180<=36,IF(M184<=($Q180-18),2,1),IF($Q180>36,IF(M184<=($Q180-36),3,2)))) -> 1 | N185: =IF($Q180<=18,IF(N184<=$Q180,1,0),IF($Q180<=36,IF(N184<=($Q180-18),2,1),IF($Q180>36,IF(N184<=($Q180-36),3,2)))) -> 1 | O185: =IF($Q180<=18,IF(O184<=$Q180,1,0),IF($Q180<=36,IF(O184<=($Q180-18),2,1),IF($Q180>36,IF(O184<=($Q180-36),3,2)))) -> 2 | P185: =SUM(G185:O185) -> 12 | Q185: =IF($Q180<=18,IF(Q184<=$Q180,1,0),IF($Q180<=36,IF(Q184<=($Q180-18),2,1),IF($Q180>36,IF(Q184<=($Q180-36),3,2)))) -> 2 | R185: =IF($Q180<=18,IF(R184<=$Q180,1,0),IF($Q180<=36,IF(R184<=($Q180-18),2,1),IF($Q180>36,IF(R184<=($Q180-36),3,2)))) -> 1 | S185: =IF($Q180<=18,IF(S184<=$Q180,1,0),IF($Q180<=36,IF(S184<=($Q180-18),2,1),IF($Q180>36,IF(S184<=($Q180-36),3,2)))) -> 1 | T185: =IF($Q180<=18,IF(T184<=$Q180,1,0),IF($Q180<=36,IF(T184<=($Q180-18),2,1),IF($Q180>36,IF(T184<=($Q180-36),3,2)))) -> 2 | U185: =IF($Q180<=18,IF(U184<=$Q180,1,0),IF($Q180<=36,IF(U184<=($Q180-18),2,1),IF($Q180>36,IF(U184<=($Q180-36),3,2)))) -> 1 | V185: =IF($Q180<=18,IF(V184<=$Q180,1,0),IF($Q180<=36,IF(V184<=($Q180-18),2,1),IF($Q180>36,IF(V184<=($Q180-36),3,2)))) -> 1 | W185: =IF($Q180<=18,IF(W184<=$Q180,1,0),IF($Q180<=36,IF(W184<=($Q180-18),2,1),IF($Q180>36,IF(W184<=($Q180-36),3,2)))) -> 2 | X185: =IF($Q180<=18,IF(X184<=$Q180,1,0),IF($Q180<=36,IF(X184<=($Q180-18),2,1),IF($Q180>36,IF(X184<=($Q180-36),3,2)))) -> 1 | Y185: =IF($Q180<=18,IF(Y184<=$Q180,1,0),IF($Q180<=36,IF(Y184<=($Q180-18),2,1),IF($Q180>36,IF(Y184<=($Q180-36),3,2)))) -> 2 | Z185: =SUM(Q185:Y185) -> 13 | AA185: =P185+Z185 -> 25
F186: Stroke play | G186: =G13 -> 6 | H186: 7 | I186: 6 | J186: 6 | K186: 5 | L186: 7 | M186: 4 | N186: 5 | O186: 4 | P186: =SUM(G186:O186) -> 50 | Q186: =Q13 -> 6 | R186: 6 | S186: 4 | T186: 5 | U186: 3 | V186: 5 | W186: 6 | X186: 6 | Y186: 4 | Z186: =SUM(Q186:Y186) -> 45 | AA186: =P186+Z186 -> 95
F187: Net Stableford | G187: =IF(G186-G183=-1,3+G185)+IF(G186-G183=0,2+G185)+IF(G186-G183=1,1+G185)+IF(G186-G183=2,G185)+IF(G186-G183=3,IF(G185-1>0,G185-1,0))+IF(G186-G183=4,IF(G185-2>0,G185-2,0)) -> 2 | H187: =IF(H186-H183=-1,3+H185)+IF(H186-H183=0,2+H185)+IF(H186-H183=1,1+H185)+IF(H186-H183=2,H185)+IF(H186-H183=3,IF(H185-1>0,H185-1,0))+IF(H186-H183=4,IF(H185-2>0,H185-2,0)) -> 0 | I187: 2 | J187: 1 | K187: 2 | L187: 1 | M187: 2 | N187: 3 | O187: 3 | P187: =SUM(G187:O187) -> 16 | Q187: =IF(Q186-Q183=-1,3+Q185)+IF(Q186-Q183=0,2+Q185)+IF(Q186-Q183=1,1+Q185)+IF(Q186-Q183=2,Q185)+IF(Q186-Q183=3,IF(Q185-1>0,Q185-1,0))+IF(Q186-Q183=4,IF(Q185-2>0,Q185-2,0)) -> 2 | R187: 1 | S187: 2 | T187: 4 | U187: 3 | V187: 2 | W187: 2 | X187: 2 | Y187: 4 | Z187: =SUM(Q187:Y187) -> 22 | AA187: =P187+Z187 -> 38
F188: Score Brut | G188: =IF(G186-G183=-2,4)+IF(G186-G183=-1,3)+IF(G186-G183=0,2)+IF(G186-G183=1,1)+IF(G186-G183>2,0) -> 0 | H188: 0 | I188: 1 | J188: 0 | K188: 0 | L188: 0 | M188: 1 | N188: 2 | O188: 1 | P188: =SUM(G188:O188) -> 5 | Q188: =IF(Q186-Q183=-2,4)+IF(Q186-Q183=-1,3)+IF(Q186-Q183=0,2)+IF(Q186-Q183=1,1)+IF(Q186-Q183>2,0) -> 0 | R188: 0 | S188: 1 | T188: 2 | U188: 2 | V188: 1 | W188: 0 | X188: 1 | Y188: 2 | Z188: =SUM(Q188:Y188) -> 9 | AA188: =P188+Z188 -> 14
G189: =G186-G183 -> 2 | H189: =H186-H183 -> 3 | I189: 1 | J189: 2 | K189: 2 | L189: 2 | M189: 1 | N189: 0 | O189: 1 | Q189: =Q186-Q183 -> 2 | R189: 2 | S189: 1 | T189: 0 | U189: 0 | V189: 1 | W189: 2 | X189: 1 | Y189: 0
F192: Statistiques scores | H192: Eagle & moins | L192: =COUNTIF(G189:Y189,"<=-2") -> 0 | M192: Par | O192: =COUNTIF(G189:Y189,"=0") -> 4 | P192: Double bogey | U192: =COUNTIF(G189:Y189,"=2") -> 7
H193: Birdie | L193: =COUNTIF(G189:Y189,"=-1") -> 0 | M193: Bogey | O193: =COUNTIF(G189:Y189,"=1") -> 6 | P193: Triple bogey & plus | U193: =COUNTIF(G189:Y189,">=3") -> 1
H194: =M192 -> Par | L194: =O192 -> 4
H195: =M193 -> Bogey | L195: =O193 -> 6
H196: =P192 -> Double bogey | L196: =U192 -> 7
H197: =P193 -> Triple bogey & plus | L197: =U193 -> 1
F202: Nom | G202: =C14 -> HERRAULT | L202: Slope | O202: SSS | Q202: Coups reçus | Z202: Date | AA202: =$D$3 -> 2022-03-05
F203: Index | G203: =E14 -> 11.3 | L203: =$F$3 -> 133 | O203: =$G$3 -> 68.6 | Q203: =ROUND((G203*(L203/113)+(O203-AA206)),0) -> 10
F205: Trou | G205: 1 | H205: 2 | I205: 3 | J205: 4 | K205: 5 | L205: 6 | M205: 7 | N205: 8 | O205: 9 | P205: Aller | Q205: 10 | R205: 11 | S205: 12 | T205: 13 | U205: 14 | V205: 15 | W205: 16 | X205: 17 | Y205: 18 | Z205: Retour | AA205: Total
F206: PAR | G206: =G$7 -> 4 | H206: =H$7 -> 4 | I206: 5 | J206: 4 | K206: 3 | L206: 5 | M206: 3 | N206: 5 | O206: 3 | P206: =SUM(G206:O206) -> 36 | Q206: =Q$7 -> 4 | R206: 4 | S206: 3 | T206: 5 | U206: 3 | V206: 4 | W206: 4 | X206: 5 | Y206: 4 | Z206: =SUM(Q206:Y206) -> 36 | AA206: =SUM(P206+Z206) -> 72
F207: HCP trous | G207: =G$8 -> 4 | H207: =H$8 -> 8 | I207: 12 | J207: 14 | K207: 2 | L207: 10 | M207: 18 | N207: 16 | O207: 6 | Q207: =Q$8 -> 1 | R207: 9 | S207: 11 | T207: 5 | U207: 17 | V207: 15 | W207: 3 | X207: 13 | Y207: 7
F208: Coups reçus | G208: =IF($Q203<=18,IF(G207<=$Q203,1,0),IF($Q203<=36,IF(G207<=($Q203-18),2,1),IF($Q203>36,IF(G207<=($Q203-36),3,2)))) -> 1 | H208: =IF($Q203<=18,IF(H207<=$Q203,1,0),IF($Q203<=36,IF(H207<=($Q203-18),2,1),IF($Q203>36,IF(H207<=($Q203-36),3,2)))) -> 1 | I208: =IF($Q203<=18,IF(I207<=$Q203,1,0),IF($Q203<=36,IF(I207<=($Q203-18),2,1),IF($Q203>36,IF(I207<=($Q203-36),3,2)))) -> 0 | J208: =IF($Q203<=18,IF(J207<=$Q203,1,0),IF($Q203<=36,IF(J207<=($Q203-18),2,1),IF($Q203>36,IF(J207<=($Q203-36),3,2)))) -> 0 | K208: =IF($Q203<=18,IF(K207<=$Q203,1,0),IF($Q203<=36,IF(K207<=($Q203-18),2,1),IF($Q203>36,IF(K207<=($Q203-36),3,2)))) -> 1 | L208: =IF($Q203<=18,IF(L207<=$Q203,1,0),IF($Q203<=36,IF(L207<=($Q203-18),2,1),IF($Q203>36,IF(L207<=($Q203-36),3,2)))) -> 1 | M208: =IF($Q203<=18,IF(M207<=$Q203,1,0),IF($Q203<=36,IF(M207<=($Q203-18),2,1),IF($Q203>36,IF(M207<=($Q203-36),3,2)))) -> 0 | N208: =IF($Q203<=18,IF(N207<=$Q203,1,0),IF($Q203<=36,IF(N207<=($Q203-18),2,1),IF($Q203>36,IF(N207<=($Q203-36),3,2)))) -> 0 | O208: =IF($Q203<=18,IF(O207<=$Q203,1,0),IF($Q203<=36,IF(O207<=($Q203-18),2,1),IF($Q203>36,IF(O207<=($Q203-36),3,2)))) -> 1 | P208: =SUM(G208:O208) -> 5 | Q208: =IF($Q203<=18,IF(Q207<=$Q203,1,0),IF($Q203<=36,IF(Q207<=($Q203-18),2,1),IF($Q203>36,IF(Q207<=($Q203-36),3,2)))) -> 1 | R208: =IF($Q203<=18,IF(R207<=$Q203,1,0),IF($Q203<=36,IF(R207<=($Q203-18),2,1),IF($Q203>36,IF(R207<=($Q203-36),3,2)))) -> 1 | S208: =IF($Q203<=18,IF(S207<=$Q203,1,0),IF($Q203<=36,IF(S207<=($Q203-18),2,1),IF($Q203>36,IF(S207<=($Q203-36),3,2)))) -> 0 | T208: =IF($Q203<=18,IF(T207<=$Q203,1,0),IF($Q203<=36,IF(T207<=($Q203-18),2,1),IF($Q203>36,IF(T207<=($Q203-36),3,2)))) -> 1 | U208: =IF($Q203<=18,IF(U207<=$Q203,1,0),IF($Q203<=36,IF(U207<=($Q203-18),2,1),IF($Q203>36,IF(U207<=($Q203-36),3,2)))) -> 0 | V208: =IF($Q203<=18,IF(V207<=$Q203,1,0),IF($Q203<=36,IF(V207<=($Q203-18),2,1),IF($Q203>36,IF(V207<=($Q203-36),3,2)))) -> 0 | W208: =IF($Q203<=18,IF(W207<=$Q203,1,0),IF($Q203<=36,IF(W207<=($Q203-18),2,1),IF($Q203>36,IF(W207<=($Q203-36),3,2)))) -> 1 | X208: =IF($Q203<=18,IF(X207<=$Q203,1,0),IF($Q203<=36,IF(X207<=($Q203-18),2,1),IF($Q203>36,IF(X207<=($Q203-36),3,2)))) -> 0 | Y208: =IF($Q203<=18,IF(Y207<=$Q203,1,0),IF($Q203<=36,IF(Y207<=($Q203-18),2,1),IF($Q203>36,IF(Y207<=($Q203-36),3,2)))) -> 1 | Z208: =SUM(Q208:Y208) -> 5 | AA208: =P208+Z208 -> 10
F209: Stroke play | G209: =G14 -> 5 | H209: 6 | I209: 6 | J209: 5 | K209: 3 | L209: 5 | M209: 3 | N209: 6 | O209: 3 | P209: =SUM(G209:O209) -> 42 | Q209: =Q14 -> 6 | R209: 5 | S209: 5 | T209: 4 | U209: 4 | V209: 5 | W209: 4 | X209: 6 | Y209: 5 | Z209: =SUM(Q209:Y209) -> 44 | AA209: =P209+Z209 -> 86
F210: Net Stableford | G210: =IF(G209-G206=-1,3+G208)+IF(G209-G206=0,2+G208)+IF(G209-G206=1,1+G208)+IF(G209-G206=2,G208)+IF(G209-G206=3,IF(G208-1>0,G208-1,0))+IF(G209-G206=4,IF(G208-2>0,G208-2,0)) -> 2 | H210: =IF(H209-H206=-1,3+H208)+IF(H209-H206=0,2+H208)+IF(H209-H206=1,1+H208)+IF(H209-H206=2,H208)+IF(H209-H206=3,IF(H208-1>0,H208-1,0))+IF(H209-H206=4,IF(H208-2>0,H208-2,0)) -> 1 | I210: 1 | J210: 1 | K210: 3 | L210: 3 | M210: 2 | N210: 1 | O210: 3 | P210: =SUM(G210:O210) -> 17 | Q210: =IF(Q209-Q206=-1,3+Q208)+IF(Q209-Q206=0,2+Q208)+IF(Q209-Q206=1,1+Q208)+IF(Q209-Q206=2,Q208)+IF(Q209-Q206=3,IF(Q208-1>0,Q208-1,0))+IF(Q209-Q206=4,IF(Q208-2>0,Q208-2,0)) -> 1 | R210: 2 | S210: 0 | T210: 4 | U210: 1 | V210: 1 | W210: 3 | X210: 1 | Y210: 2 | Z210: =SUM(Q210:Y210) -> 15 | AA210: =P210+Z210 -> 32
F211: Score Brut | G211: =IF(G209-G206=-2,4)+IF(G209-G206=-1,3)+IF(G209-G206=0,2)+IF(G209-G206=1,1)+IF(G209-G206>2,0) -> 1 | H211: 0 | I211: 1 | J211: 1 | K211: 2 | L211: 2 | M211: 2 | N211: 1 | O211: 2 | P211: =SUM(G211:O211) -> 12 | Q211: =IF(Q209-Q206=-2,4)+IF(Q209-Q206=-1,3)+IF(Q209-Q206=0,2)+IF(Q209-Q206=1,1)+IF(Q209-Q206>2,0) -> 0 | R211: 1 | S211: 0 | T211: 3 | U211: 1 | V211: 1 | W211: 2 | X211: 1 | Y211: 1 | Z211: =SUM(Q211:Y211) -> 10 | AA211: =P211+Z211 -> 22
G212: =G209-G206 -> 1 | H212: =H209-H206 -> 2 | I212: 1 | J212: 1 | K212: 0 | L212: 0 | M212: 0 | N212: 1 | O212: 0 | Q212: =Q209-Q206 -> 2 | R212: 1 | S212: 2 | T212: -1 | U212: 1 | V212: 1 | W212: 0 | X212: 1 | Y212: 1
F215: Statistiques scores | H215: Eagle & moins | L215: =COUNTIF(G212:Y212,"<=-2") -> 0 | M215: Par | O215: =COUNTIF(G212:Y212,"=0") -> 5 | P215: Double bogey | U215: =COUNTIF(G212:Y212,"=2") -> 3
H216: Birdie | L216: =COUNTIF(G212:Y212,"=-1") -> 1 | M216: Bogey | O216: =COUNTIF(G212:Y212,"=1") -> 9 | P216: Triple bogey & plus | U216: =COUNTIF(G212:Y212,">=3") -> 0
H217: =M215 -> Par | L217: =O215 -> 5
H218: =M216 -> Bogey | L218: =O216 -> 9
H219: =P215 -> Double bogey | L219: =U215 -> 3
H220: =P216 -> Triple bogey & plus | L220: =U216 -> 0
F225: Nom | G225: =C15 -> HODEAU | L225: Slope | O225: SSS | Q225: Coups reçus | Z225: Date | AA225: =$D$3 -> 2022-03-05
F226: Index | G226: =E15 -> 34.7 | L226: =$F$3 -> 133 | O226: =$G$3 -> 68.6 | Q226: =ROUND((G226*(L226/113)+(O226-AA229)),0) -> 37
F228: Trou | G228: 1 | H228: 2 | I228: 3 | J228: 4 | K228: 5 | L228: 6 | M228: 7 | N228: 8 | O228: 9 | P228: Aller | Q228: 10 | R228: 11 | S228: 12 | T228: 13 | U228: 14 | V228: 15 | W228: 16 | X228: 17 | Y228: 18 | Z228: Retour | AA228: Total
F229: PAR | G229: =G$7 -> 4 | H229: =H$7 -> 4 | I229: 5 | J229: 4 | K229: 3 | L229: 5 | M229: 3 | N229: 5 | O229: 3 | P229: =SUM(G229:O229) -> 36 | Q229: =Q$7 -> 4 | R229: 4 | S229: 3 | T229: 5 | U229: 3 | V229: 4 | W229: 4 | X229: 5 | Y229: 4 | Z229: =SUM(Q229:Y229) -> 36 | AA229: =SUM(P229+Z229) -> 72
F230: HCP trous | G230: =G$8 -> 4 | H230: =H$8 -> 8 | I230: 12 | J230: 14 | K230: 2 | L230: 10 | M230: 18 | N230: 16 | O230: 6 | Q230: =Q$8 -> 1 | R230: 9 | S230: 11 | T230: 5 | U230: 17 | V230: 15 | W230: 3 | X230: 13 | Y230: 7
F231: Coups reçus | G231: =IF($Q226<=18,IF(G230<=$Q226,1,0),IF($Q226<=36,IF(G230<=($Q226-18),2,1),IF($Q226>36,IF(G230<=($Q226-36),3,2)))) -> 2 | H231: =IF($Q226<=18,IF(H230<=$Q226,1,0),IF($Q226<=36,IF(H230<=($Q226-18),2,1),IF($Q226>36,IF(H230<=($Q226-36),3,2)))) -> 2 | I231: =IF($Q226<=18,IF(I230<=$Q226,1,0),IF($Q226<=36,IF(I230<=($Q226-18),2,1),IF($Q226>36,IF(I230<=($Q226-36),3,2)))) -> 2 | J231: =IF($Q226<=18,IF(J230<=$Q226,1,0),IF($Q226<=36,IF(J230<=($Q226-18),2,1),IF($Q226>36,IF(J230<=($Q226-36),3,2)))) -> 2 | K231: =IF($Q226<=18,IF(K230<=$Q226,1,0),IF($Q226<=36,IF(K230<=($Q226-18),2,1),IF($Q226>36,IF(K230<=($Q226-36),3,2)))) -> 2 | L231: =IF($Q226<=18,IF(L230<=$Q226,1,0),IF($Q226<=36,IF(L230<=($Q226-18),2,1),IF($Q226>36,IF(L230<=($Q226-36),3,2)))) -> 2 | M231: =IF($Q226<=18,IF(M230<=$Q226,1,0),IF($Q226<=36,IF(M230<=($Q226-18),2,1),IF($Q226>36,IF(M230<=($Q226-36),3,2)))) -> 2 | N231: =IF($Q226<=18,IF(N230<=$Q226,1,0),IF($Q226<=36,IF(N230<=($Q226-18),2,1),IF($Q226>36,IF(N230<=($Q226-36),3,2)))) -> 2 | O231: =IF($Q226<=18,IF(O230<=$Q226,1,0),IF($Q226<=36,IF(O230<=($Q226-18),2,1),IF($Q226>36,IF(O230<=($Q226-36),3,2)))) -> 2 | P231: =SUM(G231:O231) -> 18 | Q231: =IF($Q226<=18,IF(Q230<=$Q226,1,0),IF($Q226<=36,IF(Q230<=($Q226-18),2,1),IF($Q226>36,IF(Q230<=($Q226-36),3,2)))) -> 3 | R231: =IF($Q226<=18,IF(R230<=$Q226,1,0),IF($Q226<=36,IF(R230<=($Q226-18),2,1),IF($Q226>36,IF(R230<=($Q226-36),3,2)))) -> 2 | S231: =IF($Q226<=18,IF(S230<=$Q226,1,0),IF($Q226<=36,IF(S230<=($Q226-18),2,1),IF($Q226>36,IF(S230<=($Q226-36),3,2)))) -> 2 | T231: =IF($Q226<=18,IF(T230<=$Q226,1,0),IF($Q226<=36,IF(T230<=($Q226-18),2,1),IF($Q226>36,IF(T230<=($Q226-36),3,2)))) -> 2 | U231: =IF($Q226<=18,IF(U230<=$Q226,1,0),IF($Q226<=36,IF(U230<=($Q226-18),2,1),IF($Q226>36,IF(U230<=($Q226-36),3,2)))) -> 2 | V231: =IF($Q226<=18,IF(V230<=$Q226,1,0),IF($Q226<=36,IF(V230<=($Q226-18),2,1),IF($Q226>36,IF(V230<=($Q226-36),3,2)))) -> 2 | W231: =IF($Q226<=18,IF(W230<=$Q226,1,0),IF($Q226<=36,IF(W230<=($Q226-18),2,1),IF($Q226>36,IF(W230<=($Q226-36),3,2)))) -> 2 | X231: =IF($Q226<=18,IF(X230<=$Q226,1,0),IF($Q226<=36,IF(X230<=($Q226-18),2,1),IF($Q226>36,IF(X230<=($Q226-36),3,2)))) -> 2 | Y231: =IF($Q226<=18,IF(Y230<=$Q226,1,0),IF($Q226<=36,IF(Y230<=($Q226-18),2,1),IF($Q226>36,IF(Y230<=($Q226-36),3,2)))) -> 2 | Z231: =SUM(Q231:Y231) -> 19 | AA231: =P231+Z231 -> 37
F232: Stroke play | G232: =G15 -> 5 | H232: 5 | I232: 7 | J232: 4 | K232: 3 | L232: 5 | M232: 5 | N232: 6 | O232: 6 | P232: =SUM(G232:O232) -> 46 | Q232: =Q15 -> 6 | R232: 5 | S232: 5 | T232: 7 | U232: 5 | V232: 7 | W232: 8 | X232: 5 | Y232: 7 | Z232: =SUM(Q232:Y232) -> 55 | AA232: =P232+Z232 -> 101
F233: Net Stableford | G233: =IF(G232-G229=-1,3+G231)+IF(G232-G229=0,2+G231)+IF(G232-G229=1,1+G231)+IF(G232-G229=2,G231)+IF(G232-G229=3,IF(G231-1>0,G231-1,0))+IF(G232-G229=4,IF(G231-2>0,G231-2,0)) -> 3 | H233: =IF(H232-H229=-1,3+H231)+IF(H232-H229=0,2+H231)+IF(H232-H229=1,1+H231)+IF(H232-H229=2,H231)+IF(H232-H229=3,IF(H231-1>0,H231-1,0))+IF(H232-H229=4,IF(H231-2>0,H231-2,0)) -> 3 | I233: 2 | J233: 4 | K233: 4 | L233: 4 | M233: 2 | N233: 3 | O233: 1 | P233: =SUM(G233:O233) -> 26 | Q233: =IF(Q232-Q229=-1,3+Q231)+IF(Q232-Q229=0,2+Q231)+IF(Q232-Q229=1,1+Q231)+IF(Q232-Q229=2,Q231)+IF(Q232-Q229=3,IF(Q231-1>0,Q231-1,0))+IF(Q232-Q229=4,IF(Q231-2>0,Q231-2,0)) -> 3 | R233: 3 | S233: 2 | T233: 2 | U233: 2 | V233: 1 | W233: 0 | X233: 4 | Y233: 1 | Z233: =SUM(Q233:Y233) -> 18 | AA233: =P233+Z233 -> 44
F234: Score Brut | G234: =IF(G232-G229=-2,4)+IF(G232-G229=-1,3)+IF(G232-G229=0,2)+IF(G232-G229=1,1)+IF(G232-G229>2,0) -> 1 | H234: 1 | I234: 0 | J234: 2 | K234: 2 | L234: 2 | M234: 0 | N234: 1 | O234: 0 | P234: =SUM(G234:O234) -> 9 | Q234: =IF(Q232-Q229=-2,4)+IF(Q232-Q229=-1,3)+IF(Q232-Q229=0,2)+IF(Q232-Q229=1,1)+IF(Q232-Q229>2,0) -> 0 | R234: 1 | S234: 0 | T234: 0 | U234: 0 | V234: 0 | W234: 0 | X234: 2 | Y234: 0 | Z234: =SUM(Q234:Y234) -> 3 | AA234: =P234+Z234 -> 12
G235: =G232-G229 -> 1 | H235: =H232-H229 -> 1 | I235: 2 | J235: 0 | K235: 0 | L235: 0 | M235: 2 | N235: 1 | O235: 3 | Q235: =Q232-Q229 -> 2 | R235: 1 | S235: 2 | T235: 2 | U235: 2 | V235: 3 | W235: 4 | X235: 0 | Y235: 3
F238: Statistiques scores | H238: Eagle & moins | L238: =COUNTIF(G235:Y235,"<=-2") -> 0 | M238: Par | O238: =COUNTIF(G235:Y235,"=0") -> 4 | P238: Double bogey | U238: =COUNTIF(G235:Y235,"=2") -> 6
H239: Birdie | L239: =COUNTIF(G235:Y235,"=-1") -> 0 | M239: Bogey | O239: =COUNTIF(G235:Y235,"=1") -> 4 | P239: Triple bogey & plus | U239: =COUNTIF(G235:Y235,">=3") -> 4
H240: =M238 -> Par | L240: =O238 -> 4
H241: =M239 -> Bogey | L241: =O239 -> 4
H242: =P238 -> Double bogey | L242: =U238 -> 6
H243: =P239 -> Triple bogey & plus | L243: =U239 -> 4
F248: Nom | G248: =C16 -> JACQUEMIN | L248: Slope | O248: SSS | Q248: Coups reçus | Z248: Date | AA248: =$D$3 -> 2022-03-05
F249: Index | G249: =E16 -> 17.2 | L249: =$F$3 -> 133 | O249: =$G$3 -> 68.6 | Q249: =ROUND((G249*(L249/113)+(O249-AA252)),0) -> 17
F251: Trou | G251: 1 | H251: 2 | I251: 3 | J251: 4 | K251: 5 | L251: 6 | M251: 7 | N251: 8 | O251: 9 | P251: Aller | Q251: 10 | R251: 11 | S251: 12 | T251: 13 | U251: 14 | V251: 15 | W251: 16 | X251: 17 | Y251: 18 | Z251: Retour | AA251: Total
F252: PAR | G252: =G$7 -> 4 | H252: =H$7 -> 4 | I252: 5 | J252: 4 | K252: 3 | L252: 5 | M252: 3 | N252: 5 | O252: 3 | P252: =SUM(G252:O252) -> 36 | Q252: =Q$7 -> 4 | R252: 4 | S252: 3 | T252: 5 | U252: 3 | V252: 4 | W252: 4 | X252: 5 | Y252: 4 | Z252: =SUM(Q252:Y252) -> 36 | AA252: =SUM(P252+Z252) -> 72
F253: HCP trous | G253: =G$8 -> 4 | H253: =H$8 -> 8 | I253: 12 | J253: 14 | K253: 2 | L253: 10 | M253: 18 | N253: 16 | O253: 6 | Q253: =Q$8 -> 1 | R253: 9 | S253: 11 | T253: 5 | U253: 17 | V253: 15 | W253: 3 | X253: 13 | Y253: 7
F254: Coups reçus | G254: =IF($Q249<=18,IF(G253<=$Q249,1,0),IF($Q249<=36,IF(G253<=($Q249-18),2,1),IF($Q249>36,IF(G253<=($Q249-36),3,2)))) -> 1 | H254: =IF($Q249<=18,IF(H253<=$Q249,1,0),IF($Q249<=36,IF(H253<=($Q249-18),2,1),IF($Q249>36,IF(H253<=($Q249-36),3,2)))) -> 1 | I254: =IF($Q249<=18,IF(I253<=$Q249,1,0),IF($Q249<=36,IF(I253<=($Q249-18),2,1),IF($Q249>36,IF(I253<=($Q249-36),3,2)))) -> 1 | J254: =IF($Q249<=18,IF(J253<=$Q249,1,0),IF($Q249<=36,IF(J253<=($Q249-18),2,1),IF($Q249>36,IF(J253<=($Q249-36),3,2)))) -> 1 | K254: =IF($Q249<=18,IF(K253<=$Q249,1,0),IF($Q249<=36,IF(K253<=($Q249-18),2,1),IF($Q249>36,IF(K253<=($Q249-36),3,2)))) -> 1 | L254: =IF($Q249<=18,IF(L253<=$Q249,1,0),IF($Q249<=36,IF(L253<=($Q249-18),2,1),IF($Q249>36,IF(L253<=($Q249-36),3,2)))) -> 1 | M254: =IF($Q249<=18,IF(M253<=$Q249,1,0),IF($Q249<=36,IF(M253<=($Q249-18),2,1),IF($Q249>36,IF(M253<=($Q249-36),3,2)))) -> 0 | N254: =IF($Q249<=18,IF(N253<=$Q249,1,0),IF($Q249<=36,IF(N253<=($Q249-18),2,1),IF($Q249>36,IF(N253<=($Q249-36),3,2)))) -> 1 | O254: =IF($Q249<=18,IF(O253<=$Q249,1,0),IF($Q249<=36,IF(O253<=($Q249-18),2,1),IF($Q249>36,IF(O253<=($Q249-36),3,2)))) -> 1 | P254: =SUM(G254:O254) -> 8 | Q254: =IF($Q249<=18,IF(Q253<=$Q249,1,0),IF($Q249<=36,IF(Q253<=($Q249-18),2,1),IF($Q249>36,IF(Q253<=($Q249-36),3,2)))) -> 1 | R254: =IF($Q249<=18,IF(R253<=$Q249,1,0),IF($Q249<=36,IF(R253<=($Q249-18),2,1),IF($Q249>36,IF(R253<=($Q249-36),3,2)))) -> 1 | S254: =IF($Q249<=18,IF(S253<=$Q249,1,0),IF($Q249<=36,IF(S253<=($Q249-18),2,1),IF($Q249>36,IF(S253<=($Q249-36),3,2)))) -> 1 | T254: =IF($Q249<=18,IF(T253<=$Q249,1,0),IF($Q249<=36,IF(T253<=($Q249-18),2,1),IF($Q249>36,IF(T253<=($Q249-36),3,2)))) -> 1 | U254: =IF($Q249<=18,IF(U253<=$Q249,1,0),IF($Q249<=36,IF(U253<=($Q249-18),2,1),IF($Q249>36,IF(U253<=($Q249-36),3,2)))) -> 1 | V254: =IF($Q249<=18,IF(V253<=$Q249,1,0),IF($Q249<=36,IF(V253<=($Q249-18),2,1),IF($Q249>36,IF(V253<=($Q249-36),3,2)))) -> 1 | W254: =IF($Q249<=18,IF(W253<=$Q249,1,0),IF($Q249<=36,IF(W253<=($Q249-18),2,1),IF($Q249>36,IF(W253<=($Q249-36),3,2)))) -> 1 | X254: =IF($Q249<=18,IF(X253<=$Q249,1,0),IF($Q249<=36,IF(X253<=($Q249-18),2,1),IF($Q249>36,IF(X253<=($Q249-36),3,2)))) -> 1 | Y254: =IF($Q249<=18,IF(Y253<=$Q249,1,0),IF($Q249<=36,IF(Y253<=($Q249-18),2,1),IF($Q249>36,IF(Y253<=($Q249-36),3,2)))) -> 1 | Z254: =SUM(Q254:Y254) -> 9 | AA254: =P254+Z254 -> 17
F255: Stroke play | G255: =G16 -> 5 | H255: 5 | I255: 5 | J255: 5 | K255: 5 | L255: 6 | M255: 2 | N255: 5 | O255: 3 | P255: =SUM(G255:O255) -> 41 | Q255: =Q16 -> 6 | R255: 5 | S255: 5 | T255: 6 | U255: 3 | V255: 5 | W255: 4 | X255: 7 | Y255: 8 | Z255: =SUM(Q255:Y255) -> 49 | AA255: =P255+Z255 -> 90
F256: Net Stableford | G256: =IF(G255-G252=-1,3+G254)+IF(G255-G252=0,2+G254)+IF(G255-G252=1,1+G254)+IF(G255-G252=2,G254)+IF(G255-G252=3,IF(G254-1>0,G254-1,0))+IF(G255-G252=4,IF(G254-2>0,G254-2,0)) -> 2 | H256: =IF(H255-H252=-1,3+H254)+IF(H255-H252=0,2+H254)+IF(H255-H252=1,1+H254)+IF(H255-H252=2,H254)+IF(H255-H252=3,IF(H254-1>0,H254-1,0))+IF(H255-H252=4,IF(H254-2>0,H254-2,0)) -> 2 | I256: 3 | J256: 2 | K256: 1 | L256: 2 | M256: 3 | N256: 3 | O256: 3 | P256: =SUM(G256:O256) -> 21 | Q256: =IF(Q255-Q252=-1,3+Q254)+IF(Q255-Q252=0,2+Q254)+IF(Q255-Q252=1,1+Q254)+IF(Q255-Q252=2,Q254)+IF(Q255-Q252=3,IF(Q254-1>0,Q254-1,0))+IF(Q255-Q252=4,IF(Q254-2>0,Q254-2,0)) -> 1 | R256: 2 | S256: 1 | T256: 2 | U256: 3 | V256: 2 | W256: 3 | X256: 1 | Y256: 0 | Z256: =SUM(Q256:Y256) -> 15 | AA256: =P256+Z256 -> 36
F257: Score Brut | G257: =IF(G255-G252=-2,4)+IF(G255-G252=-1,3)+IF(G255-G252=0,2)+IF(G255-G252=1,1)+IF(G255-G252>2,0) -> 1 | H257: 1 | I257: 2 | J257: 1 | K257: 0 | L257: 1 | M257: 3 | N257: 2 | O257: 2 | P257: =SUM(G257:O257) -> 13 | Q257: =IF(Q255-Q252=-2,4)+IF(Q255-Q252=-1,3)+IF(Q255-Q252=0,2)+IF(Q255-Q252=1,1)+IF(Q255-Q252>2,0) -> 0 | R257: 1 | S257: 0 | T257: 1 | U257: 2 | V257: 1 | W257: 2 | X257: 0 | Y257: 0 | Z257: =SUM(Q257:Y257) -> 7 | AA257: =P257+Z257 -> 20
G258: =G255-G252 -> 1 | H258: =H255-H252 -> 1 | I258: 0 | J258: 1 | K258: 2 | L258: 1 | M258: -1 | N258: 0 | O258: 0 | Q258: =Q255-Q252 -> 2 | R258: 1 | S258: 2 | T258: 1 | U258: 0 | V258: 1 | W258: 0 | X258: 2 | Y258: 4
F261: Statistiques scores | H261: Eagle & moins | L261: =COUNTIF(G258:Y258,"<=-2") -> 0 | M261: Par | O261: =COUNTIF(G258:Y258,"=0") -> 5 | P261: Double bogey | U261: =COUNTIF(G258:Y258,"=2") -> 4
H262: Birdie | L262: =COUNTIF(G258:Y258,"=-1") -> 1 | M262: Bogey | O262: =COUNTIF(G258:Y258,"=1") -> 7 | P262: Triple bogey & plus | U262: =COUNTIF(G258:Y258,">=3") -> 1
H263: =M261 -> Par | L263: =O261 -> 5
H264: =M262 -> Bogey | L264: =O262 -> 7
H265: =P261 -> Double bogey | L265: =U261 -> 4
H266: =P262 -> Triple bogey & plus | L266: =U262 -> 1
F271: Nom | G271: =C17 -> LEFEU | L271: Slope | O271: SSS | Q271: Coups reçus | Z271: Date | AA271: =$D$3 -> 2022-03-05
F272: Index | G272: =E17 -> 30.6 | L272: =$F$3 -> 133 | O272: =$G$3 -> 68.6 | Q272: =ROUND((G272*(L272/113)+(O272-AA275)),0) -> 33
... 350 more rows

Sheet Cheverny 26-03
C2: Golf | D2: Cheverny | F2: Slope | G2: SSS | N2: CARTE DE SCORE
C3: Date | D3: 2022-03-26 | F3: 122 | G3: 70
C5: Individuel Stableford BRUT/NET
E6: Index | F6: HCP trous | G6: 1 | H6: 2 | I6: 3 | J6: 4 | K6: 5 | L6: 6 | M6: 7 | N6: 8 | O6: 9 | P6: Aller | Q6: 10 | R6: 11 | S6: 12 | T6: 13 | U6: 14 | V6: 15 | W6: 16 | X6: 17 | Y6: 18 | Z6: Retour | AA6: Total
F7: PAR | G7: 4 | H7: 5 | I7: 3 | J7: 4 | K7: 4 | L7: 4 | M7: 3 | N7: 4 | O7: 5 | P7: =SUM(G7:O7) -> 36 | Q7: 4 | R7: 4 | S7: 3 | T7: 4 | U7: 4 | V7: 5 | W7: 4 | X7: 3 | Y7: 5 | Z7: =SUM(Q7:Y7) -> 36 | AA7: =SUM(P7+Z7) -> 72
C8: Noms | D8: Prénoms | F8: Trou | G8: 2 | H8: 8 | I8: 10 | J8: 14 | K8: 6 | L8: 4 | M8: 16 | N8: 12 | O8: 18 | Q8: 1 | R8: 9 | S8: 11 | T8: 5 | U8: 15 | V8: 13 | W8: 3 | X8: 17 | Y8: 7 | AC8: NET | AD8: Classt | AE8: Rang | AF8: Points | AH8: BRUT | AI8: Classt | AJ8: Rang | AK8: Points | AM8: STROKE | AN8: Classt | AO8: Rang | AP8: Points
B9: 1 | C9: CHRETIEN | D9: Fabrice | E9: 20.1 | G9: 6 | H9: 7 | I9: 5 | J9: 3 | K9: 5 | L9: 4 | M9: 5 | N9: 6 | O9: 4 | P9: =SUM(G9:O9) -> 45 | Q9: 6 | R9: 5 | S9: 5 | T9: 7 | U9: 4 | V9: 7 | W9: 5 | X9: 5 | Y9: 8 | Z9: =SUM(Q9:Y9) -> 52 | AA9: =SUM(P9+Z9) -> 97 | AC9: =$AA$95 -> 31 | AD9: =RANK(AC9,AC$9:AC$38,0)+COUNTIF(AC9:$AC$9,AC9)-1 -> 15 | AE9: =RANK(AC9,AC$9:AC$38,0) -> 15 | AF9: =IF(ISBLANK($C9),0,1)*INDEX('Allocation Points'!$B$3:$AG$32,AE9,COUNTIF(AE$9:AE$38,AE9)+2) -> 1 | AH9: =AA96 -> 13 | AI9: =RANK(AH9,AH$9:AH$38,0)+COUNTIF(AH9:$AH$9,AH9)-1 -> 9 | AJ9: =RANK(AH9,AH$9:AH$38,0) -> 9 | AK9: =IF(ISBLANK($C9),0,1)*INDEX('Allocation Points'!$B$3:$AG$32,AJ9,COUNTIF(AJ$9:AJ$38,AJ9)+2) -> 6 | AM9: =AA94 -> 97 | AN9: =RANK(AM9,AM$9:AM$38,1)+COUNTIF(AM9:$AM$9,AM9)-1 -> 9 | AO9: =RANK(AM9,AM$9:AM$38,1) -> 9 | AP9: =IF(ISBLANK($C9),0,1)*INDEX('Allocation Points'!$B$3:$AG$32,AO9,COUNTIF(AO$9:AO$38,AO9)+2) -> 6
B10: 2 | C10: DELOUCHE | D10: Yannick | E10: 48.2 | G10: 7 | H10: 6 | I10: 5 | J10: 6 | K10: 9 | L10: 7 | M10: 5 | N10: 5 | O10: 7 | P10: 57 | Q10: 8 | R10: 7 | S10: 5 | T10: 9 | U10: 7 | V10: 8 | W10: 6 | X10: 5 | Y10: 9 | Z10: 64 | AA10: 121 | AC10: =$AA$118 -> 37 | AD10: =RANK(AC10,AC$9:AC$38,0)+COUNTIF(AC$9:$AC10,AC10)-1 -> 4 | AE10: =RANK(AC10,AC$9:AC$38,0) -> 4 | AF10: =IF(ISBLANK($C10),0,1)*INDEX('Allocation Points'!$B$3:$AG$32,AE10,COUNTIF(AE$9:AE$38,AE10)+2) -> 15 | AH10: =AA119 -> 2 | AI10: =RANK(AH10,AH$9:AH$38,0)+COUNTIF(AH$9:$AH10,AH10)-1 -> 21 | AJ10: =RANK(AH10,AH$9:AH$38,0) -> 21 | AK10: =IF(ISBLANK($C10),0,1)*INDEX('Allocation Points'!$B$3:$AG$32,AJ10,COUNTIF(AJ$9:AJ$38,AJ10)+2) -> 1 | AM10: =AA117 -> 121 | AN10: =RANK(AM10,AM$9:AM$38,1)+COUNTIF(AM$9:$AM10,AM10)-1 -> 20 | AO10: =RANK(AM10,AM$9:AM$38,1) -> 20 | AP10: =IF(ISBLANK($C10),0,1)*INDEX('Allocation Points'!$B$3:$AG$32,AO10,COUNTIF(AO$9:AO$38,AO10)+2) -> 1
B11: 3 | C11: LANDIER | D11: Marc | E11: 23.3 | G11: 5 | H11: 7 | I11: 6 | J11: 6 | K11: 6 | L11: 5 | M11: 4 | N11: 6 | O11: 6 | P11: 51 | Q11: 7 | R11: 6 | S11: 4 | T11: 8 | U11: 5 | V11: 6 | W11: 7 | X11: 6 | Y11: 7 | Z11: 56 | AA11: 107 | AC11: =$AA$141 -> 24 | AD11: =RANK(AC11,AC$9:AC$38,0)+COUNTIF(AC$9:$AC11,AC11)-1 -> 20 | AE11: 20 | AF11: =IF(ISBLANK($C11),0,1)*INDEX('Allocation Points'!$B$3:$AG$32,AE11,COUNTIF(AE$9:AE$38,AE11)+2) -> 1 | AH11: =AA142 -> 7 | AI11: =RANK(AH11,AH$9:AH$38,0)+COUNTIF(AH$9:$AH11,AH11)-1 -> 14 | AJ11: 14 | AK11: =IF(ISBLANK($C11),0,1)*INDEX('Allocation Points'!$B$3:$AG$32,AJ11,COUNTIF(AJ$9:AJ$38,AJ11)+2) -> 1 | AM11: =AA140 -> 107 | AN11: =RANK(AM11,AM$9:AM$38,1)+COUNTIF(AM$9:$AM11,AM11)-1 -> 13 | AO11: 13 | AP11: =IF(ISBLANK($C11),0,1)*INDEX('Allocation Points'!$B$3:$AG$32,AO11,COUNTIF(AO$9:AO$38,AO11)+2) -> 1
B12: 4 | C12: HODEAU | D12: Cédric | E12: 34.7 | G12: 7 | H12: 8 | I12: 4 | J12: 5 | K12: 6 | L12: 5 | M12: 5 | N12: 4 | O12: 7 | P12: 51 | Q12: 8 | R12: 6 | S12: 2 | T12: 6 | U12: 8 | V12: 6 | W12: 7 | X12: 3 | Y12: 6 | Z12: 52 | AA12: 103 | AC12: =$AA$164 -> 40 | AD12: =RANK(AC12,AC$9:AC$38,0)+COUNTIF(AC$9:$AC12,AC12)-1 -> 2 | AE12: 2 | AF12: =IF(ISBLANK($C12),0,1)*INDEX('Allocation Points'!$B$3:$AG$32,AE12,COUNTIF(AE$9:AE$38,AE12)+2) -> 25 | AH12: =AA165 -> 12 | AI12: =RANK(AH12,AH$9:AH$38,0)+COUNTIF(AH$9:$AH12,AH12)-1 -> 10 | AJ12: 10 | AK12: =IF(ISBLANK($C12),0,1)*INDEX('Allocation Points'!$B$3:$AG$32,AJ12,COUNTIF(AJ$9:AJ$38,AJ12)+2) -> 5 | AM12: =AA163 -> 103 | AN12: =RANK(AM12,AM$9:AM$38,1)+COUNTIF(AM$9:$AM12,AM12)-1 -> 11 | AO12: 11 | AP12: =IF(ISBLANK($C12),0,1)*INDEX('Allocation Points'!$B$3:$AG$32,AO12,COUNTIF(AO$9:AO$38,AO12)+2) -> 4
B13: 5 | C13: FARE | D13: Loïc | E13: 25.6 | G13: 6 | H13: 7 | I13: 5 | J13: 5 | K13: 7 | L13: 5 | M13: 5 | N13: 4 | O13: 5 | P13: 49 | Q13: 6 | R13: 7 | S13: 4 | T13: 6 | U13: 6 | V13: 6 | W13: 5 | X13: 4 | Y13: 6 | Z13: 50 | AA13: 99 | AC13: =$AA$187 -> 35 | AD13: =RANK(AC13,AC$9:AC$38,0)+COUNTIF(AC$9:$AC13,AC13)-1 -> 7 | AE13: 7 | AF13: =IF(ISBLANK($C13),0,1)*INDEX('Allocation Points'!$B$3:$AG$32,AE13,COUNTIF(AE$9:AE$38,AE13)+2) -> 6 | AH13: =AA188 -> 11 | AI13: =RANK(AH13,AH$9:AH$38,0)+COUNTIF(AH$9:$AH13,AH13)-1 -> 11 | AJ13: 11 | AK13: =IF(ISBLANK($C13),0,1)*INDEX('Allocation Points'!$B$3:$AG$32,AJ13,COUNTIF(AJ$9:AJ$38,AJ13)+2) -> 4 | AM13: =AA186 -> 99 | AN13: =RANK(AM13,AM$9:AM$38,1)+COUNTIF(AM$9:$AM13,AM13)-1 -> 10 | AO13: 10 | AP13: =IF(ISBLANK($C13),0,1)*INDEX('Allocation Points'!$B$3:$AG$32,AO13,COUNTIF(AO$9:AO$38,AO13)+2) -> 5
B14: 6 | C14: MORALES | D14: José | E14: 14 | G14: 5 | H14: 5 | I14: 4 | J14: 5 | K14: 5 | L14: 6 | M14: 4 | N14: 3 | O14: 6 | P14: 43 | Q14: 3 | R14: 6 | S14: 6 | T14: 6 | U14: 4 | V14: 5 | W14: 5 | X14: 3 | Y14: 5 | Z14: 43 | AA14: 86 | AC14: =$AA$210 -> 35 | AD14: =RANK(AC14,AC$9:AC$38,0)+COUNTIF(AC$9:$AC14,AC14)-1 -> 8 | AE14: 7 | AF14: =IF(ISBLANK($C14),0,1)*INDEX('Allocation Points'!$B$3:$AG$32,AE14,COUNTIF(AE$9:AE$38,AE14)+2) -> 6 | AH14: =AA211 -> 23 | AI14: =RANK(AH14,AH$9:AH$38,0)+COUNTIF(AH$9:$AH14,AH14)-1 -> 2 | AJ14: 2 | AK14: =IF(ISBLANK($C14),0,1)*INDEX('Allocation Points'!$B$3:$AG$32,AJ14,COUNTIF(AJ$9:AJ$38,AJ14)+2) -> 25 | AM14: =AA209 -> 86 | AN14: =RANK(AM14,AM$9:AM$38,1)+COUNTIF(AM$9:$AM14,AM14)-1 -> 2 | AO14: 2 | AP14: =IF(ISBLANK($C14),0,1)*INDEX('Allocation Points'!$B$3:$AG$32,AO14,COUNTIF(AO$9:AO$38,AO14)+2) -> 25
B15: 7 | C15: ROBERT | D15: Jean-Christophe | E15: 25 | G15: 6 | H15: 7 | I15: 5 | J15: 6 | K15: 6 | L15: 4 | M15: 4 | N15: 7 | O15: 6 | P15: 51 | Q15: 7 | R15: 8 | S15: 4 | T15: 6 | U15: 5 | V15: 6 | W15: 8 | X15: 3 | Y15: 9 | Z15: 56 | AA15: 107 | AC15: =$AA$233 -> 27 | AD15: =RANK(AC15,AC$9:AC$38,0)+COUNTIF(AC$9:$AC15,AC15)-1 -> 16 | AE15: 16 | AF15: =IF(ISBLANK($C15),0,1)*INDEX('Allocation Points'!$B$3:$AG$32,AE15,COUNTIF(AE$9:AE$38,AE15)+2) -> 1 | AH15: =AA234 -> 9 | AI15: =RANK(AH15,AH$9:AH$38,0)+COUNTIF(AH$9:$AH15,AH15)-1 -> 13 | AJ15: 13 | AK15: =IF(ISBLANK($C15),0,1)*INDEX('Allocation Points'!$B$3:$AG$32,AJ15,COUNTIF(AJ$9:AJ$38,AJ15)+2) -> 2 | AM15: =AA232 -> 107 | AN15: =RANK(AM15,AM$9:AM$38,1)+COUNTIF(AM$9:$AM15,AM15)-1 -> 14 | AO15: 13 | AP15: =IF(ISBLANK($C15),0,1)*INDEX('Allocation Points'!$B$3:$AG$32,AO15,COUNTIF(AO$9:AO$38,AO15)+2) -> 1
B16: 8 | C16: BINVAULT | D16: Dominique | E16: 34.7 | G16: 6 | H16: 9 | I16: 3 | J16: 7 | K16: 6 | L16: 5 | M16: 4 | N16: 5 | O16: 6 | P16: 51 | Q16: 6 | R16: 6 | S16: 5 | T16: 6 | U16: 7 | V16: 9 | W16: 7 | X16: 7 | Y16: 7 | Z16: 60 | AA16: 111 | AC16: =$AA$256 -> 32 | AD16: =RANK(AC16,AC$9:AC$38,0)+COUNTIF(AC$9:$AC16,AC16)-1 -> 14 | AE16: 14 | AF16: =IF(ISBLANK($C16),0,1)*INDEX('Allocation Points'!$B$3:$AG$32,AE16,COUNTIF(AE$9:AE$38,AE16)+2) -> 1 | AH16: =AA257 -> 6 | AI16: =RANK(AH16,AH$9:AH$38,0)+COUNTIF(AH$9:$AH16,AH16)-1 -> 16 | AJ16: 16 | AK16: =IF(ISBLANK($C16),0,1)*INDEX('Allocation Points'!$B$3:$AG$32,AJ16,COUNTIF(AJ$9:AJ$38,AJ16)+2) -> 1 | AM16: =AA255 -> 111 | AN16: =RANK(AM16,AM$9:AM$38,1)+COUNTIF(AM$9:$AM16,AM16)-1 -> 17 | AO16: 17 | AP16: =IF(ISBLANK($C16),0,1)*INDEX('Allocation Points'!$B$3:$AG$32,AO16,COUNTIF(AO$9:AO$38,AO16)+2) -> 1
B17: 9 | C17: DIOT | D17: Alexandre | E17: 8.2 | G17: 7 | H17: 7 | I17: 3 | J17: 6 | K17: 5 | L17: 5 | M17: 4 | N17: 5 | O17: 6 | P17: 48 | Q17: 5 | R17: 7 | S17: 4 | T17: 5 | U17: 4 | V17: 5 | W17: 4 | X17: 3 | Y17: 5 | Z17: 42 | AA17: 90 | AC17: =$AA$279 -> 26 | AD17: =RANK(AC17,AC$9:AC$38,0)+COUNTIF(AC$9:$AC17,AC17)-1 -> 17 | AE17: 17 | AF17: =IF(ISBLANK($C17),0,1)*INDEX('Allocation Points'!$B$3:$AG$32,AE17,COUNTIF(AE$9:AE$38,AE17)+2) -> 1 | AH17: =AA280 -> 20 | AI17: =RANK(AH17,AH$9:AH$38,0)+COUNTIF(AH$9:$AH17,AH17)-1 -> 4 | AJ17: 4 | AK17: =IF(ISBLANK($C17),0,1)*INDEX('Allocation Points'!$B$3:$AG$32,AJ17,COUNTIF(AJ$9:AJ$38,AJ17)+2) -> 12 | AM17: =AA278 -> 90 | AN17: =RANK(AM17,AM$9:AM$38,1)+COUNTIF(AM$9:$AM17,AM17)-1 -> 4 | AO17: 4 | AP17: =IF(ISBLANK($C17),0,1)*INDEX('Allocation Points'!$B$3:$AG$32,AO17,COUNTIF(AO$9:AO$38,AO17)+2) -> 11
B18: 10 | C18: VILLATTE | D18: Joël | E18: 54 | G18: 8 | H18: 9 | I18: 7 | J18: 8 | K18: 6 | L18: 9 | M18: 6 | N18: 8 | O18: 10 | P18: 71 | Q18: 9 | R18: 8 | S18: 8 | T18: 6 | U18: 9 | V18: 8 | W18: 7 | X18: 7 | Y18: 9 | Z18: 71 | AA18: 142 | AC18: =$AA$302 -> 20 | AD18: =RANK(AC18,AC$9:AC$38,0)+COUNTIF(AC$9:$AC18,AC18)-1 -> 22 | AE18: 22 | AF18: =IF(ISBLANK($C18),0,1)*INDEX('Allocation Points'!$B$3:$AG$32,AE18,COUNTIF(AE$9:AE$38,AE18)+2) -> 1 | AH18: =AA303 -> 0 | AI18: =RANK(AH18,AH$9:AH$38,0)+COUNTIF(AH$9:$AH18,AH18)-1 -> 22 | AJ18: 22 | AK18: =IF(ISBLANK($C18),0,1)*INDEX('Allocation Points'!$B$3:$AG$32,AJ18,COUNTIF(AJ$9:AJ$38,AJ18)+2) -> 1 | AM18: =AA301 -> 142 | AN18: =RANK(AM18,AM$9:AM$38,1)+COUNTIF(AM$9:$AM18,AM18)-1 -> 22 | AO18: 22 | AP18: =IF(ISBLANK($C18),0,1)*INDEX('Allocation Points'!$B$3:$AG$32,AO18,COUNTIF(AO$9:AO$38,AO18)+2) -> 1
B19: 11 | C19: VICENTE | D19: Paulo | E19: 54 | G19: 8 | H19: 7 | I19: 4 | J19: 6 | K19: 7 | L19: 5 | M19: 6 | N19: 6 | O19: 6 | P19: 55 | Q19: 9 | R19: 7 | S19: 5 | T19: 6 | U19: 6 | V19: 6 | W19: 7 | X19: 4 | Y19: 8 | Z19: 58 | AA19: 113 | AC19: =$AA$325 -> 49 | AD19: =RANK(AC19,AC$9:AC$38,0)+COUNTIF(AC$9:$AC19,AC19)-1 -> 1 | AE19: 1 | AF19: =IF(ISBLANK($C19),0,1)*INDEX('Allocation Points'!$B$3:$AG$32,AE19,COUNTIF(AE$9:AE$38,AE19)+2) -> 30 | AH19: =AA326 -> 5 | AI19: =RANK(AH19,AH$9:AH$38,0)+COUNTIF(AH$9:$AH19,AH19)-1 -> 17 | AJ19: 17 | AK19: =IF(ISBLANK($C19),0,1)*INDEX('Allocation Points'!$B$3:$AG$32,AJ19,COUNTIF(AJ$9:AJ$38,AJ19)+2) -> 1 | AM19: =AA324 -> 113 | AN19: =RANK(AM19,AM$9:AM$38,1)+COUNTIF(AM$9:$AM19,AM19)-1 -> 18 | AO19: 18 | AP19: =IF(ISBLANK($C19),0,1)*INDEX('Allocation Points'!$B$3:$AG$32,AO19,COUNTIF(AO$9:AO$38,AO19)+2) -> 1
B20: 12 | C20: HERRAULT | D20: Sébastien | E20: 11.3 | G20: 6 | H20: 6 | I20: 3 | J20: 5 | K20: 4 | L20: 4 | M20: 6 | N20: 4 | O20: 5 | P20: 43 | Q20: 4 | R20: 5 | S20: 3 | T20: 6 | U20: 5 | V20: 5 | W20: 4 | X20: 3 | Y20: 6 | Z20: 41 | AA20: 84 | AC20: =$AA$348 -> 35 | AD20: =RANK(AC20,AC$9:AC$38,0)+COUNTIF(AC$9:$AC20,AC20)-1 -> 9 | AE20: 7 | AF20: =IF(ISBLANK($C20),0,1)*INDEX('Allocation Points'!$B$3:$AG$32,AE20,COUNTIF(AE$9:AE$38,AE20)+2) -> 6 | AH20: =AA349 -> 25 | AI20: =RANK(AH20,AH$9:AH$38,0)+COUNTIF(AH$9:$AH20,AH20)-1 -> 1 | AJ20: 1 | AK20: =IF(ISBLANK($C20),0,1)*INDEX('Allocation Points'!$B$3:$AG$32,AJ20,COUNTIF(AJ$9:AJ$38,AJ20)+2) -> 30 | AM20: =AA347 -> 84 | AN20: =RANK(AM20,AM$9:AM$38,1)+COUNTIF(AM$9:$AM20,AM20)-1 -> 1 | AO20: 1 | AP20: =IF(ISBLANK($C20),0,1)*INDEX('Allocation Points'!$B$3:$AG$32,AO20,COUNTIF(AO$9:AO$38,AO20)+2) -> 30
B21: 13 | C21: MAITRE | D21: Benoît | E21: 23.9 | G21: 6 | H21: 8 | I21: 6 | J21: 5 | K21: 4 | L21: 4 | M21: 4 | N21: 5 | O21: 5 | P21: 47 | Q21: 6 | R21: 5 | S21: 5 | T21: 5 | U21: 5 | V21: 6 | W21: 6 | X21: 3 | Y21: 8 | Z21: 49 | AA21: 96 | AC21: =$AA$371 -> 36 | AD21: =RANK(AC21,AC$9:AC$38,0)+COUNTIF(AC$9:$AC21,AC21)-1 -> 5 | AE21: 5 | AF21: =IF(ISBLANK($C21),0,1)*INDEX('Allocation Points'!$B$3:$AG$32,AE21,COUNTIF(AE$9:AE$38,AE21)+2) -> 9 | AH21: =AA372 -> 15 | AI21: =RANK(AH21,AH$9:AH$38,0)+COUNTIF(AH$9:$AH21,AH21)-1 -> 8 | AJ21: 8 | AK21: =IF(ISBLANK($C21),0,1)*INDEX('Allocation Points'!$B$3:$AG$32,AJ21,COUNTIF(AJ$9:AJ$38,AJ21)+2) -> 7 | AM21: =AA370 -> 96 | AN21: =RANK(AM21,AM$9:AM$38,1)+COUNTIF(AM$9:$AM21,AM21)-1 -> 8 | AO21: 8 | AP21: =IF(ISBLANK($C21),0,1)*INDEX('Allocation Points'!$B$3:$AG$32,AO21,COUNTIF(AO$9:AO$38,AO21)+2) -> 7
B22: 14 | C22: LEVEQUE | D22: Claude | E22: 22.4 | G22: 5 | H22: 7 | I22: 5 | J22: 5 | K22: 6 | L22: 6 | M22: 6 | N22: 5 | O22: 7 | P22: 52 | Q22: 6 | R22: 6 | S22: 6 | T22: 6 | U22: 5 | V22: 7 | W22: 6 | X22: 7 | Y22: 8 | Z22: 57 | AA22: 109 | AC22: =$AA$394 -> 22 | AD22: =RANK(AC22,AC$9:AC$38,0)+COUNTIF(AC$9:$AC22,AC22)-1 -> 21 | AE22: 21 | AF22: =IF(ISBLANK($C22),0,1)*INDEX('Allocation Points'!$B$3:$AG$32,AE22,COUNTIF(AE$9:AE$38,AE22)+2) -> 1 | AH22: =AA395 -> 4 | AI22: =RANK(AH22,AH$9:AH$38,0)+COUNTIF(AH$9:$AH22,AH22)-1 -> 18 | AJ22: 18 | AK22: =IF(ISBLANK($C22),0,1)*INDEX('Allocation Points'!$B$3:$AG$32,AJ22,COUNTIF(AJ$9:AJ$38,AJ22)+2) -> 1 | AM22: =AA393 -> 109 | AN22: =RANK(AM22,AM$9:AM$38,1)+COUNTIF(AM$9:$AM22,AM22)-1 -> 15 | AO22: 15 | AP22: =IF(ISBLANK($C22),0,1)*INDEX('Allocation Points'!$B$3:$AG$32,AO22,COUNTIF(AO$9:AO$38,AO22)+2) -> 1
B23: 15 | C23: VERRIER | D23: Alexandre | E23: 16.6 | G23: 6 | H23: 7 | I23: 3 | J23: 4 | K23: 4 | L23: 5 | M23: 4 | N23: 4 | O23: 4 | P23: 41 | Q23: 6 | R23: 6 | S23: 4 | T23: 6 | U23: 6 | V23: 7 | W23: 6 | X23: 3 | Y23: 5 | Z23: 49 | AA23: 90 | AC23: =$AA$417 -> 34 | AD23: =RANK(AC23,AC$9:AC$38,0)+COUNTIF(AC$9:$AC23,AC23)-1 -> 11 | AE23: 11 | AF23: =IF(ISBLANK($C23),0,1)*INDEX('Allocation Points'!$B$3:$AG$32,AE23,COUNTIF(AE$9:AE$38,AE23)+2) -> 3 | AH23: =AA418 -> 18 | AI23: =RANK(AH23,AH$9:AH$38,0)+COUNTIF(AH$9:$AH23,AH23)-1 -> 6 | AJ23: 6 | AK23: =IF(ISBLANK($C23),0,1)*INDEX('Allocation Points'!$B$3:$AG$32,AJ23,COUNTIF(AJ$9:AJ$38,AJ23)+2) -> 9 | AM23: =AA416 -> 90 | AN23: =RANK(AM23,AM$9:AM$38,1)+COUNTIF(AM$9:$AM23,AM23)-1 -> 5 | AO23: 4 | AP23: =IF(ISBLANK($C23),0,1)*INDEX('Allocation Points'!$B$3:$AG$32,AO23,COUNTIF(AO$9:AO$38,AO23)+2) -> 11
B24: 16 | C24: MICHEL | D24: Eric | E24: 37 | G24: 8 | H24: 6 | I24: 4 | J24: 7 | K24: 6 | L24: 7 | M24: 5 | N24: 5 | O24: 8 | P24: 56 | Q24: 8 | R24: 8 | S24: 4 | T24: 6 | U24: 4 | V24: 6 | W24: 6 | X24: 5 | Y24: 7 | Z24: 54 | AA24: 110 | AC24: =$AA$440 -> 36 | AD24: =RANK(AC24,AC$9:AC$38,0)+COUNTIF(AC$9:$AC24,AC24)-1 -> 6 | AE24: 5 | AF24: =IF(ISBLANK($C24),0,1)*INDEX('Allocation Points'!$B$3:$AG$32,AE24,COUNTIF(AE$9:AE$38,AE24)+2) -> 9 | AH24: =AA441 -> 7 | AI24: =RANK(AH24,AH$9:AH$38,0)+COUNTIF(AH$9:$AH24,AH24)-1 -> 15 | AJ24: 14 | AK24: =IF(ISBLANK($C24),0,1)*INDEX('Allocation Points'!$B$3:$AG$32,AJ24,COUNTIF(AJ$9:AJ$38,AJ24)+2) -> 1 | AM24: =AA439 -> 110 | AN24: =RANK(AM24,AM$9:AM$38,1)+COUNTIF(AM$9:$AM24,AM24)-1 -> 16 | AO24: 16 | AP24: =IF(ISBLANK($C24),0,1)*INDEX('Allocation Points'!$B$3:$AG$32,AO24,COUNTIF(AO$9:AO$38,AO24)+2) -> 1
B25: 17 | C25: PORTRON | D25: Inès | E25: 54 | G25: 10 | H25: 9 | I25: 4 | J25: 7 | K25: 7 | L25: 7 | M25: 6 | N25: 8 | O25: 8 | P25: 66 | Q25: 8 | R25: 7 | S25: 4 | T25: 8 | U25: 8 | V25: 8 | W25: 7 | X25: 4 | Y25: 9 | Z25: 63 | AA25: 129 | AC25: =$AA$463 -> 34 | AD25: =RANK(AC25,AC$9:AC$38,0)+COUNTIF(AC$9:$AC25,AC25)-1 -> 12 | AE25: 11 | AF25: =IF(ISBLANK($C25),0,1)*INDEX('Allocation Points'!$B$3:$AG$32,AE25,COUNTIF(AE$9:AE$38,AE25)+2) -> 3 | AH25: =AA464 -> 3 | AI25: =RANK(AH25,AH$9:AH$38,0)+COUNTIF(AH$9:$AH25,AH25)-1 -> 20 | AJ25: 20 | AK25: =IF(ISBLANK($C25),0,1)*INDEX('Allocation Points'!$B$3:$AG$32,AJ25,COUNTIF(AJ$9:AJ$38,AJ25)+2) -> 1 | AM25: =AA462 -> 129 | AN25: =RANK(AM25,AM$9:AM$38,1)+COUNTIF(AM$9:$AM25,AM25)-1 -> 21 | AO25: 21 | AP25: =IF(ISBLANK($C25),0,1)*INDEX('Allocation Points'!$B$3:$AG$32,AO25,COUNTIF(AO$9:AO$38,AO25)+2) -> 1
B26: 18 | C26: VIALLETON | D26: Loïc | E26: 17.4 | G26: 5 | H26: 6 | I26: 4 | J26: 6 | K26: 5 | L26: 4 | M26: 3 | N26: 3 | O26: 6 | P26: 42 | Q26: 6 | R26: 4 | S26: 5 | T26: 6 | U26: 6 | V26: 6 | W26: 6 | X26: 4 | Y26: 7 | Z26: 50 | AA26: 92 | AC26: =$AA$486 -> 33 | AD26: =RANK(AC26,AC$9:AC$38,0)+COUNTIF(AC$9:$AC26,AC26)-1 -> 13 | AE26: 13 | AF26: =IF(ISBLANK($C26),0,1)*INDEX('Allocation Points'!$B$3:$AG$32,AE26,COUNTIF(AE$9:AE$38,AE26)+2) -> 2 | AH26: =AA487 -> 16 | AI26: =RANK(AH26,AH$9:AH$38,0)+COUNTIF(AH$9:$AH26,AH26)-1 -> 7 | AJ26: 7 | AK26: =IF(ISBLANK($C26),0,1)*INDEX('Allocation Points'!$B$3:$AG$32,AJ26,COUNTIF(AJ$9:AJ$38,AJ26)+2) -> 8 | AM26: =AA485 -> 92 | AN26: =RANK(AM26,AM$9:AM$38,1)+COUNTIF(AM$9:$AM26,AM26)-1 -> 7 | AO26: 7 | AP26: =IF(ISBLANK($C26),0,1)*INDEX('Allocation Points'!$B$3:$AG$32,AO26,COUNTIF(AO$9:AO$38,AO26)+2) -> 8
B27: 19 | C27: DAVID | D27: Paul | E27: 20.6 | G27: 7 | H27: 7 | I27: 8 | J27: 6 | K27: 5 | L27: 5 | M27: 4 | N27: 5 | O27: 6 | P27: 53 | Q27: 6 | R27: 7 | S27: 3 | T27: 7 | U27: 5 | V27: 7 | W27: 5 | X27: 5 | Y27: 6 | Z27: 51 | AA27: 104 | AC27: =$AA$509 -> 26 | AD27: =RANK(AC27,AC$9:AC$38,0)+COUNTIF(AC$9:$AC27,AC27)-1 -> 18 | AE27: 17 | AF27: =IF(ISBLANK($C27),0,1)*INDEX('Allocation Points'!$B$3:$AG$32,AE27,COUNTIF(AE$9:AE$38,AE27)+2) -> 1 | AH27: =AA510 -> 10 | AI27: =RANK(AH27,AH$9:AH$38,0)+COUNTIF(AH$9:$AH27,AH27)-1 -> 12 | AJ27: 12 | AK27: =IF(ISBLANK($C27),0,1)*INDEX('Allocation Points'!$B$3:$AG$32,AJ27,COUNTIF(AJ$9:AJ$38,AJ27)+2) -> 3 | AM27: =AA508 -> 104 | AN27: =RANK(AM27,AM$9:AM$38,1)+COUNTIF(AM$9:$AM27,AM27)-1 -> 12 | AO27: 12 | AP27: =IF(ISBLANK($C27),0,1)*INDEX('Allocation Points'!$B$3:$AG$32,AO27,COUNTIF(AO$9:AO$38,AO27)+2) -> 3
B28: 20 | C28: LEFEU | D28: Jean-Marie | E28: 30.6 | G28: 8 | H28: 8 | I28: 7 | J28: 6 | K28: 6 | L28: 5 | M28: 5 | N28: 6 | O28: 8 | P28: 59 | Q28: 8 | R28: 6 | S28: 3 | T28: 6 | U28: 5 | V28: 7 | W28: 7 | X28: 5 | Y28: 7 | Z28: 54 | AA28: 113 | AC28: =$AA$532 -> 26 | AD28: =RANK(AC28,AC$9:AC$38,0)+COUNTIF(AC$9:$AC28,AC28)-1 -> 19 | AE28: 17 | AF28: =IF(ISBLANK($C28),0,1)*INDEX('Allocation Points'!$B$3:$AG$32,AE28,COUNTIF(AE$9:AE$38,AE28)+2) -> 1 | AH28: =AA533 -> 4 | AI28: =RANK(AH28,AH$9:AH$38,0)+COUNTIF(AH$9:$AH28,AH28)-1 -> 19 | AJ28: 18 | AK28: =IF(ISBLANK($C28),0,1)*INDEX('Allocation Points'!$B$3:$AG$32,AJ28,COUNTIF(AJ$9:AJ$38,AJ28)+2) -> 1 | AM28: =AA531 -> 113 | AN28: =RANK(AM28,AM$9:AM$38,1)+COUNTIF(AM$9:$AM28,AM28)-1 -> 19 | AO28: 18 | AP28: =IF(ISBLANK($C28),0,1)*INDEX('Allocation Points'!$B$3:$AG$32,AO28,COUNTIF(AO$9:AO$38,AO28)+2) -> 1
B29: 21 | C29: ZIAR | D29: Yacine | E29: 18 | G29: 5 | H29: 7 | I29: 4 | J29: 4 | K29: 6 | L29: 4 | M29: 3 | N29: 7 | O29: 6 | P29: 46 | Q29: 7 | R29: 4 | S29: 3 | T29: 4 | U29: 5 | V29: 5 | W29: 5 | X29: 4 | Y29: 7 | Z29: 44 | AA29: 90 | AC29: =$AA$555 -> 35 | AD29: =RANK(AC29,AC$9:AC$38,0)+COUNTIF(AC$9:$AC29,AC29)-1 -> 10 | AE29: 7 | AF29: =IF(ISBLANK($C29),0,1)*INDEX('Allocation Points'!$B$3:$AG$32,AE29,COUNTIF(AE$9:AE$38,AE29)+2) -> 6 | AH29: =AA556 -> 20 | AI29: =RANK(AH29,AH$9:AH$38,0)+COUNTIF(AH$9:$AH29,AH29)-1 -> 5 | AJ29: 4 | AK29: =IF(ISBLANK($C29),0,1)*INDEX('Allocation Points'!$B$3:$AG$32,AJ29,COUNTIF(AJ$9:AJ$38,AJ29)+2) -> 12 | AM29: =AA554 -> 90 | AN29: =RANK(AM29,AM$9:AM$38,1)+COUNTIF(AM$9:$AM29,AM29)-1 -> 6 | AO29: 4 | AP29: =IF(ISBLANK($C29),0,1)*INDEX('Allocation Points'!$B$3:$AG$32,AO29,COUNTIF(AO$9:AO$38,AO29)+2) -> 11
B30: 22 | C30: JACQUEMIN | D30: Franck | E30: 17.2 | G30: 5 | H30: 5 | I30: 5 | J30: 5 | K30: 5 | L30: 4 | M30: 3 | N30: 3 | O30: 6 | P30: 41 | Q30: 6 | R30: 5 | S30: 4 | T30: 6 | U30: 4 | V30: 6 | W30: 6 | X30: 3 | Y30: 6 | Z30: 46 | AA30: 87 | AC30: =$AA$578 -> 38 | AD30: =RANK(AC30,AC$9:AC$38,0)+COUNTIF(AC$9:$AC30,AC30)-1 -> 3 | AE30: 3 | AF30: =IF(ISBLANK($C30),0,1)*INDEX('Allocation Points'!$B$3:$AG$32,AE30,COUNTIF(AE$9:AE$38,AE30)+2) -> 20 | AH30: =AA579 -> 21 | AI30: =RANK(AH30,AH$9:AH$38,0)+COUNTIF(AH$9:$AH30,AH30)-1 -> 3 | AJ30: 3 | AK30: =IF(ISBLANK($C30),0,1)*INDEX('Allocation Points'!$B$3:$AG$32,AJ30,COUNTIF(AJ$9:AJ$38,AJ30)+2) -> 20 | AM30: =AA577 -> 87 | AN30: =RANK(AM30,AM$9:AM$38,1)+COUNTIF(AM$9:$AM30,AM30)-1 -> 3 | AO30: 3 | AP30: =IF(ISBLANK($C30),0,1)*INDEX('Allocation Points'!$B$3:$AG$32,AO30,COUNTIF(AO$9:AO$38,AO30)+2) -> 20
B31: 23 | C31: LAHOREAU | D31: Patrice | E31: 54 | G31: 8 | H31: 15 | I31: 6 | J31: 9 | K31: 9 | L31: 9 | M31: 10 | N31: 11 | O31: 7 | P31: 84 | Q31: 9 | R31: 7 | S31: 5 | T31: 7 | U31: 7 | V31: 8 | W31: 9 | X31: 10 | Y31: 0 | Z31: 62 | AA31: 146 | AC31: =$AA$601 -> 17 | AD31: =RANK(AC31,AC$9:AC$38,0)+COUNTIF(AC$9:$AC31,AC31)-1 -> 23 | AE31: 23 | AF31: =IF(ISBLANK($C31),0,1)*INDEX('Allocation Points'!$B$3:$AG$32,AE31,COUNTIF(AE$9:AE$38,AE31)+2) -> 1 | AH31: =AA602 -> 0 | AI31: =RANK(AH31,AH$9:AH$38,0)+COUNTIF(AH$9:$AH31,AH31)-1 -> 23 | AJ31: 22 | AK31: =IF(ISBLANK($C31),0,1)*INDEX('Allocation Points'!$B$3:$AG$32,AJ31,COUNTIF(AJ$9:AJ$38,AJ31)+2) -> 1 | AM31: =AA600 -> 146 | AN31: =RANK(AM31,AM$9:AM$38,1)+COUNTIF(AM$9:$AM31,AM31)-1 -> 23 | AO31: 23 | AP31: =IF(ISBLANK($C31),0,1)*INDEX('Allocation Points'!$B$3:$AG$32,AO31,COUNTIF(AO$9:AO$38,AO31)+2) -> 1
B32: 24 | E32: 20 | G32: 10 | H32: 10 | I32: 10 | J32: 10 | K32: 10 | L32: 10 | M32: 10 | N32: 10 | O32: 10 | P32: 90 | Q32: 10 | R32: 10 | S32: 10 | T32: 10 | U32: 10 | V32: 10 | W32: 10 | X32: 10 | Y32: 10 | Z32: 90 | AA32: 180 | AC32: =$AA$624 -> 0 | AD32: =RANK(AC32,AC$9:AC$38,0)+COUNTIF(AC$9:$AC32,AC32)-1 -> 24 | AE32: 24 | AF32: =IF(ISBLANK($C32),0,1)*INDEX('Allocation Points'!$B$3:$AG$32,AE32,COUNTIF(AE$9:AE$38,AE32)+2) -> 0 | AH32: =AA625 -> 0 | AI32: =RANK(AH32,AH$9:AH$38,0)+COUNTIF(AH$9:$AH32,AH32)-1 -> 24 | AJ32: 22 | AK32: =IF(ISBLANK($C32),0,1)*INDEX('Allocation Points'!$B$3:$AG$32,AJ32,COUNTIF(AJ$9:AJ$38,AJ32)+2) -> 0 | AM32: =AA623 -> 180 | AN32: =RANK(AM32,AM$9:AM$38,1)+COUNTIF(AM$9:$AM32,AM32)-1 -> 24 | AO32: 24 | AP32: =IF(ISBLANK($C32),0,1)*INDEX('Allocation Points'!$B$3:$AG$32,AO32,COUNTIF(AO$9:AO$38,AO32)+2) -> 0
B33: 25 | E33: 20 | G33: 10 | H33: 10 | I33: 10 | J33: 10 | K33: 10 | L33: 10 | M33: 10 | N33: 10 | O33: 10 | P33: 90 | Q33: 10 | R33: 10 | S33: 10 | T33: 10 | U33: 10 | V33: 10 | W33: 10 | X33: 10 | Y33: 10 | Z33: 90 | AA33: 180 | AC33: =$AA$647 -> 0 | AD33: =RANK(AC33,AC$9:AC$38,0)+COUNTIF(AC$9:$AC33,AC33)-1 -> 25 | AE33: 24 | AF33: =IF(ISBLANK($C33),0,1)*INDEX('Allocation Points'!$B$3:$AG$32,AE33,COUNTIF(AE$9:AE$38,AE33)+2) -> 0 | AH33: =AA648 -> 0 | AI33: =RANK(AH33,AH$9:AH$38,0)+COUNTIF(AH$9:$AH33,AH33)-1 -> 25 | AJ33: 22 | AK33: =IF(ISBLANK($C33),0,1)*INDEX('Allocation Points'!$B$3:$AG$32,AJ33,COUNTIF(AJ$9:AJ$38,AJ33)+2) -> 0 | AM33: =AA646 -> 180 | AN33: =RANK(AM33,AM$9:AM$38,1)+COUNTIF(AM$9:$AM33,AM33)-1 -> 25 | AO33: 24 | AP33: =IF(ISBLANK($C33),0,1)*INDEX('Allocation Points'!$B$3:$AG$32,AO33,COUNTIF(AO$9:AO$38,AO33)+2) -> 0
B34: 26 | E34: 20 | G34: 10 | H34: 10 | I34: 10 | J34: 10 | K34: 10 | L34: 10 | M34: 10 | N34: 10 | O34: 10 | P34: 90 | Q34: 10 | R34: 10 | S34: 10 | T34: 10 | U34: 10 | V34: 10 | W34: 10 | X34: 10 | Y34: 10 | Z34: 90 | AA34: 180 | AC34: =$AA$670 -> 0 | AD34: =RANK(AC34,AC$9:AC$38,0)+COUNTIF(AC$9:$AC34,AC34)-1 -> 26 | AE34: 24 | AF34: =IF(ISBLANK($C34),0,1)*INDEX('Allocation Points'!$B$3:$AG$32,AE34,COUNTIF(AE$9:AE$38,AE34)+2) -> 0 | AH34: =AA671 -> 0 | AI34: =RANK(AH34,AH$9:AH$38,0)+COUNTIF(AH$9:$AH34,AH34)-1 -> 26 | AJ34: 22 | AK34: =IF(ISBLANK($C34),0,1)*INDEX('Allocation Points'!$B$3:$AG$32,AJ34,COUNTIF(AJ$9:AJ$38,AJ34)+2) -> 0 | AM34: =AA669 -> 180 | AN34: =RANK(AM34,AM$9:AM$38,1)+COUNTIF(AM$9:$AM34,AM34)-1 -> 26 | AO34: 24 | AP34: =IF(ISBLANK($C34),0,1)*INDEX('Allocation Points'!$B$3:$AG$32,AO34,COUNTIF(AO$9:AO$38,AO34)+2) -> 0
B35: 27 | E35: 20 | G35: 10 | H35: 10 | I35: 10 | J35: 10 | K35: 10 | L35: 10 | M35: 10 | N35: 10 | O35: 10 | P35: 90 | Q35: 10 | R35: 10 | S35: 10 | T35: 10 | U35: 10 | V35: 10 | W35: 10 | X35: 10 | Y35: 10 | Z35: 90 | AA35: 180 | AC35: =$AA$693 -> 0 | AD35: =RANK(AC35,AC$9:AC$38,0)+COUNTIF(AC$9:$AC35,AC35)-1 -> 27 | AE35: 24 | AF35: =IF(ISBLANK($C35),0,1)*INDEX('Allocation Points'!$B$3:$AG$32,AE35,COUNTIF(AE$9:AE$38,AE35)+2) -> 0 | AH35: =AA694 -> 0 | AI35: =RANK(AH35,AH$9:AH$38,0)+COUNTIF(AH$9:$AH35,AH35)-1 -> 27 | AJ35: 22 | AK35: =IF(ISBLANK($C35),0,1)*INDEX('Allocation Points'!$B$3:$AG$32,AJ35,COUNTIF(AJ$9:AJ$38,AJ35)+2) -> 0 | AM35: =AA692 -> 180 | AN35: =RANK(AM35,AM$9:AM$38,1)+COUNTIF(AM$9:$AM35,AM35)-1 -> 27 | AO35: 24 | AP35: =IF(ISBLANK($C35),0,1)*INDEX('Allocation Points'!$B$3:$AG$32,AO35,COUNTIF(AO$9:AO$38,AO35)+2) -> 0
B36: 28 | E36: 20 | G36: 10 | H36: 10 | I36: 10 | J36: 10 | K36: 10 | L36: 10 | M36: 10 | N36: 10 | O36: 10 | P36: 90 | Q36: 10 | R36: 10 | S36: 10 | T36: 10 | U36: 10 | V36: 10 | W36: 10 | X36: 10 | Y36: 10 | Z36: 90 | AA36: 180 | AC36: =$AA$716 -> 0 | AD36: =RANK(AC36,AC$9:AC$38,0)+COUNTIF(AC$9:$AC36,AC36)-1 -> 28 | AE36: 24 | AF36: =IF(ISBLANK($C36),0,1)*INDEX('Allocation Points'!$B$3:$AG$32,AE36,COUNTIF(AE$9:AE$38,AE36)+2) -> 0 | AH36: =AA717 -> 0 | AI36: =RANK(AH36,AH$9:AH$38,0)+COUNTIF(AH$9:$AH36,AH36)-1 -> 28 | AJ36: 22 | AK36: =IF(ISBLANK($C36),0,1)*INDEX('Allocation Points'!$B$3:$AG$32,AJ36,COUNTIF(AJ$9:AJ$38,AJ36)+2) -> 0 | AM36: =AA715 -> 180 | AN36: =RANK(AM36,AM$9:AM$38,1)+COUNTIF(AM$9:$AM36,AM36)-1 -> 28 | AO36: 24 | AP36: =IF(ISBLANK($C36),0,1)*INDEX('Allocation Points'!$B$3:$AG$32,AO36,COUNTIF(AO$9:AO$38,AO36)+2) -> 0
B37: 29 | E37: 20 | G37: 10 | H37: 10 | I37: 10 | J37: 10 | K37: 10 | L37: 10 | M37: 10 | N37: 10 | O37: 10 | P37: 90 | Q37: 10 | R37: 10 | S37: 10 | T37: 10 | U37: 10 | V37: 10 | W37: 10 | X37: 10 | Y37: 10 | Z37: 90 | AA37: 180 | AC37: =$AA$739 -> 0 | AD37: =RANK(AC37,AC$9:AC$38,0)+COUNTIF(AC$9:$AC37,AC37)-1 -> 29 | AE37: 24 | AF37: =IF(ISBLANK($C37),0,1)*INDEX('Allocation Points'!$B$3:$AG$32,AE37,COUNTIF(AE$9:AE$38,AE37)+2) -> 0 | AH37: =AA740 -> 0 | AI37: =RANK(AH37,AH$9:AH$38,0)+COUNTIF(AH$9:$AH37,AH37)-1 -> 29 | AJ37: 22 | AK37: =IF(ISBLANK($C37),0,1)*INDEX('Allocation Points'!$B$3:$AG$32,AJ37,COUNTIF(AJ$9:AJ$38,AJ37)+2) -> 0 | AM37: =AA738 -> 180 | AN37: =RANK(AM37,AM$9:AM$38,1)+COUNTIF(AM$9:$AM37,AM37)-1 -> 29 | AO37: 24 | AP37: =IF(ISBLANK($C37),0,1)*INDEX('Allocation Points'!$B$3:$AG$32,AO37,COUNTIF(AO$9:AO$38,AO37)+2) -> 0
B38: 30 | E38: 20 | G38: 10 | H38: 10 | I38: 10 | J38: 10 | K38: 10 | L38: 10 | M38: 10 | N38: 10 | O38: 10 | P38: 90 | Q38: 10 | R38: 10 | S38: 10 | T38: 10 | U38: 10 | V38: 10 | W38: 10 | X38: 10 | Y38: 10 | Z38: 90 | AA38: 180 | AC38: =$AA$762 -> 0 | AD38: =RANK(AC38,AC$9:AC$38,0)+COUNTIF(AC$9:$AC38,AC38)-1 -> 30 | AE38: 24 | AF38: =IF(ISBLANK($C38),0,1)*INDEX('Allocation Points'!$B$3:$AG$32,AE38,COUNTIF(AE$9:AE$38,AE38)+2) -> 0 | AH38: =AA763 -> 0 | AI38: =RANK(AH38,AH$9:AH$38,0)+COUNTIF(AH$9:$AH38,AH38)-1 -> 30 | AJ38: 22 | AK38: =IF(ISBLANK($C38),0,1)*INDEX('Allocation Points'!$B$3:$AG$32,AJ38,COUNTIF(AJ$9:AJ$38,AJ38)+2) -> 0 | AM38: =AA761 -> 180 | AN38: =RANK(AM38,AM$9:AM$38,1)+COUNTIF(AM$9:$AM38,AM38)-1 -> 30 | AO38: 24 | AP38: =IF(ISBLANK($C38),0,1)*INDEX('Allocation Points'!$B$3:$AG$32,AO38,COUNTIF(AO$9:AO$38,AO38)+2) -> 0
H41: CLASSEMENT
C45: NET | J45: BRUT | V45: STROKE
C47: Noms | D47: Prénoms | E47: NET | J47: Noms | N47: Prénoms | Q47: BRUT | V47: Noms | Z47: Prénoms | AB47: STROKE
B48: 1 | C48: =INDEX($C$9:$AN$38,MATCH(B48,$AD$9:$AD$38,0),1) -> VICENTE | D48: =INDEX($C$9:$AN$38,MATCH(B48,$AD$9:$AD$38,0),2) -> Paulo | E48: =INDEX($C$9:$AN$38,MATCH(B48,$AD$9:$AD$38,0),27) -> 49 | I48: 1 | J48: =INDEX($C$9:$AN$38,MATCH(I48,$AI$9:$AI$38,0),1) -> HERRAULT | N48: =INDEX($C$9:$AN$38,MATCH(I48,$AI$9:$AI$38,0),2) -> Sébastien | Q48: =INDEX($C$9:$AN$38,MATCH(I48,$AI$9:$AI$38,0),32) -> 25 | U48: 1 | V48: =INDEX($C$9:$AN$38,MATCH(U48,$AN$9:$AN$38,0),1) -> HERRAULT | Z48: =INDEX($C$9:$AN$38,MATCH(U48,$AN$9:$AN$38,0),2) -> Sébastien | AB48: =INDEX($C$9:$AN$38,MATCH(U48,$AN$9:$AN$38,0),37) -> 84
B49: 2 | C49: HODEAU | D49: Cédric | E49: 40 | I49: 2 | J49: MORALES | N49: José | Q49: =INDEX($C$9:$AN$38,MATCH(I49,$AI$9:$AI$38,0),32) -> 23 | U49: 2 | V49: MORALES | Z49: José | AB49: =INDEX($C$9:$AN$38,MATCH(U49,$AN$9:$AN$38,0),37) -> 86
B50: 3 | C50: JACQUEMIN | D50: Franck | E50: 38 | I50: 3 | J50: JACQUEMIN | N50: Franck | Q50: 21 | U50: 3 | V50: JACQUEMIN | Z50: Franck | AB50: 87
B51: 4 | C51: DELOUCHE | D51: Yannick | E51: 37 | I51: 4 | J51: DIOT | N51: Alexandre | Q51: 20 | U51: 4 | V51: DIOT | Z51: Alexandre | AB51: 90
B52: 5 | C52: MAITRE | D52: Benoît | E52: 36 | I52: 5 | J52: ZIAR | N52: Yacine | Q52: 20 | U52: 5 | V52: VERRIER | Z52: Alexandre | AB52: 90
B53: 6 | C53: MICHEL | D53: Eric | E53: 36 | I53: 6 | J53: VERRIER | N53: Alexandre | Q53: 18 | U53: 6 | V53: ZIAR | Z53: Yacine | AB53: 90
B54: 7 | C54: FARE | D54: Loïc | E54: 35 | I54: 7 | J54: VIALLETON | N54: Loïc | Q54: 16 | U54: 7 | V54: VIALLETON | Z54: Loïc | AB54: 92
B55: 8 | C55: MORALES | D55: José | E55: 35 | I55: 8 | J55: MAITRE | N55: Benoît | Q55: 15 | U55: 8 | V55: MAITRE | Z55: Benoît | AB55: 96
B56: 9 | C56: HERRAULT | D56: Sébastien | E56: 35 | I56: 9 | J56: CHRETIEN | N56: Fabrice | Q56: 13 | U56: 9 | V56: CHRETIEN | Z56: Fabrice | AB56: 97
B57: 10 | C57: ZIAR | D57: Yacine | E57: 35 | I57: 10 | J57: HODEAU | N57: Cédric | Q57: 12 | U57: 10 | V57: FARE | Z57: Loïc | AB57: 99
B58: 11 | C58: VERRIER | D58: Alexandre | E58: 34 | I58: 11 | J58: FARE | N58: Loïc | Q58: 11 | U58: 11 | V58: HODEAU | Z58: Cédric | AB58: 103
B59: 12 | C59: PORTRON | D59: Inès | E59: 34 | I59: 12 | J59: DAVID | N59: Paul | Q59: 10 | U59: 12 | V59: DAVID | Z59: Paul | AB59: 104
B60: 13 | C60: VIALLETON | D60: Loïc | E60: 33 | I60: 13 | J60: ROBERT | N60: Jean-Christophe | Q60: 9 | U60: 13 | V60: LANDIER | Z60: Marc | AB60: 107
B61: 14 | C61: BINVAULT | D61: Dominique | E61: 32 | I61: 14 | J61: LANDIER | N61: Marc | Q61: 7 | U61: 14 | V61: ROBERT | Z61: Jean-Christophe | AB61: 107
B62: 15 | C62: CHRETIEN | D62: Fabrice | E62: 31 | I62: 15 | J62: MICHEL | N62: Eric | Q62: 7 | U62: 15 | V62: LEVEQUE | Z62: Claude | AB62: 109
B63: 16 | C63: ROBERT | D63: Jean-Christophe | E63: 27 | I63: 16 | J63: BINVAULT | N63: Dominique | Q63: 6 | U63: 16 | V63: MICHEL | Z63: Eric | AB63: 110
B64: 17 | C64: DIOT | D64: Alexandre | E64: 26 | I64: 17 | J64: VICENTE | N64: Paulo | Q64: 5 | U64: 17 | V64: BINVAULT | Z64: Dominique | AB64: 111
B65: 18 | C65: DAVID | D65: Paul | E65: 26 | I65: 18 | J65: LEVEQUE | N65: Claude | Q65: 4 | U65: 18 | V65: VICENTE | Z65: Paulo | AB65: 113
B66: 19 | C66: LEFEU | D66: Jean-Marie | E66: 26 | I66: 19 | J66: LEFEU | N66: Jean-Marie | Q66: 4 | U66: 19 | V66: LEFEU | Z66: Jean-Marie | AB66: 113
B67: 20 | C67: LANDIER | D67: Marc | E67: 24 | I67: 20 | J67: PORTRON | N67: Inès | Q67: 3 | U67: 20 | V67: DELOUCHE | Z67: Yannick | AB67: 121
B68: 21 | C68: LEVEQUE | D68: Claude | E68: 22 | I68: 21 | J68: DELOUCHE | N68: Yannick | Q68: 2 | U68: 21 | V68: PORTRON | Z68: Inès | AB68: 129
B69: 22 | C69: VILLATTE | D69: Joël | E69: 20 | I69: 22 | J69: VILLATTE | N69: Joël | Q69: 0 | U69: 22 | V69: VILLATTE | Z69: Joël | AB69: 142
B70: 23 | C70: LAHOREAU | D70: Patrice | E70: 17 | I70: 23 | J70: LAHOREAU | N70: Patrice | Q70: 0 | U70: 23 | V70: LAHOREAU | Z70: Patrice | AB70: 146
B71: 24 | C71: 0 | D71: 0 | E71: 0 | I71: 24 | J71: 0 | N71: 0 | Q71: 0 | U71: 24 | V71: 0 | Z71: 0 | AB71: 180
B72: 25 | C72: 0 | D72: 0 | E72: 0 | I72: 25 | J72: 0 | N72: 0 | Q72: 0 | U72: 25 | V72: 0 | Z72: 0 | AB72: 180
B73: 26 | C73: 0 | D73: 0 | E73: 0 | I73: 26 | J73: 0 | N73: 0 | Q73: 0 | U73: 26 | V73: 0 | Z73: 0 | AB73: 180
B74: 27 | C74: 0 | D74: 0 | E74: 0 | I74: 27 | J74: 0 | N74: 0 | Q74: 0 | U74: 27 | V74: 0 | Z74: 0 | AB74: 180
B75: 28 | C75: 0 | D75: 0 | E75: 0 | I75: 28 | J75: 0 | N75: 0 | Q75: 0 | U75: 28 | V75: 0 | Z75: 0 | AB75: 180
B76: 29 | C76: 0 | D76: 0 | E76: 0 | I76: 29 | J76: 0 | N76: 0 | Q76: 0 | U76: 29 | V76: 0 | Z76: 0 | AB76: 180
B77: 30 | C77: 0 | D77: 0 | E77: 0 | I77: 30 | J77: 0 | N77: 0 | Q77: 0 | U77: 30 | V77: 0 | Z77: 0 | AB77: 180
H81: STATISTIQUES INDIVIDUELLES
F87: Nom | G87: =C9 -> CHRETIEN | L87: Slope | O87: SSS | Q87: Coups reçus | Z87: Date | AA87: =$D$3 -> 2022-03-26
F88: Index | G88: =E9 -> 20.1 | L88: =$F$3 -> 122 | O88: =$G$3 -> 70 | Q88: =ROUND((G88*(L88/113)+(O88-AA91)),0) -> 20
F90: Trou | G90: 1 | H90: 2 | I90: 3 | J90: 4 | K90: 5 | L90: 6 | M90: 7 | N90: 8 | O90: 9 | P90: Aller | Q90: 10 | R90: 11 | S90: 12 | T90: 13 | U90: 14 | V90: 15 | W90: 16 | X90: 17 | Y90: 18 | Z90: Retour | AA90: Total
F91: PAR | G91: =G$7 -> 4 | H91: =H$7 -> 5 | I91: 3 | J91: 4 | K91: 4 | L91: 4 | M91: 3 | N91: 4 | O91: 5 | P91: =SUM(G91:O91) -> 36 | Q91: =Q$7 -> 4 | R91: 4 | S91: 3 | T91: 4 | U91: 4 | V91: 5 | W91: 4 | X91: 3 | Y91: 5 | Z91: =SUM(Q91:Y91) -> 36 | AA91: =SUM(P91+Z91) -> 72
F92: HCP trous | G92: =G$8 -> 2 | H92: =H$8 -> 8 | I92: 10 | J92: 14 | K92: 6 | L92: 4 | M92: 16 | N92: 12 | O92: 18 | Q92: =Q$8 -> 1 | R92: 9 | S92: 11 | T92: 5 | U92: 15 | V92: 13 | W92: 3 | X92: 17 | Y92: 7
F93: Coups reçus | G93: =IF($Q88<=18,IF(G92<=$Q88,1,0),IF($Q88<=36,IF(G92<=($Q88-18),2,1),IF($Q88>36,IF(G92<=($Q88-36),3,2)))) -> 2 | H93: =IF($Q88<=18,IF(H92<=$Q88,1,0),IF($Q88<=36,IF(H92<=($Q88-18),2,1),IF($Q88>36,IF(H92<=($Q88-36),3,2)))) -> 1 | I93: 1 | J93: 1 | K93: 1 | L93: 1 | M93: 1 | N93: 1 | O93: 1 | P93: =SUM(G93:O93) -> 10 | Q93: =IF($Q88<=18,IF(Q92<=$Q88,1,0),IF($Q88<=36,IF(Q92<=($Q88-18),2,1),IF($Q88>36,IF(Q92<=($Q88-36),3,2)))) -> 2 | R93: 1 | S93: 1 | T93: 1 | U93: 1 | V93: 1 | W93: 1 | X93: 1 | Y93: 1 | Z93: =SUM(Q93:Y93) -> 10 | AA93: =P93+Z93 -> 20
F94: Stroke play | G94: =G9 -> 6 | H94: 7 | I94: 5 | J94: 3 | K94: 5 | L94: 4 | M94: 5 | N94: 6 | O94: 4 | P94: =SUM(G94:O94) -> 45 | Q94: =Q9 -> 6 | R94: 5 | S94: 5 | T94: 7 | U94: 4 | V94: 7 | W94: 5 | X94: 5 | Y94: 8 | Z94: =SUM(Q94:Y94) -> 52 | AA94: =P94+Z94 -> 97
F95: Net Stableford | G95: =IF(G94-G91=-1,3+G93)+IF(G94-G91=0,2+G93)+IF(G94-G91=1,1+G93)+IF(G94-G91=2,G93)+IF(G94-G91=3,IF(G93-1>0,G93-1,0))+IF(G94-G91=4,IF(G93-2>0,G93-2,0)) -> 2 | H95: =IF(H94-H91=-1,3+H93)+IF(H94-H91=0,2+H93)+IF(H94-H91=1,1+H93)+IF(H94-H91=2,H93)+IF(H94-H91=3,IF(H93-1>0,H93-1,0))+IF(H94-H91=4,IF(H93-2>0,H93-2,0)) -> 1 | I95: 1 | J95: 4 | K95: 2 | L95: 3 | M95: 1 | N95: 1 | O95: 4 | P95: =SUM(G95:O95) -> 19 | Q95: =IF(Q94-Q91=-1,3+Q93)+IF(Q94-Q91=0,2+Q93)+IF(Q94-Q91=1,1+Q93)+IF(Q94-Q91=2,Q93)+IF(Q94-Q91=3,IF(Q93-1>0,Q93-1,0))+IF(Q94-Q91=4,IF(Q93-2>0,Q93-2,0)) -> 2 | R95: 2 | S95: 1 | T95: 0 | U95: 3 | V95: 1 | W95: 2 | X95: 1 | Y95: 0 | Z95: =SUM(Q95:Y95) -> 12 | AA95: =P95+Z95 -> 31
F96: Score Brut | G96: =IF(G94-G91=-2,4)+IF(G94-G91=-1,3)+IF(G94-G91=0,2)+IF(G94-G91=1,1)+IF(G94-G91>2,0) -> 0 | H96: 0 | I96: 0 | J96: 3 | K96: 1 | L96: 2 | M96: 0 | N96: 0 | O96: 3 | P96: =SUM(G96:O96) -> 9 | Q96: =IF(Q94-Q91=-2,4)+IF(Q94-Q91=-1,3)+IF(Q94-Q91=0,2)+IF(Q94-Q91=1,1)+IF(Q94-Q91>2,0) -> 0 | R96: 1 | S96: 0 | T96: 0 | U96: 2 | V96: 0 | W96: 1 | X96: 0 | Y96: 0 | Z96: =SUM(Q96:Y96) -> 4 | AA96: =P96+Z96 -> 13
G97: =G94-G91 -> 2 | H97: =H94-H91 -> 2 | I97: 2 | J97: -1 | K97: 1 | L97: 0 | M97: 2 | N97: 2 | O97: -1 | Q97: =Q94-Q91 -> 2 | R97: 1 | S97: 2 | T97: 3 | U97: 0 | V97: 2 | W97: 1 | X97: 2 | Y97: 3
F100: Statistiques scores | H100: Eagle & moins | L100: =COUNTIF(G97:Y97,"<=-2") -> 0 | M100: Par | O100: =COUNTIF(G97:Y97,"=0") -> 2 | P100: Double bogey | U100: =COUNTIF(G97:Y97,"=2") -> 9
H101: Birdie | L101: =COUNTIF(G97:Y97,"=-1") -> 2 | M101: Bogey | O101: =COUNTIF(G97:Y97,"=1") -> 3 | P101: Triple bogey & plus | U101: =COUNTIF(G97:Y97,">=3") -> 2
H102: =M100 -> Par | L102: =O100 -> 2
H103: =M101 -> Bogey | L103: =O101 -> 3
H104: =P100 -> Double bogey | L104: =U100 -> 9
H105: =P101 -> Triple bogey & plus | L105: =U101 -> 2
F110: Nom | G110: =C10 -> DELOUCHE | L110: Slope | O110: SSS | Q110: Coups reçus | Z110: Date | AA110: =$D$3 -> 2022-03-26
F111: Index | G111: =E10 -> 48.2 | L111: =$F$3 -> 122 | O111: =$G$3 -> 70 | Q111: =ROUND((G111*(L111/113)+(O111-AA114)),0) -> 50
F113: Trou | G113: 1 | H113: 2 | I113: 3 | J113: 4 | K113: 5 | L113: 6 | M113: 7 | N113: 8 | O113: 9 | P113: Aller | Q113: 10 | R113: 11 | S113: 12 | T113: 13 | U113: 14 | V113: 15 | W113: 16 | X113: 17 | Y113: 18 | Z113: Retour | AA113: Total
F114: PAR | G114: =G$7 -> 4 | H114: =H$7 -> 5 | I114: 3 | J114: 4 | K114: 4 | L114: 4 | M114: 3 | N114: 4 | O114: 5 | P114: =SUM(G114:O114) -> 36 | Q114: =Q$7 -> 4 | R114: 4 | S114: 3 | T114: 4 | U114: 4 | V114: 5 | W114: 4 | X114: 3 | Y114: 5 | Z114: =SUM(Q114:Y114) -> 36 | AA114: =SUM(P114+Z114) -> 72
F115: HCP trous | G115: =G$8 -> 2 | H115: =H$8 -> 8 | I115: 10 | J115: 14 | K115: 6 | L115: 4 | M115: 16 | N115: 12 | O115: 18 | Q115: =Q$8 -> 1 | R115: 9 | S115: 11 | T115: 5 | U115: 15 | V115: 13 | W115: 3 | X115: 17 | Y115: 7
F116: Coups reçus | G116: =IF($Q111<=18,IF(G115<=$Q111,1,0),IF($Q111<=36,IF(G115<=($Q111-18),2,1),IF($Q111>36,IF(G115<=($Q111-36),3,2)))) -> 3 | H116: =IF($Q111<=18,IF(H115<=$Q111,1,0),IF($Q111<=36,IF(H115<=($Q111-18),2,1),IF($Q111>36,IF(H115<=($Q111-36),3,2)))) -> 3 | I116: 3 | J116: 3 | K116: 3 | L116: 3 | M116: 2 | N116: 3 | O116: 2 | P116: =SUM(G116:O116) -> 25 | Q116: =IF($Q111<=18,IF(Q115<=$Q111,1,0),IF($Q111<=36,IF(Q115<=($Q111-18),2,1),IF($Q111>36,IF(Q115<=($Q111-36),3,2)))) -> 3 | R116: 3 | S116: 3 | T116: 3 | U116: 2 | V116: 3 | W116: 3 | X116: 2 | Y116: 3 | Z116: =SUM(Q116:Y116) -> 25 | AA116: =P116+Z116 -> 50
F117: Stroke play | G117: =G10 -> 7 | H117: 6 | I117: 5 | J117: 6 | K117: 9 | L117: 7 | M117: 5 | N117: 5 | O117: 7 | P117: =SUM(G117:O117) -> 57 | Q117: =Q10 -> 8 | R117: 7 | S117: 5 | T117: 9 | U117: 7 | V117: 8 | W117: 6 | X117: 5 | Y117: 9 | Z117: =SUM(Q117:Y117) -> 64 | AA117: =P117+Z117 -> 121
F118: Net Stableford | G118: =IF(G117-G114=-1,3+G116)+IF(G117-G114=0,2+G116)+IF(G117-G114=1,1+G116)+IF(G117-G114=2,G116)+IF(G117-G114=3,IF(G116-1>0,G116-1,0))+IF(G117-G114=4,IF(G116-2>0,G116-2,0)) -> 2 | H118: =IF(H117-H114=-1,3+H116)+IF(H117-H114=0,2+H116)+IF(H117-H114=1,1+H116)+IF(H117-H114=2,H116)+IF(H117-H114=3,IF(H116-1>0,H116-1,0))+IF(H117-H114=4,IF(H116-2>0,H116-2,0)) -> 4 | I118: 3 | J118: 3 | K118: 0 | L118: 2 | M118: 2 | N118: 4 | O118: 2 | P118: =SUM(G118:O118) -> 22 | Q118: =IF(Q117-Q114=-1,3+Q116)+IF(Q117-Q114=0,2+Q116)+IF(Q117-Q114=1,1+Q116)+IF(Q117-Q114=2,Q116)+IF(Q117-Q114=3,IF(Q116-1>0,Q116-1,0))+IF(Q117-Q114=4,IF(Q116-2>0,Q116-2,0)) -> 1 | R118: 2 | S118: 3 | T118: 0 | U118: 1 | V118: 2 | W118: 3 | X118: 2 | Y118: 1 | Z118: =SUM(Q118:Y118) -> 15 | AA118: =P118+Z118 -> 37
F119: Score Brut | G119: =IF(G117-G114=-2,4)+IF(G117-G114=-1,3)+IF(G117-G114=0,2)+IF(G117-G114=1,1)+IF(G117-G114>2,0) -> 0 | H119: 1 | I119: 0 | J119: 0 | K119: 0 | L119: 0 | M119: 0 | N119: 1 | O119: 0 | P119: =SUM(G119:O119) -> 2 | Q119: =IF(Q117-Q114=-2,4)+IF(Q117-Q114=-1,3)+IF(Q117-Q114=0,2)+IF(Q117-Q114=1,1)+IF(Q117-Q114>2,0) -> 0 | R119: 0 | S119: 0 | T119: 0 | U119: 0 | V119: 0 | W119: 0 | X119: 0 | Y119: 0 | Z119: =SUM(Q119:Y119) -> 0 | AA119: =P119+Z119 -> 2
G120: =G117-G114 -> 3 | H120: =H117-H114 -> 1 | I120: 2 | J120: 2 | K120: 5 | L120: 3 | M120: 2 | N120: 1 | O120: 2 | Q120: =Q117-Q114 -> 4 | R120: 3 | S120: 2 | T120: 5 | U120: 3 | V120: 3 | W120: 2 | X120: 2 | Y120: 4
F123: Statistiques scores | H123: Eagle & moins | L123: =COUNTIF(G120:Y120,"<=-2") -> 0 | M123: Par | O123: =COUNTIF(G120:Y120,"=0") -> 0 | P123: Double bogey | U123: =COUNTIF(G120:Y120,"=2") -> 7
H124: Birdie | L124: =COUNTIF(G120:Y120,"=-1") -> 0 | M124: Bogey | O124: =COUNTIF(G120:Y120,"=1") -> 2 | P124: Triple bogey & plus | U124: =COUNTIF(G120:Y120,">=3") -> 9
H125: =M123 -> Par | L125: =O123 -> 0
H126: =M124 -> Bogey | L126: =O124 -> 2
H127: =P123 -> Double bogey | L127: =U123 -> 7
H128: =P124 -> Triple bogey & plus | L128: =U124 -> 9
F133: Nom | G133: =C11 -> LANDIER | L133: Slope | O133: SSS | Q133: Coups reçus | Z133: Date | AA133: =$D$3 -> 2022-03-26
F134: Index | G134: =E11 -> 23.3 | L134: =$F$3 -> 122 | O134: =$G$3 -> 70 | Q134: =ROUND((G134*(L134/113)+(O134-AA137)),0) -> 23
F136: Trou | G136: 1 | H136: 2 | I136: 3 | J136: 4 | K136: 5 | L136: 6 | M136: 7 | N136: 8 | O136: 9 | P136: Aller | Q136: 10 | R136: 11 | S136: 12 | T136: 13 | U136: 14 | V136: 15 | W136: 16 | X136: 17 | Y136: 18 | Z136: Retour | AA136: Total
F137: PAR | G137: =G$7 -> 4 | H137: =H$7 -> 5 | I137: 3 | J137: 4 | K137: 4 | L137: 4 | M137: 3 | N137: 4 | O137: 5 | P137: =SUM(G137:O137) -> 36 | Q137: =Q$7 -> 4 | R137: 4 | S137: 3 | T137: 4 | U137: 4 | V137: 5 | W137: 4 | X137: 3 | Y137: 5 | Z137: =SUM(Q137:Y137) -> 36 | AA137: =SUM(P137+Z137) -> 72
F138: HCP trous | G138: =G$8 -> 2 | H138: =H$8 -> 8 | I138: 10 | J138: 14 | K138: 6 | L138: 4 | M138: 16 | N138: 12 | O138: 18 | Q138: =Q$8 -> 1 | R138: 9 | S138: 11 | T138: 5 | U138: 15 | V138: 13 | W138: 3 | X138: 17 | Y138: 7
F139: Coups reçus | G139: =IF($Q134<=18,IF(G138<=$Q134,1,0),IF($Q134<=36,IF(G138<=($Q134-18),2,1),IF($Q134>36,IF(G138<=($Q134-36),3,2)))) -> 2 | H139: =IF($Q134<=18,IF(H138<=$Q134,1,0),IF($Q134<=36,IF(H138<=($Q134-18),2,1),IF($Q134>36,IF(H138<=($Q134-36),3,2)))) -> 1 | I139: 1 | J139: 1 | K139: 1 | L139: 2 | M139: 1 | N139: 1 | O139: 1 | P139: =SUM(G139:O139) -> 11 | Q139: =IF($Q134<=18,IF(Q138<=$Q134,1,0),IF($Q134<=36,IF(Q138<=($Q134-18),2,1),IF($Q134>36,IF(Q138<=($Q134-36),3,2)))) -> 2 | R139: 1 | S139: 1 | T139: 2 | U139: 1 | V139: 1 | W139: 2 | X139: 1 | Y139: 1 | Z139: =SUM(Q139:Y139) -> 12 | AA139: =P139+Z139 -> 23
F140: Stroke play | G140: =G11 -> 5 | H140: 7 | I140: 6 | J140: 6 | K140: 6 | L140: 5 | M140: 4 | N140: 6 | O140: 6 | P140: =SUM(G140:O140) -> 51 | Q140: =Q11 -> 7 | R140: 6 | S140: 4 | T140: 8 | U140: 5 | V140: 6 | W140: 7 | X140: 6 | Y140: 7 | Z140: =SUM(Q140:Y140) -> 56 | AA140: =P140+Z140 -> 107
F141: Net Stableford | G141: =IF(G140-G137=-1,3+G139)+IF(G140-G137=0,2+G139)+IF(G140-G137=1,1+G139)+IF(G140-G137=2,G139)+IF(G140-G137=3,IF(G139-1>0,G139-1,0))+IF(G140-G137=4,IF(G139-2>0,G139-2,0)) -> 3 | H141: =IF(H140-H137=-1,3+H139)+IF(H140-H137=0,2+H139)+IF(H140-H137=1,1+H139)+IF(H140-H137=2,H139)+IF(H140-H137=3,IF(H139-1>0,H139-1,0))+IF(H140-H137=4,IF(H139-2>0,H139-2,0)) -> 1 | I141: 0 | J141: 1 | K141: 1 | L141: 3 | M141: 2 | N141: 1 | O141: 2 | P141: =SUM(G141:O141) -> 14 | Q141: =IF(Q140-Q137=-1,3+Q139)+IF(Q140-Q137=0,2+Q139)+IF(Q140-Q137=1,1+Q139)+IF(Q140-Q137=2,Q139)+IF(Q140-Q137=3,IF(Q139-1>0,Q139-1,0))+IF(Q140-Q137=4,IF(Q139-2>0,Q139-2,0)) -> 1 | R141: 1 | S141: 2 | T141: 0 | U141: 2 | V141: 2 | W141: 1 | X141: 0 | Y141: 1 | Z141: =SUM(Q141:Y141) -> 10 | AA141: =P141+Z141 -> 24
F142: Score Brut | G142: =IF(G140-G137=-2,4)+IF(G140-G137=-1,3)+IF(G140-G137=0,2)+IF(G140-G137=1,1)+IF(G140-G137>2,0) -> 1 | H142: 0 | I142: 0 | J142: 0 | K142: 0 | L142: 1 | M142: 1 | N142: 0 | O142: 1 | P142: =SUM(G142:O142) -> 4 | Q142: =IF(Q140-Q137=-2,4)+IF(Q140-Q137=-1,3)+IF(Q140-Q137=0,2)+IF(Q140-Q137=1,1)+IF(Q140-Q137>2,0) -> 0 | R142: 0 | S142: 1 | T142: 0 | U142: 1 | V142: 1 | W142: 0 | X142: 0 | Y142: 0 | Z142: =SUM(Q142:Y142) -> 3 | AA142: =P142+Z142 -> 7
G143: =G140-G137 -> 1 | H143: =H140-H137 -> 2 | I143: 3 | J143: 2 | K143: 2 | L143: 1 | M143: 1 | N143: 2 | O143: 1 | Q143: =Q140-Q137 -> 3 | R143: 2 | S143: 1 | T143: 4 | U143: 1 | V143: 1 | W143: 3 | X143: 3 | Y143: 2
F146: Statistiques scores | H146: Eagle & moins | L146: =COUNTIF(G143:Y143,"<=-2") -> 0 | M146: Par | O146: =COUNTIF(G143:Y143,"=0") -> 0 | P146: Double bogey | U146: =COUNTIF(G143:Y143,"=2") -> 6
H147: Birdie | L147: =COUNTIF(G143:Y143,"=-1") -> 0 | M147: Bogey | O147: =COUNTIF(G143:Y143,"=1") -> 7 | P147: Triple bogey & plus | U147: =COUNTIF(G143:Y143,">=3") -> 5
H148: =M146 -> Par | L148: =O146 -> 0
H149: =M147 -> Bogey | L149: =O147 -> 7
H150: =P146 -> Double bogey | L150: =U146 -> 6
H151: =P147 -> Triple bogey & plus | L151: =U147 -> 5
F156: Nom | G156: =C12 -> HODEAU | L156: Slope | O156: SSS | Q156: Coups reçus | Z156: Date | AA156: =$D$3 -> 2022-03-26
F157: Index | G157: =E12 -> 34.7 | L157: =$F$3 -> 122 | O157: =$G$3 -> 70 | Q157: =ROUND((G157*(L157/113)+(O157-AA160)),0) -> 35
F159: Trou | G159: 1 | H159: 2 | I159: 3 | J159: 4 | K159: 5 | L159: 6 | M159: 7 | N159: 8 | O159: 9 | P159: Aller | Q159: 10 | R159: 11 | S159: 12 | T159: 13 | U159: 14 | V159: 15 | W159: 16 | X159: 17 | Y159: 18 | Z159: Retour | AA159: Total
F160: PAR | G160: =G$7 -> 4 | H160: =H$7 -> 5 | I160: 3 | J160: 4 | K160: 4 | L160: 4 | M160: 3 | N160: 4 | O160: 5 | P160: =SUM(G160:O160) -> 36 | Q160: =Q$7 -> 4 | R160: 4 | S160: 3 | T160: 4 | U160: 4 | V160: 5 | W160: 4 | X160: 3 | Y160: 5 | Z160: =SUM(Q160:Y160) -> 36 | AA160: =SUM(P160+Z160) -> 72
F161: HCP trous | G161: =G$8 -> 2 | H161: =H$8 -> 8 | I161: 10 | J161: 14 | K161: 6 | L161: 4 | M161: 16 | N161: 12 | O161: 18 | Q161: =Q$8 -> 1 | R161: 9 | S161: 11 | T161: 5 | U161: 15 | V161: 13 | W161: 3 | X161: 17 | Y161: 7
F162: Coups reçus | G162: =IF($Q157<=18,IF(G161<=$Q157,1,0),IF($Q157<=36,IF(G161<=($Q157-18),2,1),IF($Q157>36,IF(G161<=($Q157-36),3,2)))) -> 2 | H162: =IF($Q157<=18,IF(H161<=$Q157,1,0),IF($Q157<=36,IF(H161<=($Q157-18),2,1),IF($Q157>36,IF(H161<=($Q157-36),3,2)))) -> 2 | I162: 2 | J162: 2 | K162: 2 | L162: 2 | M162: 2 | N162: 2 | O162: 1 | P162: =SUM(G162:O162) -> 17 | Q162: =IF($Q157<=18,IF(Q161<=$Q157,1,0),IF($Q157<=36,IF(Q161<=($Q157-18),2,1),IF($Q157>36,IF(Q161<=($Q157-36),3,2)))) -> 2 | R162: 2 | S162: 2 | T162: 2 | U162: 2 | V162: 2 | W162: 2 | X162: 2 | Y162: 2 | Z162: =SUM(Q162:Y162) -> 18 | AA162: =P162+Z162 -> 35
F163: Stroke play | G163: =G12 -> 7 | H163: 8 | I163: 4 | J163: 5 | K163: 6 | L163: 5 | M163: 5 | N163: 4 | O163: 7 | P163: =SUM(G163:O163) -> 51 | Q163: =Q12 -> 8 | R163: 6 | S163: 2 | T163: 6 | U163: 8 | V163: 6 | W163: 7 | X163: 3 | Y163: 6 | Z163: =SUM(Q163:Y163) -> 52 | AA163: =P163+Z163 -> 103
F164: Net Stableford | G164: =IF(G163-G160=-1,3+G162)+IF(G163-G160=0,2+G162)+IF(G163-G160=1,1+G162)+IF(G163-G160=2,G162)+IF(G163-G160=3,IF(G162-1>0,G162-1,0))+IF(G163-G160=4,IF(G162-2>0,G162-2,0)) -> 1 | H164: =IF(H163-H160=-1,3+H162)+IF(H163-H160=0,2+H162)+IF(H163-H160=1,1+H162)+IF(H163-H160=2,H162)+IF(H163-H160=3,IF(H162-1>0,H162-1,0))+IF(H163-H160=4,IF(H162-2>0,H162-2,0)) -> 1 | I164: 3 | J164: 3 | K164: 2 | L164: 3 | M164: 2 | N164: 4 | O164: 1 | P164: =SUM(G164:O164) -> 20 | Q164: =IF(Q163-Q160=-1,3+Q162)+IF(Q163-Q160=0,2+Q162)+IF(Q163-Q160=1,1+Q162)+IF(Q163-Q160=2,Q162)+IF(Q163-Q160=3,IF(Q162-1>0,Q162-1,0))+IF(Q163-Q160=4,IF(Q162-2>0,Q162-2,0)) -> 0 | R164: 2 | S164: 5 | T164: 2 | U164: 0 | V164: 3 | W164: 1 | X164: 4 | Y164: 3 | Z164: =SUM(Q164:Y164) -> 20 | AA164: =P164+Z164 -> 40
F165: Score Brut | G165: =IF(G163-G160=-2,4)+IF(G163-G160=-1,3)+IF(G163-G160=0,2)+IF(G163-G160=1,1)+IF(G163-G160>2,0) -> 0 | H165: 0 | I165: 1 | J165: 1 | K165: 0 | L165: 1 | M165: 0 | N165: 2 | O165: 0 | P165: =SUM(G165:O165) -> 5 | Q165: =IF(Q163-Q160=-2,4)+IF(Q163-Q160=-1,3)+IF(Q163-Q160=0,2)+IF(Q163-Q160=1,1)+IF(Q163-Q160>2,0) -> 0 | R165: 0 | S165: 3 | T165: 0 | U165: 0 | V165: 1 | W165: 0 | X165: 2 | Y165: 1 | Z165: =SUM(Q165:Y165) -> 7 | AA165: =P165+Z165 -> 12
G166: =G163-G160 -> 3 | H166: =H163-H160 -> 3 | I166: 1 | J166: 1 | K166: 2 | L166: 1 | M166: 2 | N166: 0 | O166: 2 | Q166: =Q163-Q160 -> 4 | R166: 2 | S166: -1 | T166: 2 | U166: 4 | V166: 1 | W166: 3 | X166: 0 | Y166: 1
F169: Statistiques scores | H169: Eagle & moins | L169: =COUNTIF(G166:Y166,"<=-2") -> 0 | M169: Par | O169: =COUNTIF(G166:Y166,"=0") -> 2 | P169: Double bogey | U169: =COUNTIF(G166:Y166,"=2") -> 5
H170: Birdie | L170: =COUNTIF(G166:Y166,"=-1") -> 1 | M170: Bogey | O170: =COUNTIF(G166:Y166,"=1") -> 5 | P170: Triple bogey & plus | U170: =COUNTIF(G166:Y166,">=3") -> 5
H171: =M169 -> Par | L171: =O169 -> 2
H172: =M170 -> Bogey | L172: =O170 -> 5
H173: =P169 -> Double bogey | L173: =U169 -> 5
H174: =P170 -> Triple bogey & plus | L174: =U170 -> 5
F179: Nom | G179: =C13 -> FARE | L179: Slope | O179: SSS | Q179: Coups reçus | Z179: Date | AA179: =$D$3 -> 2022-03-26
F180: Index | G180: =E13 -> 25.6 | L180: =$F$3 -> 122 | O180: =$G$3 -> 70 | Q180: =ROUND((G180*(L180/113)+(O180-AA183)),0) -> 26
F182: Trou | G182: 1 | H182: 2 | I182: 3 | J182: 4 | K182: 5 | L182: 6 | M182: 7 | N182: 8 | O182: 9 | P182: Aller | Q182: 10 | R182: 11 | S182: 12 | T182: 13 | U182: 14 | V182: 15 | W182: 16 | X182: 17 | Y182: 18 | Z182: Retour | AA182: Total
F183: PAR | G183: =G$7 -> 4 | H183: =H$7 -> 5 | I183: 3 | J183: 4 | K183: 4 | L183: 4 | M183: 3 | N183: 4 | O183: 5 | P183: =SUM(G183:O183) -> 36 | Q183: =Q$7 -> 4 | R183: 4 | S183: 3 | T183: 4 | U183: 4 | V183: 5 | W183: 4 | X183: 3 | Y183: 5 | Z183: =SUM(Q183:Y183) -> 36 | AA183: =SUM(P183+Z183) -> 72
F184: HCP trous | G184: =G$8 -> 2 | H184: =H$8 -> 8 | I184: 10 | J184: 14 | K184: 6 | L184: 4 | M184: 16 | N184: 12 | O184: 18 | Q184: =Q$8 -> 1 | R184: 9 | S184: 11 | T184: 5 | U184: 15 | V184: 13 | W184: 3 | X184: 17 | Y184: 7
F185: Coups reçus | G185: =IF($Q180<=18,IF(G184<=$Q180,1,0),IF($Q180<=36,IF(G184<=($Q180-18),2,1),IF($Q180>36,IF(G184<=($Q180-36),3,2)))) -> 2 | H185: =IF($Q180<=18,IF(H184<=$Q180,1,0),IF($Q180<=36,IF(H184<=($Q180-18),2,1),IF($Q180>36,IF(H184<=($Q180-36),3,2)))) -> 2 | I185: 1 | J185: 1 | K185: 2 | L185: 2 | M185: 1 | N185: 1 | O185: 1 | P185: =SUM(G185:O185) -> 13 | Q185: =IF($Q180<=18,IF(Q184<=$Q180,1,0),IF($Q180<=36,IF(Q184<=($Q180-18),2,1),IF($Q180>36,IF(Q184<=($Q180-36),3,2)))) -> 2 | R185: 1 | S185: 1 | T185: 2 | U185: 1 | V185: 1 | W185: 2 | X185: 1 | Y185: 2 | Z185: =SUM(Q185:Y185) -> 13 | AA185: =P185+Z185 -> 26
F186: Stroke play | G186: =G13 -> 6 | H186: 7 | I186: 5 | J186: 5 | K186: 7 | L186: 5 | M186: 5 | N186: 4 | O186: 5 | P186: =SUM(G186:O186) -> 49 | Q186: =Q13 -> 6 | R186: 7 | S186: 4 | T186: 6 | U186: 6 | V186: 6 | W186: 5 | X186: 4 | Y186: 6 | Z186: =SUM(Q186:Y186) -> 50 | AA186: =P186+Z186 -> 99
F187: Net Stableford | G187: =IF(G186-G183=-1,3+G185)+IF(G186-G183=0,2+G185)+IF(G186-G183=1,1+G185)+IF(G186-G183=2,G185)+IF(G186-G183=3,IF(G185-1>0,G185-1,0))+IF(G186-G183=4,IF(G185-2>0,G185-2,0)) -> 2 | H187: =IF(H186-H183=-1,3+H185)+IF(H186-H183=0,2+H185)+IF(H186-H183=1,1+H185)+IF(H186-H183=2,H185)+IF(H186-H183=3,IF(H185-1>0,H185-1,0))+IF(H186-H183=4,IF(H185-2>0,H185-2,0)) -> 2 | I187: 1 | J187: 2 | K187: 1 | L187: 3 | M187: 1 | N187: 3 | O187: 3 | P187: =SUM(G187:O187) -> 18 | Q187: =IF(Q186-Q183=-1,3+Q185)+IF(Q186-Q183=0,2+Q185)+IF(Q186-Q183=1,1+Q185)+IF(Q186-Q183=2,Q185)+IF(Q186-Q183=3,IF(Q185-1>0,Q185-1,0))+IF(Q186-Q183=4,IF(Q185-2>0,Q185-2,0)) -> 2 | R187: 0 | S187: 2 | T187: 2 | U187: 1 | V187: 2 | W187: 3 | X187: 2 | Y187: 3 | Z187: =SUM(Q187:Y187) -> 17 | AA187: =P187+Z187 -> 35
F188: Score Brut | G188: =IF(G186-G183=-2,4)+IF(G186-G183=-1,3)+IF(G186-G183=0,2)+IF(G186-G183=1,1)+IF(G186-G183>2,0) -> 0 | H188: 0 | I188: 0 | J188: 1 | K188: 0 | L188: 1 | M188: 0 | N188: 2 | O188: 2 | P188: =SUM(G188:O188) -> 6 | Q188: =IF(Q186-Q183=-2,4)+IF(Q186-Q183=-1,3)+IF(Q186-Q183=0,2)+IF(Q186-Q183=1,1)+IF(Q186-Q183>2,0) -> 0 | R188: 0 | S188: 1 | T188: 0 | U188: 0 | V188: 1 | W188: 1 | X188: 1 | Y188: 1 | Z188: =SUM(Q188:Y188) -> 5 | AA188: =P188+Z188 -> 11
G189: =G186-G183 -> 2 | H189: =H186-H183 -> 2 | I189: 2 | J189: 1 | K189: 3 | L189: 1 | M189: 2 | N189: 0 | O189: 0 | Q189: =Q186-Q183 -> 2 | R189: 3 | S189: 1 | T189: 2 | U189: 2 | V189: 1 | W189: 1 | X189: 1 | Y189: 1
F192: Statistiques scores | H192: Eagle & moins | L192: =COUNTIF(G189:Y189,"<=-2") -> 0 | M192: Par | O192: =COUNTIF(G189:Y189,"=0") -> 2 | P192: Double bogey | U192: =COUNTIF(G189:Y189,"=2") -> 7
H193: Birdie | L193: =COUNTIF(G189:Y189,"=-1") -> 0 | M193: Bogey | O193: =COUNTIF(G189:Y189,"=1") -> 7 | P193: Triple bogey & plus | U193: =COUNTIF(G189:Y189,">=3") -> 2
H194: =M192 -> Par | L194: =O192 -> 2
H195: =M193 -> Bogey | L195: =O193 -> 7
H196: =P192 -> Double bogey | L196: =U192 -> 7
H197: =P193 -> Triple bogey & plus | L197: =U193 -> 2
F202: Nom | G202: =C14 -> MORALES | L202: Slope | O202: SSS | Q202: Coups reçus | Z202: Date | AA202: =$D$3 -> 2022-03-26
F203: Index | G203: =E14 -> 14 | L203: =$F$3 -> 122 | O203: =$G$3 -> 70 | Q203: =ROUND((G203*(L203/113)+(O203-AA206)),0) -> 13
F205: Trou | G205: 1 | H205: 2 | I205: 3 | J205: 4 | K205: 5 | L205: 6 | M205: 7 | N205: 8 | O205: 9 | P205: Aller | Q205: 10 | R205: 11 | S205: 12 | T205: 13 | U205: 14 | V205: 15 | W205: 16 | X205: 17 | Y205: 18 | Z205: Retour | AA205: Total
F206: PAR | G206: =G$7 -> 4 | H206: =H$7 -> 5 | I206: 3 | J206: 4 | K206: 4 | L206: 4 | M206: 3 | N206: 4 | O206: 5 | P206: =SUM(G206:O206) -> 36 | Q206: =Q$7 -> 4 | R206: 4 | S206: 3 | T206: 4 | U206: 4 | V206: 5 | W206: 4 | X206: 3 | Y206: 5 | Z206: =SUM(Q206:Y206) -> 36 | AA206: =SUM(P206+Z206) -> 72
F207: HCP trous | G207: =G$8 -> 2 | H207: =H$8 -> 8 | I207: 10 | J207: 14 | K207: 6 | L207: 4 | M207: 16 | N207: 12 | O207: 18 | Q207: =Q$8 -> 1 | R207: 9 | S207: 11 | T207: 5 | U207: 15 | V207: 13 | W207: 3 | X207: 17 | Y207: 7
F208: Coups reçus | G208: =IF($Q203<=18,IF(G207<=$Q203,1,0),IF($Q203<=36,IF(G207<=($Q203-18),2,1),IF($Q203>36,IF(G207<=($Q203-36),3,2)))) -> 1 | H208: =IF($Q203<=18,IF(H207<=$Q203,1,0),IF($Q203<=36,IF(H207<=($Q203-18),2,1),IF($Q203>36,IF(H207<=($Q203-36),3,2)))) -> 1 | I208: 1 | J208: 0 | K208: 1 | L208: 1 | M208: 0 | N208: 1 | O208: 0 | P208: =SUM(G208:O208) -> 6 | Q208: =IF($Q203<=18,IF(Q207<=$Q203,1,0),IF($Q203<=36,IF(Q207<=($Q203-18),2,1),IF($Q203>36,IF(Q207<=($Q203-36),3,2)))) -> 1 | R208: 1 | S208: 1 | T208: 1 | U208: 0 | V208: 1 | W208: 1 | X208: 0 | Y208: 1 | Z208: =SUM(Q208:Y208) -> 7 | AA208: =P208+Z208 -> 13
F209: Stroke play | G209: =G14 -> 5 | H209: 5 | I209: 4 | J209: 5 | K209: 5 | L209: 6 | M209: 4 | N209: 3 | O209: 6 | P209: =SUM(G209:O209) -> 43 | Q209: =Q14 -> 3 | R209: 6 | S209: 6 | T209: 6 | U209: 4 | V209: 5 | W209: 5 | X209: 3 | Y209: 5 | Z209: =SUM(Q209:Y209) -> 43 | AA209: =P209+Z209 -> 86
F210: Net Stableford | G210: =IF(G209-G206=-1,3+G208)+IF(G209-G206=0,2+G208)+IF(G209-G206=1,1+G208)+IF(G209-G206=2,G208)+IF(G209-G206=3,IF(G208-1>0,G208-1,0))+IF(G209-G206=4,IF(G208-2>0,G208-2,0)) -> 2 | H210: =IF(H209-H206=-1,3+H208)+IF(H209-H206=0,2+H208)+IF(H209-H206=1,1+H208)+IF(H209-H206=2,H208)+IF(H209-H206=3,IF(H208-1>0,H208-1,0))+IF(H209-H206=4,IF(H208-2>0,H208-2,0)) -> 3 | I210: 2 | J210: 1 | K210: 2 | L210: 1 | M210: 1 | N210: 4 | O210: 1 | P210: =SUM(G210:O210) -> 17 | Q210: =IF(Q209-Q206=-1,3+Q208)+IF(Q209-Q206=0,2+Q208)+IF(Q209-Q206=1,1+Q208)+IF(Q209-Q206=2,Q208)+IF(Q209-Q206=3,IF(Q208-1>0,Q208-1,0))+IF(Q209-Q206=4,IF(Q208-2>0,Q208-2,0)) -> 4 | R210: 1 | S210: 0 | T210: 1 | U210: 2 | V210: 3 | W210: 2 | X210: 2 | Y210: 3 | Z210: =SUM(Q210:Y210) -> 18 | AA210: =P210+Z210 -> 35
F211: Score Brut | G211: =IF(G209-G206=-2,4)+IF(G209-G206=-1,3)+IF(G209-G206=0,2)+IF(G209-G206=1,1)+IF(G209-G206>2,0) -> 1 | H211: 2 | I211: 1 | J211: 1 | K211: 1 | L211: 0 | M211: 1 | N211: 3 | O211: 1 | P211: =SUM(G211:O211) -> 11 | Q211: =IF(Q209-Q206=-2,4)+IF(Q209-Q206=-1,3)+IF(Q209-Q206=0,2)+IF(Q209-Q206=1,1)+IF(Q209-Q206>2,0) -> 3 | R211: 0 | S211: 0 | T211: 0 | U211: 2 | V211: 2 | W211: 1 | X211: 2 | Y211: 2 | Z211: =SUM(Q211:Y211) -> 12 | AA211: =P211+Z211 -> 23
G212: =G209-G206 -> 1 | H212: =H209-H206 -> 0 | I212: 1 | J212: 1 | K212: 1 | L212: 2 | M212: 1 | N212: -1 | O212: 1 | Q212: =Q209-Q206 -> -1 | R212: 2 | S212: 3 | T212: 2 | U212: 0 | V212: 0 | W212: 1 | X212: 0 | Y212: 0
F215: Statistiques scores | H215: Eagle & moins | L215: =COUNTIF(G212:Y212,"<=-2") -> 0 | M215: Par | O215: =COUNTIF(G212:Y212,"=0") -> 5 | P215: Double bogey | U215: =COUNTIF(G212:Y212,"=2") -> 3
H216: Birdie | L216: =COUNTIF(G212:Y212,"=-1") -> 2 | M216: Bogey | O216: =COUNTIF(G212:Y212,"=1") -> 7 | P216: Triple bogey & plus | U216: =COUNTIF(G212:Y212,">=3") -> 1
H217: =M215 -> Par | L217: =O215 -> 5
H218: =M216 -> Bogey | L218: =O216 -> 7
H219: =P215 -> Double bogey | L219: =U215 -> 3
H220: =P216 -> Triple bogey & plus | L220: =U216 -> 1
F225: Nom | G225: =C15 -> ROBERT | L225: Slope | O225: SSS | Q225: Coups reçus | Z225: Date | AA225: =$D$3 -> 2022-03-26
F226: Index | G226: =E15 -> 25 | L226: =$F$3 -> 122 | O226: =$G$3 -> 70 | Q226: =ROUND((G226*(L226/113)+(O226-AA229)),0) -> 25
F228: Trou | G228: 1 | H228: 2 | I228: 3 | J228: 4 | K228: 5 | L228: 6 | M228: 7 | N228: 8 | O228: 9 | P228: Aller | Q228: 10 | R228: 11 | S228: 12 | T228: 13 | U228: 14 | V228: 15 | W228: 16 | X228: 17 | Y228: 18 | Z228: Retour | AA228: Total
F229: PAR | G229: =G$7 -> 4 | H229: =H$7 -> 5 | I229: 3 | J229: 4 | K229: 4 | L229: 4 | M229: 3 | N229: 4 | O229: 5 | P229: =SUM(G229:O229) -> 36 | Q229: =Q$7 -> 4 | R229: 4 | S229: 3 | T229: 4 | U229: 4 | V229: 5 | W229: 4 | X229: 3 | Y229: 5 | Z229: =SUM(Q229:Y229) -> 36 | AA229: =SUM(P229+Z229) -> 72
F230: HCP trous | G230: =G$8 -> 2 | H230: =H$8 -> 8 | I230: 10 | J230: 14 | K230: 6 | L230: 4 | M230: 16 | N230: 12 | O230: 18 | Q230: =Q$8 -> 1 | R230: 9 | S230: 11 | T230: 5 | U230: 15 | V230: 13 | W230: 3 | X230: 17 | Y230: 7
F231: Coups reçus | G231: =IF($Q226<=18,IF(G230<=$Q226,1,0),IF($Q226<=36,IF(G230<=($Q226-18),2,1),IF($Q226>36,IF(G230<=($Q226-36),3,2)))) -> 2 | H231: =IF($Q226<=18,IF(H230<=$Q226,1,0),IF($Q226<=36,IF(H230<=($Q226-18),2,1),IF($Q226>36,IF(H230<=($Q226-36),3,2)))) -> 1 | I231: 1 | J231: 1 | K231: 2 | L231: 2 | M231: 1 | N231: 1 | O231: 1 | P231: =SUM(G231:O231) -> 12 | Q231: =IF($Q226<=18,IF(Q230<=$Q226,1,0),IF($Q226<=36,IF(Q230<=($Q226-18),2,1),IF($Q226>36,IF(Q230<=($Q226-36),3,2)))) -> 2 | R231: 1 | S231: 1 | T231: 2 | U231: 1 | V231: 1 | W231: 2 | X231: 1 | Y231: 2 | Z231: =SUM(Q231:Y231) -> 13 | AA231: =P231+Z231 -> 25
F232: Stroke play | G232: =G15 -> 6 | H232: 7 | I232: 5 | J232: 6 | K232: 6 | L232: 4 | M232: 4 | N232: 7 | O232: 6 | P232: =SUM(G232:O232) -> 51 | Q232: =Q15 -> 7 | R232: 8 | S232: 4 | T232: 6 | U232: 5 | V232: 6 | W232: 8 | X232: 3 | Y232: 9 | Z232: =SUM(Q232:Y232) -> 56 | AA232: =P232+Z232 -> 107
F233: Net Stableford | G233: =IF(G232-G229=-1,3+G231)+IF(G232-G229=0,2+G231)+IF(G232-G229=1,1+G231)+IF(G232-G229=2,G231)+IF(G232-G229=3,IF(G231-1>0,G231-1,0))+IF(G232-G229=4,IF(G231-2>0,G231-2,0)) -> 2 | H233: =IF(H232-H229=-1,3+H231)+IF(H232-H229=0,2+H231)+IF(H232-H229=1,1+H231)+IF(H232-H229=2,H231)+IF(H232-H229=3,IF(H231-1>0,H231-1,0))+IF(H232-H229=4,IF(H231-2>0,H231-2,0)) -> 1 | I233: 1 | J233: 1 | K233: 2 | L233: 4 | M233: 2 | N233: 0 | O233: 2 | P233: =SUM(G233:O233) -> 15 | Q233: =IF(Q232-Q229=-1,3+Q231)+IF(Q232-Q229=0,2+Q231)+IF(Q232-Q229=1,1+Q231)+IF(Q232-Q229=2,Q231)+IF(Q232-Q229=3,IF(Q231-1>0,Q231-1,0))+IF(Q232-Q229=4,IF(Q231-2>0,Q231-2,0)) -> 1 | R233: 0 | S233: 2 | T233: 2 | U233: 2 | V233: 2 | W233: 0 | X233: 3 | Y233: 0 | Z233: =SUM(Q233:Y233) -> 12 | AA233: =P233+Z233 -> 27
F234: Score Brut | G234: =IF(G232-G229=-2,4)+IF(G232-G229=-1,3)+IF(G232-G229=0,2)+IF(G232-G229=1,1)+IF(G232-G229>2,0) -> 0 | H234: 0 | I234: 0 | J234: 0 | K234: 0 | L234: 2 | M234: 1 | N234: 0 | O234: 1 | P234: =SUM(G234:O234) -> 4 | Q234: =IF(Q232-Q229=-2,4)+IF(Q232-Q229=-1,3)+IF(Q232-Q229=0,2)+IF(Q232-Q229=1,1)+IF(Q232-Q229>2,0) -> 0 | R234: 0 | S234: 1 | T234: 0 | U234: 1 | V234: 1 | W234: 0 | X234: 2 | Y234: 0 | Z234: =SUM(Q234:Y234) -> 5 | AA234: =P234+Z234 -> 9
G235: =G232-G229 -> 2 | H235: =H232-H229 -> 2 | I235: 2 | J235: 2 | K235: 2 | L235: 0 | M235: 1 | N235: 3 | O235: 1 | Q235: =Q232-Q229 -> 3 | R235: 4 | S235: 1 | T235: 2 | U235: 1 | V235: 1 | W235: 4 | X235: 0 | Y235: 4
F238: Statistiques scores | H238: Eagle & moins | L238: =COUNTIF(G235:Y235,"<=-2") -> 0 | M238: Par | O238: =COUNTIF(G235:Y235,"=0") -> 2 | P238: Double bogey | U238: =COUNTIF(G235:Y235,"=2") -> 6
H239: Birdie | L239: =COUNTIF(G235:Y235,"=-1") -> 0 | M239: Bogey | O239: =COUNTIF(G235:Y235,"=1") -> 5 | P239: Triple bogey & plus | U239: =COUNTIF(G235:Y235,">=3") -> 5
H240: =M238 -> Par | L240: =O238 -> 2
H241: =M239 -> Bogey | L241: =O239 -> 5
H242: =P238 -> Double bogey | L242: =U238 -> 6
H243: =P239 -> Triple bogey & plus | L243: =U239 -> 5
F248: Nom | G248: =C16 -> BINVAULT | L248: Slope | O248: SSS | Q248: Coups reçus | Z248: Date | AA248: =$D$3 -> 2022-03-26
F249: Index | G249: =E16 -> 34.7 | L249: =$F$3 -> 122 | O249: =$G$3 -> 70 | Q249: =ROUND((G249*(L249/113)+(O249-AA252)),0) -> 35
F251: Trou | G251: 1 | H251: 2 | I251: 3 | J251: 4 | K251: 5 | L251: 6 | M251: 7 | N251: 8 | O251: 9 | P251: Aller | Q251: 10 | R251: 11 | S251: 12 | T251: 13 | U251: 14 | V251: 15 | W251: 16 | X251: 17 | Y251: 18 | Z251: Retour | AA251: Total
F252: PAR | G252: =G$7 -> 4 | H252: =H$7 -> 5 | I252: 3 | J252: 4 | K252: 4 | L252: 4 | M252: 3 | N252: 4 | O252: 5 | P252: =SUM(G252:O252) -> 36 | Q252: =Q$7 -> 4 | R252: 4 | S252: 3 | T252: 4 | U252: 4 | V252: 5 | W252: 4 | X252: 3 | Y252: 5 | Z252: =SUM(Q252:Y252) -> 36 | AA252: =SUM(P252+Z252) -> 72
F253: HCP trous | G253: =G$8 -> 2 | H253: =H$8 -> 8 | I253: 10 | J253: 14 | K253: 6 | L253: 4 | M253: 16 | N253: 12 | O253: 18 | Q253: =Q$8 -> 1 | R253: 9 | S253: 11 | T253: 5 | U253: 15 | V253: 13 | W253: 3 | X253: 17 | Y253: 7
F254: Coups reçus | G254: =IF($Q249<=18,IF(G253<=$Q249,1,0),IF($Q249<=36,IF(G253<=($Q249-18),2,1),IF($Q249>36,IF(G253<=($Q249-36),3,2)))) -> 2 | H254: =IF($Q249<=18,IF(H253<=$Q249,1,0),IF($Q249<=36,IF(H253<=($Q249-18),2,1),IF($Q249>36,IF(H253<=($Q249-36),3,2)))) -> 2 | I254: 2 | J254: 2 | K254: 2 | L254: 2 | M254: 2 | N254: 2 | O254: 1 | P254: =SUM(G254:O254) -> 17 | Q254: =IF($Q249<=18,IF(Q253<=$Q249,1,0),IF($Q249<=36,IF(Q253<=($Q249-18),2,1),IF($Q249>36,IF(Q253<=($Q249-36),3,2)))) -> 2 | R254: 2 | S254: 2 | T254: 2 | U254: 2 | V254: 2 | W254: 2 | X254: 2 | Y254: 2 | Z254: =SUM(Q254:Y254) -> 18 | AA254: =P254+Z254 -> 35
F255: Stroke play | G255: =G16 -> 6 | H255: 9 | I255: 3 | J255: 7 | K255: 6 | L255: 5 | M255: 4 | N255: 5 | O255: 6 | P255: =SUM(G255:O255) -> 51 | Q255: =Q16 -> 6 | R255: 6 | S255: 5 | T255: 6 | U255: 7 | V255: 9 | W255: 7 | X255: 7 | Y255: 7 | Z255: =SUM(Q255:Y255) -> 60 | AA255: =P255+Z255 -> 111
F256: Net Stableford | G256: =IF(G255-G252=-1,3+G254)+IF(G255-G252=0,2+G254)+IF(G255-G252=1,1+G254)+IF(G255-G252=2,G254)+IF(G255-G252=3,IF(G254-1>0,G254-1,0))+IF(G255-G252=4,IF(G254-2>0,G254-2,0)) -> 2 | H256: =IF(H255-H252=-1,3+H254)+IF(H255-H252=0,2+H254)+IF(H255-H252=1,1+H254)+IF(H255-H252=2,H254)+IF(H255-H252=3,IF(H254-1>0,H254-1,0))+IF(H255-H252=4,IF(H254-2>0,H254-2,0)) -> 0 | I256: 4 | J256: 1 | K256: 2 | L256: 3 | M256: 3 | N256: 3 | O256: 2 | P256: =SUM(G256:O256) -> 20 | Q256: =IF(Q255-Q252=-1,3+Q254)+IF(Q255-Q252=0,2+Q254)+IF(Q255-Q252=1,1+Q254)+IF(Q255-Q252=2,Q254)+IF(Q255-Q252=3,IF(Q254-1>0,Q254-1,0))+IF(Q255-Q252=4,IF(Q254-2>0,Q254-2,0)) -> 2 | R256: 2 | S256: 2 | T256: 2 | U256: 1 | V256: 0 | W256: 1 | X256: 0 | Y256: 2 | Z256: =SUM(Q256:Y256) -> 12 | AA256: =P256+Z256 -> 32
F257: Score Brut | G257: =IF(G255-G252=-2,4)+IF(G255-G252=-1,3)+IF(G255-G252=0,2)+IF(G255-G252=1,1)+IF(G255-G252>2,0) -> 0 | H257: 0 | I257: 2 | J257: 0 | K257: 0 | L257: 1 | M257: 1 | N257: 1 | O257: 1 | P257: =SUM(G257:O257) -> 6 | Q257: =IF(Q255-Q252=-2,4)+IF(Q255-Q252=-1,3)+IF(Q255-Q252=0,2)+IF(Q255-Q252=1,1)+IF(Q255-Q252>2,0) -> 0 | R257: 0 | S257: 0 | T257: 0 | U257: 0 | V257: 0 | W257: 0 | X257: 0 | Y257: 0 | Z257: =SUM(Q257:Y257) -> 0 | AA257: =P257+Z257 -> 6
G258: =G255-G252 -> 2 | H258: =H255-H252 -> 4 | I258: 0 | J258: 3 | K258: 2 | L258: 1 | M258: 1 | N258: 1 | O258: 1 | Q258: =Q255-Q252 -> 2 | R258: 2 | S258: 2 | T258: 2 | U258: 3 | V258: 4 | W258: 3 | X258: 4 | Y258: 2
F261: Statistiques scores | H261: Eagle & moins | L261: =COUNTIF(G258:Y258,"<=-2") -> 0 | M261: Par | O261: =COUNTIF(G258:Y258,"=0") -> 1 | P261: Double bogey | U261: =COUNTIF(G258:Y258,"=2") -> 7
H262: Birdie | L262: =COUNTIF(G258:Y258,"=-1") -> 0 | M262: Bogey | O262: =COUNTIF(G258:Y258,"=1") -> 4 | P262: Triple bogey & plus | U262: =COUNTIF(G258:Y258,">=3") -> 6
H263: =M261 -> Par | L263: =O261 -> 1
H264: =M262 -> Bogey | L264: =O262 -> 4
H265: =P261 -> Double bogey | L265: =U261 -> 7
H266: =P262 -> Triple bogey & plus | L266: =U262 -> 6
F271: Nom | G271: =C17 -> DIOT | L271: Slope | O271: SSS | Q271: Coups reçus | Z271: Date | AA271: =$D$3 -> 2022-03-26
F272: Index | G272: =E17 -> 8.2 | L272: =$F$3 -> 122 | O272: =$G$3 -> 70 | Q272: =ROUND((G272*(L272/113)+(O272-AA275)),0) -> 7
... 350 more rows

Sheet sortie (3)
C2: Golf | D2: B | F2: Slope | G2: SSS | N2: CARTE DE SCORE
C3: Date | F3: 133 | G3: 68.6
C5: Individuel Stableford BRUT/NET
E6: Index | F6: HCP trous | G6: 1 | H6: 2 | I6: 3 | J6: 4 | K6: 5 | L6: 6 | M6: 7 | N6: 8 | O6: 9 | P6: Aller | Q6: 10 | R6: 11 | S6: 12 | T6: 13 | U6: 14 | V6: 15 | W6: 16 | X6: 17 | Y6: 18 | Z6: Retour | AA6: Total
F7: PAR | G7: 4 | H7: 4 | I7: 5 | J7: 4 | K7: 3 | L7: 5 | M7: 3 | N7: 5 | O7: 3 | P7: =SUM(G7:O7) -> 36 | Q7: 4 | R7: 4 | S7: 3 | T7: 5 | U7: 3 | V7: 4 | W7: 4 | X7: 5 | Y7: 4 | Z7: =SUM(Q7:Y7) -> 36 | AA7: =SUM(P7+Z7) -> 72
C8: Noms | D8: Prénoms | F8: Trou | G8: 4 | H8: 8 | I8: 12 | J8: 14 | K8: 2 | L8: 10 | M8: 18 | N8: 16 | O8: 6 | Q8: 1 | R8: 9 | S8: 11 | T8: 5 | U8: 17 | V8: 15 | W8: 3 | X8: 13 | Y8: 7 | AC8: NET | AD8: Classt | AE8: Rang | AF8: Points | AH8: BRUT | AI8: Classt | AJ8: Rang | AK8: Points | AM8: STROKE | AN8: Classt | AO8: Rang | AP8: Points
B9: 1 | E9: 20 | G9: 10 | H9: 10 | I9: 10 | J9: 10 | K9: 10 | L9: 10 | M9: 10 | N9: 10 | O9: 10 | P9: =SUM(G9:O9) -> 90 | Q9: 10 | R9: 10 | S9: 10 | T9: 10 | U9: 10 | V9: 10 | W9: 10 | X9: 10 | Y9: 10 | Z9: =SUM(Q9:Y9) -> 90 | AA9: =SUM(P9+Z9) -> 180 | AC9: =$AA$95 -> 0 | AD9: =RANK(AC9,AC$9:AC$38,0)+COUNTIF(AC9:$AC$9,AC9)-1 -> 1 | AE9: =RANK(AC9,AC$9:AC$38,0) -> 1 | AF9: =IF(ISBLANK($C9),0,1)*INDEX('Allocation Points'!$B$3:$AG$32,AE9,COUNTIF(AE$9:AE$38,AE9)+2) -> 0 | AH9: =AA96 -> 0 | AI9: =RANK(AH9,AH$9:AH$38,0)+COUNTIF(AH9:$AH$9,AH9)-1 -> 1 | AJ9: =RANK(AH9,AH$9:AH$38,0) -> 1 | AK9: =IF(ISBLANK($C9),0,1)*INDEX('Allocation Points'!$B$3:$AG$32,AJ9,COUNTIF(AJ$9:AJ$38,AJ9)+2) -> 0 | AM9: =AA94 -> 180 | AN9: =RANK(AM9,AM$9:AM$38,1)+COUNTIF(AM9:$AM$9,AM9)-1 -> 1 | AO9: =RANK(AM9,AM$9:AM$38,1) -> 1 | AP9: =IF(ISBLANK($C9),0,1)*INDEX('Allocation Points'!$B$3:$AG$32,AO9,COUNTIF(AO$9:AO$38,AO9)+2) -> 0
B10: 2 | E10: 20 | G10: 10 | H10: 10 | I10: 10 | J10: 10 | K10: 10 | L10: 10 | M10: 10 | N10: 10 | O10: 10 | P10: 90 | Q10: 10 | R10: 10 | S10: 10 | T10: 10 | U10: 10 | V10: 10 | W10: 10 | X10: 10 | Y10: 10 | Z10: 90 | AA10: 180 | AC10: =$AA$118 -> 0 | AD10: =RANK(AC10,AC$9:AC$38,0)+COUNTIF(AC$9:$AC10,AC10)-1 -> 2 | AE10: =RANK(AC10,AC$9:AC$38,0) -> 1 | AF10: =IF(ISBLANK($C10),0,1)*INDEX('Allocation Points'!$B$3:$AG$32,AE10,COUNTIF(AE$9:AE$38,AE10)+2) -> 0 | AH10: =AA119 -> 0 | AI10: =RANK(AH10,AH$9:AH$38,0)+COUNTIF(AH$9:$AH10,AH10)-1 -> 2 | AJ10: =RANK(AH10,AH$9:AH$38,0) -> 1 | AK10: =IF(ISBLANK($C10),0,1)*INDEX('Allocation Points'!$B$3:$AG$32,AJ10,COUNTIF(AJ$9:AJ$38,AJ10)+2) -> 0 | AM10: =AA117 -> 180 | AN10: =RANK(AM10,AM$9:AM$38,1)+COUNTIF(AM$9:$AM10,AM10)-1 -> 2 | AO10: =RANK(AM10,AM$9:AM$38,1) -> 1 | AP10: =IF(ISBLANK($C10),0,1)*INDEX('Allocation Points'!$B$3:$AG$32,AO10,COUNTIF(AO$9:AO$38,AO10)+2) -> 0
B11: 3 | E11: 20 | G11: 10 | H11: 10 | I11: 10 | J11: 10 | K11: 10 | L11: 10 | M11: 10 | N11: 10 | O11: 10 | P11: 90 | Q11: 10 | R11: 10 | S11: 10 | T11: 10 | U11: 10 | V11: 10 | W11: 10 | X11: 10 | Y11: 10 | Z11: 90 | AA11: 180 | AC11: =$AA$141 -> 0 | AD11: =RANK(AC11,AC$9:AC$38,0)+COUNTIF(AC$9:$AC11,AC11)-1 -> 3 | AE11: 1 | AF11: =IF(ISBLANK($C11),0,1)*INDEX('Allocation Points'!$B$3:$AG$32,AE11,COUNTIF(AE$9:AE$38,AE11)+2) -> 0 | AH11: =AA142 -> 0 | AI11: =RANK(AH11,AH$9:AH$38,0)+COUNTIF(AH$9:$AH11,AH11)-1 -> 3 | AJ11: 1 | AK11: =IF(ISBLANK($C11),0,1)*INDEX('Allocation Points'!$B$3:$AG$32,AJ11,COUNTIF(AJ$9:AJ$38,AJ11)+2) -> 0 | AM11: =AA140 -> 180 | AN11: =RANK(AM11,AM$9:AM$38,1)+COUNTIF(AM$9:$AM11,AM11)-1 -> 3 | AO11: 1 | AP11: =IF(ISBLANK($C11),0,1)*INDEX('Allocation Points'!$B$3:$AG$32,AO11,COUNTIF(AO$9:AO$38,AO11)+2) -> 0
B12: 4 | E12: 20 | G12: 10 | H12: 10 | I12: 10 | J12: 10 | K12: 10 | L12: 10 | M12: 10 | N12: 10 | O12: 10 | P12: 90 | Q12: 10 | R12: 10 | S12: 10 | T12: 10 | U12: 10 | V12: 10 | W12: 10 | X12: 10 | Y12: 10 | Z12: 90 | AA12: 180 | AC12: =$AA$164 -> 0 | AD12: =RANK(AC12,AC$9:AC$38,0)+COUNTIF(AC$9:$AC12,AC12)-1 -> 4 | AE12: 1 | AF12: =IF(ISBLANK($C12),0,1)*INDEX('Allocation Points'!$B$3:$AG$32,AE12,COUNTIF(AE$9:AE$38,AE12)+2) -> 0 | AH12: =AA165 -> 0 | AI12: =RANK(AH12,AH$9:AH$38,0)+COUNTIF(AH$9:$AH12,AH12)-1 -> 4 | AJ12: 1 | AK12: =IF(ISBLANK($C12),0,1)*INDEX('Allocation Points'!$B$3:$AG$32,AJ12,COUNTIF(AJ$9:AJ$38,AJ12)+2) -> 0 | AM12: =AA163 -> 180 | AN12: =RANK(AM12,AM$9:AM$38,1)+COUNTIF(AM$9:$AM12,AM12)-1 -> 4 | AO12: 1 | AP12: =IF(ISBLANK($C12),0,1)*INDEX('Allocation Points'!$B$3:$AG$32,AO12,COUNTIF(AO$9:AO$38,AO12)+2) -> 0
B13: 5 | E13: 20 | G13: 10 | H13: 10 | I13: 10 | J13: 10 | K13: 10 | L13: 10 | M13: 10 | N13: 10 | O13: 10 | P13: 90 | Q13: 10 | R13: 10 | S13: 10 | T13: 10 | U13: 10 | V13: 10 | W13: 10 | X13: 10 | Y13: 10 | Z13: 90 | AA13: 180 | AC13: =$AA$187 -> 0 | AD13: =RANK(AC13,AC$9:AC$38,0)+COUNTIF(AC$9:$AC13,AC13)-1 -> 5 | AE13: 1 | AF13: =IF(ISBLANK($C13),0,1)*INDEX('Allocation Points'!$B$3:$AG$32,AE13,COUNTIF(AE$9:AE$38,AE13)+2) -> 0 | AH13: =AA188 -> 0 | AI13: =RANK(AH13,AH$9:AH$38,0)+COUNTIF(AH$9:$AH13,AH13)-1 -> 5 | AJ13: 1 | AK13: =IF(ISBLANK($C13),0,1)*INDEX('Allocation Points'!$B$3:$AG$32,AJ13,COUNTIF(AJ$9:AJ$38,AJ13)+2) -> 0 | AM13: =AA186 -> 180 | AN13: =RANK(AM13,AM$9:AM$38,1)+COUNTIF(AM$9:$AM13,AM13)-1 -> 5 | AO13: 1 | AP13: =IF(ISBLANK($C13),0,1)*INDEX('Allocation Points'!$B$3:$AG$32,AO13,COUNTIF(AO$9:AO$38,AO13)+2) -> 0
B14: 6 | E14: 20 | G14: 10 | H14: 10 | I14: 10 | J14: 10 | K14: 10 | L14: 10 | M14: 10 | N14: 10 | O14: 10 | P14: 90 | Q14: 10 | R14: 10 | S14: 10 | T14: 10 | U14: 10 | V14: 10 | W14: 10 | X14: 10 | Y14: 10 | Z14: 90 | AA14: 180 | AC14: =$AA$210 -> 0 | AD14: =RANK(AC14,AC$9:AC$38,0)+COUNTIF(AC$9:$AC14,AC14)-1 -> 6 | AE14: 1 | AF14: =IF(ISBLANK($C14),0,1)*INDEX('Allocation Points'!$B$3:$AG$32,AE14,COUNTIF(AE$9:AE$38,AE14)+2) -> 0 | AH14: =AA211 -> 0 | AI14: =RANK(AH14,AH$9:AH$38,0)+COUNTIF(AH$9:$AH14,AH14)-1 -> 6 | AJ14: 1 | AK14: =IF(ISBLANK($C14),0,1)*INDEX('Allocation Points'!$B$3:$AG$32,AJ14,COUNTIF(AJ$9:AJ$38,AJ14)+2) -> 0 | AM14: =AA209 -> 180 | AN14: =RANK(AM14,AM$9:AM$38,1)+COUNTIF(AM$9:$AM14,AM14)-1 -> 6 | AO14: 1 | AP14: =IF(ISBLANK($C14),0,1)*INDEX('Allocation Points'!$B$3:$AG$32,AO14,COUNTIF(AO$9:AO$38,AO14)+2) -> 0
B15: 7 | E15: 20 | G15: 10 | H15: 10 | I15: 10 | J15: 10 | K15: 10 | L15: 10 | M15: 10 | N15: 10 | O15: 10 | P15: 90 | Q15: 10 | R15: 10 | S15: 10 | T15: 10 | U15: 10 | V15: 10 | W15: 10 | X15: 10 | Y15: 10 | Z15: 90 | AA15: 180 | AC15: =$AA$233 -> 0 | AD15: =RANK(AC15,AC$9:AC$38,0)+COUNTIF(AC$9:$AC15,AC15)-1 -> 7 | AE15: 1 | AF15: =IF(ISBLANK($C15),0,1)*INDEX('Allocation Points'!$B$3:$AG$32,AE15,COUNTIF(AE$9:AE$38,AE15)+2) -> 0 | AH15: =AA234 -> 0 | AI15: =RANK(AH15,AH$9:AH$38,0)+COUNTIF(AH$9:$AH15,AH15)-1 -> 7 | AJ15: 1 | AK15: =IF(ISBLANK($C15),0,1)*INDEX('Allocation Points'!$B$3:$AG$32,AJ15,COUNTIF(AJ$9:AJ$38,AJ15)+2) -> 0 | AM15: =AA232 -> 180 | AN15: =RANK(AM15,AM$9:AM$38,1)+COUNTIF(AM$9:$AM15,AM15)-1 -> 7 | AO15: 1 | AP15: =IF(ISBLANK($C15),0,1)*INDEX('Allocation Points'!$B$3:$AG$32,AO15,COUNTIF(AO$9:AO$38,AO15)+2) -> 0
B16: 8 | E16: 20 | G16: 10 | H16: 10 | I16: 10 | J16: 10 | K16: 10 | L16: 10 | M16: 10 | N16: 10 | O16: 10 | P16: 90 | Q16: 10 | R16: 10 | S16: 10 | T16: 10 | U16: 10 | V16: 10 | W16: 10 | X16: 10 | Y16: 10 | Z16: 90 | AA16: 180 | AC16: =$AA$256 -> 0 | AD16: =RANK(AC16,AC$9:AC$38,0)+COUNTIF(AC$9:$AC16,AC16)-1 -> 8 | AE16: 1 | AF16: =IF(ISBLANK($C16),0,1)*INDEX('Allocation Points'!$B$3:$AG$32,AE16,COUNTIF(AE$9:AE$38,AE16)+2) -> 0 | AH16: =AA257 -> 0 | AI16: =RANK(AH16,AH$9:AH$38,0)+COUNTIF(AH$9:$AH16,AH16)-1 -> 8 | AJ16: 1 | AK16: =IF(ISBLANK($C16),0,1)*INDEX('Allocation Points'!$B$3:$AG$32,AJ16,COUNTIF(AJ$9:AJ$38,AJ16)+2) -> 0 | AM16: =AA255 -> 180 | AN16: =RANK(AM16,AM$9:AM$38,1)+COUNTIF(AM$9:$AM16,AM16)-1 -> 8 | AO16: 1 | AP16: =IF(ISBLANK($C16),0,1)*INDEX('Allocation Points'!$B$3:$AG$32,AO16,COUNTIF(AO$9:AO$38,AO16)+2) -> 0
B17: 9 | E17: 20 | G17: 10 | H17: 10 | I17: 10 | J17: 10 | K17: 10 | L17: 10 | M17: 10 | N17: 10 | O17: 10 | P17: 90 | Q17: 10 | R17: 10 | S17: 10 | T17: 10 | U17: 10 | V17: 10 | W17: 10 | X17: 10 | Y17: 10 | Z17: 90 | AA17: 180 | AC17: =$AA$279 -> 0 | AD17: =RANK(AC17,AC$9:AC$38,0)+COUNTIF(AC$9:$AC17,AC17)-1 -> 9 | AE17: 1 | AF17: =IF(ISBLANK($C17),0,1)*INDEX('Allocation Points'!$B$3:$AG$32,AE17,COUNTIF(AE$9:AE$38,AE17)+2) -> 0 | AH17: =AA280 -> 0 | AI17: =RANK(AH17,AH$9:AH$38,0)+COUNTIF(AH$9:$AH17,AH17)-1 -> 9 | AJ17: 1 | AK17: =IF(ISBLANK($C17),0,1)*INDEX('Allocation Points'!$B$3:$AG$32,AJ17,COUNTIF(AJ$9:AJ$38,AJ17)+2) -> 0 | AM17: =AA278 -> 180 | AN17: =RANK(AM17,AM$9:AM$38,1)+COUNTIF(AM$9:$AM17,AM17)-1 -> 9 | AO17: 1 | AP17: =IF(ISBLANK($C17),0,1)*INDEX('Allocation Points'!$B$3:$AG$32,AO17,COUNTIF(AO$9:AO$38,AO17)+2) -> 0
B18: 10 | E18: 20 | G18: 10 | H18: 10 | I18: 10 | J18: 10 | K18: 10 | L18: 10 | M18: 10 | N18: 10 | O18: 10 | P18: 90 | Q18: 10 | R18: 10 | S18: 10 | T18: 10 | U18: 10 | V18: 10 | W18: 10 | X18: 10 | Y18: 10 | Z18: 90 | AA18: 180 | AC18: =$AA$302 -> 0 | AD18: =RANK(AC18,AC$9:AC$38,0)+COUNTIF(AC$9:$AC18,AC18)-1 -> 10 | AE18: 1 | AF18: =IF(ISBLANK($C18),0,1)*INDEX('Allocation Points'!$B$3:$AG$32,AE18,COUNTIF(AE$9:AE$38,AE18)+2) -> 0 | AH18: =AA303 -> 0 | AI18: =RANK(AH18,AH$9:AH$38,0)+COUNTIF(AH$9:$AH18,AH18)-1 -> 10 | AJ18: 1 | AK18: =IF(ISBLANK($C18),0,1)*INDEX('Allocation Points'!$B$3:$AG$32,AJ18,COUNTIF(AJ$9:AJ$38,AJ18)+2) -> 0 | AM18: =AA301 -> 180 | AN18: =RANK(AM18,AM$9:AM$38,1)+COUNTIF(AM$9:$AM18,AM18)-1 -> 10 | AO18: 1 | AP18: =IF(ISBLANK($C18),0,1)*INDEX('Allocation Points'!$B$3:$AG$32,AO18,COUNTIF(AO$9:AO$38,AO18)+2) -> 0
B19: 11 | E19: 20 | G19: 10 | H19: 10 | I19: 10 | J19: 10 | K19: 10 | L19: 10 | M19: 10 | N19: 10 | O19: 10 | P19: 90 | Q19: 10 | R19: 10 | S19: 10 | T19: 10 | U19: 10 | V19: 10 | W19: 10 | X19: 10 | Y19: 10 | Z19: 90 | AA19: 180 | AC19: =$AA$325 -> 0 | AD19: =RANK(AC19,AC$9:AC$38,0)+COUNTIF(AC$9:$AC19,AC19)-1 -> 11 | AE19: 1 | AF19: =IF(ISBLANK($C19),0,1)*INDEX('Allocation Points'!$B$3:$AG$32,AE19,COUNTIF(AE$9:AE$38,AE19)+2) -> 0 | AH19: =AA326 -> 0 | AI19: =RANK(AH19,AH$9:AH$38,0)+COUNTIF(AH$9:$AH19,AH19)-1 -> 11 | AJ19: 1 | AK19: =IF(ISBLANK($C19),0,1)*INDEX('Allocation Points'!$B$3:$AG$32,AJ19,COUNTIF(AJ$9:AJ$38,AJ19)+2) -> 0 | AM19: =AA324 -> 180 | AN19: =RANK(AM19,AM$9:AM$38,1)+COUNTIF(AM$9:$AM19,AM19)-1 -> 11 | AO19: 1 | AP19: =IF(ISBLANK($C19),0,1)*INDEX('Allocation Points'!$B$3:$AG$32,AO19,COUNTIF(AO$9:AO$38,AO19)+2) -> 0
B20: 12 | E20: 20 | G20: 10 | H20: 10 | I20: 10 | J20: 10 | K20: 10 | L20: 10 | M20: 10 | N20: 10 | O20: 10 | P20: 90 | Q20: 10 | R20: 10 | S20: 10 | T20: 10 | U20: 10 | V20: 10 | W20: 10 | X20: 10 | Y20: 10 | Z20: 90 | AA20: 180 | AC20: =$AA$348 -> 0 | AD20: =RANK(AC20,AC$9:AC$38,0)+COUNTIF(AC$9:$AC20,AC20)-1 -> 12 | AE20: 1 | AF20: =IF(ISBLANK($C20),0,1)*INDEX('Allocation Points'!$B$3:$AG$32,AE20,COUNTIF(AE$9:AE$38,AE20)+2) -> 0 | AH20: =AA349 -> 0 | AI20: =RANK(AH20,AH$9:AH$38,0)+COUNTIF(AH$9:$AH20,AH20)-1 -> 12 | AJ20: 1 | AK20: =IF(ISBLANK($C20),0,1)*INDEX('Allocation Points'!$B$3:$AG$32,AJ20,COUNTIF(AJ$9:AJ$38,AJ20)+2) -> 0 | AM20: =AA347 -> 180 | AN20: =RANK(AM20,AM$9:AM$38,1)+COUNTIF(AM$9:$AM20,AM20)-1 -> 12 | AO20: 1 | AP20: =IF(ISBLANK($C20),0,1)*INDEX('Allocation Points'!$B$3:$AG$32,AO20,COUNTIF(AO$9:AO$38,AO20)+2) -> 0
B21: 13 | E21: 20 | G21: 10 | H21: 10 | I21: 10 | J21: 10 | K21: 10 | L21: 10 | M21: 10 | N21: 10 | O21: 10 | P21: 90 | Q21: 10 | R21: 10 | S21: 10 | T21: 10 | U21: 10 | V21: 10 | W21: 10 | X21: 10 | Y21: 10 | Z21: 90 | AA21: 180 | AC21: =$AA$371 -> 0 | AD21: =RANK(AC21,AC$9:AC$38,0)+COUNTIF(AC$9:$AC21,AC21)-1 -> 13 | AE21: 1 | AF21: =IF(ISBLANK($C21),0,1)*INDEX('Allocation Points'!$B$3:$AG$32,AE21,COUNTIF(AE$9:AE$38,AE21)+2) -> 0 | AH21: =AA372 -> 0 | AI21: =RANK(AH21,AH$9:AH$38,0)+COUNTIF(AH$9:$AH21,AH21)-1 -> 13 | AJ21: 1 | AK21: =IF(ISBLANK($C21),0,1)*INDEX('Allocation Points'!$B$3:$AG$32,AJ21,COUNTIF(AJ$9:AJ$38,AJ21)+2) -> 0 | AM21: =AA370 -> 180 | AN21: =RANK(AM21,AM$9:AM$38,1)+COUNTIF(AM$9:$AM21,AM21)-1 -> 13 | AO21: 1 | AP21: =IF(ISBLANK($C21),0,1)*INDEX('Allocation Points'!$B$3:$AG$32,AO21,COUNTIF(AO$9:AO$38,AO21)+2) -> 0
B22: 14 | E22: 20 | G22: 10 | H22: 10 | I22: 10 | J22: 10 | K22: 10 | L22: 10 | M22: 10 | N22: 10 | O22: 10 | P22: 90 | Q22: 10 | R22: 10 | S22: 10 | T22: 10 | U22: 10 | V22: 10 | W22: 10 | X22: 10 | Y22: 10 | Z22: 90 | AA22: 180 | AC22: =$AA$394 -> 0 | AD22: =RANK(AC22,AC$9:AC$38,0)+COUNTIF(AC$9:$AC22,AC22)-1 -> 14 | AE22: 1 | AF22: =IF(ISBLANK($C22),0,1)*INDEX('Allocation Points'!$B$3:$AG$32,AE22,COUNTIF(AE$9:AE$38,AE22)+2) -> 0 | AH22: =AA395 -> 0 | AI22: =RANK(AH22,AH$9:AH$38,0)+COUNTIF(AH$9:$AH22,AH22)-1 -> 14 | AJ22: 1 | AK22: =IF(ISBLANK($C22),0,1)*INDEX('Allocation Points'!$B$3:$AG$32,AJ22,COUNTIF(AJ$9:AJ$38,AJ22)+2) -> 0 | AM22: =AA393 -> 180 | AN22: =RANK(AM22,AM$9:AM$38,1)+COUNTIF(AM$9:$AM22,AM22)-1 -> 14 | AO22: 1 | AP22: =IF(ISBLANK($C22),0,1)*INDEX('Allocation Points'!$B$3:$AG$32,AO22,COUNTIF(AO$9:AO$38,AO22)+2) -> 0
B23: 15 | E23: 20 | G23: 10 | H23: 10 | I23: 10 | J23: 10 | K23: 10 | L23: 10 | M23: 10 | N23: 10 | O23: 10 | P23: 90 | Q23: 10 | R23: 10 | S23: 10 | T23: 10 | U23: 10 | V23: 10 | W23: 10 | X23: 10 | Y23: 10 | Z23: 90 | AA23: 180 | AC23: =$AA$417 -> 0 | AD23: =RANK(AC23,AC$9:AC$38,0)+COUNTIF(AC$9:$AC23,AC23)-1 -> 15 | AE23: 1 | AF23: =IF(ISBLANK($C23),0,1)*INDEX('Allocation Points'!$B$3:$AG$32,AE23,COUNTIF(AE$9:AE$38,AE23)+2) -> 0 | AH23: =AA418 -> 0 | AI23: =RANK(AH23,AH$9:AH$38,0)+COUNTIF(AH$9:$AH23,AH23)-1 -> 15 | AJ23: 1 | AK23: =IF(ISBLANK($C23),0,1)*INDEX('Allocation Points'!$B$3:$AG$32,AJ23,COUNTIF(AJ$9:AJ$38,AJ23)+2) -> 0 | AM23: =AA416 -> 180 | AN23: =RANK(AM23,AM$9:AM$38,1)+COUNTIF(AM$9:$AM23,AM23)-1 -> 15 | AO23: 1 | AP23: =IF(ISBLANK($C23),0,1)*INDEX('Allocation Points'!$B$3:$AG$32,AO23,COUNTIF(AO$9:AO$38,AO23)+2) -> 0
B24: 16 | E24: 20 | G24: 10 | H24: 10 | I24: 10 | J24: 10 | K24: 10 | L24: 10 | M24: 10 | N24: 10 | O24: 10 | P24: 90 | Q24: 10 | R24: 10 | S24: 10 | T24: 10 | U24: 10 | V24: 10 | W24: 10 | X24: 10 | Y24: 10 | Z24: 90 | AA24: 180 | AC24: =$AA$440 -> 0 | AD24: =RANK(AC24,AC$9:AC$38,0)+COUNTIF(AC$9:$AC24,AC24)-1 -> 16 | AE24: 1 | AF24: =IF(ISBLANK($C24),0,1)*INDEX('Allocation Points'!$B$3:$AG$32,AE24,COUNTIF(AE$9:AE$38,AE24)+2) -> 0 | AH24: =AA441 -> 0 | AI24: =RANK(AH24,AH$9:AH$38,0)+COUNTIF(AH$9:$AH24,AH24)-1 -> 16 | AJ24: 1 | AK24: =IF(ISBLANK($C24),0,1)*INDEX('Allocation Points'!$B$3:$AG$32,AJ24,COUNTIF(AJ$9:AJ$38,AJ24)+2) -> 0 | AM24: =AA439 -> 180 | AN24: =RANK(AM24,AM$9:AM$38,1)+COUNTIF(AM$9:$AM24,AM24)-1 -> 16 | AO24: 1 | AP24: =IF(ISBLANK($C24),0,1)*INDEX('Allocation Points'!$B$3:$AG$32,AO24,COUNTIF(AO$9:AO$38,AO24)+2) -> 0
B25: 17 | E25: 20 | G25: 10 | H25: 10 | I25: 10 | J25: 10 | K25: 10 | L25: 10 | M25: 10 | N25: 10 | O25: 10 | P25: 90 | Q25: 10 | R25: 10 | S25: 10 | T25: 10 | U25: 10 | V25: 10 | W25: 10 | X25: 10 | Y25: 10 | Z25: 90 | AA25: 180 | AC25: =$AA$463 -> 0 | AD25: =RANK(AC25,AC$9:AC$38,0)+COUNTIF(AC$9:$AC25,AC25)-1 -> 17 | AE25: 1 | AF25: =IF(ISBLANK($C25),0,1)*INDEX('Allocation Points'!$B$3:$AG$32,AE25,COUNTIF(AE$9:AE$38,AE25)+2) -> 0 | AH25: =AA464 -> 0 | AI25: =RANK(AH25,AH$9:AH$38,0)+COUNTIF(AH$9:$AH25,AH25)-1 -> 17 | AJ25: 1 | AK25: =IF(ISBLANK($C25),0,1)*INDEX('Allocation Points'!$B$3:$AG$32,AJ25,COUNTIF(AJ$9:AJ$38,AJ25)+2) -> 0 | AM25: =AA462 -> 180 | AN25: =RANK(AM25,AM$9:AM$38,1)+COUNTIF(AM$9:$AM25,AM25)-1 -> 17 | AO25: 1 | AP25: =IF(ISBLANK($C25),0,1)*INDEX('Allocation Points'!$B$3:$AG$32,AO25,COUNTIF(AO$9:AO$38,AO25)+2) -> 0
B26: 18 | E26: 20 | G26: 10 | H26: 10 | I26: 10 | J26: 10 | K26: 10 | L26: 10 | M26: 10 | N26: 10 | O26: 10 | P26: 90 | Q26: 10 | R26: 10 | S26: 10 | T26: 10 | U26: 10 | V26: 10 | W26: 10 | X26: 10 | Y26: 10 | Z26: 90 | AA26: 180 | AC26: =$AA$486 -> 0 | AD26: =RANK(AC26,AC$9:AC$38,0)+COUNTIF(AC$9:$AC26,AC26)-1 -> 18 | AE26: 1 | AF26: =IF(ISBLANK($C26),0,1)*INDEX('Allocation Points'!$B$3:$AG$32,AE26,COUNTIF(AE$9:AE$38,AE26)+2) -> 0 | AH26: =AA487 -> 0 | AI26: =RANK(AH26,AH$9:AH$38,0)+COUNTIF(AH$9:$AH26,AH26)-1 -> 18 | AJ26: 1 | AK26: =IF(ISBLANK($C26),0,1)*INDEX('Allocation Points'!$B$3:$AG$32,AJ26,COUNTIF(AJ$9:AJ$38,AJ26)+2) -> 0 | AM26: =AA485 -> 180 | AN26: =RANK(AM26,AM$9:AM$38,1)+COUNTIF(AM$9:$AM26,AM26)-1 -> 18 | AO26: 1 | AP26: =IF(ISBLANK($C26),0,1)*INDEX('Allocation Points'!$B$3:$AG$32,AO26,COUNTIF(AO$9:AO$38,AO26)+2) -> 0
B27: 19 | E27: 20 | G27: 10 | H27: 10 | I27: 10 | J27: 10 | K27: 10 | L27: 10 | M27: 10 | N27: 10 | O27: 10 | P27: 90 | Q27: 10 | R27: 10 | S27: 10 | T27: 10 | U27: 10 | V27: 10 | W27: 10 | X27: 10 | Y27: 10 | Z27: 90 | AA27: 180 | AC27: =$AA$509 -> 0 | AD27: =RANK(AC27,AC$9:AC$38,0)+COUNTIF(AC$9:$AC27,AC27)-1 -> 19 | AE27: 1 | AF27: =IF(ISBLANK($C27),0,1)*INDEX('Allocation Points'!$B$3:$AG$32,AE27,COUNTIF(AE$9:AE$38,AE27)+2) -> 0 | AH27: =AA510 -> 0 | AI27: =RANK(AH27,AH$9:AH$38,0)+COUNTIF(AH$9:$AH27,AH27)-1 -> 19 | AJ27: 1 | AK27: =IF(ISBLANK($C27),0,1)*INDEX('Allocation Points'!$B$3:$AG$32,AJ27,COUNTIF(AJ$9:AJ$38,AJ27)+2) -> 0 | AM27: =AA508 -> 180 | AN27: =RANK(AM27,AM$9:AM$38,1)+COUNTIF(AM$9:$AM27,AM27)-1 -> 19 | AO27: 1 | AP27: =IF(ISBLANK($C27),0,1)*INDEX('Allocation Points'!$B$3:$AG$32,AO27,COUNTIF(AO$9:AO$38,AO27)+2) -> 0
B28: 20 | E28: 20 | G28: 10 | H28: 10 | I28: 10 | J28: 10 | K28: 10 | L28: 10 | M28: 10 | N28: 10 | O28: 10 | P28: 90 | Q28: 10 | R28: 10 | S28: 10 | T28: 10 | U28: 10 | V28: 10 | W28: 10 | X28: 10 | Y28: 10 | Z28: 90 | AA28: 180 | AC28: =$AA$532 -> 0 | AD28: =RANK(AC28,AC$9:AC$38,0)+COUNTIF(AC$9:$AC28,AC28)-1 -> 20 | AE28: 1 | AF28: =IF(ISBLANK($C28),0,1)*INDEX('Allocation Points'!$B$3:$AG$32,AE28,COUNTIF(AE$9:AE$38,AE28)+2) -> 0 | AH28: =AA533 -> 0 | AI28: =RANK(AH28,AH$9:AH$38,0)+COUNTIF(AH$9:$AH28,AH28)-1 -> 20 | AJ28: 1 | AK28: =IF(ISBLANK($C28),0,1)*INDEX('Allocation Points'!$B$3:$AG$32,AJ28,COUNTIF(AJ$9:AJ$38,AJ28)+2) -> 0 | AM28: =AA531 -> 180 | AN28: =RANK(AM28,AM$9:AM$38,1)+COUNTIF(AM$9:$AM28,AM28)-1 -> 20 | AO28: 1 | AP28: =IF(ISBLANK($C28),0,1)*INDEX('Allocation Points'!$B$3:$AG$32,AO28,COUNTIF(AO$9:AO$38,AO28)+2) -> 0
B29: 21 | E29: 20 | G29: 10 | H29: 10 | I29: 10 | J29: 10 | K29: 10 | L29: 10 | M29: 10 | N29: 10 | O29: 10 | P29: 90 | Q29: 10 | R29: 10 | S29: 10 | T29: 10 | U29: 10 | V29: 10 | W29: 10 | X29: 10 | Y29: 10 | Z29: 90 | AA29: 180 | AC29: =$AA$555 -> 0 | AD29: =RANK(AC29,AC$9:AC$38,0)+COUNTIF(AC$9:$AC29,AC29)-1 -> 21 | AE29: 1 | AF29: =IF(ISBLANK($C29),0,1)*INDEX('Allocation Points'!$B$3:$AG$32,AE29,COUNTIF(AE$9:AE$38,AE29)+2) -> 0 | AH29: =AA556 -> 0 | AI29: =RANK(AH29,AH$9:AH$38,0)+COUNTIF(AH$9:$AH29,AH29)-1 -> 21 | AJ29: 1 | AK29: =IF(ISBLANK($C29),0,1)*INDEX('Allocation Points'!$B$3:$AG$32,AJ29,COUNTIF(AJ$9:AJ$38,AJ29)+2) -> 0 | AM29: =AA554 -> 180 | AN29: =RANK(AM29,AM$9:AM$38,1)+COUNTIF(AM$9:$AM29,AM29)-1 -> 21 | AO29: 1 | AP29: =IF(ISBLANK($C29),0,1)*INDEX('Allocation Points'!$B$3:$AG$32,AO29,COUNTIF(AO$9:AO$38,AO29)+2) -> 0
B30: 22 | E30: 20 | G30: 10 | H30: 10 | I30: 10 | J30: 10 | K30: 10 | L30: 10 | M30: 10 | N30: 10 | O30: 10 | P30: 90 | Q30: 10 | R30: 10 | S30: 10 | T30: 10 | U30: 10 | V30: 10 | W30: 10 | X30: 10 | Y30: 10 | Z30: 90 | AA30: 180 | AC30: =$AA$578 -> 0 | AD30: =RANK(AC30,AC$9:AC$38,0)+COUNTIF(AC$9:$AC30,AC30)-1 -> 22 | AE30: 1 | AF30: =IF(ISBLANK($C30),0,1)*INDEX('Allocation Points'!$B$3:$AG$32,AE30,COUNTIF(AE$9:AE$38,AE30)+2) -> 0 | AH30: =AA579 -> 0 | AI30: =RANK(AH30,AH$9:AH$38,0)+COUNTIF(AH$9:$AH30,AH30)-1 -> 22 | AJ30: 1 | AK30: =IF(ISBLANK($C30),0,1)*INDEX('Allocation Points'!$B$3:$AG$32,AJ30,COUNTIF(AJ$9:AJ$38,AJ30)+2) -> 0 | AM30: =AA577 -> 180 | AN30: =RANK(AM30,AM$9:AM$38,1)+COUNTIF(AM$9:$AM30,AM30)-1 -> 22 | AO30: 1 | AP30: =IF(ISBLANK($C30),0,1)*INDEX('Allocation Points'!$B$3:$AG$32,AO30,COUNTIF(AO$9:AO$38,AO30)+2) -> 0
B31: 23 | E31: 20 | G31: 10 | H31: 10 | I31: 10 | J31: 10 | K31: 10 | L31: 10 | M31: 10 | N31: 10 | O31: 10 | P31: 90 | Q31: 10 | R31: 10 | S31: 10 | T31: 10 | U31: 10 | V31: 10 | W31: 10 | X31: 10 | Y31: 10 | Z31: 90 | AA31: 180 | AC31: =$AA$601 -> 0 | AD31: =RANK(AC31,AC$9:AC$38,0)+COUNTIF(AC$9:$AC31,AC31)-1 -> 23 | AE31: 1 | AF31: =IF(ISBLANK($C31),0,1)*INDEX('Allocation Points'!$B$3:$AG$32,AE31,COUNTIF(AE$9:AE$38,AE31)+2) -> 0 | AH31: =AA602 -> 0 | AI31: =RANK(AH31,AH$9:AH$38,0)+COUNTIF(AH$9:$AH31,AH31)-1 -> 23 | AJ31: 1 | AK31: =IF(ISBLANK($C31),0,1)*INDEX('Allocation Points'!$B$3:$AG$32,AJ31,COUNTIF(AJ$9:AJ$38,AJ31)+2) -> 0 | AM31: =AA600 -> 180 | AN31: =RANK(AM31,AM$9:AM$38,1)+COUNTIF(AM$9:$AM31,AM31)-1 -> 23 | AO31: 1 | AP31: =IF(ISBLANK($C31),0,1)*INDEX('Allocation Points'!$B$3:$AG$32,AO31,COUNTIF(AO$9:AO$38,AO31)+2) -> 0
B32: 24 | E32: 20 | G32: 10 | H32: 10 | I32: 10 | J32: 10 | K32: 10 | L32: 10 | M32: 10 | N32: 10 | O32: 10 | P32: 90 | Q32: 10 | R32: 10 | S32: 10 | T32: 10 | U32: 10 | V32: 10 | W32: 10 | X32: 10 | Y32: 10 | Z32: 90 | AA32: 180 | AC32: =$AA$624 -> 0 | AD32: =RANK(AC32,AC$9:AC$38,0)+COUNTIF(AC$9:$AC32,AC32)-1 -> 24 | AE32: 1 | AF32: =IF(ISBLANK($C32),0,1)*INDEX('Allocation Points'!$B$3:$AG$32,AE32,COUNTIF(AE$9:AE$38,AE32)+2) -> 0 | AH32: =AA625 -> 0 | AI32: =RANK(AH32,AH$9:AH$38,0)+COUNTIF(AH$9:$AH32,AH32)-1 -> 24 | AJ32: 1 | AK32: =IF(ISBLANK($C32),0,1)*INDEX('Allocation Points'!$B$3:$AG$32,AJ32,COUNTIF(AJ$9:AJ$38,AJ32)+2) -> 0 | AM32: =AA623 -> 180 | AN32: =RANK(AM32,AM$9:AM$38,1)+COUNTIF(AM$9:$AM32,AM32)-1 -> 24 | AO32: 1 | AP32: =IF(ISBLANK($C32),0,1)*INDEX('Allocation Points'!$B$3:$AG$32,AO32,COUNTIF(AO$9:AO$38,AO32)+2) -> 0
B33: 25 | E33: 20 | G33: 10 | H33: 10 | I33: 10 | J33: 10 | K33: 10 | L33: 10 | M33: 10 | N33: 10 | O33: 10 | P33: 90 | Q33: 10 | R33: 10 | S33: 10 | T33: 10 | U33: 10 | V33: 10 | W33: 10 | X33: 10 | Y33: 10 | Z33: 90 | AA33: 180 | AC33: =$AA$647 -> 0 | AD33: =RANK(AC33,AC$9:AC$38,0)+COUNTIF(AC$9:$AC33,AC33)-1 -> 25 | AE33: 1 | AF33: =IF(ISBLANK($C33),0,1)*INDEX('Allocation Points'!$B$3:$AG$32,AE33,COUNTIF(AE$9:AE$38,AE33)+2) -> 0 | AH33: =AA648 -> 0 | AI33: =RANK(AH33,AH$9:AH$38,0)+COUNTIF(AH$9:$AH33,AH33)-1 -> 25 | AJ33: 1 | AK33: =IF(ISBLANK($C33),0,1)*INDEX('Allocation Points'!$B$3:$AG$32,AJ33,COUNTIF(AJ$9:AJ$38,AJ33)+2) -> 0 | AM33: =AA646 -> 180 | AN33: =RANK(AM33,AM$9:AM$38,1)+COUNTIF(AM$9:$AM33,AM33)-1 -> 25 | AO33: 1 | AP33: =IF(ISBLANK($C33),0,1)*INDEX('Allocation Points'!$B$3:$AG$32,AO33,COUNTIF(AO$9:AO$38,AO33)+2) -> 0
B34: 26 | E34: 20 | G34: 10 | H34: 10 | I34: 10 | J34: 10 | K34: 10 | L34: 10 | M34: 10 | N34: 10 | O34: 10 | P34: 90 | Q34: 10 | R34: 10 | S34: 10 | T34: 10 | U34: 10 | V34: 10 | W34: 10 | X34: 10 | Y34: 10 | Z34: 90 | AA34: 180 | AC34: =$AA$670 -> 0 | AD34: =RANK(AC34,AC$9:AC$38,0)+COUNTIF(AC$9:$AC34,AC34)-1 -> 26 | AE34: 1 | AF34: =IF(ISBLANK($C34),0,1)*INDEX('Allocation Points'!$B$3:$AG$32,AE34,COUNTIF(AE$9:AE$38,AE34)+2) -> 0 | AH34: =AA671 -> 0 | AI34: =RANK(AH34,AH$9:AH$38,0)+COUNTIF(AH$9:$AH34,AH34)-1 -> 26 | AJ34: 1 | AK34: =IF(ISBLANK($C34),0,1)*INDEX('Allocation Points'!$B$3:$AG$32,AJ34,COUNTIF(AJ$9:AJ$38,AJ34)+2) -> 0 | AM34: =AA669 -> 180 | AN34: =RANK(AM34,AM$9:AM$38,1)+COUNTIF(AM$9:$AM34,AM34)-1 -> 26 | AO34: 1 | AP34: =IF(ISBLANK($C34),0,1)*INDEX('Allocation Points'!$B$3:$AG$32,AO34,COUNTIF(AO$9:AO$38,AO34)+2) -> 0
B35: 27 | E35: 20 | G35: 10 | H35: 10 | I35: 10 | J35: 10 | K35: 10 | L35: 10 | M35: 10 | N35: 10 | O35: 10 | P35: 90 | Q35: 10 | R35: 10 | S35: 10 | T35: 10 | U35: 10 | V35: 10 | W35: 10 | X35: 10 | Y35: 10 | Z35: 90 | AA35: 180 | AC35: =$AA$693 -> 0 | AD35: =RANK(AC35,AC$9:AC$38,0)+COUNTIF(AC$9:$AC35,AC35)-1 -> 27 | AE35: 1 | AF35: =IF(ISBLANK($C35),0,1)*INDEX('Allocation Points'!$B$3:$AG$32,AE35,COUNTIF(AE$9:AE$38,AE35)+2) -> 0 | AH35: =AA694 -> 0 | AI35: =RANK(AH35,AH$9:AH$38,0)+COUNTIF(AH$9:$AH35,AH35)-1 -> 27 | AJ35: 1 | AK35: =IF(ISBLANK($C35),0,1)*INDEX('Allocation Points'!$B$3:$AG$32,AJ35,COUNTIF(AJ$9:AJ$38,AJ35)+2) -> 0 | AM35: =AA692 -> 180 | AN35: =RANK(AM35,AM$9:AM$38,1)+COUNTIF(AM$9:$AM35,AM35)-1 -> 27 | AO35: 1 | AP35: =IF(ISBLANK($C35),0,1)*INDEX('Allocation Points'!$B$3:$AG$32,AO35,COUNTIF(AO$9:AO$38,AO35)+2) -> 0
B36: 28 | E36: 20 | G36: 10 | H36: 10 | I36: 10 | J36: 10 | K36: 10 | L36: 10 | M36: 10 | N36: 10 | O36: 10 | P36: 90 | Q36: 10 | R36: 10 | S36: 10 | T36: 10 | U36: 10 | V36: 10 | W36: 10 | X36: 10 | Y36: 10 | Z36: 90 | AA36: 180 | AC36: =$AA$716 -> 0 | AD36: =RANK(AC36,AC$9:AC$38,0)+COUNTIF(AC$9:$AC36,AC36)-1 -> 28 | AE36: 1 | AF36: =IF(ISBLANK($C36),0,1)*INDEX('Allocation Points'!$B$3:$AG$32,AE36,COUNTIF(AE$9:AE$38,AE36)+2) -> 0 | AH36: =AA717 -> 0 | AI36: =RANK(AH36,AH$9:AH$38,0)+COUNTIF(AH$9:$AH36,AH36)-1 -> 28 | AJ36: 1 | AK36: =IF(ISBLANK($C36),0,1)*INDEX('Allocation Points'!$B$3:$AG$32,AJ36,COUNTIF(AJ$9:AJ$38,AJ36)+2) -> 0 | AM36: =AA715 -> 180 | AN36: =RANK(AM36,AM$9:AM$38,1)+COUNTIF(AM$9:$AM36,AM36)-1 -> 28 | AO36: 1 | AP36: =IF(ISBLANK($C36),0,1)*INDEX('Allocation Points'!$B$3:$AG$32,AO36,COUNTIF(AO$9:AO$38,AO36)+2) -> 0
B37: 29 | E37: 20 | G37: 10 | H37: 10 | I37: 10 | J37: 10 | K37: 10 | L37: 10 | M37: 10 | N37: 10 | O37: 10 | P37: 90 | Q37: 10 | R37: 10 | S37: 10 | T37: 10 | U37: 10 | V37: 10 | W37: 10 | X37: 10 | Y37: 10 | Z37: 90 | AA37: 180 | AC37: =$AA$739 -> 0 | AD37: =RANK(AC37,AC$9:AC$38,0)+COUNTIF(AC$9:$AC37,AC37)-1 -> 29 | AE37: 1 | AF37: =IF(ISBLANK($C37),0,1)*INDEX('Allocation Points'!$B$3:$AG$32,AE37,COUNTIF(AE$9:AE$38,AE37)+2) -> 0 | AH37: =AA740 -> 0 | AI37: =RANK(AH37,AH$9:AH$38,0)+COUNTIF(AH$9:$AH37,AH37)-1 -> 29 | AJ37: 1 | AK37: =IF(ISBLANK($C37),0,1)*INDEX('Allocation Points'!$B$3:$AG$32,AJ37,COUNTIF(AJ$9:AJ$38,AJ37)+2) -> 0 | AM37: =AA738 -> 180 | AN37: =RANK(AM37,AM$9:AM$38,1)+COUNTIF(AM$9:$AM37,AM37)-1 -> 29 | AO37: 1 | AP37: =IF(ISBLANK($C37),0,1)*INDEX('Allocation Points'!$B$3:$AG$32,AO37,COUNTIF(AO$9:AO$38,AO37)+2) -> 0
B38: 30 | E38: 20 | G38: 10 | H38: 10 | I38: 10 | J38: 10 | K38: 10 | L38: 10 | M38: 10 | N38: 10 | O38: 10 | P38: 90 | Q38: 10 | R38: 10 | S38: 10 | T38: 10 | U38: 10 | V38: 10 | W38: 10 | X38: 10 | Y38: 10 | Z38: 90 | AA38: 180 | AC38: =$AA$762 -> 0 | AD38: =RANK(AC38,AC$9:AC$38,0)+COUNTIF(AC$9:$AC38,AC38)-1 -> 30 | AE38: 1 | AF38: =IF(ISBLANK($C38),0,1)*INDEX('Allocation Points'!$B$3:$AG$32,AE38,COUNTIF(AE$9:AE$38,AE38)+2) -> 0 | AH38: =AA763 -> 0 | AI38: =RANK(AH38,AH$9:AH$38,0)+COUNTIF(AH$9:$AH38,AH38)-1 -> 30 | AJ38: 1 | AK38: =IF(ISBLANK($C38),0,1)*INDEX('Allocation Points'!$B$3:$AG$32,AJ38,COUNTIF(AJ$9:AJ$38,AJ38)+2) -> 0 | AM38: =AA761 -> 180 | AN38: =RANK(AM38,AM$9:AM$38,1)+COUNTIF(AM$9:$AM38,AM38)-1 -> 30 | AO38: 1 | AP38: =IF(ISBLANK($C38),0,1)*INDEX('Allocation Points'!$B$3:$AG$32,AO38,COUNTIF(AO$9:AO$38,AO38)+2) -> 0
H41: CLASSEMENT
C45: NET | J45: BRUT | V45: STROKE
C47: Noms | D47: Prénoms | E47: NET | J47: Noms | N47: Prénoms | Q47: BRUT | V47: Noms | Z47: Prénoms | AB47: STROKE
B48: 1 | C48: =INDEX($C$9:$AN$38,MATCH(B48,$AD$9:$AD$38,0),1) -> 0 | D48: =INDEX($C$9:$AN$38,MATCH(B48,$AD$9:$AD$38,0),2) -> 0 | E48: =INDEX($C$9:$AN$38,MATCH(B48,$AD$9:$AD$38,0),27) -> 0 | I48: 1 | J48: =INDEX($C$9:$AN$38,MATCH(I48,$AI$9:$AI$38,0),1) -> 0 | N48: =INDEX($C$9:$AN$38,MATCH(I48,$AI$9:$AI$38,0),2) -> 0 | Q48: =INDEX($C$9:$AN$38,MATCH(I48,$AI$9:$AI$38,0),32) -> 0 | U48: 1 | V48: =INDEX($C$9:$AN$38,MATCH(U48,$AN$9:$AN$38,0),1) -> 0 | Z48: =INDEX($C$9:$AN$38,MATCH(U48,$AN$9:$AN$38,0),2) -> 0 | AB48: =INDEX($C$9:$AN$38,MATCH(U48,$AN$9:$AN$38,0),37) -> 180
B49: 2 | C49: 0 | D49: 0 | E49: 0 | I49: 2 | J49: 0 | N49: 0 | Q49: =INDEX($C$9:$AN$38,MATCH(I49,$AI$9:$AI$38,0),32) -> 0 | U49: 2 | V49: 0 | Z49: 0 | AB49: =INDEX($C$9:$AN$38,MATCH(U49,$AN$9:$AN$38,0),37) -> 180
B50: 3 | C50: 0 | D50: 0 | E50: 0 | I50: 3 | J50: 0 | N50: 0 | Q50: 0 | U50: 3 | V50: 0 | Z50: 0 | AB50: 180
B51: 4 | C51: 0 | D51: 0 | E51: 0 | I51: 4 | J51: 0 | N51: 0 | Q51: 0 | U51: 4 | V51: 0 | Z51: 0 | AB51: 180
B52: 5 | C52: 0 | D52: 0 | E52: 0 | I52: 5 | J52: 0 | N52: 0 | Q52: 0 | U52: 5 | V52: 0 | Z52: 0 | AB52: 180
B53: 6 | C53: 0 | D53: 0 | E53: 0 | I53: 6 | J53: 0 | N53: 0 | Q53: 0 | U53: 6 | V53: 0 | Z53: 0 | AB53: 180
B54: 7 | C54: 0 | D54: 0 | E54: 0 | I54: 7 | J54: 0 | N54: 0 | Q54: 0 | U54: 7 | V54: 0 | Z54: 0 | AB54: 180
B55: 8 | C55: 0 | D55: 0 | E55: 0 | I55: 8 | J55: 0 | N55: 0 | Q55: 0 | U55: 8 | V55: 0 | Z55: 0 | AB55: 180
B56: 9 | C56: 0 | D56: 0 | E56: 0 | I56: 9 | J56: 0 | N56: 0 | Q56: 0 | U56: 9 | V56: 0 | Z56: 0 | AB56: 180
B57: 10 | C57: 0 | D57: 0 | E57: 0 | I57: 10 | J57: 0 | N57: 0 | Q57: 0 | U57: 10 | V57: 0 | Z57: 0 | AB57: 180
B58: 11 | C58: 0 | D58: 0 | E58: 0 | I58: 11 | J58: 0 | N58: 0 | Q58: 0 | U58: 11 | V58: 0 | Z58: 0 | AB58: 180
B59: 12 | C59: 0 | D59: 0 | E59: 0 | I59: 12 | J59: 0 | N59: 0 | Q59: 0 | U59: 12 | V59: 0 | Z59: 0 | AB59: 180
B60: 13 | C60: 0 | D60: 0 | E60: 0 | I60: 13 | J60: 0 | N60: 0 | Q60: 0 | U60: 13 | V60: 0 | Z60: 0 | AB60: 180
B61: 14 | C61: 0 | D61: 0 | E61: 0 | I61: 14 | J61: 0 | N61: 0 | Q61: 0 | U61: 14 | V61: 0 | Z61: 0 | AB61: 180
B62: 15 | C62: 0 | D62: 0 | E62: 0 | I62: 15 | J62: 0 | N62: 0 | Q62: 0 | U62: 15 | V62: 0 | Z62: 0 | AB62: 180
B63: 16 | C63: 0 | D63: 0 | E63: 0 | I63: 16 | J63: 0 | N63: 0 | Q63: 0 | U63: 16 | V63: 0 | Z63: 0 | AB63: 180
B64: 17 | C64: 0 | D64: 0 | E64: 0 | I64: 17 | J64: 0 | N64: 0 | Q64: 0 | U64: 17 | V64: 0 | Z64: 0 | AB64: 180
B65: 18 | C65: 0 | D65: 0 | E65: 0 | I65: 18 | J65: 0 | N65: 0 | Q65: 0 | U65: 18 | V65: 0 | Z65: 0 | AB65: 180
B66: 19 | C66: 0 | D66: 0 | E66: 0 | I66: 19 | J66: 0 | N66: 0 | Q66: 0 | U66: 19 | V66: 0 | Z66: 0 | AB66: 180
B67: 20 | C67: 0 | D67: 0 | E67: 0 | I67: 20 | J67: 0 | N67: 0 | Q67: 0 | U67: 20 | V67: 0 | Z67: 0 | AB67: 180
B68: 21 | C68: 0 | D68: 0 | E68: 0 | I68: 21 | J68: 0 | N68: 0 | Q68: 0 | U68: 21 | V68: 0 | Z68: 0 | AB68: 180
B69: 22 | C69: 0 | D69: 0 | E69: 0 | I69: 22 | J69: 0 | N69: 0 | Q69: 0 | U69: 22 | V69: 0 | Z69: 0 | AB69: 180
B70: 23 | C70: 0 | D70: 0 | E70: 0 | I70: 23 | J70: 0 | N70: 0 | Q70: 0 | U70: 23 | V70: 0 | Z70: 0 | AB70: 180
B71: 24 | C71: 0 | D71: 0 | E71: 0 | I71: 24 | J71: 0 | N71: 0 | Q71: 0 | U71: 24 | V71: 0 | Z71: 0 | AB71: 180
B72: 25 | C72: 0 | D72: 0 | E72: 0 | I72: 25 | J72: 0 | N72: 0 | Q72: 0 | U72: 25 | V72: 0 | Z72: 0 | AB72: 180
B73: 26 | C73: 0 | D73: 0 | E73: 0 | I73: 26 | J73: 0 | N73: 0 | Q73: 0 | U73: 26 | V73: 0 | Z73: 0 | AB73: 180
B74: 27 | C74: 0 | D74: 0 | E74: 0 | I74: 27 | J74: 0 | N74: 0 | Q74: 0 | U74: 27 | V74: 0 | Z74: 0 | AB74: 180
B75: 28 | C75: 0 | D75: 0 | E75: 0 | I75: 28 | J75: 0 | N75: 0 | Q75: 0 | U75: 28 | V75: 0 | Z75: 0 | AB75: 180
B76: 29 | C76: 0 | D76: 0 | E76: 0 | I76: 29 | J76: 0 | N76: 0 | Q76: 0 | U76: 29 | V76: 0 | Z76: 0 | AB76: 180
B77: 30 | C77: 0 | D77: 0 | E77: 0 | I77: 30 | J77: 0 | N77: 0 | Q77: 0 | U77: 30 | V77: 0 | Z77: 0 | AB77: 180
H81: STATISTIQUES INDIVIDUELLES
F87: Nom | G87: =C9 -> 0 | L87: Slope | O87: SSS | Q87: Coups reçus | Z87: Date | AA87: =$D$3 -> 00:00:00
F88: Index | G88: =E9 -> 20 | L88: =$F$3 -> 133 | O88: =$G$3 -> 68.6 | Q88: =ROUND((G88*(L88/113)+(O88-AA91)),0) -> 20
F90: Trou | G90: 1 | H90: 2 | I90: 3 | J90: 4 | K90: 5 | L90: 6 | M90: 7 | N90: 8 | O90: 9 | P90: Aller | Q90: 10 | R90: 11 | S90: 12 | T90: 13 | U90: 14 | V90: 15 | W90: 16 | X90: 17 | Y90: 18 | Z90: Retour | AA90: Total
F91: PAR | G91: =G$7 -> 4 | H91: =H$7 -> 4 | I91: 5 | J91: 4 | K91: 3 | L91: 5 | M91: 3 | N91: 5 | O91: 3 | P91: =SUM(G91:O91) -> 36 | Q91: =Q$7 -> 4 | R91: 4 | S91: 3 | T91: 5 | U91: 3 | V91: 4 | W91: 4 | X91: 5 | Y91: 4 | Z91: =SUM(Q91:Y91) -> 36 | AA91: =SUM(P91+Z91) -> 72
F92: HCP trous | G92: =G$8 -> 4 | H92: =H$8 -> 8 | I92: 12 | J92: 14 | K92: 2 | L92: 10 | M92: 18 | N92: 16 | O92: 6 | Q92: =Q$8 -> 1 | R92: 9 | S92: 11 | T92: 5 | U92: 17 | V92: 15 | W92: 3 | X92: 13 | Y92: 7
F93: Coups reçus | G93: =IF($Q88<=18,IF(G92<=$Q88,1,0),IF($Q88<=36,IF(G92<=($Q88-18),2,1),IF($Q88>36,IF(G92<=($Q88-36),3,2)))) -> 1 | H93: =IF($Q88<=18,IF(H92<=$Q88,1,0),IF($Q88<=36,IF(H92<=($Q88-18),2,1),IF($Q88>36,IF(H92<=($Q88-36),3,2)))) -> 1 | I93: 1 | J93: 1 | K93: 2 | L93: 1 | M93: 1 | N93: 1 | O93: 1 | P93: =SUM(G93:O93) -> 10 | Q93: =IF($Q88<=18,IF(Q92<=$Q88,1,0),IF($Q88<=36,IF(Q92<=($Q88-18),2,1),IF($Q88>36,IF(Q92<=($Q88-36),3,2)))) -> 2 | R93: 1 | S93: 1 | T93: 1 | U93: 1 | V93: 1 | W93: 1 | X93: 1 | Y93: 1 | Z93: =SUM(Q93:Y93) -> 10 | AA93: =P93+Z93 -> 20
F94: Stroke play | G94: =G9 -> 10 | H94: 10 | I94: 10 | J94: 10 | K94: 10 | L94: 10 | M94: 10 | N94: 10 | O94: 10 | P94: =SUM(G94:O94) -> 90 | Q94: =Q9 -> 10 | R94: 10 | S94: 10 | T94: 10 | U94: 10 | V94: 10 | W94: 10 | X94: 10 | Y94: 10 | Z94: =SUM(Q94:Y94) -> 90 | AA94: =P94+Z94 -> 180
F95: Net Stableford | G95: =IF(G94-G91=-1,3+G93)+IF(G94-G91=0,2+G93)+IF(G94-G91=1,1+G93)+IF(G94-G91=2,G93)+IF(G94-G91=3,IF(G93-1>0,G93-1,0))+IF(G94-G91=4,IF(G93-2>0,G93-2,0)) -> 0 | H95: =IF(H94-H91=-1,3+H93)+IF(H94-H91=0,2+H93)+IF(H94-H91=1,1+H93)+IF(H94-H91=2,H93)+IF(H94-H91=3,IF(H93-1>0,H93-1,0))+IF(H94-H91=4,IF(H93-2>0,H93-2,0)) -> 0 | I95: 0 | J95: 0 | K95: 0 | L95: 0 | M95: 0 | N95: 0 | O95: 0 | P95: =SUM(G95:O95) -> 0 | Q95: =IF(Q94-Q91=-1,3+Q93)+IF(Q94-Q91=0,2+Q93)+IF(Q94-Q91=1,1+Q93)+IF(Q94-Q91=2,Q93)+IF(Q94-Q91=3,IF(Q93-1>0,Q93-1,0))+IF(Q94-Q91=4,IF(Q93-2>0,Q93-2,0)) -> 0 | R95: 0 | S95: 0 | T95: 0 | U95: 0 | V95: 0 | W95: 0 | X95: 0 | Y95: 0 | Z95: =SUM(Q95:Y95) -> 0 | AA95: =P95+Z95 -> 0
F96: Score Brut | G96: =IF(G94-G91=-2,4)+IF(G94-G91=-1,3)+IF(G94-G91=0,2)+IF(G94-G91=1,1)+IF(G94-G91>2,0) -> 0 | H96: 0 | I96: 0 | J96: 0 | K96: 0 | L96: 0 | M96: 0 | N96: 0 | O96: 0 | P96: =SUM(G96:O96) -> 0 | Q96: =IF(Q94-Q91=-2,4)+IF(Q94-Q91=-1,3)+IF(Q94-Q91=0,2)+IF(Q94-Q91=1,1)+IF(Q94-Q91>2,0) -> 0 | R96: 0 | S96: 0 | T96: 0 | U96: 0 | V96: 0 | W96: 0 | X96: 0 | Y96: 0 | Z96: =SUM(Q96:Y96) -> 0 | AA96: =P96+Z96 -> 0
G97: =G94-G91 -> 6 | H97: =H94-H91 -> 6 | I97: 5 | J97: 6 | K97: 7 | L97: 5 | M97: 7 | N97: 5 | O97: 7 | Q97: =Q94-Q91 -> 6 | R97: 6 | S97: 7 | T97: 5 | U97: 7 | V97: 6 | W97: 6 | X97: 5 | Y97: 6
F100: Statistiques scores | H100: Eagle & moins | L100: =COUNTIF(G97:Y97,"<=-2") -> 0 | M100: Par | O100: =COUNTIF(G97:Y97,"=0") -> 0 | P100: Double bogey | U100: =COUNTIF(G97:Y97,"=2") -> 0
H101: Birdie | L101: =COUNTIF(G97:Y97,"=-1") -> 0 | M101: Bogey | O101: =COUNTIF(G97:Y97,"=1") -> 0 | P101: Triple bogey & plus | U101: =COUNTIF(G97:Y97,">=3") -> 18
H102: =M100 -> Par | L102: =O100 -> 0
H103: =M101 -> Bogey | L103: =O101 -> 0
H104: =P100 -> Double bogey | L104: =U100 -> 0
H105: =P101 -> Triple bogey & plus | L105: =U101 -> 18
F110: Nom | G110: =C10 -> 0 | L110: Slope | O110: SSS | Q110: Coups reçus | Z110: Date | AA110: =$D$3 -> 00:00:00
F111: Index | G111: =E10 -> 20 | L111: =$F$3 -> 133 | O111: =$G$3 -> 68.6 | Q111: =ROUND((G111*(L111/113)+(O111-AA114)),0) -> 20
F113: Trou | G113: 1 | H113: 2 | I113: 3 | J113: 4 | K113: 5 | L113: 6 | M113: 7 | N113: 8 | O113: 9 | P113: Aller | Q113: 10 | R113: 11 | S113: 12 | T113: 13 | U113: 14 | V113: 15 | W113: 16 | X113: 17 | Y113: 18 | Z113: Retour | AA113: Total
F114: PAR | G114: =G$7 -> 4 | H114: =H$7 -> 4 | I114: 5 | J114: 4 | K114: 3 | L114: 5 | M114: 3 | N114: 5 | O114: 3 | P114: =SUM(G114:O114) -> 36 | Q114: =Q$7 -> 4 | R114: 4 | S114: 3 | T114: 5 | U114: 3 | V114: 4 | W114: 4 | X114: 5 | Y114: 4 | Z114: =SUM(Q114:Y114) -> 36 | AA114: =SUM(P114+Z114) -> 72
F115: HCP trous | G115: =G$8 -> 4 | H115: =H$8 -> 8 | I115: 12 | J115: 14 | K115: 2 | L115: 10 | M115: 18 | N115: 16 | O115: 6 | Q115: =Q$8 -> 1 | R115: 9 | S115: 11 | T115: 5 | U115: 17 | V115: 15 | W115: 3 | X115: 13 | Y115: 7
F116: Coups reçus | G116: =IF($Q111<=18,IF(G115<=$Q111,1,0),IF($Q111<=36,IF(G115<=($Q111-18),2,1),IF($Q111>36,IF(G115<=($Q111-36),3,2)))) -> 1 | H116: =IF($Q111<=18,IF(H115<=$Q111,1,0),IF($Q111<=36,IF(H115<=($Q111-18),2,1),IF($Q111>36,IF(H115<=($Q111-36),3,2)))) -> 1 | I116: 1 | J116: 1 | K116: 2 | L116: 1 | M116: 1 | N116: 1 | O116: 1 | P116: =SUM(G116:O116) -> 10 | Q116: =IF($Q111<=18,IF(Q115<=$Q111,1,0),IF($Q111<=36,IF(Q115<=($Q111-18),2,1),IF($Q111>36,IF(Q115<=($Q111-36),3,2)))) -> 2 | R116: 1 | S116: 1 | T116: 1 | U116: 1 | V116: 1 | W116: 1 | X116: 1 | Y116: 1 | Z116: =SUM(Q116:Y116) -> 10 | AA116: =P116+Z116 -> 20
F117: Stroke play | G117: =G10 -> 10 | H117: 10 | I117: 10 | J117: 10 | K117: 10 | L117: 10 | M117: 10 | N117: 10 | O117: 10 | P117: =SUM(G117:O117) -> 90 | Q117: =Q10 -> 10 | R117: 10 | S117: 10 | T117: 10 | U117: 10 | V117: 10 | W117: 10 | X117: 10 | Y117: 10 | Z117: =SUM(Q117:Y117) -> 90 | AA117: =P117+Z117 -> 180
F118: Net Stableford | G118: =IF(G117-G114=-1,3+G116)+IF(G117-G114=0,2+G116)+IF(G117-G114=1,1+G116)+IF(G117-G114=2,G116)+IF(G117-G114=3,IF(G116-1>0,G116-1,0))+IF(G117-G114=4,IF(G116-2>0,G116-2,0)) -> 0 | H118: =IF(H117-H114=-1,3+H116)+IF(H117-H114=0,2+H116)+IF(H117-H114=1,1+H116)+IF(H117-H114=2,H116)+IF(H117-H114=3,IF(H116-1>0,H116-1,0))+IF(H117-H114=4,IF(H116-2>0,H116-2,0)) -> 0 | I118: 0 | J118: 0 | K118: 0 | L118: 0 | M118: 0 | N118: 0 | O118: 0 | P118: =SUM(G118:O118) -> 0 | Q118: =IF(Q117-Q114=-1,3+Q116)+IF(Q117-Q114=0,2+Q116)+IF(Q117-Q114=1,1+Q116)+IF(Q117-Q114=2,Q116)+IF(Q117-Q114=3,IF(Q116-1>0,Q116-1,0))+IF(Q117-Q114=4,IF(Q116-2>0,Q116-2,0)) -> 0 | R118: 0 | S118: 0 | T118: 0 | U118: 0 | V118: 0 | W118: 0 | X118: 0 | Y118: 0 | Z118: =SUM(Q118:Y118) -> 0 | AA118: =P118+Z118 -> 0
F119: Score Brut | G119: =IF(G117-G114=-2,4)+IF(G117-G114=-1,3)+IF(G117-G114=0,2)+IF(G117-G114=1,1)+IF(G117-G114>2,0) -> 0 | H119: 0 | I119: 0 | J119: 0 | K119: 0 | L119: 0 | M119: 0 | N119: 0 | O119: 0 | P119: =SUM(G119:O119) -> 0 | Q119: =IF(Q117-Q114=-2,4)+IF(Q117-Q114=-1,3)+IF(Q117-Q114=0,2)+IF(Q117-Q114=1,1)+IF(Q117-Q114>2,0) -> 0 | R119: 0 | S119: 0 | T119: 0 | U119: 0 | V119: 0 | W119: 0 | X119: 0 | Y119: 0 | Z119: =SUM(Q119:Y119) -> 0 | AA119: =P119+Z119 -> 0
G120: =G117-G114 -> 6 | H120: =H117-H114 -> 6 | I120: 5 | J120: 6 | K120: 7 | L120: 5 | M120: 7 | N120: 5 | O120: 7 | Q120: =Q117-Q114 -> 6 | R120: 6 | S120: 7 | T120: 5 | U120: 7 | V120: 6 | W120: 6 | X120: 5 | Y120: 6
F123: Statistiques scores | H123: Eagle & moins | L123: =COUNTIF(G120:Y120,"<=-2") -> 0 | M123: Par | O123: =COUNTIF(G120:Y120,"=0") -> 0 | P123: Double bogey | U123: =COUNTIF(G120:Y120,"=2") -> 0
H124: Birdie | L124: =COUNTIF(G120:Y120,"=-1") -> 0 | M124: Bogey | O124: =COUNTIF(G120:Y120,"=1") -> 0 | P124: Triple bogey & plus | U124: =COUNTIF(G120:Y120,">=3") -> 18
H125: =M123 -> Par | L125: =O123 -> 0
H126: =M124 -> Bogey | L126: =O124 -> 0
H127: =P123 -> Double bogey | L127: =U123 -> 0
H128: =P124 -> Triple bogey & plus | L128: =U124 -> 18
F133: Nom | G133: =C11 -> 0 | L133: Slope | O133: SSS | Q133: Coups reçus | Z133: Date | AA133: =$D$3 -> 00:00:00
F134: Index | G134: =E11 -> 20 | L134: =$F$3 -> 133 | O134: =$G$3 -> 68.6 | Q134: =ROUND((G134*(L134/113)+(O134-AA137)),0) -> 20
F136: Trou | G136: 1 | H136: 2 | I136: 3 | J136: 4 | K136: 5 | L136: 6 | M136: 7 | N136: 8 | O136: 9 | P136: Aller | Q136: 10 | R136: 11 | S136: 12 | T136: 13 | U136: 14 | V136: 15 | W136: 16 | X136: 17 | Y136: 18 | Z136: Retour | AA136: Total
F137: PAR | G137: =G$7 -> 4 | H137: =H$7 -> 4 | I137: 5 | J137: 4 | K137: 3 | L137: 5 | M137: 3 | N137: 5 | O137: 3 | P137: =SUM(G137:O137) -> 36 | Q137: =Q$7 -> 4 | R137: 4 | S137: 3 | T137: 5 | U137: 3 | V137: 4 | W137: 4 | X137: 5 | Y137: 4 | Z137: =SUM(Q137:Y137) -> 36 | AA137: =SUM(P137+Z137) -> 72
F138: HCP trous | G138: =G$8 -> 4 | H138: =H$8 -> 8 | I138: 12 | J138: 14 | K138: 2 | L138: 10 | M138: 18 | N138: 16 | O138: 6 | Q138: =Q$8 -> 1 | R138: 9 | S138: 11 | T138: 5 | U138: 17 | V138: 15 | W138: 3 | X138: 13 | Y138: 7
F139: Coups reçus | G139: =IF($Q134<=18,IF(G138<=$Q134,1,0),IF($Q134<=36,IF(G138<=($Q134-18),2,1),IF($Q134>36,IF(G138<=($Q134-36),3,2)))) -> 1 | H139: =IF($Q134<=18,IF(H138<=$Q134,1,0),IF($Q134<=36,IF(H138<=($Q134-18),2,1),IF($Q134>36,IF(H138<=($Q134-36),3,2)))) -> 1 | I139: 1 | J139: 1 | K139: 2 | L139: 1 | M139: 1 | N139: 1 | O139: 1 | P139: =SUM(G139:O139) -> 10 | Q139: =IF($Q134<=18,IF(Q138<=$Q134,1,0),IF($Q134<=36,IF(Q138<=($Q134-18),2,1),IF($Q134>36,IF(Q138<=($Q134-36),3,2)))) -> 2 | R139: 1 | S139: 1 | T139: 1 | U139: 1 | V139: 1 | W139: 1 | X139: 1 | Y139: 1 | Z139: =SUM(Q139:Y139) -> 10 | AA139: =P139+Z139 -> 20
F140: Stroke play | G140: =G11 -> 10 | H140: 10 | I140: 10 | J140: 10 | K140: 10 | L140: 10 | M140: 10 | N140: 10 | O140: 10 | P140: =SUM(G140:O140) -> 90 | Q140: =Q11 -> 10 | R140: 10 | S140: 10 | T140: 10 | U140: 10 | V140: 10 | W140: 10 | X140: 10 | Y140: 10 | Z140: =SUM(Q140:Y140) -> 90 | AA140: =P140+Z140 -> 180
F141: Net Stableford | G141: =IF(G140-G137=-1,3+G139)+IF(G140-G137=0,2+G139)+IF(G140-G137=1,1+G139)+IF(G140-G137=2,G139)+IF(G140-G137=3,IF(G139-1>0,G139-1,0))+IF(G140-G137=4,IF(G139-2>0,G139-2,0)) -> 0 | H141: =IF(H140-H137=-1,3+H139)+IF(H140-H137=0,2+H139)+IF(H140-H137=1,1+H139)+IF(H140-H137=2,H139)+IF(H140-H137=3,IF(H139-1>0,H139-1,0))+IF(H140-H137=4,IF(H139-2>0,H139-2,0)) -> 0 | I141: 0 | J141: 0 | K141: 0 | L141: 0 | M141: 0 | N141: 0 | O141: 0 | P141: =SUM(G141:O141) -> 0 | Q141: =IF(Q140-Q137=-1,3+Q139)+IF(Q140-Q137=0,2+Q139)+IF(Q140-Q137=1,1+Q139)+IF(Q140-Q137=2,Q139)+IF(Q140-Q137=3,IF(Q139-1>0,Q139-1,0))+IF(Q140-Q137=4,IF(Q139-2>0,Q139-2,0)) -> 0 | R141: 0 | S141: 0 | T141: 0 | U141: 0 | V141: 0 | W141: 0 | X141: 0 | Y141: 0 | Z141: =SUM(Q141:Y141) -> 0 | AA141: =P141+Z141 -> 0
F142: Score Brut | G142: =IF(G140-G137=-2,4)+IF(G140-G137=-1,3)+IF(G140-G137=0,2)+IF(G140-G137=1,1)+IF(G140-G137>2,0) -> 0 | H142: 0 | I142: 0 | J142: 0 | K142: 0 | L142: 0 | M142: 0 | N142: 0 | O142: 0 | P142: =SUM(G142:O142) -> 0 | Q142: =IF(Q140-Q137=-2,4)+IF(Q140-Q137=-1,3)+IF(Q140-Q137=0,2)+IF(Q140-Q137=1,1)+IF(Q140-Q137>2,0) -> 0 | R142: 0 | S142: 0 | T142: 0 | U142: 0 | V142: 0 | W142: 0 | X142: 0 | Y142: 0 | Z142: =SUM(Q142:Y142) -> 0 | AA142: =P142+Z142 -> 0
G143: =G140-G137 -> 6 | H143: =H140-H137 -> 6 | I143: 5 | J143: 6 | K143: 7 | L143: 5 | M143: 7 | N143: 5 | O143: 7 | Q143: =Q140-Q137 -> 6 | R143: 6 | S143: 7 | T143: 5 | U143: 7 | V143: 6 | W143: 6 | X143: 5 | Y143: 6
F146: Statistiques scores | H146: Eagle & moins | L146: =COUNTIF(G143:Y143,"<=-2") -> 0 | M146: Par | O146: =COUNTIF(G143:Y143,"=0") -> 0 | P146: Double bogey | U146: =COUNTIF(G143:Y143,"=2") -> 0
H147: Birdie | L147: =COUNTIF(G143:Y143,"=-1") -> 0 | M147: Bogey | O147: =COUNTIF(G143:Y143,"=1") -> 0 | P147: Triple bogey & plus | U147: =COUNTIF(G143:Y143,">=3") -> 18
H148: =M146 -> Par | L148: =O146 -> 0
H149: =M147 -> Bogey | L149: =O147 -> 0
H150: =P146 -> Double bogey | L150: =U146 -> 0
H151: =P147 -> Triple bogey & plus | L151: =U147 -> 18
F156: Nom | G156: =C12 -> 0 | L156: Slope | O156: SSS | Q156: Coups reçus | Z156: Date | AA156: =$D$3 -> 00:00:00
F157: Index | G157: =E12 -> 20 | L157: =$F$3 -> 133 | O157: =$G$3 -> 68.6 | Q157: =ROUND((G157*(L157/113)+(O157-AA160)),0) -> 20
F159: Trou | G159: 1 | H159: 2 | I159: 3 | J159: 4 | K159: 5 | L159: 6 | M159: 7 | N159: 8 | O159: 9 | P159: Aller | Q159: 10 | R159: 11 | S159: 12 | T159: 13 | U159: 14 | V159: 15 | W159: 16 | X159: 17 | Y159: 18 | Z159: Retour | AA159: Total
F160: PAR | G160: =G$7 -> 4 | H160: =H$7 -> 4 | I160: 5 | J160: 4 | K160: 3 | L160: 5 | M160: 3 | N160: 5 | O160: 3 | P160: =SUM(G160:O160) -> 36 | Q160: =Q$7 -> 4 | R160: 4 | S160: 3 | T160: 5 | U160: 3 | V160: 4 | W160: 4 | X160: 5 | Y160: 4 | Z160: =SUM(Q160:Y160) -> 36 | AA160: =SUM(P160+Z160) -> 72
F161: HCP trous | G161: =G$8 -> 4 | H161: =H$8 -> 8 | I161: 12 | J161: 14 | K161: 2 | L161: 10 | M161: 18 | N161: 16 | O161: 6 | Q161: =Q$8 -> 1 | R161: 9 | S161: 11 | T161: 5 | U161: 17 | V161: 15 | W161: 3 | X161: 13 | Y161: 7
F162: Coups reçus | G162: =IF($Q157<=18,IF(G161<=$Q157,1,0),IF($Q157<=36,IF(G161<=($Q157-18),2,1),IF($Q157>36,IF(G161<=($Q157-36),3,2)))) -> 1 | H162: =IF($Q157<=18,IF(H161<=$Q157,1,0),IF($Q157<=36,IF(H161<=($Q157-18),2,1),IF($Q157>36,IF(H161<=($Q157-36),3,2)))) -> 1 | I162: 1 | J162: 1 | K162: 2 | L162: 1 | M162: 1 | N162: 1 | O162: 1 | P162: =SUM(G162:O162) -> 10 | Q162: =IF($Q157<=18,IF(Q161<=$Q157,1,0),IF($Q157<=36,IF(Q161<=($Q157-18),2,1),IF($Q157>36,IF(Q161<=($Q157-36),3,2)))) -> 2 | R162: 1 | S162: 1 | T162: 1 | U162: 1 | V162: 1 | W162: 1 | X162: 1 | Y162: 1 | Z162: =SUM(Q162:Y162) -> 10 | AA162: =P162+Z162 -> 20
F163: Stroke play | G163: =G12 -> 10 | H163: 10 | I163: 10 | J163: 10 | K163: 10 | L163: 10 | M163: 10 | N163: 10 | O163: 10 | P163: =SUM(G163:O163) -> 90 | Q163: =Q12 -> 10 | R163: 10 | S163: 10 | T163: 10 | U163: 10 | V163: 10 | W163: 10 | X163: 10 | Y163: 10 | Z163: =SUM(Q163:Y163) -> 90 | AA163: =P163+Z163 -> 180
F164: Net Stableford | G164: =IF(G163-G160=-1,3+G162)+IF(G163-G160=0,2+G162)+IF(G163-G160=1,1+G162)+IF(G163-G160=2,G162)+IF(G163-G160=3,IF(G162-1>0,G162-1,0))+IF(G163-G160=4,IF(G162-2>0,G162-2,0)) -> 0 | H164: =IF(H163-H160=-1,3+H162)+IF(H163-H160=0,2+H162)+IF(H163-H160=1,1+H162)+IF(H163-H160=2,H162)+IF(H163-H160=3,IF(H162-1>0,H162-1,0))+IF(H163-H160=4,IF(H162-2>0,H162-2,0)) -> 0 | I164: 0 | J164: 0 | K164: 0 | L164: 0 | M164: 0 | N164: 0 | O164: 0 | P164: =SUM(G164:O164) -> 0 | Q164: =IF(Q163-Q160=-1,3+Q162)+IF(Q163-Q160=0,2+Q162)+IF(Q163-Q160=1,1+Q162)+IF(Q163-Q160=2,Q162)+IF(Q163-Q160=3,IF(Q162-1>0,Q162-1,0))+IF(Q163-Q160=4,IF(Q162-2>0,Q162-2,0)) -> 0 | R164: 0 | S164: 0 | T164: 0 | U164: 0 | V164: 0 | W164: 0 | X164: 0 | Y164: 0 | Z164: =SUM(Q164:Y164) -> 0 | AA164: =P164+Z164 -> 0
F165: Score Brut | G165: =IF(G163-G160=-2,4)+IF(G163-G160=-1,3)+IF(G163-G160=0,2)+IF(G163-G160=1,1)+IF(G163-G160>2,0) -> 0 | H165: 0 | I165: 0 | J165: 0 | K165: 0 | L165: 0 | M165: 0 | N165: 0 | O165: 0 | P165: =SUM(G165:O165) -> 0 | Q165: =IF(Q163-Q160=-2,4)+IF(Q163-Q160=-1,3)+IF(Q163-Q160=0,2)+IF(Q163-Q160=1,1)+IF(Q163-Q160>2,0) -> 0 | R165: 0 | S165: 0 | T165: 0 | U165: 0 | V165: 0 | W165: 0 | X165: 0 | Y165: 0 | Z165: =SUM(Q165:Y165) -> 0 | AA165: =P165+Z165 -> 0
G166: =G163-G160 -> 6 | H166: =H163-H160 -> 6 | I166: 5 | J166: 6 | K166: 7 | L166: 5 | M166: 7 | N166: 5 | O166: 7 | Q166: =Q163-Q160 -> 6 | R166: 6 | S166: 7 | T166: 5 | U166: 7 | V166: 6 | W166: 6 | X166: 5 | Y166: 6
F169: Statistiques scores | H169: Eagle & moins | L169: =COUNTIF(G166:Y166,"<=-2") -> 0 | M169: Par | O169: =COUNTIF(G166:Y166,"=0") -> 0 | P169: Double bogey | U169: =COUNTIF(G166:Y166,"=2") -> 0
H170: Birdie | L170: =COUNTIF(G166:Y166,"=-1") -> 0 | M170: Bogey | O170: =COUNTIF(G166:Y166,"=1") -> 0 | P170: Triple bogey & plus | U170: =COUNTIF(G166:Y166,">=3") -> 18
H171: =M169 -> Par | L171: =O169 -> 0
H172: =M170 -> Bogey | L172: =O170 -> 0
H173: =P169 -> Double bogey | L173: =U169 -> 0
H174: =P170 -> Triple bogey & plus | L174: =U170 -> 18
F179: Nom | G179: =C13 -> 0 | L179: Slope | O179: SSS | Q179: Coups reçus | Z179: Date | AA179: =$D$3 -> 00:00:00
F180: Index | G180: =E13 -> 20 | L180: =$F$3 -> 133 | O180: =$G$3 -> 68.6 | Q180: =ROUND((G180*(L180/113)+(O180-AA183)),0) -> 20
F182: Trou | G182: 1 | H182: 2 | I182: 3 | J182: 4 | K182: 5 | L182: 6 | M182: 7 | N182: 8 | O182: 9 | P182: Aller | Q182: 10 | R182: 11 | S182: 12 | T182: 13 | U182: 14 | V182: 15 | W182: 16 | X182: 17 | Y182: 18 | Z182: Retour | AA182: Total
F183: PAR | G183: =G$7 -> 4 | H183: =H$7 -> 4 | I183: 5 | J183: 4 | K183: 3 | L183: 5 | M183: 3 | N183: 5 | O183: 3 | P183: =SUM(G183:O183) -> 36 | Q183: =Q$7 -> 4 | R183: 4 | S183: 3 | T183: 5 | U183: 3 | V183: 4 | W183: 4 | X183: 5 | Y183: 4 | Z183: =SUM(Q183:Y183) -> 36 | AA183: =SUM(P183+Z183) -> 72
F184: HCP trous | G184: =G$8 -> 4 | H184: =H$8 -> 8 | I184: 12 | J184: 14 | K184: 2 | L184: 10 | M184: 18 | N184: 16 | O184: 6 | Q184: =Q$8 -> 1 | R184: 9 | S184: 11 | T184: 5 | U184: 17 | V184: 15 | W184: 3 | X184: 13 | Y184: 7
F185: Coups reçus | G185: =IF($Q180<=18,IF(G184<=$Q180,1,0),IF($Q180<=36,IF(G184<=($Q180-18),2,1),IF($Q180>36,IF(G184<=($Q180-36),3,2)))) -> 1 | H185: =IF($Q180<=18,IF(H184<=$Q180,1,0),IF($Q180<=36,IF(H184<=($Q180-18),2,1),IF($Q180>36,IF(H184<=($Q180-36),3,2)))) -> 1 | I185: 1 | J185: 1 | K185: 2 | L185: 1 | M185: 1 | N185: 1 | O185: 1 | P185: =SUM(G185:O185) -> 10 | Q185: =IF($Q180<=18,IF(Q184<=$Q180,1,0),IF($Q180<=36,IF(Q184<=($Q180-18),2,1),IF($Q180>36,IF(Q184<=($Q180-36),3,2)))) -> 2 | R185: 1 | S185: 1 | T185: 1 | U185: 1 | V185: 1 | W185: 1 | X185: 1 | Y185: 1 | Z185: =SUM(Q185:Y185) -> 10 | AA185: =P185+Z185 -> 20
F186: Stroke play | G186: =G13 -> 10 | H186: 10 | I186: 10 | J186: 10 | K186: 10 | L186: 10 | M186: 10 | N186: 10 | O186: 10 | P186: =SUM(G186:O186) -> 90 | Q186: =Q13 -> 10 | R186: 10 | S186: 10 | T186: 10 | U186: 10 | V186: 10 | W186: 10 | X186: 10 | Y186: 10 | Z186: =SUM(Q186:Y186) -> 90 | AA186: =P186+Z186 -> 180
F187: Net Stableford | G187: =IF(G186-G183=-1,3+G185)+IF(G186-G183=0,2+G185)+IF(G186-G183=1,1+G185)+IF(G186-G183=2,G185)+IF(G186-G183=3,IF(G185-1>0,G185-1,0))+IF(G186-G183=4,IF(G185-2>0,G185-2,0)) -> 0 | H187: =IF(H186-H183=-1,3+H185)+IF(H186-H183=0,2+H185)+IF(H186-H183=1,1+H185)+IF(H186-H183=2,H185)+IF(H186-H183=3,IF(H185-1>0,H185-1,0))+IF(H186-H183=4,IF(H185-2>0,H185-2,0)) -> 0 | I187: 0 | J187: 0 | K187: 0 | L187: 0 | M187: 0 | N187: 0 | O187: 0 | P187: =SUM(G187:O187) -> 0 | Q187: =IF(Q186-Q183=-1,3+Q185)+IF(Q186-Q183=0,2+Q185)+IF(Q186-Q183=1,1+Q185)+IF(Q186-Q183=2,Q185)+IF(Q186-Q183=3,IF(Q185-1>0,Q185-1,0))+IF(Q186-Q183=4,IF(Q185-2>0,Q185-2,0)) -> 0 | R187: 0 | S187: 0 | T187: 0 | U187: 0 | V187: 0 | W187: 0 | X187: 0 | Y187: 0 | Z187: =SUM(Q187:Y187) -> 0 | AA187: =P187+Z187 -> 0
F188: Score Brut | G188: =IF(G186-G183=-2,4)+IF(G186-G183=-1,3)+IF(G186-G183=0,2)+IF(G186-G183=1,1)+IF(G186-G183>2,0) -> 0 | H188: 0 | I188: 0 | J188: 0 | K188: 0 | L188: 0 | M188: 0 | N188: 0 | O188: 0 | P188: =SUM(G188:O188) -> 0 | Q188: =IF(Q186-Q183=-2,4)+IF(Q186-Q183=-1,3)+IF(Q186-Q183=0,2)+IF(Q186-Q183=1,1)+IF(Q186-Q183>2,0) -> 0 | R188: 0 | S188: 0 | T188: 0 | U188: 0 | V188: 0 | W188: 0 | X188: 0 | Y188: 0 | Z188: =SUM(Q188:Y188) -> 0 | AA188: =P188+Z188 -> 0
G189: =G186-G183 -> 6 | H189: =H186-H183 -> 6 | I189: 5 | J189: 6 | K189: 7 | L189: 5 | M189: 7 | N189: 5 | O189: 7 | Q189: =Q186-Q183 -> 6 | R189: 6 | S189: 7 | T189: 5 | U189: 7 | V189: 6 | W189: 6 | X189: 5 | Y189: 6
F192: Statistiques scores | H192: Eagle & moins | L192: =COUNTIF(G189:Y189,"<=-2") -> 0 | M192: Par | O192: =COUNTIF(G189:Y189,"=0") -> 0 | P192: Double bogey | U192: =COUNTIF(G189:Y189,"=2") -> 0
H193: Birdie | L193: =COUNTIF(G189:Y189,"=-1") -> 0 | M193: Bogey | O193: =COUNTIF(G189:Y189,"=1") -> 0 | P193: Triple bogey & plus | U193: =COUNTIF(G189:Y189,">=3") -> 18
H194: =M192 -> Par | L194: =O192 -> 0
H195: =M193 -> Bogey | L195: =O193 -> 0
H196: =P192 -> Double bogey | L196: =U192 -> 0
H197: =P193 -> Triple bogey & plus | L197: =U193 -> 18
F202: Nom | G202: =C14 -> 0 | L202: Slope | O202: SSS | Q202: Coups reçus | Z202: Date | AA202: =$D$3 -> 00:00:00
F203: Index | G203: =E14 -> 20 | L203: =$F$3 -> 133 | O203: =$G$3 -> 68.6 | Q203: =ROUND((G203*(L203/113)+(O203-AA206)),0) -> 20
F205: Trou | G205: 1 | H205: 2 | I205: 3 | J205: 4 | K205: 5 | L205: 6 | M205: 7 | N205: 8 | O205: 9 | P205: Aller | Q205: 10 | R205: 11 | S205: 12 | T205: 13 | U205: 14 | V205: 15 | W205: 16 | X205: 17 | Y205: 18 | Z205: Retour | AA205: Total
F206: PAR | G206: =G$7 -> 4 | H206: =H$7 -> 4 | I206: 5 | J206: 4 | K206: 3 | L206: 5 | M206: 3 | N206: 5 | O206: 3 | P206: =SUM(G206:O206) -> 36 | Q206: =Q$7 -> 4 | R206: 4 | S206: 3 | T206: 5 | U206: 3 | V206: 4 | W206: 4 | X206: 5 | Y206: 4 | Z206: =SUM(Q206:Y206) -> 36 | AA206: =SUM(P206+Z206) -> 72
F207: HCP trous | G207: =G$8 -> 4 | H207: =H$8 -> 8 | I207: 12 | J207: 14 | K207: 2 | L207: 10 | M207: 18 | N207: 16 | O207: 6 | Q207: =Q$8 -> 1 | R207: 9 | S207: 11 | T207: 5 | U207: 17 | V207: 15 | W207: 3 | X207: 13 | Y207: 7
F208: Coups reçus | G208: =IF($Q203<=18,IF(G207<=$Q203,1,0),IF($Q203<=36,IF(G207<=($Q203-18),2,1),IF($Q203>36,IF(G207<=($Q203-36),3,2)))) -> 1 | H208: =IF($Q203<=18,IF(H207<=$Q203,1,0),IF($Q203<=36,IF(H207<=($Q203-18),2,1),IF($Q203>36,IF(H207<=($Q203-36),3,2)))) -> 1 | I208: 1 | J208: 1 | K208: 2 | L208: 1 | M208: 1 | N208: 1 | O208: 1 | P208: =SUM(G208:O208) -> 10 | Q208: =IF($Q203<=18,IF(Q207<=$Q203,1,0),IF($Q203<=36,IF(Q207<=($Q203-18),2,1),IF($Q203>36,IF(Q207<=($Q203-36),3,2)))) -> 2 | R208: 1 | S208: 1 | T208: 1 | U208: 1 | V208: 1 | W208: 1 | X208: 1 | Y208: 1 | Z208: =SUM(Q208:Y208) -> 10 | AA208: =P208+Z208 -> 20
F209: Stroke play | G209: =G14 -> 10 | H209: 10 | I209: 10 | J209: 10 | K209: 10 | L209: 10 | M209: 10 | N209: 10 | O209: 10 | P209: =SUM(G209:O209) -> 90 | Q209: =Q14 -> 10 | R209: 10 | S209: 10 | T209: 10 | U209: 10 | V209: 10 | W209: 10 | X209: 10 | Y209: 10 | Z209: =SUM(Q209:Y209) -> 90 | AA209: =P209+Z209 -> 180
F210: Net Stableford | G210: =IF(G209-G206=-1,3+G208)+IF(G209-G206=0,2+G208)+IF(G209-G206=1,1+G208)+IF(G209-G206=2,G208)+IF(G209-G206=3,IF(G208-1>0,G208-1,0))+IF(G209-G206=4,IF(G208-2>0,G208-2,0)) -> 0 | H210: =IF(H209-H206=-1,3+H208)+IF(H209-H206=0,2+H208)+IF(H209-H206=1,1+H208)+IF(H209-H206=2,H208)+IF(H209-H206=3,IF(H208-1>0,H208-1,0))+IF(H209-H206=4,IF(H208-2>0,H208-2,0)) -> 0 | I210: 0 | J210: 0 | K210: 0 | L210: 0 | M210: 0 | N210: 0 | O210: 0 | P210: =SUM(G210:O210) -> 0 | Q210: =IF(Q209-Q206=-1,3+Q208)+IF(Q209-Q206=0,2+Q208)+IF(Q209-Q206=1,1+Q208)+IF(Q209-Q206=2,Q208)+IF(Q209-Q206=3,IF(Q208-1>0,Q208-1,0))+IF(Q209-Q206=4,IF(Q208-2>0,Q208-2,0)) -> 0 | R210: 0 | S210: 0 | T210: 0 | U210: 0 | V210: 0 | W210: 0 | X210: 0 | Y210: 0 | Z210: =SUM(Q210:Y210) -> 0 | AA210: =P210+Z210 -> 0
F211: Score Brut | G211: =IF(G209-G206=-2,4)+IF(G209-G206=-1,3)+IF(G209-G206=0,2)+IF(G209-G206=1,1)+IF(G209-G206>2,0) -> 0 | H211: 0 | I211: 0 | J211: 0 | K211: 0 | L211: 0 | M211: 0 | N211: 0 | O211: 0 | P211: =SUM(G211:O211) -> 0 | Q211: =IF(Q209-Q206=-2,4)+IF(Q209-Q206=-1,3)+IF(Q209-Q206=0,2)+IF(Q209-Q206=1,1)+IF(Q209-Q206>2,0) -> 0 | R211: 0 | S211: 0 | T211: 0 | U211: 0 | V211: 0 | W211: 0 | X211: 0 | Y211: 0 | Z211: =SUM(Q211:Y211) -> 0 | AA211: =P211+Z211 -> 0
G212: =G209-G206 -> 6 | H212: =H209-H206 -> 6 | I212: 5 | J212: 6 | K212: 7 | L212: 5 | M212: 7 | N212: 5 | O212: 7 | Q212: =Q209-Q206 -> 6 | R212: 6 | S212: 7 | T212: 5 | U212: 7 | V212: 6 | W212: 6 | X212: 5 | Y212: 6
F215: Statistiques scores | H215: Eagle & moins | L215: =COUNTIF(G212:Y212,"<=-2") -> 0 | M215: Par | O215: =COUNTIF(G212:Y212,"=0") -> 0 | P215: Double bogey | U215: =COUNTIF(G212:Y212,"=2") -> 0
H216: Birdie | L216: =COUNTIF(G212:Y212,"=-1") -> 0 | M216: Bogey | O216: =COUNTIF(G212:Y212,"=1") -> 0 | P216: Triple bogey & plus | U216: =COUNTIF(G212:Y212,">=3") -> 18
H217: =M215 -> Par | L217: =O215 -> 0
H218: =M216 -> Bogey | L218: =O216 -> 0
H219: =P215 -> Double bogey | L219: =U215 -> 0
H220: =P216 -> Triple bogey & plus | L220: =U216 -> 18
F225: Nom | G225: =C15 -> 0 | L225: Slope | O225: SSS | Q225: Coups reçus | Z225: Date | AA225: =$D$3 -> 00:00:00
F226: Index | G226: =E15 -> 20 | L226: =$F$3 -> 133 | O226: =$G$3 -> 68.6 | Q226: =ROUND((G226*(L226/113)+(O226-AA229)),0) -> 20
F228: Trou | G228: 1 | H228: 2 | I228: 3 | J228: 4 | K228: 5 | L228: 6 | M228: 7 | N228: 8 | O228: 9 | P228: Aller | Q228: 10 | R228: 11 | S228: 12 | T228: 13 | U228: 14 | V228: 15 | W228: 16 | X228: 17 | Y228: 18 | Z228: Retour | AA228: Total
F229: PAR | G229: =G$7 -> 4 | H229: =H$7 -> 4 | I229: 5 | J229: 4 | K229: 3 | L229: 5 | M229: 3 | N229: 5 | O229: 3 | P229: =SUM(G229:O229) -> 36 | Q229: =Q$7 -> 4 | R229: 4 | S229: 3 | T229: 5 | U229: 3 | V229: 4 | W229: 4 | X229: 5 | Y229: 4 | Z229: =SUM(Q229:Y229) -> 36 | AA229: =SUM(P229+Z229) -> 72
F230: HCP trous | G230: =G$8 -> 4 | H230: =H$8 -> 8 | I230: 12 | J230: 14 | K230: 2 | L230: 10 | M230: 18 | N230: 16 | O230: 6 | Q230: =Q$8 -> 1 | R230: 9 | S230: 11 | T230: 5 | U230: 17 | V230: 15 | W230: 3 | X230: 13 | Y230: 7
F231: Coups reçus | G231: =IF($Q226<=18,IF(G230<=$Q226,1,0),IF($Q226<=36,IF(G230<=($Q226-18),2,1),IF($Q226>36,IF(G230<=($Q226-36),3,2)))) -> 1 | H231: =IF($Q226<=18,IF(H230<=$Q226,1,0),IF($Q226<=36,IF(H230<=($Q226-18),2,1),IF($Q226>36,IF(H230<=($Q226-36),3,2)))) -> 1 | I231: 1 | J231: 1 | K231: 2 | L231: 1 | M231: 1 | N231: 1 | O231: 1 | P231: =SUM(G231:O231) -> 10 | Q231: =IF($Q226<=18,IF(Q230<=$Q226,1,0),IF($Q226<=36,IF(Q230<=($Q226-18),2,1),IF($Q226>36,IF(Q230<=($Q226-36),3,2)))) -> 2 | R231: 1 | S231: 1 | T231: 1 | U231: 1 | V231: 1 | W231: 1 | X231: 1 | Y231: 1 | Z231: =SUM(Q231:Y231) -> 10 | AA231: =P231+Z231 -> 20
F232: Stroke play | G232: =G15 -> 10 | H232: 10 | I232: 10 | J232: 10 | K232: 10 | L232: 10 | M232: 10 | N232: 10 | O232: 10 | P232: =SUM(G232:O232) -> 90 | Q232: =Q15 -> 10 | R232: 10 | S232: 10 | T232: 10 | U232: 10 | V232: 10 | W232: 10 | X232: 10 | Y232: 10 | Z232: =SUM(Q232:Y232) -> 90 | AA232: =P232+Z232 -> 180
F233: Net Stableford | G233: =IF(G232-G229=-1,3+G231)+IF(G232-G229=0,2+G231)+IF(G232-G229=1,1+G231)+IF(G232-G229=2,G231)+IF(G232-G229=3,IF(G231-1>0,G231-1,0))+IF(G232-G229=4,IF(G231-2>0,G231-2,0)) -> 0 | H233: =IF(H232-H229=-1,3+H231)+IF(H232-H229=0,2+H231)+IF(H232-H229=1,1+H231)+IF(H232-H229=2,H231)+IF(H232-H229=3,IF(H231-1>0,H231-1,0))+IF(H232-H229=4,IF(H231-2>0,H231-2,0)) -> 0 | I233: 0 | J233: 0 | K233: 0 | L233: 0 | M233: 0 | N233: 0 | O233: 0 | P233: =SUM(G233:O233) -> 0 | Q233: =IF(Q232-Q229=-1,3+Q231)+IF(Q232-Q229=0,2+Q231)+IF(Q232-Q229=1,1+Q231)+IF(Q232-Q229=2,Q231)+IF(Q232-Q229=3,IF(Q231-1>0,Q231-1,0))+IF(Q232-Q229=4,IF(Q231-2>0,Q231-2,0)) -> 0 | R233: 0 | S233: 0 | T233: 0 | U233: 0 | V233: 0 | W233: 0 | X233: 0 | Y233: 0 | Z233: =SUM(Q233:Y233) -> 0 | AA233: =P233+Z233 -> 0
F234: Score Brut | G234: =IF(G232-G229=-2,4)+IF(G232-G229=-1,3)+IF(G232-G229=0,2)+IF(G232-G229=1,1)+IF(G232-G229>2,0) -> 0 | H234: 0 | I234: 0 | J234: 0 | K234: 0 | L234: 0 | M234: 0 | N234: 0 | O234: 0 | P234: =SUM(G234:O234) -> 0 | Q234: =IF(Q232-Q229=-2,4)+IF(Q232-Q229=-1,3)+IF(Q232-Q229=0,2)+IF(Q232-Q229=1,1)+IF(Q232-Q229>2,0) -> 0 | R234: 0 | S234: 0 | T234: 0 | U234: 0 | V234: 0 | W234: 0 | X234: 0 | Y234: 0 | Z234: =SUM(Q234:Y234) -> 0 | AA234: =P234+Z234 -> 0
G235: =G232-G229 -> 6 | H235: =H232-H229 -> 6 | I235: 5 | J235: 6 | K235: 7 | L235: 5 | M235: 7 | N235: 5 | O235: 7 | Q235: =Q232-Q229 -> 6 | R235: 6 | S235: 7 | T235: 5 | U235: 7 | V235: 6 | W235: 6 | X235: 5 | Y235: 6
F238: Statistiques scores | H238: Eagle & moins | L238: =COUNTIF(G235:Y235,"<=-2") -> 0 | M238: Par | O238: =COUNTIF(G235:Y235,"=0") -> 0 | P238: Double bogey | U238: =COUNTIF(G235:Y235,"=2") -> 0
H239: Birdie | L239: =COUNTIF(G235:Y235,"=-1") -> 0 | M239: Bogey | O239: =COUNTIF(G235:Y235,"=1") -> 0 | P239: Triple bogey & plus | U239: =COUNTIF(G235:Y235,">=3") -> 18
H240: =M238 -> Par | L240: =O238 -> 0
H241: =M239 -> Bogey | L241: =O239 -> 0
H242: =P238 -> Double bogey | L242: =U238 -> 0
H243: =P239 -> Triple bogey & plus | L243: =U239 -> 18
F248: Nom | G248: =C16 -> 0 | L248: Slope | O248: SSS | Q248: Coups reçus | Z248: Date | AA248: =$D$3 -> 00:00:00
F249: Index | G249: =E16 -> 20 | L249: =$F$3 -> 133 | O249: =$G$3 -> 68.6 | Q249: =ROUND((G249*(L249/113)+(O249-AA252)),0) -> 20
F251: Trou | G251: 1 | H251: 2 | I251: 3 | J251: 4 | K251: 5 | L251: 6 | M251: 7 | N251: 8 | O251: 9 | P251: Aller | Q251: 10 | R251: 11 | S251: 12 | T251: 13 | U251: 14 | V251: 15 | W251: 16 | X251: 17 | Y251: 18 | Z251: Retour | AA251: Total
F252: PAR | G252: =G$7 -> 4 | H252: =H$7 -> 4 | I252: 5 | J252: 4 | K252: 3 | L252: 5 | M252: 3 | N252: 5 | O252: 3 | P252: =SUM(G252:O252) -> 36 | Q252: =Q$7 -> 4 | R252: 4 | S252: 3 | T252: 5 | U252: 3 | V252: 4 | W252: 4 | X252: 5 | Y252: 4 | Z252: =SUM(Q252:Y252) -> 36 | AA252: =SUM(P252+Z252) -> 72
F253: HCP trous | G253: =G$8 -> 4 | H253: =H$8 -> 8 | I253: 12 | J253: 14 | K253: 2 | L253: 10 | M253: 18 | N253: 16 | O253: 6 | Q253: =Q$8 -> 1 | R253: 9 | S253: 11 | T253: 5 | U253: 17 | V253: 15 | W253: 3 | X253: 13 | Y253: 7
F254: Coups reçus | G254: =IF($Q249<=18,IF(G253<=$Q249,1,0),IF($Q249<=36,IF(G253<=($Q249-18),2,1),IF($Q249>36,IF(G253<=($Q249-36),3,2)))) -> 1 | H254: =IF($Q249<=18,IF(H253<=$Q249,1,0),IF($Q249<=36,IF(H253<=($Q249-18),2,1),IF($Q249>36,IF(H253<=($Q249-36),3,2)))) -> 1 | I254: 1 | J254: 1 | K254: 2 | L254: 1 | M254: 1 | N254: 1 | O254: 1 | P254: =SUM(G254:O254) -> 10 | Q254: =IF($Q249<=18,IF(Q253<=$Q249,1,0),IF($Q249<=36,IF(Q253<=($Q249-18),2,1),IF($Q249>36,IF(Q253<=($Q249-36),3,2)))) -> 2 | R254: 1 | S254: 1 | T254: 1 | U254: 1 | V254: 1 | W254: 1 | X254: 1 | Y254: 1 | Z254: =SUM(Q254:Y254) -> 10 | AA254: =P254+Z254 -> 20
F255: Stroke play | G255: =G16 -> 10 | H255: 10 | I255: 10 | J255: 10 | K255: 10 | L255: 10 | M255: 10 | N255: 10 | O255: 10 | P255: =SUM(G255:O255) -> 90 | Q255: =Q16 -> 10 | R255: 10 | S255: 10 | T255: 10 | U255: 10 | V255: 10 | W255: 10 | X255: 10 | Y255: 10 | Z255: =SUM(Q255:Y255) -> 90 | AA255: =P255+Z255 -> 180
F256: Net Stableford | G256: =IF(G255-G252=-1,3+G254)+IF(G255-G252=0,2+G254)+IF(G255-G252=1,1+G254)+IF(G255-G252=2,G254)+IF(G255-G252=3,IF(G254-1>0,G254-1,0))+IF(G255-G252=4,IF(G254-2>0,G254-2,0)) -> 0 | H256: =IF(H255-H252=-1,3+H254)+IF(H255-H252=0,2+H254)+IF(H255-H252=1,1+H254)+IF(H255-H252=2,H254)+IF(H255-H252=3,IF(H254-1>0,H254-1,0))+IF(H255-H252=4,IF(H254-2>0,H254-2,0)) -> 0 | I256: 0 | J256: 0 | K256: 0 | L256: 0 | M256: 0 | N256: 0 | O256: 0 | P256: =SUM(G256:O256) -> 0 | Q256: =IF(Q255-Q252=-1,3+Q254)+IF(Q255-Q252=0,2+Q254)+IF(Q255-Q252=1,1+Q254)+IF(Q255-Q252=2,Q254)+IF(Q255-Q252=3,IF(Q254-1>0,Q254-1,0))+IF(Q255-Q252=4,IF(Q254-2>0,Q254-2,0)) -> 0 | R256: 0 | S256: 0 | T256: 0 | U256: 0 | V256: 0 | W256: 0 | X256: 0 | Y256: 0 | Z256: =SUM(Q256:Y256) -> 0 | AA256: =P256+Z256 -> 0
F257: Score Brut | G257: =IF(G255-G252=-2,4)+IF(G255-G252=-1,3)+IF(G255-G252=0,2)+IF(G255-G252=1,1)+IF(G255-G252>2,0) -> 0 | H257: 0 | I257: 0 | J257: 0 | K257: 0 | L257: 0 | M257: 0 | N257: 0 | O257: 0 | P257: =SUM(G257:O257) -> 0 | Q257: =IF(Q255-Q252=-2,4)+IF(Q255-Q252=-1,3)+IF(Q255-Q252=0,2)+IF(Q255-Q252=1,1)+IF(Q255-Q252>2,0) -> 0 | R257: 0 | S257: 0 | T257: 0 | U257: 0 | V257: 0 | W257: 0 | X257: 0 | Y257: 0 | Z257: =SUM(Q257:Y257) -> 0 | AA257: =P257+Z257 -> 0
G258: =G255-G252 -> 6 | H258: =H255-H252 -> 6 | I258: 5 | J258: 6 | K258: 7 | L258: 5 | M258: 7 | N258: 5 | O258: 7 | Q258: =Q255-Q252 -> 6 | R258: 6 | S258: 7 | T258: 5 | U258: 7 | V258: 6 | W258: 6 | X258: 5 | Y258: 6
F261: Statistiques scores | H261: Eagle & moins | L261: =COUNTIF(G258:Y258,"<=-2") -> 0 | M261: Par | O261: =COUNTIF(G258:Y258,"=0") -> 0 | P261: Double bogey | U261: =COUNTIF(G258:Y258,"=2") -> 0
H262: Birdie | L262: =COUNTIF(G258:Y258,"=-1") -> 0 | M262: Bogey | O262: =COUNTIF(G258:Y258,"=1") -> 0 | P262: Triple bogey & plus | U262: =COUNTIF(G258:Y258,">=3") -> 18
H263: =M261 -> Par | L263: =O261 -> 0
H264: =M262 -> Bogey | L264: =O262 -> 0
H265: =P261 -> Double bogey | L265: =U261 -> 0
H266: =P262 -> Triple bogey & plus | L266: =U262 -> 18
F271: Nom | G271: =C17 -> 0 | L271: Slope | O271: SSS | Q271: Coups reçus | Z271: Date | AA271: =$D$3 -> 00:00:00
F272: Index | G272: =E17 -> 20 | L272: =$F$3 -> 133 | O272: =$G$3 -> 68.6 | Q272: =ROUND((G272*(L272/113)+(O272-AA275)),0) -> 20
... 350 more rows

Sheet sortie (4)
C2: Golf | D2: C | F2: Slope | G2: SSS | N2: CARTE DE SCORE
C3: Date | F3: 133 | G3: 68.6
C5: Individuel Stableford BRUT/NET
E6: Index | F6: HCP trous | G6: 1 | H6: 2 | I6: 3 | J6: 4 | K6: 5 | L6: 6 | M6: 7 | N6: 8 | O6: 9 | P6: Aller | Q6: 10 | R6: 11 | S6: 12 | T6: 13 | U6: 14 | V6: 15 | W6: 16 | X6: 17 | Y6: 18 | Z6: Retour | AA6: Total
F7: PAR | G7: 4 | H7: 4 | I7: 5 | J7: 4 | K7: 3 | L7: 5 | M7: 3 | N7: 5 | O7: 3 | P7: =SUM(G7:O7) -> 36 | Q7: 4 | R7: 4 | S7: 3 | T7: 5 | U7: 3 | V7: 4 | W7: 4 | X7: 5 | Y7: 4 | Z7: =SUM(Q7:Y7) -> 36 | AA7: =SUM(P7+Z7) -> 72
C8: Noms | D8: Prénoms | F8: Trou | G8: 4 | H8: 8 | I8: 12 | J8: 14 | K8: 2 | L8: 10 | M8: 18 | N8: 16 | O8: 6 | Q8: 1 | R8: 9 | S8: 11 | T8: 5 | U8: 17 | V8: 15 | W8: 3 | X8: 13 | Y8: 7 | AC8: NET | AD8: Classt | AE8: Rang | AF8: Points | AH8: BRUT | AI8: Classt | AJ8: Rang | AK8: Points | AM8: STROKE | AN8: Classt | AO8: Rang | AP8: Points
B9: 1 | E9: 20 | G9: 10 | H9: 10 | I9: 10 | J9: 10 | K9: 10 | L9: 10 | M9: 10 | N9: 10 | O9: 10 | P9: =SUM(G9:O9) -> 90 | Q9: 10 | R9: 10 | S9: 10 | T9: 10 | U9: 10 | V9: 10 | W9: 10 | X9: 10 | Y9: 10 | Z9: =SUM(Q9:Y9) -> 90 | AA9: =SUM(P9+Z9) -> 180 | AC9: =$AA$95 -> 0 | AD9: =RANK(AC9,AC$9:AC$38,0)+COUNTIF(AC9:$AC$9,AC9)-1 -> 1 | AE9: =RANK(AC9,AC$9:AC$38,0) -> 1 | AF9: =IF(ISBLANK($C9),0,1)*INDEX('Allocation Points'!$B$3:$AG$32,AE9,COUNTIF(AE$9:AE$38,AE9)+2) -> 0 | AH9: =AA96 -> 0 | AI9: =RANK(AH9,AH$9:AH$38,0)+COUNTIF(AH9:$AH$9,AH9)-1 -> 1 | AJ9: =RANK(AH9,AH$9:AH$38,0) -> 1 | AK9: =IF(ISBLANK($C9),0,1)*INDEX('Allocation Points'!$B$3:$AG$32,AJ9,COUNTIF(AJ$9:AJ$38,AJ9)+2) -> 0 | AM9: =AA94 -> 180 | AN9: =RANK(AM9,AM$9:AM$38,1)+COUNTIF(AM9:$AM$9,AM9)-1 -> 1 | AO9: =RANK(AM9,AM$9:AM$38,1) -> 1 | AP9: =IF(ISBLANK($C9),0,1)*INDEX('Allocation Points'!$B$3:$AG$32,AO9,COUNTIF(AO$9:AO$38,AO9)+2) -> 0
B10: 2 | E10: 20 | G10: 10 | H10: 10 | I10: 10 | J10: 10 | K10: 10 | L10: 10 | M10: 10 | N10: 10 | O10: 10 | P10: 90 | Q10: 10 | R10: 10 | S10: 10 | T10: 10 | U10: 10 | V10: 10 | W10: 10 | X10: 10 | Y10: 10 | Z10: 90 | AA10: 180 | AC10: =$AA$118 -> 0 | AD10: =RANK(AC10,AC$9:AC$38,0)+COUNTIF(AC$9:$AC10,AC10)-1 -> 2 | AE10: =RANK(AC10,AC$9:AC$38,0) -> 1 | AF10: =IF(ISBLANK($C10),0,1)*INDEX('Allocation Points'!$B$3:$AG$32,AE10,COUNTIF(AE$9:AE$38,AE10)+2) -> 0 | AH10: =AA119 -> 0 | AI10: =RANK(AH10,AH$9:AH$38,0)+COUNTIF(AH$9:$AH10,AH10)-1 -> 2 | AJ10: =RANK(AH10,AH$9:AH$38,0) -> 1 | AK10: =IF(ISBLANK($C10),0,1)*INDEX('Allocation Points'!$B$3:$AG$32,AJ10,COUNTIF(AJ$9:AJ$38,AJ10)+2) -> 0 | AM10: =AA117 -> 180 | AN10: =RANK(AM10,AM$9:AM$38,1)+COUNTIF(AM$9:$AM10,AM10)-1 -> 2 | AO10: =RANK(AM10,AM$9:AM$38,1) -> 1 | AP10: =IF(ISBLANK($C10),0,1)*INDEX('Allocation Points'!$B$3:$AG$32,AO10,COUNTIF(AO$9:AO$38,AO10)+2) -> 0
B11: 3 | E11: 20 | G11: 10 | H11: 10 | I11: 10 | J11: 10 | K11: 10 | L11: 10 | M11: 10 | N11: 10 | O11: 10 | P11: 90 | Q11: 10 | R11: 10 | S11: 10 | T11: 10 | U11: 10 | V11: 10 | W11: 10 | X11: 10 | Y11: 10 | Z11: 90 | AA11: 180 | AC11: =$AA$141 -> 0 | AD11: =RANK(AC11,AC$9:AC$38,0)+COUNTIF(AC$9:$AC11,AC11)-1 -> 3 | AE11: 1 | AF11: =IF(ISBLANK($C11),0,1)*INDEX('Allocation Points'!$B$3:$AG$32,AE11,COUNTIF(AE$9:AE$38,AE11)+2) -> 0 | AH11: =AA142 -> 0 | AI11: =RANK(AH11,AH$9:AH$38,0)+COUNTIF(AH$9:$AH11,AH11)-1 -> 3 | AJ11: 1 | AK11: =IF(ISBLANK($C11),0,1)*INDEX('Allocation Points'!$B$3:$AG$32,AJ11,COUNTIF(AJ$9:AJ$38,AJ11)+2) -> 0 | AM11: =AA140 -> 180 | AN11: =RANK(AM11,AM$9:AM$38,1)+COUNTIF(AM$9:$AM11,AM11)-1 -> 3 | AO11: 1 | AP11: =IF(ISBLANK($C11),0,1)*INDEX('Allocation Points'!$B$3:$AG$32,AO11,COUNTIF(AO$9:AO$38,AO11)+2) -> 0
B12: 4 | E12: 20 | G12: 10 | H12: 10 | I12: 10 | J12: 10 | K12: 10 | L12: 10 | M12: 10 | N12: 10 | O12: 10 | P12: 90 | Q12: 10 | R12: 10 | S12: 10 | T12: 10 | U12: 10 | V12: 10 | W12: 10 | X12: 10 | Y12: 10 | Z12: 90 | AA12: 180 | AC12: =$AA$164 -> 0 | AD12: =RANK(AC12,AC$9:AC$38,0)+COUNTIF(AC$9:$AC12,AC12)-1 -> 4 | AE12: 1 | AF12: =IF(ISBLANK($C12),0,1)*INDEX('Allocation Points'!$B$3:$AG$32,AE12,COUNTIF(AE$9:AE$38,AE12)+2) -> 0 | AH12: =AA165 -> 0 | AI12: =RANK(AH12,AH$9:AH$38,0)+COUNTIF(AH$9:$AH12,AH12)-1 -> 4 | AJ12: 1 | AK12: =IF(ISBLANK($C12),0,1)*INDEX('Allocation Points'!$B$3:$AG$32,AJ12,COUNTIF(AJ$9:AJ$38,AJ12)+2) -> 0 | AM12: =AA163 -> 180 | AN12: =RANK(AM12,AM$9:AM$38,1)+COUNTIF(AM$9:$AM12,AM12)-1 -> 4 | AO12: 1 | AP12: =IF(ISBLANK($C12),0,1)*INDEX('Allocation Points'!$B$3:$AG$32,AO12,COUNTIF(AO$9:AO$38,AO12)+2) -> 0
B13: 5 | E13: 20 | G13: 10 | H13: 10 | I13: 10 | J13: 10 | K13: 10 | L13: 10 | M13: 10 | N13: 10 | O13: 10 | P13: 90 | Q13: 10 | R13: 10 | S13: 10 | T13: 10 | U13: 10 | V13: 10 | W13: 10 | X13: 10 | Y13: 10 | Z13: 90 | AA13: 180 | AC13: =$AA$187 -> 0 | AD13: =RANK(AC13,AC$9:AC$38,0)+COUNTIF(AC$9:$AC13,AC13)-1 -> 5 | AE13: 1 | AF13: =IF(ISBLANK($C13),0,1)*INDEX('Allocation Points'!$B$3:$AG$32,AE13,COUNTIF(AE$9:AE$38,AE13)+2) -> 0 | AH13: =AA188 -> 0 | AI13: =RANK(AH13,AH$9:AH$38,0)+COUNTIF(AH$9:$AH13,AH13)-1 -> 5 | AJ13: 1 | AK13: =IF(ISBLANK($C13),0,1)*INDEX('Allocation Points'!$B$3:$AG$32,AJ13,COUNTIF(AJ$9:AJ$38,AJ13)+2) -> 0 | AM13: =AA186 -> 180 | AN13: =RANK(AM13,AM$9:AM$38,1)+COUNTIF(AM$9:$AM13,AM13)-1 -> 5 | AO13: 1 | AP13: =IF(ISBLANK($C13),0,1)*INDEX('Allocation Points'!$B$3:$AG$32,AO13,COUNTIF(AO$9:AO$38,AO13)+2) -> 0
B14: 6 | E14: 20 | G14: 10 | H14: 10 | I14: 10 | J14: 10 | K14: 10 | L14: 10 | M14: 10 | N14: 10 | O14: 10 | P14: 90 | Q14: 10 | R14: 10 | S14: 10 | T14: 10 | U14: 10 | V14: 10 | W14: 10 | X14: 10 | Y14: 10 | Z14: 90 | AA14: 180 | AC14: =$AA$210 -> 0 | AD14: =RANK(AC14,AC$9:AC$38,0)+COUNTIF(AC$9:$AC14,AC14)-1 -> 6 | AE14: 1 | AF14: =IF(ISBLANK($C14),0,1)*INDEX('Allocation Points'!$B$3:$AG$32,AE14,COUNTIF(AE$9:AE$38,AE14)+2) -> 0 | AH14: =AA211 -> 0 | AI14: =RANK(AH14,AH$9:AH$38,0)+COUNTIF(AH$9:$AH14,AH14)-1 -> 6 | AJ14: 1 | AK14: =IF(ISBLANK($C14),0,1)*INDEX('Allocation Points'!$B$3:$AG$32,AJ14,COUNTIF(AJ$9:AJ$38,AJ14)+2) -> 0 | AM14: =AA209 -> 180 | AN14: =RANK(AM14,AM$9:AM$38,1)+COUNTIF(AM$9:$AM14,AM14)-1 -> 6 | AO14: 1 | AP14: =IF(ISBLANK($C14),0,1)*INDEX('Allocation Points'!$B$3:$AG$32,AO14,COUNTIF(AO$9:AO$38,AO14)+2) -> 0
B15: 7 | E15: 20 | G15: 10 | H15: 10 | I15: 10 | J15: 10 | K15: 10 | L15: 10 | M15: 10 | N15: 10 | O15: 10 | P15: 90 | Q15: 10 | R15: 10 | S15: 10 | T15: 10 | U15: 10 | V15: 10 | W15: 10 | X15: 10 | Y15: 10 | Z15: 90 | AA15: 180 | AC15: =$AA$233 -> 0 | AD15: =RANK(AC15,AC$9:AC$38,0)+COUNTIF(AC$9:$AC15,AC15)-1 -> 7 | AE15: 1 | AF15: =IF(ISBLANK($C15),0,1)*INDEX('Allocation Points'!$B$3:$AG$32,AE15,COUNTIF(AE$9:AE$38,AE15)+2) -> 0 | AH15: =AA234 -> 0 | AI15: =RANK(AH15,AH$9:AH$38,0)+COUNTIF(AH$9:$AH15,AH15)-1 -> 7 | AJ15: 1 | AK15: =IF(ISBLANK($C15),0,1)*INDEX('Allocation Points'!$B$3:$AG$32,AJ15,COUNTIF(AJ$9:AJ$38,AJ15)+2) -> 0 | AM15: =AA232 -> 180 | AN15: =RANK(AM15,AM$9:AM$38,1)+COUNTIF(AM$9:$AM15,AM15)-1 -> 7 | AO15: 1 | AP15: =IF(ISBLANK($C15),0,1)*INDEX('Allocation Points'!$B$3:$AG$32,AO15,COUNTIF(AO$9:AO$38,AO15)+2) -> 0
B16: 8 | E16: 20 | G16: 10 | H16: 10 | I16: 10 | J16: 10 | K16: 10 | L16: 10 | M16: 10 | N16: 10 | O16: 10 | P16: 90 | Q16: 10 | R16: 10 | S16: 10 | T16: 10 | U16: 10 | V16: 10 | W16: 10 | X16: 10 | Y16: 10 | Z16: 90 | AA16: 180 | AC16: =$AA$256 -> 0 | AD16: =RANK(AC16,AC$9:AC$38,0)+COUNTIF(AC$9:$AC16,AC16)-1 -> 8 | AE16: 1 | AF16: =IF(ISBLANK($C16),0,1)*INDEX('Allocation Points'!$B$3:$AG$32,AE16,COUNTIF(AE$9:AE$38,AE16)+2) -> 0 | AH16: =AA257 -> 0 | AI16: =RANK(AH16,AH$9:AH$38,0)+COUNTIF(AH$9:$AH16,AH16)-1 -> 8 | AJ16: 1 | AK16: =IF(ISBLANK($C16),0,1)*INDEX('Allocation Points'!$B$3:$AG$32,AJ16,COUNTIF(AJ$9:AJ$38,AJ16)+2) -> 0 | AM16: =AA255 -> 180 | AN16: =RANK(AM16,AM$9:AM$38,1)+COUNTIF(AM$9:$AM16,AM16)-1 -> 8 | AO16: 1 | AP16: =IF(ISBLANK($C16),0,1)*INDEX('Allocation Points'!$B$3:$AG$32,AO16,COUNTIF(AO$9:AO$38,AO16)+2) -> 0
B17: 9 | E17: 20 | G17: 10 | H17: 10 | I17: 10 | J17: 10 | K17: 10 | L17: 10 | M17: 10 | N17: 10 | O17: 10 | P17: 90 | Q17: 10 | R17: 10 | S17: 10 | T17: 10 | U17: 10 | V17: 10 | W17: 10 | X17: 10 | Y17: 10 | Z17: 90 | AA17: 180 | AC17: =$AA$279 -> 0 | AD17: =RANK(AC17,AC$9:AC$38,0)+COUNTIF(AC$9:$AC17,AC17)-1 -> 9 | AE17: 1 | AF17: =IF(ISBLANK($C17),0,1)*INDEX('Allocation Points'!$B$3:$AG$32,AE17,COUNTIF(AE$9:AE$38,AE17)+2) -> 0 | AH17: =AA280 -> 0 | AI17: =RANK(AH17,AH$9:AH$38,0)+COUNTIF(AH$9:$AH17,AH17)-1 -> 9 | AJ17: 1 | AK17: =IF(ISBLANK($C17),0,1)*INDEX('Allocation Points'!$B$3:$AG$32,AJ17,COUNTIF(AJ$9:AJ$38,AJ17)+2) -> 0 | AM17: =AA278 -> 180 | AN17: =RANK(AM17,AM$9:AM$38,1)+COUNTIF(AM$9:$AM17,AM17)-1 -> 9 | AO17: 1 | AP17: =IF(ISBLANK($C17),0,1)*INDEX('Allocation Points'!$B$3:$AG$32,AO17,COUNTIF(AO$9:AO$38,AO17)+2) -> 0
B18: 10 | E18: 20 | G18: 10 | H18: 10 | I18: 10 | J18: 10 | K18: 10 | L18: 10 | M18: 10 | N18: 10 | O18: 10 | P18: 90 | Q18: 10 | R18: 10 | S18: 10 | T18: 10 | U18: 10 | V18: 10 | W18: 10 | X18: 10 | Y18: 10 | Z18: 90 | AA18: 180 | AC18: =$AA$302 -> 0 | AD18: =RANK(AC18,AC$9:AC$38,0)+COUNTIF(AC$9:$AC18,AC18)-1 -> 10 | AE18: 1 | AF18: =IF(ISBLANK($C18),0,1)*INDEX('Allocation Points'!$B$3:$AG$32,AE18,COUNTIF(AE$9:AE$38,AE18)+2) -> 0 | AH18: =AA303 -> 0 | AI18: =RANK(AH18,AH$9:AH$38,0)+COUNTIF(AH$9:$AH18,AH18)-1 -> 10 | AJ18: 1 | AK18: =IF(ISBLANK($C18),0,1)*INDEX('Allocation Points'!$B$3:$AG$32,AJ18,COUNTIF(AJ$9:AJ$38,AJ18)+2) -> 0 | AM18: =AA301 -> 180 | AN18: =RANK(AM18,AM$9:AM$38,1)+COUNTIF(AM$9:$AM18,AM18)-1 -> 10 | AO18: 1 | AP18: =IF(ISBLANK($C18),0,1)*INDEX('Allocation Points'!$B$3:$AG$32,AO18,COUNTIF(AO$9:AO$38,AO18)+2) -> 0
B19: 11 | E19: 20 | G19: 10 | H19: 10 | I19: 10 | J19: 10 | K19: 10 | L19: 10 | M19: 10 | N19: 10 | O19: 10 | P19: 90 | Q19: 10 | R19: 10 | S19: 10 | T19: 10 | U19: 10 | V19: 10 | W19: 10 | X19: 10 | Y19: 10 | Z19: 90 | AA19: 180 | AC19: =$AA$325 -> 0 | AD19: =RANK(AC19,AC$9:AC$38,0)+COUNTIF(AC$9:$AC19,AC19)-1 -> 11 | AE19: 1 | AF19: =IF(ISBLANK($C19),0,1)*INDEX('Allocation Points'!$B$3:$AG$32,AE19,COUNTIF(AE$9:AE$38,AE19)+2) -> 0 | AH19: =AA326 -> 0 | AI19: =RANK(AH19,AH$9:AH$38,0)+COUNTIF(AH$9:$AH19,AH19)-1 -> 11 | AJ19: 1 | AK19: =IF(ISBLANK($C19),0,1)*INDEX('Allocation Points'!$B$3:$AG$32,AJ19,COUNTIF(AJ$9:AJ$38,AJ19)+2) -> 0 | AM19: =AA324 -> 180 | AN19: =RANK(AM19,AM$9:AM$38,1)+COUNTIF(AM$9:$AM19,AM19)-1 -> 11 | AO19: 1 | AP19: =IF(ISBLANK($C19),0,1)*INDEX('Allocation Points'!$B$3:$AG$32,AO19,COUNTIF(AO$9:AO$38,AO19)+2) -> 0
B20: 12 | E20: 20 | G20: 10 | H20: 10 | I20: 10 | J20: 10 | K20: 10 | L20: 10 | M20: 10 | N20: 10 | O20: 10 | P20: 90 | Q20: 10 | R20: 10 | S20: 10 | T20: 10 | U20: 10 | V20: 10 | W20: 10 | X20: 10 | Y20: 10 | Z20: 90 | AA20: 180 | AC20: =$AA$348 -> 0 | AD20: =RANK(AC20,AC$9:AC$38,0)+COUNTIF(AC$9:$AC20,AC20)-1 -> 12 | AE20: 1 | AF20: =IF(ISBLANK($C20),0,1)*INDEX('Allocation Points'!$B$3:$AG$32,AE20,COUNTIF(AE$9:AE$38,AE20)+2) -> 0 | AH20: =AA349 -> 0 | AI20: =RANK(AH20,AH$9:AH$38,0)+COUNTIF(AH$9:$AH20,AH20)-1 -> 12 | AJ20: 1 | AK20: =IF(ISBLANK($C20),0,1)*INDEX('Allocation Points'!$B$3:$AG$32,AJ20,COUNTIF(AJ$9:AJ$38,AJ20)+2) -> 0 | AM20: =AA347 -> 180 | AN20: =RANK(AM20,AM$9:AM$38,1)+COUNTIF(AM$9:$AM20,AM20)-1 -> 12 | AO20: 1 | AP20: =IF(ISBLANK($C20),0,1)*INDEX('Allocation Points'!$B$3:$AG$32,AO20,COUNTIF(AO$9:AO$38,AO20)+2) -> 0
B21: 13 | E21: 20 | G21: 10 | H21: 10 | I21: 10 | J21: 10 | K21: 10 | L21: 10 | M21: 10 | N21: 10 | O21: 10 | P21: 90 | Q21: 10 | R21: 10 | S21: 10 | T21: 10 | U21: 10 | V21: 10 | W21: 10 | X21: 10 | Y21: 10 | Z21: 90 | AA21: 180 | AC21: =$AA$371 -> 0 | AD21: =RANK(AC21,AC$9:AC$38,0)+COUNTIF(AC$9:$AC21,AC21)-1 -> 13 | AE21: 1 | AF21: =IF(ISBLANK($C21),0,1)*INDEX('Allocation Points'!$B$3:$AG$32,AE21,COUNTIF(AE$9:AE$38,AE21)+2) -> 0 | AH21: =AA372 -> 0 | AI21: =RANK(AH21,AH$9:AH$38,0)+COUNTIF(AH$9:$AH21,AH21)-1 -> 13 | AJ21: 1 | AK21: =IF(ISBLANK($C21),0,1)*INDEX('Allocation Points'!$B$3:$AG$32,AJ21,COUNTIF(AJ$9:AJ$38,AJ21)+2) -> 0 | AM21: =AA370 -> 180 | AN21: =RANK(AM21,AM$9:AM$38,1)+COUNTIF(AM$9:$AM21,AM21)-1 -> 13 | AO21: 1 | AP21: =IF(ISBLANK($C21),0,1)*INDEX('Allocation Points'!$B$3:$AG$32,AO21,COUNTIF(AO$9:AO$38,AO21)+2) -> 0
B22: 14 | E22: 20 | G22: 10 | H22: 10 | I22: 10 | J22: 10 | K22: 10 | L22: 10 | M22: 10 | N22: 10 | O22: 10 | P22: 90 | Q22: 10 | R22: 10 | S22: 10 | T22: 10 | U22: 10 | V22: 10 | W22: 10 | X22: 10 | Y22: 10 | Z22: 90 | AA22: 180 | AC22: =$AA$394 -> 0 | AD22: =RANK(AC22,AC$9:AC$38,0)+COUNTIF(AC$9:$AC22,AC22)-1 -> 14 | AE22: 1 | AF22: =IF(ISBLANK($C22),0,1)*INDEX('Allocation Points'!$B$3:$AG$32,AE22,COUNTIF(AE$9:AE$38,AE22)+2) -> 0 | AH22: =AA395 -> 0 | AI22: =RANK(AH22,AH$9:AH$38,0)+COUNTIF(AH$9:$AH22,AH22)-1 -> 14 | AJ22: 1 | AK22: =IF(ISBLANK($C22),0,1)*INDEX('Allocation Points'!$B$3:$AG$32,AJ22,COUNTIF(AJ$9:AJ$38,AJ22)+2) -> 0 | AM22: =AA393 -> 180 | AN22: =RANK(AM22,AM$9:AM$38,1)+COUNTIF(AM$9:$AM22,AM22)-1 -> 14 | AO22: 1 | AP22: =IF(ISBLANK($C22),0,1)*INDEX('Allocation Points'!$B$3:$AG$32,AO22,COUNTIF(AO$9:AO$38,AO22)+2) -> 0
B23: 15 | E23: 20 | G23: 10 | H23: 10 | I23: 10 | J23: 10 | K23: 10 | L23: 10 | M23: 10 | N23: 10 | O23: 10 | P23: 90 | Q23: 10 | R23: 10 | S23: 10 | T23: 10 | U23: 10 | V23: 10 | W23: 10 | X23: 10 | Y23: 10 | Z23: 90 | AA23: 180 | AC23: =$AA$417 -> 0 | AD23: =RANK(AC23,AC$9:AC$38,0)+COUNTIF(AC$9:$AC23,AC23)-1 -> 15 | AE23: 1 | AF23: =IF(ISBLANK($C23),0,1)*INDEX('Allocation Points'!$B$3:$AG$32,AE23,COUNTIF(AE$9:AE$38,AE23)+2) -> 0 | AH23: =AA418 -> 0 | AI23: =RANK(AH23,AH$9:AH$38,0)+COUNTIF(AH$9:$AH23,AH23)-1 -> 15 | AJ23: 1 | AK23: =IF(ISBLANK($C23),0,1)*INDEX('Allocation Points'!$B$3:$AG$32,AJ23,COUNTIF(AJ$9:AJ$38,AJ23)+2) -> 0 | AM23: =AA416 -> 180 | AN23: =RANK(AM23,AM$9:AM$38,1)+COUNTIF(AM$9:$AM23,AM23)-1 -> 15 | AO23: 1 | AP23: =IF(ISBLANK($C23),0,1)*INDEX('Allocation Points'!$B$3:$AG$32,AO23,COUNTIF(AO$9:AO$38,AO23)+2) -> 0
B24: 16 | E24: 20 | G24: 10 | H24: 10 | I24: 10 | J24: 10 | K24: 10 | L24: 10 | M24: 10 | N24: 10 | O24: 10 | P24: 90 | Q24: 10 | R24: 10 | S24: 10 | T24: 10 | U24: 10 | V24: 10 | W24: 10 | X24: 10 | Y24: 10 | Z24: 90 | AA24: 180 | AC24: =$AA$440 -> 0 | AD24: =RANK(AC24,AC$9:AC$38,0)+COUNTIF(AC$9:$AC24,AC24)-1 -> 16 | AE24: 1 | AF24: =IF(ISBLANK($C24),0,1)*INDEX('Allocation Points'!$B$3:$AG$32,AE24,COUNTIF(AE$9:AE$38,AE24)+2) -> 0 | AH24: =AA441 -> 0 | AI24: =RANK(AH24,AH$9:AH$38,0)+COUNTIF(AH$9:$AH24,AH24)-1 -> 16 | AJ24: 1 | AK24: =IF(ISBLANK($C24),0,1)*INDEX('Allocation Points'!$B$3:$AG$32,AJ24,COUNTIF(AJ$9:AJ$38,AJ24)+2) -> 0 | AM24: =AA439 -> 180 | AN24: =RANK(AM24,AM$9:AM$38,1)+COUNTIF(AM$9:$AM24,AM24)-1 -> 16 | AO24: 1 | AP24: =IF(ISBLANK($C24),0,1)*INDEX('Allocation Points'!$B$3:$AG$32,AO24,COUNTIF(AO$9:AO$38,AO24)+2) -> 0
B25: 17 | E25: 20 | G25: 10 | H25: 10 | I25: 10 | J25: 10 | K25: 10 | L25: 10 | M25: 10 | N25: 10 | O25: 10 | P25: 90 | Q25: 10 | R25: 10 | S25: 10 | T25: 10 | U25: 10 | V25: 10 | W25: 10 | X25: 10 | Y25: 10 | Z25: 90 | AA25: 180 | AC25: =$AA$463 -> 0 | AD25: =RANK(AC25,AC$9:AC$38,0)+COUNTIF(AC$9:$AC25,AC25)-1 -> 17 | AE25: 1 | AF25: =IF(ISBLANK($C25),0,1)*INDEX('Allocation Points'!$B$3:$AG$32,AE25,COUNTIF(AE$9:AE$38,AE25)+2) -> 0 | AH25: =AA464 -> 0 | AI25: =RANK(AH25,AH$9:AH$38,0)+COUNTIF(AH$9:$AH25,AH25)-1 -> 17 | AJ25: 1 | AK25: =IF(ISBLANK($C25),0,1)*INDEX('Allocation Points'!$B$3:$AG$32,AJ25,COUNTIF(AJ$9:AJ$38,AJ25)+2) -> 0 | AM25: =AA462 -> 180 | AN25: =RANK(AM25,AM$9:AM$38,1)+COUNTIF(AM$9:$AM25,AM25)-1 -> 17 | AO25: 1 | AP25: =IF(ISBLANK($C25),0,1)*INDEX('Allocation Points'!$B$3:$AG$32,AO25,COUNTIF(AO$9:AO$38,AO25)+2) -> 0
B26: 18 | E26: 20 | G26: 10 | H26: 10 | I26: 10 | J26: 10 | K26: 10 | L26: 10 | M26: 10 | N26: 10 | O26: 10 | P26: 90 | Q26: 10 | R26: 10 | S26: 10 | T26: 10 | U26: 10 | V26: 10 | W26: 10 | X26: 10 | Y26: 10 | Z26: 90 | AA26: 180 | AC26: =$AA$486 -> 0 | AD26: =RANK(AC26,AC$9:AC$38,0)+COUNTIF(AC$9:$AC26,AC26)-1 -> 18 | AE26: 1 | AF26: =IF(ISBLANK($C26),0,1)*INDEX('Allocation Points'!$B$3:$AG$32,AE26,COUNTIF(AE$9:AE$38,AE26)+2) -> 0 | AH26: =AA487 -> 0 | AI26: =RANK(AH26,AH$9:AH$38,0)+COUNTIF(AH$9:$AH26,AH26)-1 -> 18 | AJ26: 1 | AK26: =IF(ISBLANK($C26),0,1)*INDEX('Allocation Points'!$B$3:$AG$32,AJ26,COUNTIF(AJ$9:AJ$38,AJ26)+2) -> 0 | AM26: =AA485 -> 180 | AN26: =RANK(AM26,AM$9:AM$38,1)+COUNTIF(AM$9:$AM26,AM26)-1 -> 18 | AO26: 1 | AP26: =IF(ISBLANK($C26),0,1)*INDEX('Allocation Points'!$B$3:$AG$32,AO26,COUNTIF(AO$9:AO$38,AO26)+2) -> 0
B27: 19 | E27: 20 | G27: 10 | H27: 10 | I27: 10 | J27: 10 | K27: 10 | L27: 10 | M27: 10 | N27: 10 | O27: 10 | P27: 90 | Q27: 10 | R27: 10 | S27: 10 | T27: 10 | U27: 10 | V27: 10 | W27: 10 | X27: 10 | Y27: 10 | Z27: 90 | AA27: 180 | AC27: =$AA$509 -> 0 | AD27: =RANK(AC27,AC$9:AC$38,0)+COUNTIF(AC$9:$AC27,AC27)-1 -> 19 | AE27: 1 | AF27: =IF(ISBLANK($C27),0,1)*INDEX('Allocation Points'!$B$3:$AG$32,AE27,COUNTIF(AE$9:AE$38,AE27)+2) -> 0 | AH27: =AA510 -> 0 | AI27: =RANK(AH27,AH$9:AH$38,0)+COUNTIF(AH$9:$AH27,AH27)-1 -> 19 | AJ27: 1 | AK27: =IF(ISBLANK($C27),0,1)*INDEX('Allocation Points'!$B$3:$AG$32,AJ27,COUNTIF(AJ$9:AJ$38,AJ27)+2) -> 0 | AM27: =AA508 -> 180 | AN27: =RANK(AM27,AM$9:AM$38,1)+COUNTIF(AM$9:$AM27,AM27)-1 -> 19 | AO27: 1 | AP27: =IF(ISBLANK($C27),0,1)*INDEX('Allocation Points'!$B$3:$AG$32,AO27,COUNTIF(AO$9:AO$38,AO27)+2) -> 0
B28: 20 | E28: 20 | G28: 10 | H28: 10 | I28: 10 | J28: 10 | K28: 10 | L28: 10 | M28: 10 | N28: 10 | O28: 10 | P28: 90 | Q28: 10 | R28: 10 | S28: 10 | T28: 10 | U28: 10 | V28: 10 | W28: 10 | X28: 10 | Y28: 10 | Z28: 90 | AA28: 180 | AC28: =$AA$532 -> 0 | AD28: =RANK(AC28,AC$9:AC$38,0)+COUNTIF(AC$9:$AC28,AC28)-1 -> 20 | AE28: 1 | AF28: =IF(ISBLANK($C28),0,1)*INDEX('Allocation Points'!$B$3:$AG$32,AE28,COUNTIF(AE$9:AE$38,AE28)+2) -> 0 | AH28: =AA533 -> 0 | AI28: =RANK(AH28,AH$9:AH$38,0)+COUNTIF(AH$9:$AH28,AH28)-1 -> 20 | AJ28: 1 | AK28: =IF(ISBLANK($C28),0,1)*INDEX('Allocation Points'!$B$3:$AG$32,AJ28,COUNTIF(AJ$9:AJ$38,AJ28)+2) -> 0 | AM28: =AA531 -> 180 | AN28: =RANK(AM28,AM$9:AM$38,1)+COUNTIF(AM$9:$AM28,AM28)-1 -> 20 | AO28: 1 | AP28: =IF(ISBLANK($C28),0,1)*INDEX('Allocation Points'!$B$3:$AG$32,AO28,COUNTIF(AO$9:AO$38,AO28)+2) -> 0
B29: 21 | E29: 20 | G29: 10 | H29: 10 | I29: 10 | J29: 10 | K29: 10 | L29: 10 | M29: 10 | N29: 10 | O29: 10 | P29: 90 | Q29: 10 | R29: 10 | S29: 10 | T29: 10 | U29: 10 | V29: 10 | W29: 10 | X29: 10 | Y29: 10 | Z29: 90 | AA29: 180 | AC29: =$AA$555 -> 0 | AD29: =RANK(AC29,AC$9:AC$38,0)+COUNTIF(AC$9:$AC29,AC29)-1 -> 21 | AE29: 1 | AF29: =IF(ISBLANK($C29),0,1)*INDEX('Allocation Points'!$B$3:$AG$32,AE29,COUNTIF(AE$9:AE$38,AE29)+2) -> 0 | AH29: =AA556 -> 0 | AI29: =RANK(AH29,AH$9:AH$38,0)+COUNTIF(AH$9:$AH29,AH29)-1 -> 21 | AJ29: 1 | AK29: =IF(ISBLANK($C29),0,1)*INDEX('Allocation Points'!$B$3:$AG$32,AJ29,COUNTIF(AJ$9:AJ$38,AJ29)+2) -> 0 | AM29: =AA554 -> 180 | AN29: =RANK(AM29,AM$9:AM$38,1)+COUNTIF(AM$9:$AM29,AM29)-1 -> 21 | AO29: 1 | AP29: =IF(ISBLANK($C29),0,1)*INDEX('Allocation Points'!$B$3:$AG$32,AO29,COUNTIF(AO$9:AO$38,AO29)+2) -> 0
B30: 22 | E30: 20 | G30: 10 | H30: 10 | I30: 10 | J30: 10 | K30: 10 | L30: 10 | M30: 10 | N30: 10 | O30: 10 | P30: 90 | Q30: 10 | R30: 10 | S30: 10 | T30: 10 | U30: 10 | V30: 10 | W30: 10 | X30: 10 | Y30: 10 | Z30: 90 | AA30: 180 | AC30: =$AA$578 -> 0 | AD30: =RANK(AC30,AC$9:AC$38,0)+COUNTIF(AC$9:$AC30,AC30)-1 -> 22 | AE30: 1 | AF30: =IF(ISBLANK($C30),0,1)*INDEX('Allocation Points'!$B$3:$AG$32,AE30,COUNTIF(AE$9:AE$38,AE30)+2) -> 0 | AH30: =AA579 -> 0 | AI30: =RANK(AH30,AH$9:AH$38,0)+COUNTIF(AH$9:$AH30,AH30)-1 -> 22 | AJ30: 1 | AK30: =IF(ISBLANK($C30),0,1)*INDEX('Allocation Points'!$B$3:$AG$32,AJ30,COUNTIF(AJ$9:AJ$38,AJ30)+2) -> 0 | AM30: =AA577 -> 180 | AN30: =RANK(AM30,AM$9:AM$38,1)+COUNTIF(AM$9:$AM30,AM30)-1 -> 22 | AO30: 1 | AP30: =IF(ISBLANK($C30),0,1)*INDEX('Allocation Points'!$B$3:$AG$32,AO30,COUNTIF(AO$9:AO$38,AO30)+2) -> 0
B31: 23 | E31: 20 | G31: 10 | H31: 10 | I31: 10 | J31: 10 | K31: 10 | L31: 10 | M31: 10 | N31: 10 | O31: 10 | P31: 90 | Q31: 10 | R31: 10 | S31: 10 | T31: 10 | U31: 10 | V31: 10 | W31: 10 | X31: 10 | Y31: 10 | Z31: 90 | AA31: 180 | AC31: =$AA$601 -> 0 | AD31: =RANK(AC31,AC$9:AC$38,0)+COUNTIF(AC$9:$AC31,AC31)-1 -> 23 | AE31: 1 | AF31: =IF(ISBLANK($C31),0,1)*INDEX('Allocation Points'!$B$3:$AG$32,AE31,COUNTIF(AE$9:AE$38,AE31)+2) -> 0 | AH31: =AA602 -> 0 | AI31: =RANK(AH31,AH$9:AH$38,0)+COUNTIF(AH$9:$AH31,AH31)-1 -> 23 | AJ31: 1 | AK31: =IF(ISBLANK($C31),0,1)*INDEX('Allocation Points'!$B$3:$AG$32,AJ31,COUNTIF(AJ$9:AJ$38,AJ31)+2) -> 0 | AM31: =AA600 -> 180 | AN31: =RANK(AM31,AM$9:AM$38,1)+COUNTIF(AM$9:$AM31,AM31)-1 -> 23 | AO31: 1 | AP31: =IF(ISBLANK($C31),0,1)*INDEX('Allocation Points'!$B$3:$AG$32,AO31,COUNTIF(AO$9:AO$38,AO31)+2) -> 0
B32: 24 | E32: 20 | G32: 10 | H32: 10 | I32: 10 | J32: 10 | K32: 10 | L32: 10 | M32: 10 | N32: 10 | O32: 10 | P32: 90 | Q32: 10 | R32: 10 | S32: 10 | T32: 10 | U32: 10 | V32: 10 | W32: 10 | X32: 10 | Y32: 10 | Z32: 90 | AA32: 180 | AC32: =$AA$624 -> 0 | AD32: =RANK(AC32,AC$9:AC$38,0)+COUNTIF(AC$9:$AC32,AC32)-1 -> 24 | AE32: 1 | AF32: =IF(ISBLANK($C32),0,1)*INDEX('Allocation Points'!$B$3:$AG$32,AE32,COUNTIF(AE$9:AE$38,AE32)+2) -> 0 | AH32: =AA625 -> 0 | AI32: =RANK(AH32,AH$9:AH$38,0)+COUNTIF(AH$9:$AH32,AH32)-1 -> 24 | AJ32: 1 | AK32: =IF(ISBLANK($C32),0,1)*INDEX('Allocation Points'!$B$3:$AG$32,AJ32,COUNTIF(AJ$9:AJ$38,AJ32)+2) -> 0 | AM32: =AA623 -> 180 | AN32: =RANK(AM32,AM$9:AM$38,1)+COUNTIF(AM$9:$AM32,AM32)-1 -> 24 | AO32: 1 | AP32: =IF(ISBLANK($C32),0,1)*INDEX('Allocation Points'!$B$3:$AG$32,AO32,COUNTIF(AO$9:AO$38,AO32)+2) -> 0
B33: 25 | E33: 20 | G33: 10 | H33: 10 | I33: 10 | J33: 10 | K33: 10 | L33: 10 | M33: 10 | N33: 10 | O33: 10 | P33: 90 | Q33: 10 | R33: 10 | S33: 10 | T33: 10 | U33: 10 | V33: 10 | W33: 10 | X33: 10 | Y33: 10 | Z33: 90 | AA33: 180 | AC33: =$AA$647 -> 0 | AD33: =RANK(AC33,AC$9:AC$38,0)+COUNTIF(AC$9:$AC33,AC33)-1 -> 25 | AE33: 1 | AF33: =IF(ISBLANK($C33),0,1)*INDEX('Allocation Points'!$B$3:$AG$32,AE33,COUNTIF(AE$9:AE$38,AE33)+2) -> 0 | AH33: =AA648 -> 0 | AI33: =RANK(AH33,AH$9:AH$38,0)+COUNTIF(AH$9:$AH33,AH33)-1 -> 25 | AJ33: 1 | AK33: =IF(ISBLANK($C33),0,1)*INDEX('Allocation Points'!$B$3:$AG$32,AJ33,COUNTIF(AJ$9:AJ$38,AJ33)+2) -> 0 | AM33: =AA646 -> 180 | AN33: =RANK(AM33,AM$9:AM$38,1)+COUNTIF(AM$9:$AM33,AM33)-1 -> 25 | AO33: 1 | AP33: =IF(ISBLANK($C33),0,1)*INDEX('Allocation Points'!$B$3:$AG$32,AO33,COUNTIF(AO$9:AO$38,AO33)+2) -> 0
B34: 26 | E34: 20 | G34: 10 | H34: 10 | I34: 10 | J34: 10 | K34: 10 | L34: 10 | M34: 10 | N34: 10 | O34: 10 | P34: 90 | Q34: 10 | R34: 10 | S34: 10 | T34: 10 | U34: 10 | V34: 10 | W34: 10 | X34: 10 | Y34: 10 | Z34: 90 | AA34: 180 | AC34: =$AA$670 -> 0 | AD34: =RANK(AC34,AC$9:AC$38,0)+COUNTIF(AC$9:$AC34,AC34)-1 -> 26 | AE34: 1 | AF34: =IF(ISBLANK($C34),0,1)*INDEX('Allocation Points'!$B$3:$AG$32,AE34,COUNTIF(AE$9:AE$38,AE34)+2) -> 0 | AH34: =AA671 -> 0 | AI34: =RANK(AH34,AH$9:AH$38,0)+COUNTIF(AH$9:$AH34,AH34)-1 -> 26 | AJ34: 1 | AK34: =IF(ISBLANK($C34),0,1)*INDEX('Allocation Points'!$B$3:$AG$32,AJ34,COUNTIF(AJ$9:AJ$38,AJ34)+2) -> 0 | AM34: =AA669 -> 180 | AN34: =RANK(AM34,AM$9:AM$38,1)+COUNTIF(AM$9:$AM34,AM34)-1 -> 26 | AO34: 1 | AP34: =IF(ISBLANK($C34),0,1)*INDEX('Allocation Points'!$B$3:$AG$32,AO34,COUNTIF(AO$9:AO$38,AO34)+2) -> 0
B35: 27 | E35: 20 | G35: 10 | H35: 10 | I35: 10 | J35: 10 | K35: 10 | L35: 10 | M35: 10 | N35: 10 | O35: 10 | P35: 90 | Q35: 10 | R35: 10 | S35: 10 | T35: 10 | U35: 10 | V35: 10 | W35: 10 | X35: 10 | Y35: 10 | Z35: 90 | AA35: 180 | AC35: =$AA$693 -> 0 | AD35: =RANK(AC35,AC$9:AC$38,0)+COUNTIF(AC$9:$AC35,AC35)-1 -> 27 | AE35: 1 | AF35: =IF(ISBLANK($C35),0,1)*INDEX('Allocation Points'!$B$3:$AG$32,AE35,COUNTIF(AE$9:AE$38,AE35)+2) -> 0 | AH35: =AA694 -> 0 | AI35: =RANK(AH35,AH$9:AH$38,0)+COUNTIF(AH$9:$AH35,AH35)-1 -> 27 | AJ35: 1 | AK35: =IF(ISBLANK($C35),0,1)*INDEX('Allocation Points'!$B$3:$AG$32,AJ35,COUNTIF(AJ$9:AJ$38,AJ35)+2) -> 0 | AM35: =AA692 -> 180 | AN35: =RANK(AM35,AM$9:AM$38,1)+COUNTIF(AM$9:$AM35,AM35)-1 -> 27 | AO35: 1 | AP35: =IF(ISBLANK($C35),0,1)*INDEX('Allocation Points'!$B$3:$AG$32,AO35,COUNTIF(AO$9:AO$38,AO35)+2) -> 0
B36: 28 | E36: 20 | G36: 10 | H36: 10 | I36: 10 | J36: 10 | K36: 10 | L36: 10 | M36: 10 | N36: 10 | O36: 10 | P36: 90 | Q36: 10 | R36: 10 | S36: 10 | T36: 10 | U36: 10 | V36: 10 | W36: 10 | X36: 10 | Y36: 10 | Z36: 90 | AA36: 180 | AC36: =$AA$716 -> 0 | AD36: =RANK(AC36,AC$9:AC$38,0)+COUNTIF(AC$9:$AC36,AC36)-1 -> 28 | AE36: 1 | AF36: =IF(ISBLANK($C36),0,1)*INDEX('Allocation Points'!$B$3:$AG$32,AE36,COUNTIF(AE$9:AE$38,AE36)+2) -> 0 | AH36: =AA717 -> 0 | AI36: =RANK(AH36,AH$9:AH$38,0)+COUNTIF(AH$9:$AH36,AH36)-1 -> 28 | AJ36: 1 | AK36: =IF(ISBLANK($C36),0,1)*INDEX('Allocation Points'!$B$3:$AG$32,AJ36,COUNTIF(AJ$9:AJ$38,AJ36)+2) -> 0 | AM36: =AA715 -> 180 | AN36: =RANK(AM36,AM$9:AM$38,1)+COUNTIF(AM$9:$AM36,AM36)-1 -> 28 | AO36: 1 | AP36: =IF(ISBLANK($C36),0,1)*INDEX('Allocation Points'!$B$3:$AG$32,AO36,COUNTIF(AO$9:AO$38,AO36)+2) -> 0
B37: 29 | E37: 20 | G37: 10 | H37: 10 | I37: 10 | J37: 10 | K37: 10 | L37: 10 | M37: 10 | N37: 10 | O37: 10 | P37: 90 | Q37: 10 | R37: 10 | S37: 10 | T37: 10 | U37: 10 | V37: 10 | W37: 10 | X37: 10 | Y37: 10 | Z37: 90 | AA37: 180 | AC37: =$AA$739 -> 0 | AD37: =RANK(AC37,AC$9:AC$38,0)+COUNTIF(AC$9:$AC37,AC37)-1 -> 29 | AE37: 1 | AF37: =IF(ISBLANK($C37),0,1)*INDEX('Allocation Points'!$B$3:$AG$32,AE37,COUNTIF(AE$9:AE$38,AE37)+2) -> 0 | AH37: =AA740 -> 0 | AI37: =RANK(AH37,AH$9:AH$38,0)+COUNTIF(AH$9:$AH37,AH37)-1 -> 29 | AJ37: 1 | AK37: =IF(ISBLANK($C37),0,1)*INDEX('Allocation Points'!$B$3:$AG$32,AJ37,COUNTIF(AJ$9:AJ$38,AJ37)+2) -> 0 | AM37: =AA738 -> 180 | AN37: =RANK(AM37,AM$9:AM$38,1)+COUNTIF(AM$9:$AM37,AM37)-1 -> 29 | AO37: 1 | AP37: =IF(ISBLANK($C37),0,1)*INDEX('Allocation Points'!$B$3:$AG$32,AO37,COUNTIF(AO$9:AO$38,AO37)+2) -> 0
B38: 30 | E38: 20 | G38: 10 | H38: 10 | I38: 10 | J38: 10 | K38: 10 | L38: 10 | M38: 10 | N38: 10 | O38: 10 | P38: 90 | Q38: 10 | R38: 10 | S38: 10 | T38: 10 | U38: 10 | V38: 10 | W38: 10 | X38: 10 | Y38: 10 | Z38: 90 | AA38: 180 | AC38: =$AA$762 -> 0 | AD38: =RANK(AC38,AC$9:AC$38,0)+COUNTIF(AC$9:$AC38,AC38)-1 -> 30 | AE38: 1 | AF38: =IF(ISBLANK($C38),0,1)*INDEX('Allocation Points'!$B$3:$AG$32,AE38,COUNTIF(AE$9:AE$38,AE38)+2) -> 0 | AH38: =AA763 -> 0 | AI38: =RANK(AH38,AH$9:AH$38,0)+COUNTIF(AH$9:$AH38,AH38)-1 -> 30 | AJ38: 1 | AK38: =IF(ISBLANK($C38),0,1)*INDEX('Allocation Points'!$B$3:$AG$32,AJ38,COUNTIF(AJ$9:AJ$38,AJ38)+2) -> 0 | AM38: =AA761 -> 180 | AN38: =RANK(AM38,AM$9:AM$38,1)+COUNTIF(AM$9:$AM38,AM38)-1 -> 30 | AO38: 1 | AP38: =IF(ISBLANK($C38),0,1)*INDEX('Allocation Points'!$B$3:$AG$32,AO38,COUNTIF(AO$9:AO$38,AO38)+2) -> 0
H41: CLASSEMENT
C45: NET | J45: BRUT | V45: STROKE
C47: Noms | D47: Prénoms | E47: NET | J47: Noms | N47: Prénoms | Q47: BRUT | V47: Noms | Z47: Prénoms | AB47: STROKE
B48: 1 | C48: =INDEX($C$9:$AN$38,MATCH(B48,$AD$9:$AD$38,0),1) -> 0 | D48: =INDEX($C$9:$AN$38,MATCH(B48,$AD$9:$AD$38,0),2) -> 0 | E48: =INDEX($C$9:$AN$38,MATCH(B48,$AD$9:$AD$38,0),27) -> 0 | I48: 1 | J48: =INDEX($C$9:$AN$38,MATCH(I48,$AI$9:$AI$38,0),1) -> 0 | N48: =INDEX($C$9:$AN$38,MATCH(I48,$AI$9:$AI$38,0),2) -> 0 | Q48: =INDEX($C$9:$AN$38,MATCH(I48,$AI$9:$AI$38,0),32) -> 0 | U48: 1 | V48: =INDEX($C$9:$AN$38,MATCH(U48,$AN$9:$AN$38,0),1) -> 0 | Z48: =INDEX($C$9:$AN$38,MATCH(U48,$AN$9:$AN$38,0),2) -> 0 | AB48: =INDEX($C$9:$AN$38,MATCH(U48,$AN$9:$AN$38,0),37) -> 180
B49: 2 | C49: 0 | D49: 0 | E49: 0 | I49: 2 | J49: 0 | N49: 0 | Q49: =INDEX($C$9:$AN$38,MATCH(I49,$AI$9:$AI$38,0),32) -> 0 | U49: 2 | V49: 0 | Z49: 0 | AB49: =INDEX($C$9:$AN$38,MATCH(U49,$AN$9:$AN$38,0),37) -> 180
B50: 3 | C50: 0 | D50: 0 | E50: 0 | I50: 3 | J50: 0 | N50: 0 | Q50: 0 | U50: 3 | V50: 0 | Z50: 0 | AB50: 180
B51: 4 | C51: 0 | D51: 0 | E51: 0 | I51: 4 | J51: 0 | N51: 0 | Q51: 0 | U51: 4 | V51: 0 | Z51: 0 | AB51: 180
B52: 5 | C52: 0 | D52: 0 | E52: 0 | I52: 5 | J52: 0 | N52: 0 | Q52: 0 | U52: 5 | V52: 0 | Z52: 0 | AB52: 180
B53: 6 | C53: 0 | D53: 0 | E53: 0 | I53: 6 | J53: 0 | N53: 0 | Q53: 0 | U53: 6 | V53: 0 | Z53: 0 | AB53: 180
B54: 7 | C54: 0 | D54: 0 | E54: 0 | I54: 7 | J54: 0 | N54: 0 | Q54: 0 | U54: 7 | V54: 0 | Z54: 0 | AB54: 180
B55: 8 | C55: 0 | D55: 0 | E55: 0 | I55: 8 | J55: 0 | N55: 0 | Q55: 0 | U55: 8 | V55: 0 | Z55: 0 | AB55: 180
B56: 9 | C56: 0 | D56: 0 | E56: 0 | I56: 9 | J56: 0 | N56: 0 | Q56: 0 | U56: 9 | V56: 0 | Z56: 0 | AB56: 180
B57: 10 | C57: 0 | D57: 0 | E57: 0 | I57: 10 | J57: 0 | N57: 0 | Q57: 0 | U57: 10 | V57: 0 | Z57: 0 | AB57: 180
B58: 11 | C58: 0 | D58: 0 | E58: 0 | I58: 11 | J58: 0 | N58: 0 | Q58: 0 | U58: 11 | V58: 0 | Z58: 0 | AB58: 180
B59: 12 | C59: 0 | D59: 0 | E59: 0 | I59: 12 | J59: 0 | N59: 0 | Q59: 0 | U59: 12 | V59: 0 | Z59: 0 | AB59: 180
B60: 13 | C60: 0 | D60: 0 | E60: 0 | I60: 13 | J60: 0 | N60: 0 | Q60: 0 | U60: 13 | V60: 0 | Z60: 0 | AB60: 180
B61: 14 | C61: 0 | D61: 0 | E61: 0 | I61: 14 | J61: 0 | N61: 0 | Q61: 0 | U61: 14 | V61: 0 | Z61: 0 | AB61: 180
B62: 15 | C62: 0 | D62: 0 | E62: 0 | I62: 15 | J62: 0 | N62: 0 | Q62: 0 | U62: 15 | V62: 0 | Z62: 0 | AB62: 180
B63: 16 | C63: 0 | D63: 0 | E63: 0 | I63: 16 | J63: 0 | N63: 0 | Q63: 0 | U63: 16 | V63: 0 | Z63: 0 | AB63: 180
B64: 17 | C64: 0 | D64: 0 | E64: 0 | I64: 17 | J64: 0 | N64: 0 | Q64: 0 | U64: 17 | V64: 0 | Z64: 0 | AB64: 180
B65: 18 | C65: 0 | D65: 0 | E65: 0 | I65: 18 | J65: 0 | N65: 0 | Q65: 0 | U65: 18 | V65: 0 | Z65: 0 | AB65: 180
B66: 19 | C66: 0 | D66: 0 | E66: 0 | I66: 19 | J66: 0 | N66: 0 | Q66: 0 | U66: 19 | V66: 0 | Z66: 0 | AB66: 180
B67: 20 | C67: 0 | D67: 0 | E67: 0 | I67: 20 | J67: 0 | N67: 0 | Q67: 0 | U67: 20 | V67: 0 | Z67: 0 | AB67: 180
B68: 21 | C68: 0 | D68: 0 | E68: 0 | I68: 21 | J68: 0 | N68: 0 | Q68: 0 | U68: 21 | V68: 0 | Z68: 0 | AB68: 180
B69: 22 | C69: 0 | D69: 0 | E69: 0 | I69: 22 | J69: 0 | N69: 0 | Q69: 0 | U69: 22 | V69: 0 | Z69: 0 | AB69: 180
B70: 23 | C70: 0 | D70: 0 | E70: 0 | I70: 23 | J70: 0 | N70: 0 | Q70: 0 | U70: 23 | V70: 0 | Z70: 0 | AB70: 180
B71: 24 | C71: 0 | D71: 0 | E71: 0 | I71: 24 | J71: 0 | N71: 0 | Q71: 0 | U71: 24 | V71: 0 | Z71: 0 | AB71: 180
B72: 25 | C72: 0 | D72: 0 | E72: 0 | I72: 25 | J72: 0 | N72: 0 | Q72: 0 | U72: 25 | V72: 0 | Z72: 0 | AB72: 180
B73: 26 | C73: 0 | D73: 0 | E73: 0 | I73: 26 | J73: 0 | N73: 0 | Q73: 0 | U73: 26 | V73: 0 | Z73: 0 | AB73: 180
B74: 27 | C74: 0 | D74: 0 | E74: 0 | I74: 27 | J74: 0 | N74: 0 | Q74: 0 | U74: 27 | V74: 0 | Z74: 0 | AB74: 180
B75: 28 | C75: 0 | D75: 0 | E75: 0 | I75: 28 | J75: 0 | N75: 0 | Q75: 0 | U75: 28 | V75: 0 | Z75: 0 | AB75: 180
B76: 29 | C76: 0 | D76: 0 | E76: 0 | I76: 29 | J76: 0 | N76: 0 | Q76: 0 | U76: 29 | V76: 0 | Z76: 0 | AB76: 180
B77: 30 | C77: 0 | D77: 0 | E77: 0 | I77: 30 | J77: 0 | N77: 0 | Q77: 0 | U77: 30 | V77: 0 | Z77: 0 | AB77: 180
H81: STATISTIQUES INDIVIDUELLES
F87: Nom | G87: =C9 -> 0 | L87: Slope | O87: SSS | Q87: Coups reçus | Z87: Date | AA87: =$D$3 -> 00:00:00
F88: Index | G88: =E9 -> 20 | L88: =$F$3 -> 133 | O88: =$G$3 -> 68.6 | Q88: =ROUND((G88*(L88/113)+(O88-AA91)),0) -> 20
F90: Trou | G90: 1 | H90: 2 | I90: 3 | J90: 4 | K90: 5 | L90: 6 | M90: 7 | N90: 8 | O90: 9 | P90: Aller | Q90: 10 | R90: 11 | S90: 12 | T90: 13 | U90: 14 | V90: 15 | W90: 16 | X90: 17 | Y90: 18 | Z90: Retour | AA90: Total
F91: PAR | G91: =G$7 -> 4 | H91: =H$7 -> 4 | I91: 5 | J91: 4 | K91: 3 | L91: 5 | M91: 3 | N91: 5 | O91: 3 | P91: =SUM(G91:O91) -> 36 | Q91: =Q$7 -> 4 | R91: 4 | S91: 3 | T91: 5 | U91: 3 | V91: 4 | W91: 4 | X91: 5 | Y91: 4 | Z91: =SUM(Q91:Y91) -> 36 | AA91: =SUM(P91+Z91) -> 72
F92: HCP trous | G92: =G$8 -> 4 | H92: =H$8 -> 8 | I92: 12 | J92: 14 | K92: 2 | L92: 10 | M92: 18 | N92: 16 | O92: 6 | Q92: =Q$8 -> 1 | R92: 9 | S92: 11 | T92: 5 | U92: 17 | V92: 15 | W92: 3 | X92: 13 | Y92: 7
F93: Coups reçus | G93: =IF($Q88<=18,IF(G92<=$Q88,1,0),IF($Q88<=36,IF(G92<=($Q88-18),2,1),IF($Q88>36,IF(G92<=($Q88-36),3,2)))) -> 1 | H93: =IF($Q88<=18,IF(H92<=$Q88,1,0),IF($Q88<=36,IF(H92<=($Q88-18),2,1),IF($Q88>36,IF(H92<=($Q88-36),3,2)))) -> 1 | I93: 1 | J93: 1 | K93: 2 | L93: 1 | M93: 1 | N93: 1 | O93: 1 | P93: =SUM(G93:O93) -> 10 | Q93: =IF($Q88<=18,IF(Q92<=$Q88,1,0),IF($Q88<=36,IF(Q92<=($Q88-18),2,1),IF($Q88>36,IF(Q92<=($Q88-36),3,2)))) -> 2 | R93: 1 | S93: 1 | T93: 1 | U93: 1 | V93: 1 | W93: 1 | X93: 1 | Y93: 1 | Z93: =SUM(Q93:Y93) -> 10 | AA93: =P93+Z93 -> 20
F94: Stroke play | G94: =G9 -> 10 | H94: 10 | I94: 10 | J94: 10 | K94: 10 | L94: 10 | M94: 10 | N94: 10 | O94: 10 | P94: =SUM(G94:O94) -> 90 | Q94: =Q9 -> 10 | R94: 10 | S94: 10 | T94: 10 | U94: 10 | V94: 10 | W94: 10 | X94: 10 | Y94: 10 | Z94: =SUM(Q94:Y94) -> 90 | AA94: =P94+Z94 -> 180
F95: Net Stableford | G95: =IF(G94-G91=-1,3+G93)+IF(G94-G91=0,2+G93)+IF(G94-G91=1,1+G93)+IF(G94-G91=2,G93)+IF(G94-G91=3,IF(G93-1>0,G93-1,0))+IF(G94-G91=4,IF(G93-2>0,G93-2,0)) -> 0 | H95: =IF(H94-H91=-1,3+H93)+IF(H94-H91=0,2+H93)+IF(H94-H91=1,1+H93)+IF(H94-H91=2,H93)+IF(H94-H91=3,IF(H93-1>0,H93-1,0))+IF(H94-H91=4,IF(H93-2>0,H93-2,0)) -> 0 | I95: 0 | J95: 0 | K95: 0 | L95: 0 | M95: 0 | N95: 0 | O95: 0 | P95: =SUM(G95:O95) -> 0 | Q95: =IF(Q94-Q91=-1,3+Q93)+IF(Q94-Q91=0,2+Q93)+IF(Q94-Q91=1,1+Q93)+IF(Q94-Q91=2,Q93)+IF(Q94-Q91=3,IF(Q93-1>0,Q93-1,0))+IF(Q94-Q91=4,IF(Q93-2>0,Q93-2,0)) -> 0 | R95: 0 | S95: 0 | T95: 0 | U95: 0 | V95: 0 | W95: 0 | X95: 0 | Y95: 0 | Z95: =SUM(Q95:Y95) -> 0 | AA95: =P95+Z95 -> 0
F96: Score Brut | G96: =IF(G94-G91=-2,4)+IF(G94-G91=-1,3)+IF(G94-G91=0,2)+IF(G94-G91=1,1)+IF(G94-G91>2,0) -> 0 | H96: 0 | I96: 0 | J96: 0 | K96: 0 | L96: 0 | M96: 0 | N96: 0 | O96: 0 | P96: =SUM(G96:O96) -> 0 | Q96: =IF(Q94-Q91=-2,4)+IF(Q94-Q91=-1,3)+IF(Q94-Q91=0,2)+IF(Q94-Q91=1,1)+IF(Q94-Q91>2,0) -> 0 | R96: 0 | S96: 0 | T96: 0 | U96: 0 | V96: 0 | W96: 0 | X96: 0 | Y96: 0 | Z96: =SUM(Q96:Y96) -> 0 | AA96: =P96+Z96 -> 0
G97: =G94-G91 -> 6 | H97: =H94-H91 -> 6 | I97: 5 | J97: 6 | K97: 7 | L97: 5 | M97: 7 | N97: 5 | O97: 7 | Q97: =Q94-Q91 -> 6 | R97: 6 | S97: 7 | T97: 5 | U97: 7 | V97: 6 | W97: 6 | X97: 5 | Y97: 6
F100: Statistiques scores | H100: Eagle & moins | L100: =COUNTIF(G97:Y97,"<=-2") -> 0 | M100: Par | O100: =COUNTIF(G97:Y97,"=0") -> 0 | P100: Double bogey | U100: =COUNTIF(G97:Y97,"=2") -> 0
H101: Birdie | L101: =COUNTIF(G97:Y97,"=-1") -> 0 | M101: Bogey | O101: =COUNTIF(G97:Y97,"=1") -> 0 | P101: Triple bogey & plus | U101: =COUNTIF(G97:Y97,">=3") -> 18
H102: =M100 -> Par | L102: =O100 -> 0
H103: =M101 -> Bogey | L103: =O101 -> 0
H104: =P100 -> Double bogey | L104: =U100 -> 0
H105: =P101 -> Triple bogey & plus | L105: =U101 -> 18
F110: Nom | G110: =C10 -> 0 | L110: Slope | O110: SSS | Q110: Coups reçus | Z110: Date | AA110: =$D$3 -> 00:00:00
F111: Index | G111: =E10 -> 20 | L111: =$F$3 -> 133 | O111: =$G$3 -> 68.6 | Q111: =ROUND((G111*(L111/113)+(O111-AA114)),0) -> 20
F113: Trou | G113: 1 | H113: 2 | I113: 3 | J113: 4 | K113: 5 | L113: 6 | M113: 7 | N113: 8 | O113: 9 | P113: Aller | Q113: 10 | R113: 11 | S113: 12 | T113: 13 | U113: 14 | V113: 15 | W113: 16 | X113: 17 | Y113: 18 | Z113: Retour | AA113: Total
F114: PAR | G114: =G$7 -> 4 | H114: =H$7 -> 4 | I114: 5 | J114: 4 | K114: 3 | L114: 5 | M114: 3 | N114: 5 | O114: 3 | P114: =SUM(G114:O114) -> 36 | Q114: =Q$7 -> 4 | R114: 4 | S114: 3 | T114: 5 | U114: 3 | V114: 4 | W114: 4 | X114: 5 | Y114: 4 | Z114: =SUM(Q114:Y114) -> 36 | AA114: =SUM(P114+Z114) -> 72
F115: HCP trous | G115: =G$8 -> 4 | H115: =H$8 -> 8 | I115: 12 | J115: 14 | K115: 2 | L115: 10 | M115: 18 | N115: 16 | O115: 6 | Q115: =Q$8 -> 1 | R115: 9 | S115: 11 | T115: 5 | U115: 17 | V115: 15 | W115: 3 | X115: 13 | Y115: 7
F116: Coups reçus | G116: =IF($Q111<=18,IF(G115<=$Q111,1,0),IF($Q111<=36,IF(G115<=($Q111-18),2,1),IF($Q111>36,IF(G115<=($Q111-36),3,2)))) -> 1 | H116: =IF($Q111<=18,IF(H115<=$Q111,1,0),IF($Q111<=36,IF(H115<=($Q111-18),2,1),IF($Q111>36,IF(H115<=($Q111-36),3,2)))) -> 1 | I116: 1 | J116: 1 | K116: 2 | L116: 1 | M116: 1 | N116: 1 | O116: 1 | P116: =SUM(G116:O116) -> 10 | Q116: =IF($Q111<=18,IF(Q115<=$Q111,1,0),IF($Q111<=36,IF(Q115<=($Q111-18),2,1),IF($Q111>36,IF(Q115<=($Q111-36),3,2)))) -> 2 | R116: 1 | S116: 1 | T116: 1 | U116: 1 | V116: 1 | W116: 1 | X116: 1 | Y116: 1 | Z116: =SUM(Q116:Y116) -> 10 | AA116: =P116+Z116 -> 20
F117: Stroke play | G117: =G10 -> 10 | H117: 10 | I117: 10 | J117: 10 | K117: 10 | L117: 10 | M117: 10 | N117: 10 | O117: 10 | P117: =SUM(G117:O117) -> 90 | Q117: =Q10 -> 10 | R117: 10 | S117: 10 | T117: 10 | U117: 10 | V117: 10 | W117: 10 | X117: 10 | Y117: 10 | Z117: =SUM(Q117:Y117) -> 90 | AA117: =P117+Z117 -> 180
F118: Net Stableford | G118: =IF(G117-G114=-1,3+G116)+IF(G117-G114=0,2+G116)+IF(G117-G114=1,1+G116)+IF(G117-G114=2,G116)+IF(G117-G114=3,IF(G116-1>0,G116-1,0))+IF(G117-G114=4,IF(G116-2>0,G116-2,0)) -> 0 | H118: =IF(H117-H114=-1,3+H116)+IF(H117-H114=0,2+H116)+IF(H117-H114=1,1+H116)+IF(H117-H114=2,H116)+IF(H117-H114=3,IF(H116-1>0,H116-1,0))+IF(H117-H114=4,IF(H116-2>0,H116-2,0)) -> 0 | I118: 0 | J118: 0 | K118: 0 | L118: 0 | M118: 0 | N118: 0 | O118: 0 | P118: =SUM(G118:O118) -> 0 | Q118: =IF(Q117-Q114=-1,3+Q116)+IF(Q117-Q114=0,2+Q116)+IF(Q117-Q114=1,1+Q116)+IF(Q117-Q114=2,Q116)+IF(Q117-Q114=3,IF(Q116-1>0,Q116-1,0))+IF(Q117-Q114=4,IF(Q116-2>0,Q116-2,0)) -> 0 | R118: 0 | S118: 0 | T118: 0 | U118: 0 | V118: 0 | W118: 0 | X118: 0 | Y118: 0 | Z118: =SUM(Q118:Y118) -> 0 | AA118: =P118+Z118 -> 0
F119: Score Brut | G119: =IF(G117-G114=-2,4)+IF(G117-G114=-1,3)+IF(G117-G114=0,2)+IF(G117-G114=1,1)+IF(G117-G114>2,0) -> 0 | H119: 0 | I119: 0 | J119: 0 | K119: 0 | L119: 0 | M119: 0 | N119: 0 | O119: 0 | P119: =SUM(G119:O119) -> 0 | Q119: =IF(Q117-Q114=-2,4)+IF(Q117-Q114=-1,3)+IF(Q117-Q114=0,2)+IF(Q117-Q114=1,1)+IF(Q117-Q114>2,0) -> 0 | R119: 0 | S119: 0 | T119: 0 | U119: 0 | V119: 0 | W119: 0 | X119: 0 | Y119: 0 | Z119: =SUM(Q119:Y119) -> 0 | AA119: =P119+Z119 -> 0
G120: =G117-G114 -> 6 | H120: =H117-H114 -> 6 | I120: 5 | J120: 6 | K120: 7 | L120: 5 | M120: 7 | N120: 5 | O120: 7 | Q120: =Q117-Q114 -> 6 | R120: 6 | S120: 7 | T120: 5 | U120: 7 | V120: 6 | W120: 6 | X120: 5 | Y120: 6
F123: Statistiques scores | H123: Eagle & moins | L123: =COUNTIF(G120:Y120,"<=-2") -> 0 | M123: Par | O123: =COUNTIF(G120:Y120,"=0") -> 0 | P123: Double bogey | U123: =COUNTIF(G120:Y120,"=2") -> 0
H124: Birdie | L124: =COUNTIF(G120:Y120,"=-1") -> 0 | M124: Bogey | O124: =COUNTIF(G120:Y120,"=1") -> 0 | P124: Triple bogey & plus | U124: =COUNTIF(G120:Y120,">=3") -> 18
H125: =M123 -> Par | L125: =O123 -> 0
H126: =M124 -> Bogey | L126: =O124 -> 0
H127: =P123 -> Double bogey | L127: =U123 -> 0
H128: =P124 -> Triple bogey & plus | L128: =U124 -> 18
F133: Nom | G133: =C11 -> 0 | L133: Slope | O133: SSS | Q133: Coups reçus | Z133: Date | AA133: =$D$3 -> 00:00:00
F134: Index | G134: =E11 -> 20 | L134: =$F$3 -> 133 | O134: =$G$3 -> 68.6 | Q134: =ROUND((G134*(L134/113)+(O134-AA137)),0) -> 20
F136: Trou | G136: 1 | H136: 2 | I136: 3 | J136: 4 | K136: 5 | L136: 6 | M136: 7 | N136: 8 | O136: 9 | P136: Aller | Q136: 10 | R136: 11 | S136: 12 | T136: 13 | U136: 14 | V136: 15 | W136: 16 | X136: 17 | Y136: 18 | Z136: Retour | AA136: Total
